Workbook

Sheet ORÇAMENTO SINTÉTICO
A4: SECRETARIA DE OBRAS
A5: REFORMA DO TEATRO JOÃO CAETANO
A6: Local: Praça Marechal Floriano Peixoto, bairro Centro, Itaboraí, RJ
E8: ='ORÇAMENTO ANALÍTICO'!$I$7 -> BDI SERVIÇOS = 28,82 %
E9: ='ORÇAMENTO ANALÍTICO'!I8 -> BDI EQUIPAMENTOS = 23,02 %
E10: ='ORÇAMENTO ANALÍTICO'!$I$9 -> BASE: SINAPI/EMOP/SCO
E11: ='ORÇAMENTO ANALÍTICO'!$I$10 -> Io = JANEIRO/2019
A12: ORÇAMENTO SINTÉTICO - OBRA DE REFORMA
A13: ITEM | B13: DESCRIÇÃO | E13: TOTAL
A15: 1 | B15: SERVIÇOS DE ESCRITÓRIO, LABORATÓRIO E CAMPO | E15: ='ORÇAMENTO ANALÍTICO'!I20 -> 30384.45
A16: 2 | B16: CANTEIRO DE OBRAS | E16: ='ORÇAMENTO ANALÍTICO'!I30 -> 12078.79
A17: 3 | B17: MOVIMENTO DE TERRA | E17: ='ORÇAMENTO ANALÍTICO'!I36 -> 14852.75
A18: 4 | B18: TRANSPORTES | E18: ='ORÇAMENTO ANALÍTICO'!I41 -> 2430.71
A19: 5 | B19: SERVIÇOS COMPLEMENTARES | E19: ='ORÇAMENTO ANALÍTICO'!I55 -> 26537.02
A20: 6 | B20: FUNDAÇÕES E ESTRUTURAS | E20: ='ORÇAMENTO ANALÍTICO'!I64 -> 32937.99
A21: 7 | B21: ALVENARIAS E DIVISÓRIAS | E21: ='ORÇAMENTO ANALÍTICO'!I70 -> 17945.01
A22: 8 | B22: REVESTIMENTOS | E22: ='ORÇAMENTO ANALÍTICO'!I88 -> 134463.3
A23: 9 | B23: ESQUADRIAS | E23: ='ORÇAMENTO ANALÍTICO'!I103 -> 81633
A24: 10 | B24: INSTALAÇÕES | E24: ='ORÇAMENTO ANALÍTICO'!I154 -> 135132.62
A25: 11 | B25: COBERTURAS | E25: ='ORÇAMENTO ANALÍTICO'!I165 -> 44475
A26: 12 | B26: PINTURAS | E26: ='ORÇAMENTO ANALÍTICO'!I174 -> 91758.84
A27: 13 | B27: APARELHOS | E27: ='ORÇAMENTO ANALÍTICO'!I207 -> 428155.07
A28: 14 | B28: ADMINISTRAÇÃO LOCAL DA OBRA | E28: ='ORÇAMENTO ANALÍTICO'!I210 -> 51357
A29: TOTAL GERAL | E29: =SUM(E15:E28) -> 1104141.55

Sheet ORÇAMENTO ANALÍTICO
B4: SECRETARIA DE OBRAS
B5: REFORMA DO TEATRO JOÃO CAETANO
B6: Local: Praça Marechal Floriano Peixoto, bairro Centro, Itaboraí, RJ
I7: BDI SERVIÇOS = 28,82 %
I8: BDI EQUIPAMENTOS = 23,02 %
I9: BASE: SINAPI/EMOP/SCO
I10: Io = JANEIRO/2019
B11: ORÇAMENTO ANALÍTICO - OBRA DE REFORMA | K11: BDI SERVIÇOS | L11: BDI EQUIPAMENTOS
B12: ITEM | C12: CÓDIGO | D12: DESCRIÇÃO | E12: UN | F12: QUANT | G12: UNITÁRIO | H12: CUSTO | K12: ='% B.D.I Serviços'!H45 ->  | L12: ='% B.D.I Equipamentos'!H45 -> 
G13: SEM BDI | H13: UNIT + BDI | I13: TOTAL
B14: 1 | C14: SERVIÇOS DE ESCRITÓRIO, LABORATÓRIO E CAMPO
A15: =B15&C15 -> 1.101.050.0546-A | B15: 1.1 | C15: 01.050.0546-A | D15: =VLOOKUP(C15,'EMOP 01-2019'!A:J,2,0) -> PROJETO EXECUTIVO ESTRUTURAL PARA PREDIOS CULTURAIS ATE 500M2,CONSIDERANDO O PROJETO BASICO EXISTENTE,APRESENTADO EM AUTOCAD NOS PADROES DA CONTRATANTE,CONSTANDO DE PLANTAS DE FORMA,ARMACAO E DETALHES,DE ACORDO COM A ABNT | E15: =VLOOKUP(C15,'EMOP 01-2019'!A:J,9,0) -> M2 | F15: ='MEMÓRIA DE CÁLCULO'!K12 -> 355 | G15: =VLOOKUP(C15,'EMOP 01-2019'!A:J,10,0) -> 45.07 | H15: =ROUND((G15*$K$12)+G15,2) -> 58.06 | I15: =TRUNC(F15*H15,2) -> 20611.3
A16: =B16&C16 -> 1.201.050.0481-A | B16: 1.2 | C16: 01.050.0481-A | D16: =VLOOKUP(C16,'EMOP 01-2019'!A:J,2,0) -> PROJETO EXECUTIVO DE INSTALACAO HIDRAULICA,CONSIDERANDO O PROJETO BASICO EXISTENTE,PARA PREDIOS CULTURAIS,APRESENTADO EM AUTOCAD,INCLUSIVE AS LEGALIZACOES PERTINENTES | E16: =VLOOKUP(C16,'EMOP 01-2019'!A:J,9,0) -> M2 | F16: ='MEMÓRIA DE CÁLCULO'!K16 -> 355 | G16: =VLOOKUP(C16,'EMOP 01-2019'!A:J,10,0) -> 4.79 | H16: =ROUND((G16*$K$12)+G16,2) -> 6.17 | I16: =TRUNC(F16*H16,2) -> 2190.35
A17: =B17&C17 -> 1.301.050.0518-A | B17: 1.3 | C17: 01.050.0518-A | D17: =VLOOKUP(C17,'EMOP 01-2019'!A:J,2,0) -> PROJETO EXECUTIVO DE INSTALACAO ELETRICA,CONSIDERANDO O PROJETO BASICO EXISTENTE,PARA PREDIOS CULTURAIS ATE 3000M2,APRESENTADO EM AUTOCAD,INCLUSIVE AS LEGALIZACOES PERTINENTES | E17: =VLOOKUP(C17,'EMOP 01-2019'!A:J,9,0) -> M2 | F17: ='MEMÓRIA DE CÁLCULO'!K20 -> 355 | G17: =VLOOKUP(C17,'EMOP 01-2019'!A:J,10,0) -> 9.56 | H17: =ROUND((G17*$K$12)+G17,2) -> 12.32 | I17: =TRUNC(F17*H17,2) -> 4373.6
A18: =B18&C18 -> 1.401.050.0455-A | B18: 1.4 | C18: 01.050.0455-A | D18: =VLOOKUP(C18,'EMOP 01-2019'!A:J,2,0) -> PROJETO EXECUTIVO DE INSTALACAO DE ESGOTO SANITARIO E AGUASPLUVIAIS,CONSIDERANDO O PROJETO BASICO EXISTENTE,PARA PREDIOS CULTURAIS,APRESENTADO EM AUTOCAD,INCLUSIVE AS LEGALIZACOES PERTINENTES | E18: =VLOOKUP(C18,'EMOP 01-2019'!A:J,9,0) -> M2 | F18: ='MEMÓRIA DE CÁLCULO'!K24 -> 355 | G18: =VLOOKUP(C18,'EMOP 01-2019'!A:J,10,0) -> 2.64 | H18: =ROUND((G18*$K$12)+G18,2) -> 3.4 | I18: =TRUNC(F18*H18,2) -> 1207
A19: =B19&C19 -> 1.501.050.0530-A | B19: 1.5 | C19: 01.050.0530-A | D19: =VLOOKUP(C19,'EMOP 01-2019'!A:J,2,0) -> PROJETO EXECUTIVO DE SISTEMA DE AR CONDICIONADO E EXAUSTAO MECANICA,CONSIDERANDO O PROJETO BASICO EXISTENTE,EM AUTOCAD,PARA PREDIOS COM AREA ATE 500M2 | E19: =VLOOKUP(C19,'EMOP 01-2019'!A:J,9,0) -> M2 | F19: ='MEMÓRIA DE CÁLCULO'!K28 -> 355 | G19: =VLOOKUP(C19,'EMOP 01-2019'!A:J,10,0) -> 4.38 | H19: =ROUND((G19*$K$12)+G19,2) -> 5.64 | I19: =TRUNC(F19*H19,2) -> 2002.2
H20: SUBTOTAL 1 | I20: =SUM(I15:I19) -> 30384.45
B21: 2 | C21: CANTEIRO DE OBRAS
A22: =B22&C22 -> 2.174209/1 | B22: 2.1 | C22: 74209/1 | D22: =VLOOKUP(C22,'SINAPI 01-2019'!A:E,2,0) -> PLACA DE OBRA EM CHAPA DE ACO GALVANIZADO | E22: =VLOOKUP(C22,'SINAPI 01-2019'!A:E,3,0) -> M2 | F22: ='MEMÓRIA DE CÁLCULO'!K33 -> 2.88 | G22: =VLOOKUP(C22,'SINAPI 01-2019'!A:E,4,0) -> 435.26 | H22: =ROUND((G22*$K$12)+G22,2) -> 560.7 | I22: =TRUNC(F22*H22,2) -> 1614.81
A23: =B23&C23 -> 2.2AD19.05.0450 | B23: 2.2 | C23: AD19.05.0450 | D23: Tapume de vedacao ou protecao, executado com telhas trapezoidais de aco galvanizado (esp.: 0,50mm), inclusive duas demaos de pintura esmalte sintetico, na face externa, considerando a utilizacao das telhas 4 vezes e da moldura em perna de 3"x3", duas vezes.(desonerado) | E23: M2 | F23: ='MEMÓRIA DE CÁLCULO'!K37 -> 116.6 | G23: 28.78 | H23: =ROUND((G23*$K$12)+G23,2) -> 37.07 | I23: 0 | J23: RETRABALHO !
A24: =B24&C24 -> 2.341598 | B24: 2.3 | C24: 41598 | D24: =VLOOKUP(C24,'SINAPI 01-2019'!A:E,2,0) -> ENTRADA PROVISORIA DE ENERGIA ELETRICA AEREA TRIFASICA 40A EM POSTE MADEIRA | E24: =VLOOKUP(C24,'SINAPI 01-2019'!A:E,3,0) -> UN | F24: ='MEMÓRIA DE CÁLCULO'!K41 -> 1 | G24: =VLOOKUP(C24,'SINAPI 01-2019'!A:E,4,0) -> 1431.67 | H24: =ROUND((G24*$K$12)+G24,2) -> 1844.28 | I24: 0 | J24: RETRABALHO !
A25: =B25&C25 -> 2.4AD19.20.0100 | B25: 2.4 | C25: AD19.20.0100 | D25: Instalacao e ligacao provisoria de obra de agua e esgoto a rede publica.(desonerado) | E25: UN | F25: ='MEMÓRIA DE CÁLCULO'!K43 -> 1 | G25: 1124.47 | H25: =ROUND((G25*$K$12)+G25,2) -> 1448.54 | I25: 0 | J25: RETRABALHO !
A26: =B26&C26 -> 2.510775 | B26: 2.5 | C26: 10775 | D26: LOCACAO DE CONTAINER 2,30 X 6,00 M, ALT. 2,50 M, COM 1 SANITARIO, PARA ESCRITORIO, COMPLETO, SEM DIVISORIAS INTERNAS | E26: MES | F26: ='MEMÓRIA DE CÁLCULO'!K45 -> 6 | G26: 532.35 | H26: =ROUND((G26*$K$12)+G26,2) -> 685.77 | I26: =TRUNC(F26*H26,2) -> 4114.62
A27: =B27&C27 -> 2.610778 | B27: 2.6 | C27: 10778 | D27: LOCACAO DE CONTAINER 2,30 X 6,00 M, ALT. 2,50 M, PARA SANITARIO, COM 4 BACIAS, 8 CHUVEIROS,1 LAVATORIO E 1 MICTORIO | E27: MES | F27: ='MEMÓRIA DE CÁLCULO'!K49 -> 6 | G27: 665.43 | H27: =ROUND((G27*$K$12)+G27,2) -> 857.21 | I27: =TRUNC(F27*H27,2) -> 5143.26
A28: =B28&C28 -> 2.704.013.0015-A | B28: 2.7 | C28: 04.013.0015-A | D28: =VLOOKUP(C28,'EMOP 01-2019'!A:J,2,0) -> CARGA E DESCARGA DE CONTAINER,SEGUNDO DESCRICAO DA FAMILIA 02.006 | E28: =VLOOKUP(C28,'EMOP 01-2019'!A:J,9,0) -> UN | F28: ='MEMÓRIA DE CÁLCULO'!K53 -> 2 | G28: =VLOOKUP(C28,'EMOP 01-2019'!A:J,10,0) -> 54.38 | H28: =ROUND((G28*$K$12)+G28,2) -> 70.05 | I28: =TRUNC(F28*H28,2) -> 140.1
A29: =B29&C29 -> 2.804.005.0300-A | B29: 2.8 | C29: 04.005.0300-A | D29: =VLOOKUP(C29,'EMOP 01-2019'!A:J,2,0) -> TRANSPORTE DE CONTAINER,SEGUNDO DESCRICAO DA FAMILIA 02.006,EXCLUSIVE CARGA E DESCARGA(VIDE ITEM 04.013.0015) | E29: =VLOOKUP(C29,'EMOP 01-2019'!A:J,9,0) -> UNXKM | F29: ='MEMÓRIA DE CÁLCULO'!K55 -> 40 | G29: =VLOOKUP(C29,'EMOP 01-2019'!A:J,10,0) -> 20.69 | H29: =ROUND((G29*$K$12)+G29,2) -> 26.65 | I29: =TRUNC(F29*H29,2) -> 1066
H30: SUBTOTAL 2 | I30: =SUM(I22:I29) -> 12078.79
B31: 3 | C31: MOVIMENTO DE TERRA | E31: .
A32: =B32&C32 -> 3.190084 | B32: 3.1 | C32: 90084 | D32: =VLOOKUP(C32,'SINAPI 01-2019'!A:E,2,0) -> ESCAVAÇÃO MECANIZADA DE VALA COM PROF. MAIOR QUE 1,5 M ATÉ 3,0 M (MÉDIA ENTRE MONTANTE E JUSANTE/UMA COMPOSIÇÃO POR TRECHO), COM ESCAVADEIRA HIDRÁULICA (0,8 M3/111 HP), LARGURA ATÉ 1,5 M, EM SOLO DE 1A CATEGORIA, EM LOCAIS COM ALTO NÍVEL DE INTERFERÊNCIA. AF_01/2015 | E32: =VLOOKUP(C32,'SINAPI 01-2019'!A:E,3,0) -> M3 | F32: ='MEMÓRIA DE CÁLCULO'!K60 -> 23.94 | G32: =VLOOKUP(C32,'SINAPI 01-2019'!A:E,4,0) -> 8.06 | H32: =ROUND((G32*$K$12)+G32,2) -> 10.38 | I32: =TRUNC(F32*H32,2) -> 248.49
A33: =B33&C33 -> 3.293358 | B33: 3.2 | C33: 93358 | D33: =VLOOKUP(C33,'SINAPI 01-2019'!A:E,2,0) -> ESCAVAÇÃO MANUAL DE VALA COM PROFUNDIDADE MENOR OU IGUAL A 1,30 M. AF_03/2016 | E33: =VLOOKUP(C33,'SINAPI 01-2019'!A:E,3,0) -> M3 | F33: ='MEMÓRIA DE CÁLCULO'!K65 -> 31.39 | G33: =VLOOKUP(C33,'SINAPI 01-2019'!A:E,4,0) -> 76.23 | H33: =ROUND((G33*$K$12)+G33,2) -> 98.2 | I33: =TRUNC(F33*H33,2) -> 3082.49
A34: =B34&C34 -> 3.393382 | B34: 3.3 | C34: 93382 | D34: =VLOOKUP(C34,'SINAPI 01-2019'!A:E,2,0) -> REATERRO MANUAL DE VALAS COM COMPACTAÇÃO MECANIZADA. AF_04/2016 | E34: =VLOOKUP(C34,'SINAPI 01-2019'!A:E,3,0) -> M3 | F34: ='MEMÓRIA DE CÁLCULO'!K73 -> 43.52 | G34: =VLOOKUP(C34,'SINAPI 01-2019'!A:E,4,0) -> 28.81 | H34: =ROUND((G34*$K$12)+G34,2) -> 37.11 | I34: =TRUNC(F34*H34,2) -> 1615.02
A35: =B35&C35 -> 3.403.009.0015-A | B35: 3.4 | C35: 03.009.0015-A | D35: =VLOOKUP(C35,'EMOP 01-2019'!A:J,2,0) -> ATERRO COM MATERIAL DE 1ª CATEGORIA,COMPACTADO MANUALMENTE EM CAMADAS DE 20CM DE MATERIAL APILOADO,PROVENIENTE DE JAZIDA DISTANTE ATE 10KM,INCLUSIVE ESCAVACAO,CARGA,TRANSPORTE EM CAMINHAO BASCULANTE,DESCARGA,ESPALHAMENTO E IRRIGACAO MANUAIS | E35: =VLOOKUP(C35,'EMOP 01-2019'!A:J,9,0) -> M3 | F35: ='MEMÓRIA DE CÁLCULO'!K82 -> 59.5 | G35: =VLOOKUP(C35,'EMOP 01-2019'!A:J,10,0) -> 129.25 | H35: =ROUND((G35*$K$12)+G35,2) -> 166.5 | I35: =TRUNC(F35*H35,2) -> 9906.75
H36: SUBTOTAL 3 | I36: =SUM(I32:I35) -> 14852.75
B37: 4 | C37: TRANSPORTES | E37: .
A38: =B38&C38 -> 4.105.001.0171-A | B38: 4.1 | C38: 05.001.0171-A | D38: =VLOOKUP(C38,'EMOP 01-2019'!A:J,2,0) -> TRANSPORTE HORIZONTAL DE MATERIAL DE 1ªCATEGORIA OU ENTULHO,EM CARRINHOS,A 20,00M DE DISTANCIA,INCLUSIVE CARGA A PA | E38: =VLOOKUP(C38,'EMOP 01-2019'!A:J,9,0) -> M3 | F38: ='MEMÓRIA DE CÁLCULO'!K101 -> 71.26 | G38: =VLOOKUP(C38,'EMOP 01-2019'!A:J,10,0) -> 18.08 | H38: =ROUND((G38*$K$12)+G38,2) -> 23.29 | I38: =TRUNC(F38*H38,2) -> 1659.64
A39: =B39&C39 -> 4.272898 | B39: 4.2 | C39: 72898 | D39: =VLOOKUP(C39,'SINAPI 01-2019'!A:E,2,0) -> CARGA E DESCARGA MECANIZADAS DE ENTULHO EM CAMINHAO BASCULANTE 6 M3 | E39: =VLOOKUP(C39,'SINAPI 01-2019'!A:E,3,0) -> M3 | F39: ='MEMÓRIA DE CÁLCULO'!K112 -> 28.29 | G39: =VLOOKUP(C39,'SINAPI 01-2019'!A:E,4,0) -> 3.91 | H39: =ROUND((G39*$K$12)+G39,2) -> 5.04 | I39: =TRUNC(F39*H39,2) -> 142.58
A40: =B40&C40 -> 4.372884 | B40: 4.3 | C40: 72884 | D40: =VLOOKUP(C40,'SINAPI 01-2019'!A:E,2,0) -> TRANSPORTE COMERCIAL COM CAMINHAO CARROCERIA 9 T, RODOVIA PAVIMENTADA | E40: =VLOOKUP(C40,'SINAPI 01-2019'!A:E,3,0) -> M3XKM | F40: ='MEMÓRIA DE CÁLCULO'!K124 -> 566.21 | G40: =VLOOKUP(C40,'SINAPI 01-2019'!A:E,4,0) -> 0.86 | H40: =ROUND((G40*$K$12)+G40,2) -> 1.11 | I40: =TRUNC(F40*H40,2) -> 628.49
H41: SUBTOTAL 4 | I41: =SUM(I38:I40) -> 2430.71
B42: 5 | C42: SERVIÇOS COMPLEMENTARES
A43: =B43&C43 -> 5.197622 | B43: 5.1 | C43: 97622 | D43: =VLOOKUP(C43,'SINAPI 01-2019'!A:E,2,0) -> DEMOLIÇÃO DE ALVENARIA DE BLOCO FURADO, DE FORMA MANUAL, SEM REAPROVEITAMENTO. AF_12/2017 | E43: =VLOOKUP(C43,'SINAPI 01-2019'!A:E,3,0) -> M3 | F43: ='MEMÓRIA DE CÁLCULO'!K137 -> 33.6 | G43: =VLOOKUP(C43,'SINAPI 01-2019'!A:E,4,0) -> 50.23 | H43: =ROUND((G43*$K$12)+G43,2) -> 64.71 | I43: 0 | J43: RETRABALHO !
A44: =B44&C44 -> 5.105.001.0002-B | B44: 5.1 | C44: 05.001.0002-B | D44: =VLOOKUP(C44,'EMOP 01-2019'!A:J,2,0) -> DEMOLICAO MANUAL DE CONCRETO ARMADO COMPREENDENDO PILARES,VIGAS E LAJES,EM ESTRUTURA APRESENTANDO POSICAO ESPECIAL,INCLUSIVE EMPILHAMENTO LATERAL DENTRO DO CANTEIRO DE SERVICO | E44: =VLOOKUP(C44,'EMOP 01-2019'!A:J,9,0) -> M3 | F44: ='MEMÓRIA DE CÁLCULO'!K157 -> 7.27 | G44: =VLOOKUP(C44,'EMOP 01-2019'!A:J,10,0) -> 244.21 | H44: =ROUND((G44*$K$12)+G44,2) -> 314.59 | I44: =TRUNC(F44*H44,2) -> 2287.06
A45: =B45&C45 -> 5.205.001.0018-A | B45: 5.2 | C45: 05.001.0018-A | D45: =VLOOKUP(C45,'EMOP 01-2019'!A:J,2,0) -> DEMOLICAO MANUAL DE PISO CIMENTADO E DA RESPECTIVA BASE DE CONCRETO,OU PASSEIO DE CONCRETO,INCLUSIVE EMPILHAMENTO LATERAL DENTRO DO CANTEIRO DE SERVICO | E45: =VLOOKUP(C45,'EMOP 01-2019'!A:J,9,0) -> M2 | F45: ='MEMÓRIA DE CÁLCULO'!K167 -> 92.6 | G45: =VLOOKUP(C45,'EMOP 01-2019'!A:J,10,0) -> 9.04 | H45: =ROUND((G45*$K$12)+G45,2) -> 11.65 | I45: =TRUNC(F45*H45,2) -> 1078.79
A46: =B46&C46 -> 5.305.001.0134-A | B46: 5.3 | C46: 05.001.0134-A | D46: =VLOOKUP(C46,'EMOP 01-2019'!A:J,2,0) -> ARRANCAMENTO DE PORTAS,JANELAS E CAIXILHOS DE AR CONDICIONADO OU OUTROS | E46: =VLOOKUP(C46,'EMOP 01-2019'!A:J,9,0) -> UN | F46: ='MEMÓRIA DE CÁLCULO'!K174 -> 14 | G46: =VLOOKUP(C46,'EMOP 01-2019'!A:J,10,0) -> 18.26 | H46: =ROUND((G46*$K$12)+G46,2) -> 23.52 | I46: =TRUNC(F46*H46,2) -> 329.28
A47: =B47&C47 -> 5.405.001.0147-A | B47: 5.4 | C47: 05.001.0147-A | D47: =VLOOKUP(C47,'EMOP 01-2019'!A:J,2,0) -> ARRANCAMENTO DE GRADES,GRADIS,ALAMBRADOS,CERCAS E PORTOES | E47: =VLOOKUP(C47,'EMOP 01-2019'!A:J,9,0) -> M2 | F47: ='MEMÓRIA DE CÁLCULO'!K187 -> 28.2 | G47: =VLOOKUP(C47,'EMOP 01-2019'!A:J,10,0) -> 12.91 | H47: =ROUND((G47*$K$12)+G47,2) -> 16.63 | I47: =TRUNC(F47*H47,2) -> 468.96
A48: =B48&C48 -> 5.505.001.0050-A | B48: 5.5 | C48: 05.001.0050-A | D48: =VLOOKUP(C48,'EMOP 01-2019'!A:J,2,0) -> REMOCAO DE COBERTURA EM TELHAS COLONIAIS,INCLUSIVE MADEIRAMENTO,MEDIDO O CONJUNTO PELA AREA REAL DE COBERTURA | E48: =VLOOKUP(C48,'EMOP 01-2019'!A:J,9,0) -> M2 | F48: ='MEMÓRIA DE CÁLCULO'!K193 -> 122.77 | G48: =VLOOKUP(C48,'EMOP 01-2019'!A:J,10,0) -> 26.19 | H48: =ROUND((G48*$K$12)+G48,2) -> 33.74 | I48: =TRUNC(F48*H48,2) -> 4142.25
A49: =B49&C49 -> 5.605.005.0005-B | B49: 5.6 | C49: 05.005.0005-B | D49: =VLOOKUP(C49,'EMOP 01-2019'!A:J,2,0) -> ANDAIME DE TABUADO SOBRE CAVALETES,INCLUSIVE ESTES,EM MADEIRA DE 1ª,COM APROVEITAMENTO DA MADEIRA 20 VEZES,INCLUSIVE MOVIMENTACAO | E49: =VLOOKUP(C49,'EMOP 01-2019'!A:J,9,0) -> M2 | F49: ='MEMÓRIA DE CÁLCULO'!K197 -> 127.96 | G49: =VLOOKUP(C49,'EMOP 01-2019'!A:J,10,0) -> 8.93 | H49: =ROUND((G49*$K$12)+G49,2) -> 11.5 | I49: =TRUNC(F49*H49,2) -> 1471.54
A50: =B50&C50 -> 5.705.006.0001-B | B50: 5.7 | C50: 05.006.0001-B | D50: =VLOOKUP(C50,'EMOP 01-2019'!A:J,2,0) -> ALUGUEL DE ANDAIME COM ELEMENTOS TUBULARES(FACHADEIRO)SOBRESAPATAS FIXAS,CONSIDERANDO-SE A AREA DA PROJECAO VERTICAL DO ANDAIME E PAGO PELO TEMPO NECESSARIO A SUA UTILIZACAO,EXCLUSIVE TRANSPORTE DOS ELEMENTOS DO ANDAIME ATE A OBRA,PLATAFORMA OU PASSARELA DE PINHO,MONTAGEM E DESMONTAGEM DOS ANDAIMES | E50: =VLOOKUP(C50,'EMOP 01-2019'!A:J,9,0) -> M2XMES | F50: ='MEMÓRIA DE CÁLCULO'!K231 -> 1987.2 | G50: =VLOOKUP(C50,'EMOP 01-2019'!A:J,10,0) -> 4 | H50: =ROUND((G50*$K$12)+G50,2) -> 5.15 | I50: =TRUNC(F50*H50,2) -> 10234.08
A51: =B51&C51 -> 5.897064 | B51: 5.8 | C51: 97064 | D51: =VLOOKUP(C51,'SINAPI 01-2019'!A:E,2,0) -> MONTAGEM E DESMONTAGEM DE ANDAIME TUBULAR TIPO TORRE (EXCLUSIVE ANDAIME E LIMPEZA). AF_11/2017 | E51: =VLOOKUP(C51,'SINAPI 01-2019'!A:E,3,0) -> M | F51: ='MEMÓRIA DE CÁLCULO'!K243 -> 144.48 | G51: =VLOOKUP(C51,'SINAPI 01-2019'!A:E,4,0) -> 20.62 | H51: =ROUND((G51*$K$12)+G51,2) -> 26.56 | I51: =TRUNC(F51*H51,2) -> 3837.38
A52: =B52&C52 -> 5.904.020.0122-A | B52: 5.9 | C52: 04.020.0122-A | D52: =VLOOKUP(C52,'EMOP 01-2019'!A:J,2,0) -> TRANSPORTE DE ANDAIME TUBULAR,CONSIDERANDO-SE A AREA DE PROJECAO VERTICAL DO ANDAIME,EXCLUSIVE CARGA,DESCARGA E TEMPO DE ESPERA DO CAMINHAO(VIDE ITEM 04.021.0010) | E52: =VLOOKUP(C52,'EMOP 01-2019'!A:J,9,0) -> M2XKM | F52: ='MEMÓRIA DE CÁLCULO'!K254 -> 4968 | G52: =VLOOKUP(C52,'EMOP 01-2019'!A:J,10,0) -> 0.11 | H52: =ROUND((G52*$K$12)+G52,2) -> 0.14 | I52: =TRUNC(F52*H52,2) -> 695.52
A53: =B53&C53 -> 5.1004.021.0010-A | B53: 5.10 | C53: 04.021.0010-A | D53: =VLOOKUP(C53,'EMOP 01-2019'!A:J,2,0) -> CARGA E DESCARGA MANUAL DE ANDAIME TUBULAR,INCLUSIVE TEMPO DE ESPERA DO CAMINHAO,CONSIDERANDO-SE A AREA DE PROJECAO VERTICAL | E53: =VLOOKUP(C53,'EMOP 01-2019'!A:J,9,0) -> M2 | F53: ='MEMÓRIA DE CÁLCULO'!K264 -> 248.4 | G53: =VLOOKUP(C53,'EMOP 01-2019'!A:J,10,0) -> 0.61 | H53: =ROUND((G53*$K$12)+G53,2) -> 0.79 | I53: =TRUNC(F53*H53,2) -> 196.23
A54: =B54&C54 -> 5.1197062 | B54: 5.11 | C54: 97062 | D54: =VLOOKUP(C54,'SINAPI 01-2019'!A:E,2,0) -> COLOCAÇÃO DE TELA EM ANDAIME FACHADEIRO. AF_11/2017 | E54: =VLOOKUP(C54,'SINAPI 01-2019'!A:E,3,0) -> M2 | F54: ='MEMÓRIA DE CÁLCULO'!K271 -> 248.4 | G54: =VLOOKUP(C54,'SINAPI 01-2019'!A:E,4,0) -> 5.61 | H54: =ROUND((G54*$K$12)+G54,2) -> 7.23 | I54: =TRUNC(F54*H54,2) -> 1795.93
H55: SUBTOTAL 5 | I55: =SUM(I43:I54) -> 26537.02
B56: 6 | C56: FUNDAÇÕES E ESTRUTURAS | E56: .
A57: =B57&C57 -> 6.111.016.0040-A | B57: 6.1 | C57: 11.016.0040-A | D57: =VLOOKUP(C57,'EMOP 01-2019'!A:J,2,0) -> ESTRUTURA METALICA EM ACO ESPECIAL,RESISTENTE A CORROSAO(ACO USI-SAC),PARA OBRAS PREDIAIS DE ATE 04 PAVIMENTOS,PILARES,VIGAS PRINCIPAIS E SECUNDARIAS,ESCADAS,PATAMARES E CHAPAS DAS BASES DA FUNDACAO,PINTURA PROTETORA,CONSIDERANDO FORNECIMENTO DE TODOS OS MATERIAIS E MONTAGEM,EXCLUSIVE A LAJE DE CONCRETO | E57: =VLOOKUP(C57,'EMOP 01-2019'!A:J,9,0) -> M2 | F57: ='MEMÓRIA DE CÁLCULO'!K279 -> 0 | G57: =VLOOKUP(C57,'EMOP 01-2019'!A:J,10,0) -> 474.33 | H57: =ROUND((G57*$K$12)+G57,2) -> 611.03 | I57: =TRUNC(F57*H57,2) -> 0 | J57: ITEM GLOSADO PELA CAIXA E COMPORÁ A PLANILHA SOMENTE APARTIR DA CONCLUSÃO DA ANÁLISE DO CALCULISTA E DO PROJETO DE REFORÇO ESTRUTURAL.
A58: =B58&C58 -> 6.274141/2 | B58: 6.2 | C58: 74141/2 | D58: =VLOOKUP(C58,'SINAPI 01-2019'!A:E,2,0) -> LAJE PRE-MOLD BETA 12 P/3,5KN/M2 VAO 4,1M INCL VIGOTAS TIJOLOS ARMADU-RA NEGATIVA CAPEAMENTO 3CM CONCRETO 15MPA ESCORAMENTO MATERIAIS E MAO DE OBRA. | E58: =VLOOKUP(C58,'SINAPI 01-2019'!A:E,3,0) -> M2 | F58: ='MEMÓRIA DE CÁLCULO'!K285 -> 26.73 | G58: =VLOOKUP(C58,'SINAPI 01-2019'!A:E,4,0) -> 82.46 | H58: =ROUND((G58*$K$12)+G58,2) -> 106.22 | I58: =TRUNC(F58*H58,2) -> 2839.26
A59: =B59&C59 -> 6.311.013.0075-A | B59: 6.3 | C59: 11.013.0075-A | D59: =VLOOKUP(C59,'EMOP 01-2019'!A:J,2,0) -> CONCRETO ARMADO,FCK=25MPA,INCLUINDO MATERIAIS PARA 1,00M3 DE CONCRETO(IMPORTADO DE USINA)ADENSADO E COLOCADO,14,00M2 DEAREA MOLDADA,FORMAS E ESCORAMENTO CONFORME ITENS 11.004.0022 E 11.004.0035,60KG DE ACO CA-50,INCLUSIVE MAO-DE-OBRA PARACORTE,DOBRAGEM,MONTAGEM E COLOCACAO NAS FORMAS | E59: =VLOOKUP(C59,'EMOP 01-2019'!A:J,9,0) -> M3 | F59: ='MEMÓRIA DE CÁLCULO'!K293 -> 6.98 | G59: =VLOOKUP(C59,'EMOP 01-2019'!A:J,10,0) -> 1778.05 | H59: =ROUND((G59*$K$12)+G59,2) -> 2290.48 | I59: =TRUNC(F59*H59,2) -> 15987.55
A60: =B60&C60 -> 6.495969 | B60: 6.4 | C60: 95969 | D60: =VLOOKUP(C60,'SINAPI 01-2019'!A:E,2,0) -> (COMPOSIÇÃO REPRESENTATIVA) EXECUÇÃO DE ESCADA EM CONCRETO ARMADO, MOLDADA IN LOCO, FCK = 25 MPA. AF_02/2017 | E60: =VLOOKUP(C60,'SINAPI 01-2019'!A:E,3,0) -> M3 | F60: ='MEMÓRIA DE CÁLCULO'!K308 -> 4.78 | G60: =VLOOKUP(C60,'SINAPI 01-2019'!A:E,4,0) -> 2103.25 | H60: =ROUND((G60*$K$12)+G60,2) -> 2709.41 | I60: =TRUNC(F60*H60,2) -> 12950.97
A61: =B61&C61 -> 6.593188 | B61: 6.5 | C61: 93188 | D61: =VLOOKUP(C61,'SINAPI 01-2019'!A:E,2,0) -> VERGA MOLDADA IN LOCO EM CONCRETO PARA PORTAS COM ATÉ 1,5 M DE VÃO. AF_03/2016 | E61: =VLOOKUP(C61,'SINAPI 01-2019'!A:E,3,0) -> M | F61: ='MEMÓRIA DE CÁLCULO'!K315 -> 14.2 | G61: =VLOOKUP(C61,'SINAPI 01-2019'!A:E,4,0) -> 43.63 | H61: =ROUND((G61*$K$12)+G61,2) -> 56.2 | I61: =TRUNC(F61*H61,2) -> 798.04
A62: =B62&C62 -> 6.693187 | B62: 6.6 | C62: 93187 | D62: =VLOOKUP(C62,'SINAPI 01-2019'!A:E,2,0) -> VERGA MOLDADA IN LOCO EM CONCRETO PARA JANELAS COM MAIS DE 1,5 M DE VÃO. AF_03/2016 | E62: =VLOOKUP(C62,'SINAPI 01-2019'!A:E,3,0) -> M | F62: ='MEMÓRIA DE CÁLCULO'!K336 -> 2.8 | G62: =VLOOKUP(C62,'SINAPI 01-2019'!A:E,4,0) -> 51.63 | H62: =ROUND((G62*$K$12)+G62,2) -> 66.51 | I62: =TRUNC(F62*H62,2) -> 186.22
A63: =B63&C63 -> 6.793197 | B63: 6.7 | C63: 93197 | D63: =VLOOKUP(C63,'SINAPI 01-2019'!A:E,2,0) -> CONTRAVERGA MOLDADA IN LOCO EM CONCRETO PARA VÃOS DE MAIS DE 1,5 M DE COMPRIMENTO. AF_03/2016 | E63: =VLOOKUP(C63,'SINAPI 01-2019'!A:E,3,0) -> M | F63: ='MEMÓRIA DE CÁLCULO'!K340 -> 2.8 | G63: =VLOOKUP(C63,'SINAPI 01-2019'!A:E,4,0) -> 48.78 | H63: =ROUND((G63*$K$12)+G63,2) -> 62.84 | I63: =TRUNC(F63*H63,2) -> 175.95
H64: SUBTOTAL 6 | I64: =SUM(I57:I63) -> 32937.99
B65: 7 | C65: ALVENARIAS E DIVISÓRIAS | E65: .
A66: =B66&C66 -> 7.187490 | B66: 7.1 | C66: 87490 | D66: =VLOOKUP(C66,'SINAPI 01-2019'!A:E,2,0) -> ALVENARIA DE VEDAÇÃO DE BLOCOS CERÂMICOS FURADOS NA VERTICAL DE 9X19X39CM (ESPESSURA 9CM) DE PAREDES COM ÁREA LÍQUIDA MAIOR OU IGUAL A 6M² COM VÃOS E ARGAMASSA DE ASSENTAMENTO COM PREPARO MANUAL. AF_06/2014 | E66: =VLOOKUP(C66,'SINAPI 01-2019'!A:E,3,0) -> M2 | F66: ='MEMÓRIA DE CÁLCULO'!K349 -> 123.72 | G66: =VLOOKUP(C66,'SINAPI 01-2019'!A:E,4,0) -> 39.2 | H66: =ROUND((G66*$K$12)+G66,2) -> 50.5 | I66: =TRUNC(F66*H66,2) -> 6247.86
A67: =B67&C67 -> 7.296360 | B67: 7.2 | C67: 96360 | D67: =VLOOKUP(C67,'SINAPI 01-2019'!A:E,2,0) -> PAREDE COM PLACAS DE GESSO ACARTONADO (DRYWALL), PARA USO INTERNO, COM DUAS FACES SIMPLES E ESTRUTURA METÁLICA COM GUIAS DUPLAS, SEM VÃOS. AF_06/2017_P | E67: =VLOOKUP(C67,'SINAPI 01-2019'!A:E,3,0) -> M2 | F67: ='MEMÓRIA DE CÁLCULO'!K372 -> 31.86 | G67: =VLOOKUP(C67,'SINAPI 01-2019'!A:E,4,0) -> 104.96 | H67: =ROUND((G67*$K$12)+G67,2) -> 135.21 | I67: =TRUNC(F67*H67,2) -> 4307.79
A68: =B68&C68 -> 7.387448 | B68: 7.3 | C68: 87448 | D68: =VLOOKUP(C68,'SINAPI 01-2019'!A:E,2,0) -> ALVENARIA DE VEDAÇÃO DE BLOCOS VAZADOS DE CONCRETO DE 9X19X39CM (ESPESSURA 9CM) DE PAREDES COM ÁREA LÍQUIDA MENOR QUE 6M² SEM VÃOS E ARGAMASSA DE ASSENTAMENTO COM PREPARO MANUAL. AF_06/2014 | E68: =VLOOKUP(C68,'SINAPI 01-2019'!A:E,3,0) -> M2 | F68: ='MEMÓRIA DE CÁLCULO'!K377 -> 28.85 | G68: =VLOOKUP(C68,'SINAPI 01-2019'!A:E,4,0) -> 50.11 | H68: =ROUND((G68*$K$12)+G68,2) -> 64.55 | I68: =TRUNC(F68*H68,2) -> 1862.26
A69: =B69&C69 -> 7.473774/1 | B69: 7.4 | C69: 73774/1 | D69: =VLOOKUP(C69,'SINAPI 01-2019'!A:E,2,0) -> DIVISORIA EM MARMORITE ESPESSURA 35MM, CHUMBAMENTO NO PISO E PAREDE COM ARGAMASSA DE CIMENTO E AREIA, POLIMENTO MANUAL, EXCLUSIVE FERRAGENS | E69: =VLOOKUP(C69,'SINAPI 01-2019'!A:E,3,0) -> M2 | F69: ='MEMÓRIA DE CÁLCULO'!K384 -> 13.72 | G69: =VLOOKUP(C69,'SINAPI 01-2019'!A:E,4,0) -> 312.72 | H69: =ROUND((G69*$K$12)+G69,2) -> 402.85 | I69: =TRUNC(F69*H69,2) -> 5527.1
H70: SUBTOTAL 7 | I70: =SUM(I66:I69) -> 17945.01
B71: 8 | C71: REVESTIMENTOS | E71: .
B72: PAREDE
A73: =B73&C73 -> 8.113.001.0026-A | B73: 8.1 | C73: 13.001.0026-A | D73: =VLOOKUP(C73,'EMOP 01-2019'!A:J,2,0) -> EMBOCO COM ARGAMASSA DE CIMENTO E AREIA,NO TRACO 1:3 COM 2CM DE ESPESSURA,INCLUSIVE CHAPISCO DE CIMENTO E AREIA,NO TRACO 1:3 | E73: =VLOOKUP(C73,'EMOP 01-2019'!A:J,9,0) -> M2 | F73: ='MEMÓRIA DE CÁLCULO'!K396 -> 538.85 | G73: =VLOOKUP(C73,'EMOP 01-2019'!A:J,10,0) -> 23.11 | H73: =ROUND((G73*$K$12)+G73,2) -> 29.77 | I73: =TRUNC(F73*H73,2) -> 16041.56
A74: =B74&C74 -> 8.287274 | B74: 8.2 | C74: 87274 | D74: =VLOOKUP(C74,'SINAPI 01-2019'!A:E,2,0) -> REVESTIMENTO CERÂMICO PARA PAREDES INTERNAS COM PLACAS TIPO ESMALTADA EXTRA DE DIMENSÕES 33X45 CM APLICADAS EM AMBIENTES DE ÁREA MENOR QUE 5 M² A MEIA ALTURA DAS PAREDES. AF_06/2014 | E74: =VLOOKUP(C74,'SINAPI 01-2019'!A:E,3,0) -> M2 | F74: ='MEMÓRIA DE CÁLCULO'!K447 -> 199.47 | G74: =VLOOKUP(C74,'SINAPI 01-2019'!A:E,4,0) -> 63.27 | H74: =ROUND((G74*$K$12)+G74,2) -> 81.5 | I74: =TRUNC(F74*H74,2) -> 16256.8
B75: TETO
A76: =B76&C76 -> 8.313.196.0025-A | B76: 8.3 | C76: 13.196.0025-A | D76: =VLOOKUP(C76,'EMOP 01-2019'!A:J,2,0) -> FORRO REMOVIVEL COMPOSTO GESSO ACARTONADO,TIPO STANDARD,C/ADICAO DE LA MINERAL,A SER APLICADO SIST.DRYWALL,C/BORDA QUADRADA 625X625MM REVEST.VINIL,ESP.6,5;9,5 OU 12,5MM,ESTRUT.EM PERFIS TIPO TRAVESSA "T" ACO GALV.ALUMINIO OU LIGAS ALUMINIO,ESP.MINIMA 0,5M,C/PINTURA ELETROSTATICA OU CONVENCIONAL,SUSPENSA POR MEIO PENDURAIS,FIX.EM ESTRUT.SUPERIOR.FORN.E COLOC. | E76: =VLOOKUP(C76,'EMOP 01-2019'!A:J,9,0) -> M2 | F76: ='MEMÓRIA DE CÁLCULO'!K462 -> 160.37 | G76: =VLOOKUP(C76,'EMOP 01-2019'!A:J,10,0) -> 71.72 | H76: =ROUND((G76*$K$12)+G76,2) -> 92.39 | I76: =TRUNC(F76*H76,2) -> 14816.58
A77: =B77&C77 -> 8.496120 | B77: 8.4 | C77: 96120 | D77: =VLOOKUP(C77,'SINAPI 01-2019'!A:E,2,0) -> ACABAMENTOS PARA FORRO (MOLDURA DE GESSO). AF_05/2017 | E77: =VLOOKUP(C77,'SINAPI 01-2019'!A:E,3,0) -> M | F77: ='MEMÓRIA DE CÁLCULO'!K478 -> 187.78 | G77: =VLOOKUP(C77,'SINAPI 01-2019'!A:E,4,0) -> 2.92 | H77: =ROUND((G77*$K$12)+G77,2) -> 3.76 | I77: =TRUNC(F77*H77,2) -> 706.05
B78: PISO
A79: =B79&C79 -> 8.594992 | B79: 8.5 | C79: 94992 | D79: =VLOOKUP(C79,'SINAPI 01-2019'!A:E,2,0) -> EXECUÇÃO DE PASSEIO (CALÇADA) OU PISO DE CONCRETO COM CONCRETO MOLDADO IN LOCO, FEITO EM OBRA, ACABAMENTO CONVENCIONAL, ESPESSURA 6 CM, ARMADO. AF_07/2016 | E79: =VLOOKUP(C79,'SINAPI 01-2019'!A:E,3,0) -> M2 | F79: ='MEMÓRIA DE CÁLCULO'!K498 -> 197.46 | G79: =VLOOKUP(C79,'SINAPI 01-2019'!A:E,4,0) -> 57.19 | H79: =ROUND((G79*$K$12)+G79,2) -> 73.67 | I79: =TRUNC(F79*H79,2) -> 14546.87
A80: =B80&C80 -> 8.692396 | B80: 8.6 | C80: 92396 | D80: =VLOOKUP(C80,'SINAPI 01-2019'!A:E,2,0) -> EXECUÇÃO DE PASSEIO EM PISO INTERTRAVADO, COM BLOCO RETANGULAR COR NATURAL DE 20 X 10 CM, ESPESSURA 6 CM. AF_12/2015 | E80: =VLOOKUP(C80,'SINAPI 01-2019'!A:E,3,0) -> M2 | F80: ='MEMÓRIA DE CÁLCULO'!K506 -> 86 | G80: =VLOOKUP(C80,'SINAPI 01-2019'!A:E,4,0) -> 56.7 | H80: =ROUND((G80*$K$12)+G80,2) -> 73.04 | I80: =TRUNC(F80*H80,2) -> 6281.44
A81: =B81&C81 -> 8.787373 | B81: 8.7 | C81: 87373 | D81: =VLOOKUP(C81,'SINAPI 01-2019'!A:E,2,0) -> ARGAMASSA TRAÇO 1:4 (CIMENTO E AREIA MÉDIA) PARA CONTRAPISO, PREPARO MANUAL. AF_06/2014 | E81: =VLOOKUP(C81,'SINAPI 01-2019'!A:E,3,0) -> M3 | F81: ='MEMÓRIA DE CÁLCULO'!K510 -> 28.67 | G81: =VLOOKUP(C81,'SINAPI 01-2019'!A:E,4,0) -> 482.27 | H81: =ROUND((G81*$K$12)+G81,2) -> 621.26 | I81: =TRUNC(F81*H81,2) -> 17811.52
A82: =B82&C82 -> 8.887261 | B82: 8.8 | C82: 87261 | D82: =VLOOKUP(C82,'SINAPI 01-2019'!A:E,2,0) -> REVESTIMENTO CERÂMICO PARA PISO COM PLACAS TIPO PORCELANATO DE DIMENSÕES 60X60 CM APLICADA EM AMBIENTES DE ÁREA MENOR QUE 5 M². AF_06/2014 | E82: =VLOOKUP(C82,'SINAPI 01-2019'!A:E,3,0) -> M2 | F82: ='MEMÓRIA DE CÁLCULO'!K552 -> 26.61 | G82: =VLOOKUP(C82,'SINAPI 01-2019'!A:E,4,0) -> 108.79 | H82: =ROUND((G82*$K$12)+G82,2) -> 140.14 | I82: =TRUNC(F82*H82,2) -> 3729.12
A83: =B83&C83 -> 8.987262 | B83: 8.9 | C83: 87262 | D83: =VLOOKUP(C83,'SINAPI 01-2019'!A:E,2,0) -> REVESTIMENTO CERÂMICO PARA PISO COM PLACAS TIPO PORCELANATO DE DIMENSÕES 60X60 CM APLICADA EM AMBIENTES DE ÁREA ENTRE 5 M² E 10 M². AF_06/2014 | E83: =VLOOKUP(C83,'SINAPI 01-2019'!A:E,3,0) -> M2 | G83: =VLOOKUP(C83,'SINAPI 01-2019'!A:E,4,0) -> 95.55 | H83: =ROUND((G83*$K$12)+G83,2) -> 123.09 | I83: =TRUNC(F83*H83,2) -> 0
A84: =B84&C84 -> 8.1087263 | B84: 8.10 | C84: 87263 | D84: =VLOOKUP(C84,'SINAPI 01-2019'!A:E,2,0) -> REVESTIMENTO CERÂMICO PARA PISO COM PLACAS TIPO PORCELANATO DE DIMENSÕES 60X60 CM APLICADA EM AMBIENTES DE ÁREA MAIOR QUE 10 M². AF_06/2014 | E84: =VLOOKUP(C84,'SINAPI 01-2019'!A:E,3,0) -> M2 | F84: ='MEMÓRIA DE CÁLCULO'!K584 -> 152 | G84: =VLOOKUP(C84,'SINAPI 01-2019'!A:E,4,0) -> 87.03 | H84: =ROUND((G84*$K$12)+G84,2) -> 112.11 | I84: =TRUNC(F84*H84,2) -> 17040.72
A85: =B85&C85 -> 8.1113.331.0051-A | B85: 8.11 | C85: 13.331.0051-A | D85: =VLOOKUP(C85,'EMOP 01-2019'!A:J,2,0) -> RODAPE COM CERAMICA EM PORCELANATO NATURAL,COM 7,5 A 10CM DE ALTURA,ASSENTES CONFORME ITEM 13.025.0058 | E85: =VLOOKUP(C85,'EMOP 01-2019'!A:J,9,0) -> M | F85: ='MEMÓRIA DE CÁLCULO'!K599 -> 164.88 | G85: =VLOOKUP(C85,'EMOP 01-2019'!A:J,10,0) -> 29.41 | H85: =ROUND((G85*$K$12)+G85,2) -> 37.89 | I85: =TRUNC(F85*H85,2) -> 6247.3
A86: =B86&C86 -> 8.1298689 | B86: 8.12 | C86: 98689 | D86: =VLOOKUP(C86,'SINAPI 01-2019'!A:E,2,0) -> SOLEIRA EM GRANITO, LARGURA 15 CM, ESPESSURA 2,0 CM. AF_06/2018 | E86: =VLOOKUP(C86,'SINAPI 01-2019'!A:E,3,0) -> M | F86: ='MEMÓRIA DE CÁLCULO'!K622 -> 27.7 | G86: =VLOOKUP(C86,'SINAPI 01-2019'!A:E,4,0) -> 89.77 | H86: =ROUND((G86*$K$12)+G86,2) -> 115.64 | I86: =TRUNC(F86*H86,2) -> 3203.22
A87: =B87&C87 -> 8.1398671 | B87: 8.13 | C87: 98671 | D87: =VLOOKUP(C87,'SINAPI 01-2019'!A:E,2,0) -> PISO EM GRANITO APLICADO EM AMBIENTES INTERNOS. AF_06/2018 | E87: =VLOOKUP(C87,'SINAPI 01-2019'!A:E,3,0) -> M2 | F87: ='MEMÓRIA DE CÁLCULO'!K651 -> 40.03 | G87: =VLOOKUP(C87,'SINAPI 01-2019'!A:E,4,0) -> 344.84 | H87: =ROUND((G87*$K$12)+G87,2) -> 444.22 | I87: =TRUNC(F87*H87,2) -> 17782.12
H88: SUBTOTAL 8 | I88: =SUM(I73:I87) -> 134463.3
B89: 9 | C89: ESQUADRIAS | E89: .
A90: =B90&C90 -> 9.114.006.0423-A | B90: 9.1 | C90: 14.006.0423-A | D90: =VLOOKUP(C90,'EMOP 01-2019'!A:J,2,0) -> PORTA DE MADEIRA DE LEI MACICA COM ATE 5 ALMOFADAS,COM 3,5CM DE ESPESSURA,EXCLUSIVE FERRAGENS,MARCO E ALIZAR.FORNECIMENTO E COLOCACAO | E90: =VLOOKUP(C90,'EMOP 01-2019'!A:J,9,0) -> M2 | F90: ='MEMÓRIA DE CÁLCULO'!K667 -> 29.25 | G90: =VLOOKUP(C90,'EMOP 01-2019'!A:J,10,0) -> 591.32 | H90: =ROUND((G90*$K$12)+G90,2) -> 761.74 | I90: =TRUNC(F90*H90,2) -> 22280.89
A91: =B91&C91 -> 9.214.007.0025-A | B91: 9.2 | C91: 14.007.0025-A | D91: =VLOOKUP(C91,'EMOP 01-2019'!A:J,2,0) -> FERRAGENS P/PORTA MADEIRA,DE 2 FOLHAS DE ABRIR,DE ENTRADA PRINCIPAL,CONSTANDO DE FORN.S/COLOC.DE:-FECHADURA CILINDRO,DELATAO,MONOBLOCO,ACABAMENTO CROMADO,;-ENTRADA CIRCULAR,LATAO,ACABAMENTO CROMADO;-ROSETA CIRCULAR,LATAO,ACAB.CROMADO;-MACANETA TIPO ALAVANCA,LATAO,ACABAMENTO CROMADO;-6 DOBRADICAS 3"X3" LATAO CROMADO,C/PINOS,BOLAS E ANEIS DE LATAO E 2 FECHOS | E91: =VLOOKUP(C91,'EMOP 01-2019'!A:J,9,0) -> UN | F91: ='MEMÓRIA DE CÁLCULO'!K679 -> 9 | G91: =VLOOKUP(C91,'EMOP 01-2019'!A:J,10,0) -> 456.11 | H91: =ROUND((G91*$K$12)+G91,2) -> 587.56 | I91: =TRUNC(F91*H91,2) -> 5288.04
A92: =B92&C92 -> 9.390841 | B92: 9.3 | C92: 90841 | D92: =VLOOKUP(C92,'SINAPI 01-2019'!A:E,2,0) -> KIT DE PORTA DE MADEIRA PARA PINTURA, SEMI-OCA (LEVE OU MÉDIA), PADRÃO MÉDIO, 60X210CM, ESPESSURA DE 3,5CM, ITENS INCLUSOS: DOBRADIÇAS, MONTAGEM E INSTALAÇÃO DO BATENTE, FECHADURA COM EXECUÇÃO DO FURO - FORNECIMENTO E INSTALAÇÃO. AF_08/2015 | E92: =VLOOKUP(C92,'SINAPI 01-2019'!A:E,3,0) -> UN | F92: ='MEMÓRIA DE CÁLCULO'!K691 -> 1 | G92: =VLOOKUP(C92,'SINAPI 01-2019'!A:E,4,0) -> 711.91 | H92: =ROUND((G92*$K$12)+G92,2) -> 917.08 | I92: =TRUNC(F92*H92,2) -> 917.08
A93: =B93&C93 -> 9.490842 | B93: 9.4 | C93: 90842 | D93: =VLOOKUP(C93,'SINAPI 01-2019'!A:E,2,0) -> KIT DE PORTA DE MADEIRA PARA PINTURA, SEMI-OCA (LEVE OU MÉDIA), PADRÃO MÉDIO, 70X210CM, ESPESSURA DE 3,5CM, ITENS INCLUSOS: DOBRADIÇAS, MONTAGEM E INSTALAÇÃO DO BATENTE, FECHADURA COM EXECUÇÃO DO FURO - FORNECIMENTO E INSTALAÇÃO. AF_08/2015 | E93: =VLOOKUP(C93,'SINAPI 01-2019'!A:E,3,0) -> UN | F93: ='MEMÓRIA DE CÁLCULO'!K696 -> 9 | G93: =VLOOKUP(C93,'SINAPI 01-2019'!A:E,4,0) -> 761.51 | H93: =ROUND((G93*$K$12)+G93,2) -> 980.98 | I93: =TRUNC(F93*H93,2) -> 8828.82
A94: =B94&C94 -> 9.590843 | B94: 9.5 | C94: 90843 | D94: =VLOOKUP(C94,'SINAPI 01-2019'!A:E,2,0) -> KIT DE PORTA DE MADEIRA PARA PINTURA, SEMI-OCA (LEVE OU MÉDIA), PADRÃO MÉDIO, 80X210CM, ESPESSURA DE 3,5CM, ITENS INCLUSOS: DOBRADIÇAS, MONTAGEM E INSTALAÇÃO DO BATENTE, FECHADURA COM EXECUÇÃO DO FURO - FORNECIMENTO E INSTALAÇÃO. AF_08/2015 | E94: =VLOOKUP(C94,'SINAPI 01-2019'!A:E,3,0) -> UN | F94: ='MEMÓRIA DE CÁLCULO'!K708 -> 8 | G94: =VLOOKUP(C94,'SINAPI 01-2019'!A:E,4,0) -> 794.47 | H94: =ROUND((G94*$K$12)+G94,2) -> 1023.44 | I94: =TRUNC(F94*H94,2) -> 8187.52
A95: =B95&C95 -> 9.614.006.0220-A | B95: 9.6 | C95: 14.006.0220-A | D95: =VLOOKUP(C95,'EMOP 01-2019'!A:J,2,0) -> PORTA DE MADEIRA DE LEI DE CORRER EM COMPENSADO DE 80X210X3CM,PENDURADA EM ROLDANAS,CORRENDO DENTRO DE TRILHO OCO,GUIADAOIR CANALETA EMBUTIDA NO PISO COM MARCO DE 7X3CM,EXCLUSIVE FERRAGENS.FORNECIMENTO E COLOCACAO | E95: =VLOOKUP(C95,'EMOP 01-2019'!A:J,9,0) -> UN | F95: ='MEMÓRIA DE CÁLCULO'!K724 -> 1 | G95: =VLOOKUP(C95,'EMOP 01-2019'!A:J,10,0) -> 346.06 | H95: =ROUND((G95*$K$12)+G95,2) -> 445.79 | I95: =TRUNC(F95*H95,2) -> 445.79
A96: =B96&C96 -> 9.714.007.0090-A | B96: 9.7 | C96: 14.007.0090-A | D96: =VLOOKUP(C96,'EMOP 01-2019'!A:J,2,0) -> FERRAGENS P/PORTAS DE MADEIRA,DE CORRER,DE 1 FOLHA,CONSTANDO DE FORN.S/COLOC.DE:-FECHADURA C/CHAVE BI-PART.,LATAO, ACABAMENTO CROMADO;-2,00M DE TRILHO EM "U",DE FERRO;-2 ROLDANAS DE FERRO;-2 GUIAS DE LATAO,TAMANHO 3/4",SEM CANTONEIRA;-2,00M CANALETA DE ALUMINIO,TAMANHO 2,00MX3/4",2 CONCHAS COM FUROPARA CHAVE, LATAO CROMADO | E96: =VLOOKUP(C96,'EMOP 01-2019'!A:J,9,0) -> UN | F96: ='MEMÓRIA DE CÁLCULO'!K729 -> 1 | G96: =VLOOKUP(C96,'EMOP 01-2019'!A:J,10,0) -> 250.16 | H96: =ROUND((G96*$K$12)+G96,2) -> 322.26 | I96: =TRUNC(F96*H96,2) -> 322.26
A97: =B97&C97 -> 9.891341 | B97: 9.8 | C97: 91341 | D97: =VLOOKUP(C97,'SINAPI 01-2019'!A:E,2,0) -> PORTA EM ALUMÍNIO DE ABRIR TIPO VENEZIANA COM GUARNIÇÃO, FIXAÇÃO COM PARAFUSOS - FORNECIMENTO E INSTALAÇÃO. AF_08/2015 | E97: =VLOOKUP(C97,'SINAPI 01-2019'!A:E,3,0) -> M2 | F97: ='MEMÓRIA DE CÁLCULO'!K734 -> 2.34 | G97: =VLOOKUP(C97,'SINAPI 01-2019'!A:E,4,0) -> 408.23 | H97: =ROUND((G97*$K$12)+G97,2) -> 525.88 | I97: =TRUNC(F97*H97,2) -> 1230.55
A98: =B98&C98 -> 9.984844 | B98: 9.9 | C98: 84844 | D98: =VLOOKUP(C98,'SINAPI 01-2019'!A:E,2,0) -> JANELA DE MADEIRA TIPO GUILHOTINA, DE ABRIR , INCLUSAS GUARNICOES SEM FERRAGENS | E98: =VLOOKUP(C98,'SINAPI 01-2019'!A:E,3,0) -> M2 | F98: ='MEMÓRIA DE CÁLCULO'!K739 -> 3.84 | G98: =VLOOKUP(C98,'SINAPI 01-2019'!A:E,4,0) -> 418.68 | H98: =ROUND((G98*$K$12)+G98,2) -> 539.34 | I98: =TRUNC(F98*H98,2) -> 2071.06
A99: =B99&C99 -> 9.1085010 | B99: 9.10 | C99: 85010 | D99: =VLOOKUP(C99,'SINAPI 01-2019'!A:E,2,0) -> CAIXILHO FIXO, DE ALUMINIO, PARA VIDRO | E99: =VLOOKUP(C99,'SINAPI 01-2019'!A:E,3,0) -> M2 | F99: ='MEMÓRIA DE CÁLCULO'!K744 -> 3.12 | G99: =VLOOKUP(C99,'SINAPI 01-2019'!A:E,4,0) -> 286.31 | H99: =ROUND((G99*$K$12)+G99,2) -> 368.82 | I99: =TRUNC(F99*H99,2) -> 1150.71
A100: =B100&C100 -> 9.1172120 | B100: 9.11 | C100: 72120 | D100: =VLOOKUP(C100,'SINAPI 01-2019'!A:E,2,0) -> VIDRO TEMPERADO INCOLOR, ESPESSURA 10MM, FORNECIMENTO E INSTALACAO, INCLUSIVE MASSA PARA VEDACAO | E100: =VLOOKUP(C100,'SINAPI 01-2019'!A:E,3,0) -> M2 | F100: ='MEMÓRIA DE CÁLCULO'!K749 -> 3.12 | G100: =VLOOKUP(C100,'SINAPI 01-2019'!A:E,4,0) -> 351.51 | H100: =ROUND((G100*$K$12)+G100,2) -> 452.82 | I100: =TRUNC(F100*H100,2) -> 1412.79
A101: =B101&C101 -> 9.1214.002.0205-A | B101: 9.12 | C101: 14.002.0205-A | D101: =VLOOKUP(C101,'EMOP 01-2019'!A:J,2,0) -> GUARDA-CORPO DE FERRO EM LANCES DE 3,00 A 4,00M E 1,00M DE ALTURA,COM 4 MONTANTES DE BARRAS DE 2"X3/4",CHUMBADOS NO CONCRETO,CORRIMAO EM 2 BARRAS SOBREPOSTAS DE 3"X1/2" E 2"X3/8",DUAS TRAVESSAS HORIZONTAIS EM BARRAS DE 1.1/4"X3/8",SOLDADASNOS MONTANTES,UMA DISTANTE 0,34M DO PISO E A OUTRA A 0,33M DESTA E DO CORRIMAO.FORNECIMENTO E COLOCACAO | E101: =VLOOKUP(C101,'EMOP 01-2019'!A:J,9,0) -> M | F101: ='MEMÓRIA DE CÁLCULO'!K754 -> 35.2 | G101: =VLOOKUP(C101,'EMOP 01-2019'!A:J,10,0) -> 597.38 | H101: =ROUND((G101*$K$12)+G101,2) -> 769.54 | I101: =TRUNC(F101*H101,2) -> 27087.8
A102: =B102&C102 -> 9.1374072/2 | B102: 9.13 | C102: 74072/2 | D102: =VLOOKUP(C102,'SINAPI 01-2019'!A:E,2,0) -> CORRIMAO EM TUBO ACO GALVANIZADO 2 1/2" COM BRACADEIRA | E102: =VLOOKUP(C102,'SINAPI 01-2019'!A:E,3,0) -> M | F102: ='MEMÓRIA DE CÁLCULO'!K763 -> 13.7 | G102: =VLOOKUP(C102,'SINAPI 01-2019'!A:E,4,0) -> 136.54 | H102: =ROUND((G102*$K$12)+G102,2) -> 175.89 | I102: =TRUNC(F102*H102,2) -> 2409.69
H103: SUBTOTAL 9 | I103: =SUM(I90:I102) -> 81633
B104: 10 | C104: INSTALAÇÕES | E104: .
B105: SANITÁRIAS
A106: =B106&C106 -> 10.115.002.0580-A | B106: 10.1 | C106: 15.002.0580-A | D106: =VLOOKUP(C106,'EMOP 01-2019'!A:J,2,0) -> FOSSA SEPTICA CILINDRICA,TIPO CAMARA IMHOFF,DE CONCRETO PRE-MOLDADO,MEDINDO 2000X2000MM.FORNECIMENTO E COLOCACAO | E106: =VLOOKUP(C106,'EMOP 01-2019'!A:J,9,0) -> UN | F106: ='MEMÓRIA DE CÁLCULO'!K774 -> 1 | G106: =VLOOKUP(C106,'EMOP 01-2019'!A:J,10,0) -> 3648.17 | H106: =ROUND((G106*$K$12)+G106,2) -> 4699.57 | I106: =TRUNC(F106*H106,2) -> 4699.57
A107: =B107&C107 -> 10.215.002.0663-A | B107: 10.2 | C107: 15.002.0663-A | D107: =VLOOKUP(C107,'EMOP 01-2019'!A:J,2,0) -> FILTRO ANAEROBIO,DE ANEIS DE CONCRETO PRE-MOLDADO,MEDINDO 1500X2000MM.FORNECIMENTO E COLOCACAO | E107: =VLOOKUP(C107,'EMOP 01-2019'!A:J,9,0) -> UN | F107: ='MEMÓRIA DE CÁLCULO'!K776 -> 1 | G107: =VLOOKUP(C107,'EMOP 01-2019'!A:J,10,0) -> 1888.18 | H107: =ROUND((G107*$K$12)+G107,2) -> 2432.35 | I107: =TRUNC(F107*H107,2) -> 2432.35
A108: =B108&C108 -> 10.374166/1 | B108: 10.3 | C108: 74166/1 | D108: =VLOOKUP(C108,'SINAPI 01-2019'!A:E,2,0) -> CAIXA DE INSPEÇÃO EM CONCRETO PRÉ-MOLDADO DN 60CM COM TAMPA H= 60CM - FORNECIMENTO E INSTALACAO | E108: =VLOOKUP(C108,'SINAPI 01-2019'!A:E,3,0) -> UN | F108: ='MEMÓRIA DE CÁLCULO'!K778 -> 3 | G108: =VLOOKUP(C108,'SINAPI 01-2019'!A:E,4,0) -> 215.03 | H108: =ROUND((G108*$K$12)+G108,2) -> 277 | I108: =TRUNC(F108*H108,2) -> 831
A109: =B109&C109 -> 10.483446 | B109: 10.4 | C109: 83446 | D109: =VLOOKUP(C109,'SINAPI 01-2019'!A:E,2,0) -> CAIXA DE PASSAGEM 30X30X40 COM TAMPA E DRENO BRITA | E109: =VLOOKUP(C109,'SINAPI 01-2019'!A:E,3,0) -> UN | F109: ='MEMÓRIA DE CÁLCULO'!K780 -> 2 | G109: =VLOOKUP(C109,'SINAPI 01-2019'!A:E,4,0) -> 169.01 | H109: =ROUND((G109*$K$12)+G109,2) -> 217.72 | I109: =TRUNC(F109*H109,2) -> 435.44
A110: =B110&C110 -> 10.515.002.0062-A | B110: 10.5 | C110: 15.002.0062-A | D110: =VLOOKUP(C110,'EMOP 01-2019'!A:J,2,0) -> CAIXA DE GORDURA SIMPLES CILINDRICA,PRE-FABRICADA EM ANEIS DE CONCRETO,COM DIAMETRO DE 40CM E PROFUNDIDADE TOTAL DE 60CM,INCLUSIVE TAMPA DE CONCRETO.FORNECIMENTO E COLOCACAO | E110: =VLOOKUP(C110,'EMOP 01-2019'!A:J,9,0) -> UN | F110: ='MEMÓRIA DE CÁLCULO'!K782 -> 1 | G110: =VLOOKUP(C110,'EMOP 01-2019'!A:J,10,0) -> 147.24 | H110: =ROUND((G110*$K$12)+G110,2) -> 189.67 | I110: =TRUNC(F110*H110,2) -> 189.67
A111: =B111&C111 -> 10.689709 | B111: 10.6 | C111: 89709 | D111: =VLOOKUP(C111,'SINAPI 01-2019'!A:E,2,0) -> RALO SIFONADO, PVC, DN 100 X 40 MM, JUNTA SOLDÁVEL, FORNECIDO E INSTALADO EM RAMAL DE DESCARGA OU EM RAMAL DE ESGOTO SANITÁRIO. AF_12/2014 | E111: =VLOOKUP(C111,'SINAPI 01-2019'!A:E,3,0) -> UN | F111: ='MEMÓRIA DE CÁLCULO'!K784 -> 8 | G111: =VLOOKUP(C111,'SINAPI 01-2019'!A:E,4,0) -> 10.65 | H111: =ROUND((G111*$K$12)+G111,2) -> 13.72 | I111: =TRUNC(F111*H111,2) -> 109.76
A112: =B112&C112 -> 10.789710 | B112: 10.7 | C112: 89710 | D112: =VLOOKUP(C112,'SINAPI 01-2019'!A:E,2,0) -> RALO SECO, PVC, DN 100 X 40 MM, JUNTA SOLDÁVEL, FORNECIDO E INSTALADO EM RAMAL DE DESCARGA OU EM RAMAL DE ESGOTO SANITÁRIO. AF_12/2014 | E112: =VLOOKUP(C112,'SINAPI 01-2019'!A:E,3,0) -> UN | F112: ='MEMÓRIA DE CÁLCULO'!K786 -> 1 | G112: =VLOOKUP(C112,'SINAPI 01-2019'!A:E,4,0) -> 10.43 | H112: =ROUND((G112*$K$12)+G112,2) -> 13.44 | I112: =TRUNC(F112*H112,2) -> 13.44
A113: =B113&C113 -> 10.891792 | B113: 10.8 | C113: 91792 | D113: =VLOOKUP(C113,'SINAPI 01-2019'!A:E,2,0) -> (COMPOSIÇÃO REPRESENTATIVA) DO SERVIÇO DE INSTALAÇÃO DE TUBO DE PVC, SÉRIE NORMAL, ESGOTO PREDIAL, DN 40 MM (INSTALADO EM RAMAL DE DESCARGA OU RAMAL DE ESGOTO SANITÁRIO), INCLUSIVE CONEXÕES, CORTES E FIXAÇÕES, PARA PRÉDIOS. AF_10/2015 | E113: =VLOOKUP(C113,'SINAPI 01-2019'!A:E,3,0) -> M | F113: ='MEMÓRIA DE CÁLCULO'!K788 -> 7.6 | G113: =VLOOKUP(C113,'SINAPI 01-2019'!A:E,4,0) -> 48.61 | H113: =ROUND((G113*$K$12)+G113,2) -> 62.62 | I113: =TRUNC(F113*H113,2) -> 475.91
A114: =B114&C114 -> 10.991793 | B114: 10.9 | C114: 91793 | D114: =VLOOKUP(C114,'SINAPI 01-2019'!A:E,2,0) -> (COMPOSIÇÃO REPRESENTATIVA) DO SERVIÇO DE INSTALAÇÃO DE TUBO DE PVC, SÉRIE NORMAL, ESGOTO PREDIAL, DN 50 MM (INSTALADO EM RAMAL DE DESCARGA OU RAMAL DE ESGOTO SANITÁRIO), INCLUSIVE CONEXÕES, CORTES E FIXAÇÕES PARA, PRÉDIOS. AF_10/2015 | E114: =VLOOKUP(C114,'SINAPI 01-2019'!A:E,3,0) -> M | F114: ='MEMÓRIA DE CÁLCULO'!K790 -> 19.6 | G114: =VLOOKUP(C114,'SINAPI 01-2019'!A:E,4,0) -> 69.53 | H114: =ROUND((G114*$K$12)+G114,2) -> 89.57 | I114: =TRUNC(F114*H114,2) -> 1755.57
A115: =B115&C115 -> 10.1091794 | B115: 10.10 | C115: 91794 | D115: =VLOOKUP(C115,'SINAPI 01-2019'!A:E,2,0) -> (COMPOSIÇÃO REPRESENTATIVA) DO SERVIÇO DE INST. TUBO PVC, SÉRIE N, ESGOTO PREDIAL, DN 75 MM, (INST. EM RAMAL DE DESCARGA, RAMAL DE ESG. SANITÁRIO, PRUMADA DE ESG. SANITÁRIO OU VENTILAÇÃO), INCL. CONEXÕES, CORTES E FIXAÇÕES, P/ PRÉDIOS. AF_10/2015 | E115: =VLOOKUP(C115,'SINAPI 01-2019'!A:E,3,0) -> M | F115: ='MEMÓRIA DE CÁLCULO'!K792 -> 16.35 | G115: =VLOOKUP(C115,'SINAPI 01-2019'!A:E,4,0) -> 30.27 | H115: =ROUND((G115*$K$12)+G115,2) -> 38.99 | I115: =TRUNC(F115*H115,2) -> 637.48
A116: =B116&C116 -> 10.1191795 | B116: 10.11 | C116: 91795 | D116: =VLOOKUP(C116,'SINAPI 01-2019'!A:E,2,0) -> (COMPOSIÇÃO REPRESENTATIVA) DO SERVIÇO DE INST. TUBO PVC, SÉRIE N, ESGOTO PREDIAL, 100 MM (INST. RAMAL DESCARGA, RAMAL DE ESG. SANIT., PRUMADA ESG. SANIT., VENTILAÇÃO OU SUB-COLETOR AÉREO), INCL. CONEXÕES E CORTES, FIXAÇÕES, P/ PRÉDIOS. AF_10/2015 | E116: =VLOOKUP(C116,'SINAPI 01-2019'!A:E,3,0) -> M | F116: ='MEMÓRIA DE CÁLCULO'!K794 -> 85.9 | G116: =VLOOKUP(C116,'SINAPI 01-2019'!A:E,4,0) -> 52.02 | H116: =ROUND((G116*$K$12)+G116,2) -> 67.01 | I116: =TRUNC(F116*H116,2) -> 5756.15
B117: HIDRÁULICAS
A118: =B118&C118 -> 10.1215.001.0071-A | B118: 10.12 | C118: 15.001.0071-A | D118: =VLOOKUP(C118,'EMOP 01-2019'!A:J,2,0) -> ABRIGO PARA HIDROMETRO DE 1",NAS DIMENSOES DE 0,90X0,50X0,60M,EM ALVENARIA DE TIJOLOS FURADOS DE 10X20X20CM,PAREDES DE MEIA VEZ,REVESTIDAS COM ARGAMASSA DE CIMENTO E SAIBRO,NO TRACO 1:6,COM FUNDO DE CONCRETO E TAMPA DE CONCRETO ARMADO,PORTA DE 80X50CM EM CHAPA DE ACO Nº16 E CADEADO DE 30MM,CONFORMEPROJETO Nº2089/EMOP | E118: =VLOOKUP(C118,'EMOP 01-2019'!A:J,9,0) -> UN | F118: ='MEMÓRIA DE CÁLCULO'!K797 -> 1 | G118: =VLOOKUP(C118,'EMOP 01-2019'!A:J,10,0) -> 562.48 | H118: =ROUND((G118*$K$12)+G118,2) -> 724.59 | I118: =TRUNC(F118*H118,2) -> 724.59
A119: =B119&C119 -> 10.1315.001.0079-A | B119: 10.13 | C119: 15.001.0079-A | D119: =VLOOKUP(C119,'EMOP 01-2019'!A:J,2,0) -> HIDROMETRO COM DIAMETRO DE 1".FORNECIMENTO | E119: =VLOOKUP(C119,'EMOP 01-2019'!A:J,9,0) -> UN | F119: ='MEMÓRIA DE CÁLCULO'!K799 -> 1 | G119: =VLOOKUP(C119,'EMOP 01-2019'!A:J,10,0) -> 360.15 | H119: =ROUND((G119*$K$12)+G119,2) -> 463.95 | I119: =TRUNC(F119*H119,2) -> 463.95
A120: =B120&C120 -> 10.1494496 | B120: 10.14 | C120: 94496 | D120: =VLOOKUP(C120,'SINAPI 01-2019'!A:E,2,0) -> REGISTRO DE GAVETA BRUTO, LATÃO, ROSCÁVEL, 1 1/4, INSTALADO EM RESERVAÇÃO DE ÁGUA DE EDIFICAÇÃO QUE POSSUA RESERVATÓRIO DE FIBRA/FIBROCIMENTO  FORNECIMENTO E INSTALAÇÃO. AF_06/2016 | E120: =VLOOKUP(C120,'SINAPI 01-2019'!A:E,3,0) -> UN | F120: ='MEMÓRIA DE CÁLCULO'!K801 -> 2 | G120: =VLOOKUP(C120,'SINAPI 01-2019'!A:E,4,0) -> 81.1 | H120: =ROUND((G120*$K$12)+G120,2) -> 104.47 | I120: =TRUNC(F120*H120,2) -> 208.94
A121: =B121&C121 -> 10.1589985 | B121: 10.15 | C121: 89985 | D121: =VLOOKUP(C121,'SINAPI 01-2019'!A:E,2,0) -> REGISTRO DE PRESSÃO BRUTO, LATÃO, ROSCÁVEL, 3/4", COM ACABAMENTO E CANOPLA CROMADOS. FORNECIDO E INSTALADO EM RAMAL DE ÁGUA. AF_12/2014 | E121: =VLOOKUP(C121,'SINAPI 01-2019'!A:E,3,0) -> UN | F121: ='MEMÓRIA DE CÁLCULO'!K803 -> 3 | G121: =VLOOKUP(C121,'SINAPI 01-2019'!A:E,4,0) -> 61.99 | H121: =ROUND((G121*$K$12)+G121,2) -> 79.86 | I121: =TRUNC(F121*H121,2) -> 239.58
A122: =B122&C122 -> 10.1689987 | B122: 10.16 | C122: 89987 | D122: =VLOOKUP(C122,'SINAPI 01-2019'!A:E,2,0) -> REGISTRO DE GAVETA BRUTO, LATÃO, ROSCÁVEL, 3/4", COM ACABAMENTO E CANOPLA CROMADOS. FORNECIDO E INSTALADO EM RAMAL DE ÁGUA. AF_12/2014 | E122: =VLOOKUP(C122,'SINAPI 01-2019'!A:E,3,0) -> UN | F122: ='MEMÓRIA DE CÁLCULO'!K805 -> 6 | G122: =VLOOKUP(C122,'SINAPI 01-2019'!A:E,4,0) -> 65.03 | H122: =ROUND((G122*$K$12)+G122,2) -> 83.77 | I122: =TRUNC(F122*H122,2) -> 502.62
A123: =B123&C123 -> 10.1791785 | B123: 10.17 | C123: 91785 | D123: =VLOOKUP(C123,'SINAPI 01-2019'!A:E,2,0) -> (COMPOSIÇÃO REPRESENTATIVA) DO SERVIÇO DE INSTALAÇÃO DE TUBOS DE PVC, SOLDÁVEL, ÁGUA FRIA, DN 25 MM (INSTALADO EM RAMAL, SUB-RAMAL, RAMAL DE DISTRIBUIÇÃO OU PRUMADA), INCLUSIVE CONEXÕES, CORTES E FIXAÇÕES, PARA PRÉDIOS. AF_10/2015 | E123: =VLOOKUP(C123,'SINAPI 01-2019'!A:E,3,0) -> M | F123: ='MEMÓRIA DE CÁLCULO'!K807 -> 60.5 | G123: =VLOOKUP(C123,'SINAPI 01-2019'!A:E,4,0) -> 35.96 | H123: =ROUND((G123*$K$12)+G123,2) -> 46.32 | I123: =TRUNC(F123*H123,2) -> 2802.36
A124: =B124&C124 -> 10.1891786 | B124: 10.18 | C124: 91786 | D124: =VLOOKUP(C124,'SINAPI 01-2019'!A:E,2,0) -> (COMPOSIÇÃO REPRESENTATIVA) DO SERVIÇO DE INSTALAÇÃO TUBOS DE PVC, SOLDÁVEL, ÁGUA FRIA, DN 32 MM (INSTALADO EM RAMAL, SUB-RAMAL, RAMAL DE DISTRIBUIÇÃO OU PRUMADA), INCLUSIVE CONEXÕES, CORTES E FIXAÇÕES, PARA PRÉDIOS. AF_10/2015 | E124: =VLOOKUP(C124,'SINAPI 01-2019'!A:E,3,0) -> M | F124: ='MEMÓRIA DE CÁLCULO'!K809 -> 33.2 | G124: =VLOOKUP(C124,'SINAPI 01-2019'!A:E,4,0) -> 20.97 | H124: =ROUND((G124*$K$12)+G124,2) -> 27.01 | I124: =TRUNC(F124*H124,2) -> 896.73
A125: =B125&C125 -> 10.1991787 | B125: 10.19 | C125: 91787 | D125: =VLOOKUP(C125,'SINAPI 01-2019'!A:E,2,0) -> (COMPOSIÇÃO REPRESENTATIVA) DO SERVIÇO DE INSTALAÇÃO DE TUBOS DE PVC, SOLDÁVEL, ÁGUA FRIA, DN 40 MM (INSTALADO EM PRUMADA), INCLUSIVE CONEXÕES, CORTES E FIXAÇÕES, PARA PRÉDIOS. AF_10/2015 | E125: =VLOOKUP(C125,'SINAPI 01-2019'!A:E,3,0) -> M | F125: ='MEMÓRIA DE CÁLCULO'!K811 -> 5.4 | G125: =VLOOKUP(C125,'SINAPI 01-2019'!A:E,4,0) -> 20.39 | H125: =ROUND((G125*$K$12)+G125,2) -> 26.27 | I125: =TRUNC(F125*H125,2) -> 141.85
A126: =B126&C126 -> 10.2083879 | B126: 10.20 | C126: 83879 | D126: =VLOOKUP(C126,'SINAPI 01-2019'!A:E,2,0) -> LIGACAO DA REDE 75MM AO RAMAL PREDIAL 1/2" | E126: =VLOOKUP(C126,'SINAPI 01-2019'!A:E,3,0) -> UN | F126: ='MEMÓRIA DE CÁLCULO'!K813 -> 1 | G126: =VLOOKUP(C126,'SINAPI 01-2019'!A:E,4,0) -> 53.71 | H126: =ROUND((G126*$K$12)+G126,2) -> 69.19 | I126: =TRUNC(F126*H126,2) -> 69.19
A127: =B127&C127 -> 10.2118.021.0040-A | B127: 10.21 | C127: 18.021.0040-A | D127: =VLOOKUP(C127,'EMOP 01-2019'!A:J,2,0) -> RESERVATORIO,EM FIBRA DE VIDRO OU POLIETILENO,COM CAPACIDADE EM TORNO DE 1.500L,INCLUSIVE TAMPA DE VEDACAO COM ESCOTILHA E FIXADORES.FORNECIMENTO | E127: =VLOOKUP(C127,'EMOP 01-2019'!A:J,9,0) -> UN | F127: ='MEMÓRIA DE CÁLCULO'!K815 -> 2 | G127: =VLOOKUP(C127,'EMOP 01-2019'!A:J,10,0) -> 567.43 | H127: =ROUND((G127*$K$12)+G127,2) -> 730.96 | I127: =TRUNC(F127*H127,2) -> 1461.92
A128: =B128&C128 -> 10.2294797 | B128: 10.22 | C128: 94797 | D128: =VLOOKUP(C128,'SINAPI 01-2019'!A:E,2,0) -> TORNEIRA DE BOIA, ROSCÁVEL, 1, FORNECIDA E INSTALADA EM RESERVAÇÃO DE ÁGUA. AF_06/2016 | E128: =VLOOKUP(C128,'SINAPI 01-2019'!A:E,3,0) -> UN | F128: ='MEMÓRIA DE CÁLCULO'!K817 -> 1 | G128: =VLOOKUP(C128,'SINAPI 01-2019'!A:E,4,0) -> 45.79 | H128: =ROUND((G128*$K$12)+G128,2) -> 58.99 | I128: =TRUNC(F128*H128,2) -> 58.99
B129: ELÉTRICA
A130: =B130&C130 -> 10.2315.015.0021-A | B130: 10.23 | C130: 15.015.0021-A | D130: =VLOOKUP(C130,'EMOP 01-2019'!A:J,2,0) -> INSTALACAO DE PONTO DE LUZ,APARENTE,EQUIVALENTE A 2 VARAS DE ELETRODUTO DE PVC RIGIDO DE 3/4",12,00M DE FIO 2,5MM2,CAIXAS,CONEXOES,LUVAS,CURVA E INTERRUPTOR DE SOBREPOR | E130: =VLOOKUP(C130,'EMOP 01-2019'!A:J,9,0) -> UN | F130: ='MEMÓRIA DE CÁLCULO'!K820 -> 29 | G130: =VLOOKUP(C130,'EMOP 01-2019'!A:J,10,0) -> 183.64 | H130: =ROUND((G130*$K$12)+G130,2) -> 236.57 | I130: =TRUNC(F130*H130,2) -> 6860.53
A131: =B131&C131 -> 10.2415.015.0041-A | B131: 10.24 | C131: 15.015.0041-A | D131: =VLOOKUP(C131,'EMOP 01-2019'!A:J,2,0) -> INSTALACAO DE UM CONJUNTO DE 2 PONTOS DE LUZ,APARENTE,EQUIVALENTE A 5 VARAS DE ELETRODUTO DE PVC RIGIDO DE 1/2",33,00M DE FIO 2,5MM2,CAIXAS,CONEXOES,LUVAS,CURVA E INTERRUPTOR DE SOBREPOR | E131: =VLOOKUP(C131,'EMOP 01-2019'!A:J,9,0) -> UN | F131: ='MEMÓRIA DE CÁLCULO'!K850 -> 2 | G131: =VLOOKUP(C131,'EMOP 01-2019'!A:J,10,0) -> 282.14 | H131: =ROUND((G131*$K$12)+G131,2) -> 363.45 | I131: =TRUNC(F131*H131,2) -> 726.9
A132: =B132&C132 -> 10.2515.015.0066-A | B132: 10.25 | C132: 15.015.0066-A | D132: =VLOOKUP(C132,'EMOP 01-2019'!A:J,2,0) -> INSTALACAO DE UM CONJUNTO DE 4 PONTOS DE LUZ,APARENTE,EQUIVALENTE 7 VARAS DE ELETRODUTO DE PVC RIGIDO DE 3/4",50,00M DEFIO 2,5MM2,CAIXAS,CONEXOES,LUVAS,CURVA E INTERRUPTOR DE SOBREPOR | E132: =VLOOKUP(C132,'EMOP 01-2019'!A:J,9,0) -> UN | F132: ='MEMÓRIA DE CÁLCULO'!K857 -> 2 | G132: =VLOOKUP(C132,'EMOP 01-2019'!A:J,10,0) -> 431.46 | H132: =ROUND((G132*$K$12)+G132,2) -> 555.81 | I132: =TRUNC(F132*H132,2) -> 1111.62
A133: =B133&C133 -> 10.2615.015.0081-A | B133: 10.26 | C133: 15.015.0081-A | D133: =VLOOKUP(C133,'EMOP 01-2019'!A:J,2,0) -> INSTALACAO DE UM CONJUNTO DE 5 PONTOS DE LUZ,APARENTE,EQUIVALENTE A 8 VARAS DE ELETRODUTO DE PVC RIGIDO DE 3/4",57,00M DE FIO 2,5MM2,CAIXAS,CONEXOES,LUVAS,CURVA E INTERRUPTOR DE SOBREPOR | E133: =VLOOKUP(C133,'EMOP 01-2019'!A:J,9,0) -> UN | F133: ='MEMÓRIA DE CÁLCULO'!K865 -> 3 | G133: =VLOOKUP(C133,'EMOP 01-2019'!A:J,10,0) -> 494.86 | H133: =ROUND((G133*$K$12)+G133,2) -> 637.48 | I133: =TRUNC(F133*H133,2) -> 1912.44
A134: =B134&C134 -> 10.2715.015.0106-A | B134: 10.27 | C134: 15.015.0106-A | D134: =VLOOKUP(C134,'EMOP 01-2019'!A:J,2,0) -> INSTALACAO DE UM CONJUNTO DE 8 PONTOS DE LUZ,APARENTE COM CANALETA PERFURADA,SENDO ESTA LIGADA A ELETROCALHA PRINCIPAL(EXCLUSIVE ESTA),EQUIVALENTE A 6,75 VARAS DE CANALETA E 2 VARAS DE ELETRODUTO DE PVC RIGIDO DE 3/4",92,00M DE FIO 2,5MM2,CAIXAS,CONEXOES,LUVAS,CURVA E INTERRUPTOR DE SOBREPOR | E134: =VLOOKUP(C134,'EMOP 01-2019'!A:J,9,0) -> UN | F134: ='MEMÓRIA DE CÁLCULO'!K871 -> 8 | G134: =VLOOKUP(C134,'EMOP 01-2019'!A:J,10,0) -> 1021.87 | H134: =ROUND((G134*$K$12)+G134,2) -> 1316.37 | I134: =TRUNC(F134*H134,2) -> 10530.96
A135: =B135&C135 -> 10.2818.027.0305-A | B135: 10.28 | C135: 18.027.0305-A | D135: =VLOOKUP(C135,'EMOP 01-2019'!A:J,2,0) -> LUMINARIA DE SOBREPOR,FIXADA EM LAJE OU FORRO,TIPO CALHA,CHANFRADA OU PRISMATICA,ESMALTADA,COMPLETA,EQUIPADA COM REATORELETRONICO DE ALTO FATOR DE POTENCIA(AFP>=0,92)E LAMPADA FLUORESCENTE DE 1X40W.FORNECIMENTO E COLOCACAO | E135: =VLOOKUP(C135,'EMOP 01-2019'!A:J,9,0) -> UN | F135: ='MEMÓRIA DE CÁLCULO'!K877 -> 12 | G135: =VLOOKUP(C135,'EMOP 01-2019'!A:J,10,0) -> 94.63 | H135: =ROUND((G135*$K$12)+G135,2) -> 121.9 | I135: =TRUNC(F135*H135,2) -> 1462.8
A136: =B136&C136 -> 10.2918.027.0355-A | B136: 10.29 | C136: 18.027.0355-A | D136: =VLOOKUP(C136,'EMOP 01-2019'!A:J,2,0) -> LUMINARIA DE EMBUTIR,FIXADA EM LAJE OU FORRO,TIPO CALHA,CHANFRADA OU PRISMATICA,ESMALTADA,COMPLETA,EQUIPADA COM REATOR ELETRONICO DE ALTO FATOR DE POTENCIA(AFP>=0,92)E LAMPADA FLUORESCENTE DE 1X40W.FORNECIMENTO E COLOCACAO | E136: =VLOOKUP(C136,'EMOP 01-2019'!A:J,9,0) -> UN | F136: ='MEMÓRIA DE CÁLCULO'!K889 -> 17 | G136: =VLOOKUP(C136,'EMOP 01-2019'!A:J,10,0) -> 92.43 | H136: =ROUND((G136*$K$12)+G136,2) -> 119.07 | I136: =TRUNC(F136*H136,2) -> 2024.19
A137: =B137&C137 -> 10.3097593 | B137: 10.30 | C137: 97593 | D137: =VLOOKUP(C137,'SINAPI 01-2019'!A:E,2,0) -> LUMINÁRIA TIPO SPOT, DE SOBREPOR, COM 1 LÂMPADA DE 15 W - FORNECIMENTO E INSTALAÇÃO. AF_11/2017 | E137: =VLOOKUP(C137,'SINAPI 01-2019'!A:E,3,0) -> UN | F137: ='MEMÓRIA DE CÁLCULO'!K908 -> 83 | G137: =VLOOKUP(C137,'SINAPI 01-2019'!A:E,4,0) -> 78.96 | H137: =ROUND((G137*$K$12)+G137,2) -> 101.72 | I137: =TRUNC(F137*H137,2) -> 8442.76
A138: =B138&C138 -> 10.3197605 | B138: 10.31 | C138: 97605 | D138: =VLOOKUP(C138,'SINAPI 01-2019'!A:E,2,0) -> LUMINÁRIA ARANDELA TIPO MEIA-LUA, PARA 1 LÂMPADA LED - FORNECIMENTO E INSTALAÇÃO. AF_11/2017 | E138: =VLOOKUP(C138,'SINAPI 01-2019'!A:E,3,0) -> UN | F138: ='MEMÓRIA DE CÁLCULO'!K918 -> 3 | G138: =VLOOKUP(C138,'SINAPI 01-2019'!A:E,4,0) -> 78.16 | H138: =ROUND((G138*$K$12)+G138,2) -> 100.69 | I138: =TRUNC(F138*H138,2) -> 302.07
A139: =B139&C139 -> 10.32COTAÇÃO 01 | B139: 10.32 | C139: COTAÇÃO 01 | D139: FITA LED BRANCO QUENTE 5 METROS + FONTE | E139: UN | F139: ='MEMÓRIA DE CÁLCULO'!K926 -> 24 | G139: =COTAÇÕES!C16 -> 22.35 | H139: =ROUND((G139*$L$12)+G139,2) -> 27.49 | I139: =TRUNC(F139*H139,2) -> 659.76
A140: =B140&C140 -> 10.33COTAÇÃO 02 | B140: 10.33 | C140: COTAÇÃO 02 | D140: LUSTRE DE CRISTAL TRANSPARENTE 28 BRAÇOS. | E140: UN | F140: ='MEMÓRIA DE CÁLCULO'!K933 -> 1 | G140: =COTAÇÕES!C21 -> 4758.9 | H140: =ROUND((G140*$L$12)+G140,2) -> 5854.4 | I140: =TRUNC(F140*H140,2) -> 5854.4
A141: =B141&C141 -> 10.3415.015.0250-A | B141: 10.34 | C141: 15.015.0250-A | D141: =VLOOKUP(C141,'EMOP 01-2019'!A:J,2,0) -> INSTALACAO DE PONTO DE TOMADA,EMBUTIDO NA ALVENARIA,EQUIVALENTE A 2 VARAS DE ELETRODUTO DE PVC RIGIDO DE 3/4",18,00M DEFIO 2,5MM2,CAIXAS,CONEXOES E TOMADA DE EMBUTIR,2P+T,10A,PADRAO BRASILEIRO,COM PLACA FOSFORESCENTE,INCLUSIVE ABERTURA E FECHAMENTO DE RASGO EM ALVENARIA | E141: =VLOOKUP(C141,'EMOP 01-2019'!A:J,9,0) -> UN | F141: ='MEMÓRIA DE CÁLCULO'!K937 -> 48 | G141: =VLOOKUP(C141,'EMOP 01-2019'!A:J,10,0) -> 228 | H141: =ROUND((G141*$K$12)+G141,2) -> 293.71 | I141: =TRUNC(F141*H141,2) -> 14098.08
A142: =B142&C142 -> 10.3515.015.0173-A | B142: 10.35 | C142: 15.015.0173-A | D142: =VLOOKUP(C142,'EMOP 01-2019'!A:J,2,0) -> INSTALACAO DE PONTO DE FORCA ATE 4CV,EQUIVALENTE A 2 VARAS DE ELETRODUTO DE PVC RIGIDO DE 3/4",20,00M DE FIO 4MM2,CAIXAS E CONEXOES | E142: =VLOOKUP(C142,'EMOP 01-2019'!A:J,9,0) -> UN | F142: ='MEMÓRIA DE CÁLCULO'!K958 -> 18 | G142: =VLOOKUP(C142,'EMOP 01-2019'!A:J,10,0) -> 348.9 | H142: =ROUND((G142*$K$12)+G142,2) -> 449.45 | I142: =TRUNC(F142*H142,2) -> 8090.1
A143: =B143&C143 -> 10.3674131/4 | B143: 10.36 | C143: 74131/4 | D143: =VLOOKUP(C143,'SINAPI 01-2019'!A:E,2,0) -> QUADRO DE DISTRIBUICAO DE ENERGIA DE EMBUTIR, EM CHAPA METALICA, PARA 18 DISJUNTORES TERMOMAGNETICOS MONOPOLARES, COM BARRAMENTO TRIFASICO E NEUTRO, FORNECIMENTO E INSTALACAO | E143: =VLOOKUP(C143,'SINAPI 01-2019'!A:E,3,0) -> UN | F143: ='MEMÓRIA DE CÁLCULO'!K978 -> 2 | G143: =VLOOKUP(C143,'SINAPI 01-2019'!A:E,4,0) -> 299.54 | H143: =ROUND((G143*$K$12)+G143,2) -> 385.87 | I143: =TRUNC(F143*H143,2) -> 771.74
A144: =B144&C144 -> 10.3774131/7 | B144: 10.37 | C144: 74131/7 | D144: =VLOOKUP(C144,'SINAPI 01-2019'!A:E,2,0) -> QUADRO DE DISTRIBUICAO DE ENERGIA DE EMBUTIR, EM CHAPA METALICA, PARA 40 DISJUNTORES TERMOMAGNETICOS MONOPOLARES, COM BARRAMENTO TRIFASICO E NEUTRO, FORNECIMENTO E INSTALACAO | E144: =VLOOKUP(C144,'SINAPI 01-2019'!A:E,3,0) -> UN | F144: ='MEMÓRIA DE CÁLCULO'!K986 -> 1 | G144: =VLOOKUP(C144,'SINAPI 01-2019'!A:E,4,0) -> 547.8 | H144: =ROUND((G144*$K$12)+G144,2) -> 705.68 | I144: =TRUNC(F144*H144,2) -> 705.68
A145: =B145&C145 -> 10.3874130/4 | B145: 10.38 | C145: 74130/4 | D145: =VLOOKUP(C145,'SINAPI 01-2019'!A:E,2,0) -> DISJUNTOR TERMOMAGNETICO TRIPOLAR PADRAO NEMA (AMERICANO) 10 A 50A 240V, FORNECIMENTO E INSTALACAO | E145: =VLOOKUP(C145,'SINAPI 01-2019'!A:E,3,0) -> UN | F145: ='MEMÓRIA DE CÁLCULO'!K991 -> 3 | G145: =VLOOKUP(C145,'SINAPI 01-2019'!A:E,4,0) -> 90.8 | H145: =ROUND((G145*$K$12)+G145,2) -> 116.97 | I145: =TRUNC(F145*H145,2) -> 350.91
A146: =B146&C146 -> 10.3993661 | B146: 10.39 | C146: 93661 | D146: =VLOOKUP(C146,'SINAPI 01-2019'!A:E,2,0) -> DISJUNTOR BIPOLAR TIPO DIN, CORRENTE NOMINAL DE 16A - FORNECIMENTO E INSTALAÇÃO. AF_04/2016 | E146: =VLOOKUP(C146,'SINAPI 01-2019'!A:E,3,0) -> UN | F146: ='MEMÓRIA DE CÁLCULO'!K993 -> 8 | G146: =VLOOKUP(C146,'SINAPI 01-2019'!A:E,4,0) -> 53.78 | H146: =ROUND((G146*$K$12)+G146,2) -> 69.28 | I146: =TRUNC(F146*H146,2) -> 554.24
A147: =B147&C147 -> 10.4093663 | B147: 10.40 | C147: 93663 | D147: =VLOOKUP(C147,'SINAPI 01-2019'!A:E,2,0) -> DISJUNTOR BIPOLAR TIPO DIN, CORRENTE NOMINAL DE 25A - FORNECIMENTO E INSTALAÇÃO. AF_04/2016 | E147: =VLOOKUP(C147,'SINAPI 01-2019'!A:E,3,0) -> UN | F147: ='MEMÓRIA DE CÁLCULO'!K995 -> 2 | G147: =VLOOKUP(C147,'SINAPI 01-2019'!A:E,4,0) -> 55.79 | H147: =ROUND((G147*$K$12)+G147,2) -> 71.87 | I147: =TRUNC(F147*H147,2) -> 143.74
A148: =B148&C148 -> 10.4193664 | B148: 10.41 | C148: 93664 | D148: =VLOOKUP(C148,'SINAPI 01-2019'!A:E,2,0) -> DISJUNTOR BIPOLAR TIPO DIN, CORRENTE NOMINAL DE 32A - FORNECIMENTO E INSTALAÇÃO. AF_04/2016 | E148: =VLOOKUP(C148,'SINAPI 01-2019'!A:E,3,0) -> UN | F148: ='MEMÓRIA DE CÁLCULO'!K997 -> 1 | G148: =VLOOKUP(C148,'SINAPI 01-2019'!A:E,4,0) -> 58.2 | H148: =ROUND((G148*$K$12)+G148,2) -> 74.97 | I148: =TRUNC(F148*H148,2) -> 74.97
A149: =B149&C149 -> 10.4274130/1 | B149: 10.42 | C149: 74130/1 | D149: =VLOOKUP(C149,'SINAPI 01-2019'!A:E,2,0) -> DISJUNTOR TERMOMAGNETICO MONOPOLAR PADRAO NEMA (AMERICANO) 10 A 30A 240V, FORNECIMENTO E INSTALACAO | E149: =VLOOKUP(C149,'SINAPI 01-2019'!A:E,3,0) -> UN | F149: ='MEMÓRIA DE CÁLCULO'!K999 -> 13 | G149: =VLOOKUP(C149,'SINAPI 01-2019'!A:E,4,0) -> 13.97 | H149: =ROUND((G149*$K$12)+G149,2) -> 18 | I149: =TRUNC(F149*H149,2) -> 234
A150: =B150&C150 -> 10.4374130/2 | B150: 10.43 | C150: 74130/2 | D150: =VLOOKUP(C150,'SINAPI 01-2019'!A:E,2,0) -> DISJUNTOR TERMOMAGNETICO MONOPOLAR PADRAO NEMA (AMERICANO) 35 A 50A 240V, FORNECIMENTO E INSTALACAO | E150: =VLOOKUP(C150,'SINAPI 01-2019'!A:E,3,0) -> UN | F150: ='MEMÓRIA DE CÁLCULO'!K1001 -> 2 | G150: =VLOOKUP(C150,'SINAPI 01-2019'!A:E,4,0) -> 21.39 | H150: =ROUND((G150*$K$12)+G150,2) -> 27.55 | I150: =TRUNC(F150*H150,2) -> 55.1
A151: =B151&C151 -> 10.4473857/5 | B151: 10.44 | C151: 73857/5 | D151: =VLOOKUP(C151,'SINAPI 01-2019'!A:E,2,0) -> TRANSFORMADOR DISTRIBUICAO 300KVA TRIFASICO 60HZ CLASSE 15KV IMERSO EM ÓLEO MINERAL FORNECIMENTO E INSTALACAO | E151: =VLOOKUP(C151,'SINAPI 01-2019'!A:E,3,0) -> UN | F151: ='MEMÓRIA DE CÁLCULO'!K1003 -> 1 | G151: =VLOOKUP(C151,'SINAPI 01-2019'!A:E,4,0) -> 17436.5 | H151: =ROUND((G151*$K$12)+G151,2) -> 22461.7 | I151: =TRUNC(F151*H151,2) -> 22461.7
A152: =B152&C152 -> 10.4592998 | B152: 10.45 | C152: 92998 | D152: =VLOOKUP(C152,'SINAPI 01-2019'!A:E,2,0) -> CABO DE COBRE FLEXÍVEL ISOLADO, 185 MM², ANTI-CHAMA 0,6/1,0 KV, PARA DISTRIBUIÇÃO - FORNECIMENTO E INSTALAÇÃO. AF_12/2015 | E152: =VLOOKUP(C152,'SINAPI 01-2019'!A:E,3,0) -> M | F152: ='MEMÓRIA DE CÁLCULO'!K1005 -> 151.48 | G152: =VLOOKUP(C152,'SINAPI 01-2019'!A:E,4,0) -> 116.48 | H152: =ROUND((G152*$K$12)+G152,2) -> 150.05 | I152: =TRUNC(F152*H152,2) -> 22729.57
A153: =B153&C153 -> 10.46COTAÇÃO 03 | B153: 10.46 | C153: COTAÇÃO 03 | D153: ELETRODUTO PEAD CORRUGADO 6" (150MM) | E153: M | F153: ='MEMÓRIA DE CÁLCULO'!K1011 -> 5 | G153: =COTAÇÕES!C26 -> 10.94 | H153: =ROUND((G153*$L$12)+G153,2) -> 13.46 | I153: =TRUNC(F153*H153,2) -> 67.3
H154: SUBTOTAL 10 | I154: =SUM(I106:I153) -> 135132.62
B155: 11 | C155: COBERTURAS | E155: .
A156: =B156&C156 -> 11.155960 | B156: 11.1 | C156: 55960 | D156: =VLOOKUP(C156,'SINAPI 01-2019'!A:E,2,0) -> IMUNIZACAO DE MADEIRAMENTO PARA COBERTURA UTILIZANDO CUPINICIDA INCOLOR | E156: =VLOOKUP(C156,'SINAPI 01-2019'!A:E,3,0) -> M2 | F156: ='MEMÓRIA DE CÁLCULO'!K1017 -> 328.56 | G156: =VLOOKUP(C156,'SINAPI 01-2019'!A:E,4,0) -> 5.54 | H156: =ROUND((G156*$K$12)+G156,2) -> 7.14 | I156: =TRUNC(F156*H156,2) -> 2345.91
A157: =B157&C157 -> 11.292542 | B157: 11.2 | C157: 92542 | D157: =VLOOKUP(C157,'SINAPI 01-2019'!A:E,2,0) -> TRAMA DE MADEIRA COMPOSTA POR RIPAS, CAIBROS E TERÇAS PARA TELHADOS DE MAIS QUE 2 ÁGUAS PARA TELHA CERÂMICA CAPA-CANAL, INCLUSO TRANSPORTE VERTICAL. AF_12/2015 | E157: =VLOOKUP(C157,'SINAPI 01-2019'!A:E,3,0) -> M2 | F157: ='MEMÓRIA DE CÁLCULO'!K1021 -> 164.28 | G157: =VLOOKUP(C157,'SINAPI 01-2019'!A:E,4,0) -> 67.57 | H157: =ROUND((G157*$K$12)+G157,2) -> 87.04 | I157: =TRUNC(F157*H157,2) -> 14298.93
A158: =B158&C158 -> 11.316.001.0085-A | B158: 11.3 | C158: 16.001.0085-A | D158: =VLOOKUP(C158,'EMOP 01-2019'!A:J,2,0) -> PONTALETE DE MADEIRA SERRADA,EM PECAS DE 3"X3",VERTICAIS E HORIZONTAIS,PARA COBERTURA DE TELHAS CERAMICAS,MEDIDO PELA AREA REAL DA COBERTURA DO TELHADO.FORNECIMENTO E COLOCACAO | E158: =VLOOKUP(C158,'EMOP 01-2019'!A:J,9,0) -> M2 | F158: ='MEMÓRIA DE CÁLCULO'!K1025 -> 328.56 | G158: =VLOOKUP(C158,'EMOP 01-2019'!A:J,10,0) -> 30.53 | H158: =ROUND((G158*$K$12)+G158,2) -> 39.33 | I158: =TRUNC(F158*H158,2) -> 12922.26
A159: =B159&C159 -> 11.494198 | B159: 11.4 | C159: 94198 | D159: =VLOOKUP(C159,'SINAPI 01-2019'!A:E,2,0) -> TELHAMENTO COM TELHA CERÂMICA DE ENCAIXE, TIPO PORTUGUESA, COM MAIS DE 2 ÁGUAS, INCLUSO TRANSPORTE VERTICAL. AF_06/2016 | E159: =VLOOKUP(C159,'SINAPI 01-2019'!A:E,3,0) -> M2 | F159: ='MEMÓRIA DE CÁLCULO'!K1029 -> 98.56 | G159: =VLOOKUP(C159,'SINAPI 01-2019'!A:E,4,0) -> 50.98 | H159: =ROUND((G159*$K$12)+G159,2) -> 65.67 | I159: =TRUNC(F159*H159,2) -> 6472.43
A160: =B160&C160 -> 11.594219 | B160: 11.5 | C160: 94219 | D160: =VLOOKUP(C160,'SINAPI 01-2019'!A:E,2,0) -> CUMEEIRA E ESPIGÃO PARA TELHA CERÂMICA EMBOÇADA COM ARGAMASSA TRAÇO 1:2:9 (CIMENTO, CAL E AREIA), PARA TELHADOS COM MAIS DE 2 ÁGUAS, INCLUSO TRANSPORTE VERTICAL. AF_06/2016 | E160: =VLOOKUP(C160,'SINAPI 01-2019'!A:E,3,0) -> M | F160: ='MEMÓRIA DE CÁLCULO'!K1033 -> 38.31 | G160: =VLOOKUP(C160,'SINAPI 01-2019'!A:E,4,0) -> 33.59 | H160: =ROUND((G160*$K$12)+G160,2) -> 43.27 | I160: =TRUNC(F160*H160,2) -> 1657.67
A161: =B161&C161 -> 11.694231 | B161: 11.6 | C161: 94231 | D161: =VLOOKUP(C161,'SINAPI 01-2019'!A:E,2,0) -> RUFO EM CHAPA DE AÇO GALVANIZADO NÚMERO 24, CORTE DE 25 CM, INCLUSO TRANSPORTE VERTICAL. AF_06/2016 | E161: =VLOOKUP(C161,'SINAPI 01-2019'!A:E,3,0) -> M | F161: ='MEMÓRIA DE CÁLCULO'!K1037 -> 12 | G161: =VLOOKUP(C161,'SINAPI 01-2019'!A:E,4,0) -> 29.45 | H161: =ROUND((G161*$K$12)+G161,2) -> 37.94 | I161: =TRUNC(F161*H161,2) -> 455.28
A162: =B162&C162 -> 11.798546 | B162: 11.7 | C162: 98546 | D162: =VLOOKUP(C162,'SINAPI 01-2019'!A:E,2,0) -> IMPERMEABILIZAÇÃO DE SUPERFÍCIE COM MANTA ASFÁLTICA, UMA CAMADA, INCLUSIVE APLICAÇÃO DE PRIMER ASFÁLTICO, E=3MM. AF_06/2018 | E162: =VLOOKUP(C162,'SINAPI 01-2019'!A:E,3,0) -> M2 | F162: ='MEMÓRIA DE CÁLCULO'!K1041 -> 27.57 | G162: =VLOOKUP(C162,'SINAPI 01-2019'!A:E,4,0) -> 74.94 | H162: =ROUND((G162*$K$12)+G162,2) -> 96.54 | I162: =TRUNC(F162*H162,2) -> 2661.6
A163: =B163&C163 -> 11.891790 | B163: 11.8 | C163: 91790 | D163: =VLOOKUP(C163,'SINAPI 01-2019'!A:E,2,0) -> (COMPOSIÇÃO REPRESENTATIVA) DO SERVIÇO DE INSTALAÇÃO DE TUBOS DE PVC, SÉRIE R, ÁGUA PLUVIAL, DN 100 MM (INSTALADO EM RAMAL DE ENCAMINHAMENTO, OU CONDUTORES VERTICAIS), INCLUSIVE CONEXÕES, CORTES E FIXAÇÕES, PARA PRÉDIOS. AF_10/2015 | E163: =VLOOKUP(C163,'SINAPI 01-2019'!A:E,3,0) -> M | F163: ='MEMÓRIA DE CÁLCULO'!K1045 -> 40 | G163: =VLOOKUP(C163,'SINAPI 01-2019'!A:E,4,0) -> 48.62 | H163: =ROUND((G163*$K$12)+G163,2) -> 62.63 | I163: =TRUNC(F163*H163,2) -> 2505.2
A164: =B164&C164 -> 11.994230 | B164: 11.9 | C164: 94230 | D164: =VLOOKUP(C164,'SINAPI 01-2019'!A:E,2,0) -> CALHA DE BEIRAL, SEMICIRCULAR DE PVC, DIAMETRO 125 MM, INCLUINDO CABECEIRAS, EMENDAS, BOCAIS, SUPORTES E VEDAÇÕES, EXCLUINDO CONDUTORES, INCLUSO TRANSPORTE VERTICAL. AF_06/2016 | E164: =VLOOKUP(C164,'SINAPI 01-2019'!A:E,3,0) -> M | F164: ='MEMÓRIA DE CÁLCULO'!K1049 -> 12 | G164: =VLOOKUP(C164,'SINAPI 01-2019'!A:E,4,0) -> 74.76 | H164: =ROUND((G164*$K$12)+G164,2) -> 96.31 | I164: =TRUNC(F164*H164,2) -> 1155.72
H165: SUBTOTAL 11 | I165: =SUM(I156:I164) -> 44475
B166: 12 | C166: PINTURAS | E166: .
A167: =B167&C167 -> 12.117.018.0060-A | B167: 12.1 | C167: 17.018.0060-A | D167: =VLOOKUP(C167,'EMOP 01-2019'!A:J,2,0) -> PREPARO DE SUPERFICIES NOVAS,COM REVESTIMENTO LISO INTERNO OU EXTERNO,INCLUSIVE UMA DEMAO DE SELADOR ACRILICO,DUAS DEMAOS DE MASSA ACRILICA E LIXAMENTOS NECESSARIOS | E167: =VLOOKUP(C167,'EMOP 01-2019'!A:J,9,0) -> M2 | F167: ='MEMÓRIA DE CÁLCULO'!K1054 -> 1227.09 | G167: =VLOOKUP(C167,'EMOP 01-2019'!A:J,10,0) -> 25.7 | H167: =ROUND((G167*$K$12)+G167,2) -> 33.11 | I167: =TRUNC(F167*H167,2) -> 40628.94
A168: =B168&C168 -> 12.288487 | B168: 12.2 | C168: 88487 | D168: =VLOOKUP(C168,'SINAPI 01-2019'!A:E,2,0) -> APLICAÇÃO MANUAL DE PINTURA COM TINTA LÁTEX PVA EM PAREDES, DUAS DEMÃOS. AF_06/2014 | E168: =VLOOKUP(C168,'SINAPI 01-2019'!A:E,3,0) -> M2 | F168: ='MEMÓRIA DE CÁLCULO'!K1101 -> 1121.21 | G168: =VLOOKUP(C168,'SINAPI 01-2019'!A:E,4,0) -> 9.38 | H168: =ROUND((G168*$K$12)+G168,2) -> 12.08 | I168: =TRUNC(F168*H168,2) -> 13544.21
A169: =B169&C169 -> 12.388486 | B169: 12.3 | C169: 88486 | D169: =VLOOKUP(C169,'SINAPI 01-2019'!A:E,2,0) -> APLICAÇÃO MANUAL DE PINTURA COM TINTA LÁTEX PVA EM TETO, DUAS DEMÃOS. AF_06/2014 | E169: =VLOOKUP(C169,'SINAPI 01-2019'!A:E,3,0) -> M2 | F169: ='MEMÓRIA DE CÁLCULO'!K1104 -> 105.88 | G169: =VLOOKUP(C169,'SINAPI 01-2019'!A:E,4,0) -> 10.6 | H169: =ROUND((G169*$K$12)+G169,2) -> 13.65 | I169: =TRUNC(F169*H169,2) -> 1445.26
A170: =B170&C170 -> 12.417.025.0005-B | B170: 12.4 | C170: 17.025.0005-B | D170: =VLOOKUP(C170,'EMOP 01-2019'!A:J,2,0) -> PINTURA COM TINTA ACRILICA,ANTIFUNGO/BACTERICIDA,PARA AMBIENTES INTERNOS E EXTERNOS PROPENSOS A UMIDADE E VAPORES,EM DUAS DEMAOS,SOBRE SELADOR ACRILICO E DUAS DEMAOS DE MASSA ACRILICA,INCLUSIVE LIMPEZA E LIXAMENTO | E170: =VLOOKUP(C170,'EMOP 01-2019'!A:J,9,0) -> M2 | F170: ='MEMÓRIA DE CÁLCULO'!K1107 -> 759.17 | G170: =VLOOKUP(C170,'EMOP 01-2019'!A:J,10,0) -> 29.97 | H170: =ROUND((G170*$K$12)+G170,2) -> 38.61 | I170: =TRUNC(F170*H170,2) -> 29311.55
A171: =B171&C171 -> 12.595468 | B171: 12.5 | C171: 95468 | D171: =VLOOKUP(C171,'SINAPI 01-2019'!A:E,2,0) -> PINTURA ESMALTE BRILHANTE (2 DEMAOS) SOBRE SUPERFICIE METALICA, INCLUSIVE PROTECAO COM ZARCAO (1 DEMAO) | E171: =VLOOKUP(C171,'SINAPI 01-2019'!A:E,3,0) -> M2 | F171: ='MEMÓRIA DE CÁLCULO'!K1114 -> 59.7 | G171: =VLOOKUP(C171,'SINAPI 01-2019'!A:E,4,0) -> 42.8 | H171: =ROUND((G171*$K$12)+G171,2) -> 55.13 | I171: =TRUNC(F171*H171,2) -> 3291.26
A172: =B172&C172 -> 12.674065/3 | B172: 12.6 | C172: 74065/3 | D172: =VLOOKUP(C172,'SINAPI 01-2019'!A:E,2,0) -> PINTURA ESMALTE BRILHANTE PARA MADEIRA, DUAS DEMAOS, SOBRE FUNDO NIVELADOR BRANCO | E172: =VLOOKUP(C172,'SINAPI 01-2019'!A:E,3,0) -> M2 | F172: ='MEMÓRIA DE CÁLCULO'!K1120 -> 59.22 | G172: =VLOOKUP(C172,'SINAPI 01-2019'!A:E,4,0) -> 25.58 | H172: =ROUND((G172*$K$12)+G172,2) -> 32.95 | I172: =TRUNC(F172*H172,2) -> 1951.29
A173: =B173&C173 -> 12.76082 | B173: 12.7 | C173: 6082 | D173: =VLOOKUP(C173,'SINAPI 01-2019'!A:E,2,0) -> PINTURA EM VERNIZ SINTETICO BRILHANTE EM MADEIRA, TRES DEMAOS | E173: =VLOOKUP(C173,'SINAPI 01-2019'!A:E,3,0) -> M2 | F173: ='MEMÓRIA DE CÁLCULO'!K1127 -> 66.18 | G173: =VLOOKUP(C173,'SINAPI 01-2019'!A:E,4,0) -> 18.61 | H173: =ROUND((G173*$K$12)+G173,2) -> 23.97 | I173: =TRUNC(F173*H173,2) -> 1586.33
H174: SUBTOTAL 12 | I174: =SUM(I167:I173) -> 91758.84
B175: 13 | C175: APARELHOS | E175: .
A176: =B176&C176 -> 13.186932 | B176: 13.1 | C176: 86932 | D176: =VLOOKUP(C176,'SINAPI 01-2019'!A:E,2,0) -> VASO SANITÁRIO SIFONADO COM CAIXA ACOPLADA LOUÇA BRANCA - PADRÃO MÉDIO, INCLUSO ENGATE FLEXÍVEL EM METAL CROMADO, 1/2 X 40CM - FORNECIMENTO E INSTALAÇÃO. AF_12/2013 | E176: =VLOOKUP(C176,'SINAPI 01-2019'!A:E,3,0) -> UN | F176: ='MEMÓRIA DE CÁLCULO'!K1132 -> 7 | G176: =VLOOKUP(C176,'SINAPI 01-2019'!A:E,4,0) -> 417.55 | H176: =ROUND((G176*$K$12)+G176,2) -> 537.89 | I176: =TRUNC(F176*H176,2) -> 3765.23
A177: =B177&C177 -> 13.295472 | B177: 13.2 | C177: 95472 | D177: =VLOOKUP(C177,'SINAPI 01-2019'!A:E,2,0) -> VASO SANITARIO SIFONADO CONVENCIONAL PARA PCD SEM FURO FRONTAL COM LOUÇA BRANCA SEM ASSENTO, INCLUSO CONJUNTO DE LIGAÇÃO PARA BACIA SANITÁRIA AJUSTÁVEL - FORNECIMENTO E INSTALAÇÃO. AF_10/2016 | E177: =VLOOKUP(C177,'SINAPI 01-2019'!A:E,3,0) -> UN | F177: ='MEMÓRIA DE CÁLCULO'!K1144 -> 3 | G177: =VLOOKUP(C177,'SINAPI 01-2019'!A:E,4,0) -> 670.34 | H177: =ROUND((G177*$K$12)+G177,2) -> 863.53 | I177: =TRUNC(F177*H177,2) -> 2590.59
A178: =B178&C178 -> 13.318.005.0030-A | B178: 13.3 | C178: 18.005.0030-A | D178: =VLOOKUP(C178,'EMOP 01-2019'!A:J,2,0) -> ASSENTO ESPECIAL PARA VASO SANITARIO PARA PESSOAS COM NECESSIDADES ESPECIFICAS.FORNECIMENTO E COLOCACAO | E178: =VLOOKUP(C178,'EMOP 01-2019'!A:J,9,0) -> UN | F178: ='MEMÓRIA DE CÁLCULO'!K1155 -> 3 | G178: =VLOOKUP(C178,'EMOP 01-2019'!A:J,10,0) -> 112.34 | H178: =ROUND((G178*$K$12)+G178,2) -> 144.72 | I178: =TRUNC(F178*H178,2) -> 434.16
A179: =B179&C179 -> 13.418.005.0015-A | B179: 13.4 | C179: 18.005.0015-A | D179: =VLOOKUP(C179,'EMOP 01-2019'!A:J,2,0) -> ASSENTO SANITARIO DE PLASTICO,TIPO MEDIO LUXO.FORNECIMENTO E COLOCACAO | E179: =VLOOKUP(C179,'EMOP 01-2019'!A:J,9,0) -> UN | F179: ='MEMÓRIA DE CÁLCULO'!K1158 -> 7 | G179: =VLOOKUP(C179,'EMOP 01-2019'!A:J,10,0) -> 63.31 | H179: =ROUND((G179*$K$12)+G179,2) -> 81.56 | I179: =TRUNC(F179*H179,2) -> 570.92
A180: =B180&C180 -> 13.574234/1 | B180: 13.5 | C180: 74234/1 | D180: =VLOOKUP(C180,'SINAPI 01-2019'!A:E,2,0) -> MICTORIO SIFONADO DE LOUCA BRANCA COM PERTENCES, COM REGISTRO DE PRESSAO 1/2" COM CANOPLA CROMADA ACABAMENTO SIMPLES E CONJUNTO PARA FIXACAO - FORNECIMENTO E INSTALACAO | E180: =VLOOKUP(C180,'SINAPI 01-2019'!A:E,3,0) -> UN | F180: ='MEMÓRIA DE CÁLCULO'!K1161 -> 2 | G180: =VLOOKUP(C180,'SINAPI 01-2019'!A:E,4,0) -> 505.79 | H180: =ROUND((G180*$K$12)+G180,2) -> 651.56 | I180: =TRUNC(F180*H180,2) -> 1303.12
A181: =B181&C181 -> 13.640729 | B181: 13.6 | C181: 40729 | D181: =VLOOKUP(C181,'SINAPI 01-2019'!A:E,2,0) -> VALVULA DESCARGA 1.1/2" COM REGISTRO, ACABAMENTO EM METAL CROMADO - FORNECIMENTO E INSTALACAO | E181: =VLOOKUP(C181,'SINAPI 01-2019'!A:E,3,0) -> UN | F181: ='MEMÓRIA DE CÁLCULO'!K1165 -> 10 | G181: =VLOOKUP(C181,'SINAPI 01-2019'!A:E,4,0) -> 237.43 | H181: =ROUND((G181*$K$12)+G181,2) -> 305.86 | I181: =TRUNC(F181*H181,2) -> 3058.6
A182: =B182&C182 -> 13.786942 | B182: 13.7 | C182: 86942 | D182: =VLOOKUP(C182,'SINAPI 01-2019'!A:E,2,0) -> LAVATÓRIO LOUÇA BRANCA SUSPENSO, 29,5 X 39CM OU EQUIVALENTE, PADRÃO POPULAR, INCLUSO SIFÃO TIPO GARRAFA EM PVC, VÁLVULA E ENGATE FLEXÍVEL 30CM EM PLÁSTICO E TORNEIRA CROMADA DE MESA, PADRÃO POPULAR - FORNECIMENTO E INSTALAÇÃO. AF_12/2013 | E182: =VLOOKUP(C182,'SINAPI 01-2019'!A:E,3,0) -> UN | F182: ='MEMÓRIA DE CÁLCULO'!K1168 -> 2 | G182: =VLOOKUP(C182,'SINAPI 01-2019'!A:E,4,0) -> 198.16 | H182: =ROUND((G182*$K$12)+G182,2) -> 255.27 | I182: =TRUNC(F182*H182,2) -> 510.54
A183: =B183&C183 -> 13.818.002.0014-A | B183: 13.8 | C183: 18.002.0014-A | D183: =VLOOKUP(C183,'EMOP 01-2019'!A:J,2,0) -> LAVATORIO DE LOUCA BRANCA,COM COLUNA SUSPENSA,PARA PESSOAS COM NECESSIDADES ESPECIFICAS,COM MEDIDAS EM TORNO DE 45,5X35,5CM,INCLUSIVE SIFAO EM PVC FLEXIVEL,VALVULA DE ESCOAMENTO CROMADA,RABICHO EM PVC E TORNEIRA DE FECHAMENTO AUTOMATICO.FORNECIMENTO | E183: =VLOOKUP(C183,'EMOP 01-2019'!A:J,9,0) -> UN | F183: ='MEMÓRIA DE CÁLCULO'!K1176 -> 3 | G183: =VLOOKUP(C183,'EMOP 01-2019'!A:J,10,0) -> 320.25 | H183: =ROUND((G183*$K$12)+G183,2) -> 412.55 | I183: =TRUNC(F183*H183,2) -> 1237.65
A184: =B184&C184 -> 13.993396 | B184: 13.9 | C184: 93396 | D184: =VLOOKUP(C184,'SINAPI 01-2019'!A:E,2,0) -> BANCADA GRANITO CINZA POLIDO 0,50 X 0,60M, INCL. CUBA DE EMBUTIR OVAL LOUÇA BRANCA 35 X 50CM, VÁLVULA METAL CROMADO, SIFÃO FLEXÍVEL PVC, ENGATE 30CM FLEXÍVEL PLÁSTICO E TORNEIRA CROMADA DE MESA, PADRÃO POPULAR - FORNEC. E INSTALAÇÃO. AF_12/2013 | E184: =VLOOKUP(C184,'SINAPI 01-2019'!A:E,3,0) -> UN | F184: ='MEMÓRIA DE CÁLCULO'!K1187 -> 3 | G184: =VLOOKUP(C184,'SINAPI 01-2019'!A:E,4,0) -> 523.58 | H184: =ROUND((G184*$K$12)+G184,2) -> 674.48 | I184: =TRUNC(F184*H184,2) -> 2023.44
A185: =B185&C185 -> 13.1018.016.0106-A | B185: 13.10 | C185: 18.016.0106-A | D185: =VLOOKUP(C185,'EMOP 01-2019'!A:J,2,0) -> BARRA DE APOIO EM ACO INOXIDAVEL AISI 304,TUBO DE 1.1/4",INCLUSIVE FIXACAO COM PARAFUSOS INOXIDAVEIS E BUCHAS PLASTICAS,COM 80CM,PARA PESSOAS COM NECESSIDADES ESPECIFICAS.FORNECIMENTO E COLOCACAO | E185: =VLOOKUP(C185,'EMOP 01-2019'!A:J,9,0) -> UN | F185: ='MEMÓRIA DE CÁLCULO'!K1192 -> 7 | G185: =VLOOKUP(C185,'EMOP 01-2019'!A:J,10,0) -> 125.23 | H185: =ROUND((G185*$K$12)+G185,2) -> 161.32 | I185: =TRUNC(F185*H185,2) -> 1129.24
A186: =B186&C186 -> 13.1118.007.0090-A | B186: 13.11 | C186: 18.007.0090-A | D186: =VLOOKUP(C186,'EMOP 01-2019'!A:J,2,0) -> CHUVEIRO COM DESVIADOR E DUCHA MANUAL,CROMADO,PARA PESSOAS COM NECESSIDADES ESPECIFICAS.FORNECIMENTO | E186: =VLOOKUP(C186,'EMOP 01-2019'!A:J,9,0) -> UN | F186: ='MEMÓRIA DE CÁLCULO'!K1203 -> 1 | G186: =VLOOKUP(C186,'EMOP 01-2019'!A:J,10,0) -> 277.12 | H186: =ROUND((G186*$L$12)+G186,2) -> 340.91 | I186: =TRUNC(F186*H186,2) -> 340.91
A187: =B187&C187 -> 13.1218.007.0075-A | B187: 13.12 | C187: 18.007.0075-A | D187: =VLOOKUP(C187,'EMOP 01-2019'!A:J,2,0) -> CHUVEIRO ELETRICO,EM METAL CROMADO,EM 110/220V,COM BRACO CROMADO DE 1/2" E 1 REGISTRO DE PRESSAO 1416 DE 3/4",COM CANOPLA E VOLANTE EM METAL CROMADO.FORNECIMENTO | E187: =VLOOKUP(C187,'EMOP 01-2019'!A:J,9,0) -> UN | F187: ='MEMÓRIA DE CÁLCULO'!K1208 -> 1 | G187: =VLOOKUP(C187,'EMOP 01-2019'!A:J,10,0) -> 206.61 | H187: =ROUND((G187*$L$12)+G187,2) -> 254.17 | I187: =TRUNC(F187*H187,2) -> 254.17
A188: =B188&C188 -> 13.1314.007.0321-A | B188: 13.13 | C188: 14.007.0321-A | D188: =VLOOKUP(C188,'EMOP 01-2019'!A:J,2,0) -> PUXADOR HORIZONTAL PARA PORTA,TIPO ALCA,PARA PESSOAS COM NECESSIDADES ESPECIFICAS, EM TUBO DE ACO INOXIDAVEL DE 1.1/4",AISI-304,LIGA 18.8,COM 30CM.FORNECIMENTO | E188: =VLOOKUP(C188,'EMOP 01-2019'!A:J,9,0) -> UN | F188: ='MEMÓRIA DE CÁLCULO'!K1213 -> 3 | G188: =VLOOKUP(C188,'EMOP 01-2019'!A:J,10,0) -> 90.13 | H188: =ROUND((G188*$L$12)+G188,2) -> 110.88 | I188: =TRUNC(F188*H188,2) -> 332.64
A189: =B189&C189 -> 13.1486934 | B189: 13.14 | C189: 86934 | D189: =VLOOKUP(C189,'SINAPI 01-2019'!A:E,2,0) -> BANCADA DE MÁRMORE SINTÉTICO 120 X 60CM, COM CUBA INTEGRADA, INCLUSO SIFÃO TIPO FLEXÍVEL EM PVC, VÁLVULA EM PLÁSTICO CROMADO TIPO AMERICANA E TORNEIRA CROMADA LONGA, DE PAREDE, PADRÃO POPULAR - FORNECIMENTO E INSTALAÇÃO. AF_12/2013 | E189: =VLOOKUP(C189,'SINAPI 01-2019'!A:E,3,0) -> UN | F189: ='MEMÓRIA DE CÁLCULO'!K1224 -> 1 | G189: =VLOOKUP(C189,'SINAPI 01-2019'!A:E,4,0) -> 341.18 | H189: =ROUND((G189*$K$12)+G189,2) -> 439.51 | I189: =TRUNC(F189*H189,2) -> 439.51
A190: =B190&C190 -> 13.1588571 | B190: 13.15 | C190: 88571 | D190: =VLOOKUP(C190,'SINAPI 01-2019'!A:E,2,0) -> SABONETEIRA DE SOBREPOR (FIXADA NA PAREDE), TIPO CONCHA, EM ACO INOXIDAVEL - FORNECIMENTO E INSTALACAO | E190: =VLOOKUP(C190,'SINAPI 01-2019'!A:E,3,0) -> UN | F190: ='MEMÓRIA DE CÁLCULO'!K1229 -> 2 | G190: =VLOOKUP(C190,'SINAPI 01-2019'!A:E,4,0) -> 53.35 | H190: =ROUND((G190*$K$12)+G190,2) -> 68.73 | I190: =TRUNC(F190*H190,2) -> 137.46
A191: =B191&C191 -> 13.1695547 | B191: 13.16 | C191: 95547 | D191: =VLOOKUP(C191,'SINAPI 01-2019'!A:E,2,0) -> SABONETEIRA PLASTICA TIPO DISPENSER PARA SABONETE LIQUIDO COM RESERVATORIO 800 A 1500 ML, INCLUSO FIXAÇÃO. AF_10/2016 | E191: =VLOOKUP(C191,'SINAPI 01-2019'!A:E,3,0) -> UN | F191: ='MEMÓRIA DE CÁLCULO'!K1235 -> 8 | G191: =VLOOKUP(C191,'SINAPI 01-2019'!A:E,4,0) -> 46.62 | H191: =ROUND((G191*$K$12)+G191,2) -> 60.06 | I191: =TRUNC(F191*H191,2) -> 480.48
A192: =B192&C192 -> 13.1795544 | B192: 13.17 | C192: 95544 | D192: =VLOOKUP(C192,'SINAPI 01-2019'!A:E,2,0) -> PAPELEIRA DE PAREDE EM METAL CROMADO SEM TAMPA, INCLUSO FIXAÇÃO. AF_10/2016 | E192: =VLOOKUP(C192,'SINAPI 01-2019'!A:E,3,0) -> UN | F192: ='MEMÓRIA DE CÁLCULO'!K1250 -> 8 | G192: =VLOOKUP(C192,'SINAPI 01-2019'!A:E,4,0) -> 37.03 | H192: =ROUND((G192*$K$12)+G192,2) -> 47.7 | I192: =TRUNC(F192*H192,2) -> 381.6
A193: =B193&C193 -> 13.1818.005.0013-A | B193: 13.18 | C193: 18.005.0013-A | D193: =VLOOKUP(C193,'EMOP 01-2019'!A:J,2,0) -> PORTA PAPEL HIGIENICO EM PLASTICO ABS.FORNECIMENTRO E COLOCACAO | E193: =VLOOKUP(C193,'EMOP 01-2019'!A:J,9,0) -> UN | F193: ='MEMÓRIA DE CÁLCULO'!K1265 -> 10 | G193: =VLOOKUP(C193,'EMOP 01-2019'!A:J,10,0) -> 28.38 | H193: =ROUND((G193*$K$12)+G193,2) -> 36.56 | I193: =TRUNC(F193*H193,2) -> 365.6
A194: =B194&C194 -> 13.1974194/1 | B194: 13.19 | C194: 74194/1 | D194: =VLOOKUP(C194,'SINAPI 01-2019'!A:E,2,0) -> ESCADA TIPO MARINHEIRO EM TUBO ACO GALVANIZADO 1 1/2" 5 DEGRAUS | E194: =VLOOKUP(C194,'SINAPI 01-2019'!A:E,3,0) -> M | F194: ='MEMÓRIA DE CÁLCULO'!K1280 -> 3.3 | G194: =VLOOKUP(C194,'SINAPI 01-2019'!A:E,4,0) -> 302 | H194: =ROUND((G194*$L$12)+G194,2) -> 371.52 | I194: =TRUNC(F194*H194,2) -> 1226.01
A195: =B195&C195 -> 13.2018.040.0025-A | B195: 13.20 | C195: 18.040.0025-A | D195: =VLOOKUP(C195,'EMOP 01-2019'!A:J,2,0) -> PLATAFORMA PARA TRANSPORTE VERTICAL,PERCURSO DE 3,17M,CAPACIDADE PARA 230KG,VELOCIDADE DE 6M/MINUTO,COM DUAS PARADAS,GUARDA CORPO LATERAL COM BRACO TIPO BASCULANTE E ACESSO PELO MESMO LADO,COMANDO AUTOMATICO SIMPLES NAS DUAS PARADAS FRANQUEADO,CHAVE NA CABINE,MOTOR ELETRICO DE 2CV A 1720RPM,60HZ,TRIFASICO (220/380V).FORNECIMENTO,MONTAGEM E INSTALACAO | E195: =VLOOKUP(C195,'EMOP 01-2019'!A:J,9,0) -> UN | F195: ='MEMÓRIA DE CÁLCULO'!K1284 -> 2 | G195: =VLOOKUP(C195,'EMOP 01-2019'!A:J,10,0) -> 50155.6 | H195: =ROUND((G195*$K$12)+G195,2) -> 64610.44 | I195: =TRUNC(F195*H195,2) -> 129220.88
A196: =B196&C196 -> 13.2118.030.0001-A | B196: 13.21 | C196: 18.030.0001-A | D196: =VLOOKUP(C196,'EMOP 01-2019'!A:J,2,0) -> CONDICIONADOR DE AR TIPO SPLIT 9000 BTU'S COMPREENDENDO 1 CONDENSADOR E 1 EVAPORADOR(VIDE INSTALACAO,ASSENTAMENTO E INTERLIGACOES FAMILIA 15.005).FORNECIMENTO | E196: =VLOOKUP(C196,'EMOP 01-2019'!A:J,9,0) -> UN | F196: ='MEMÓRIA DE CÁLCULO'!K1289 -> 4 | G196: =VLOOKUP(C196,'EMOP 01-2019'!A:J,10,0) -> 1076.25 | H196: =ROUND((G196*$L$12)+G196,2) -> 1324 | I196: =TRUNC(F196*H196,2) -> 5296
A197: =B197&C197 -> 13.2215.005.0200-A | B197: 13.22 | C197: 15.005.0200-A | D197: =VLOOKUP(C197,'EMOP 01-2019'!A:J,2,0) -> INSTALACAO E ASSENTAMENTO DE AR CONDICIONADO TIPO SPLIT DE 9000 BTU'S,COM 1 CONDENSADOR E 1 EVAPORADOR,(VIDE FORNECIMENTO DO APARELHO NA FAMILIA 18.030)INCLUSIVE ACESSORIOS DE FIXACAO,EXCLUSIVE ALIMENTACAO ELETRICA E INTERLIGACAO AO CONDENSADOR/EVAPORADOR(VIDE ITEM 15.005.0255) | E197: =VLOOKUP(C197,'EMOP 01-2019'!A:J,9,0) -> UN | F197: ='MEMÓRIA DE CÁLCULO'!K1299 -> 4 | G197: =VLOOKUP(C197,'EMOP 01-2019'!A:J,10,0) -> 379.84 | H197: =ROUND((G197*$K$12)+G197,2) -> 489.31 | I197: =TRUNC(F197*H197,2) -> 1957.24
A198: =B198&C198 -> 13.2318.030.0002-A | B198: 13.23 | C198: 18.030.0002-A | D198: =VLOOKUP(C198,'EMOP 01-2019'!A:J,2,0) -> CONDICIONADOR DE AR TIPO SPLIT 12000 BTU'S COMPREENDENDO 1 CONDENSADOR E 1 EVAPORADOR(VIDE INSTALACAO,ASSENTAMENTO E INTERLIGACOES FAMILIA 15.005).FORNECIMENTO | E198: =VLOOKUP(C198,'EMOP 01-2019'!A:J,9,0) -> UN | F198: ='MEMÓRIA DE CÁLCULO'!K1302 -> 2 | G198: =VLOOKUP(C198,'EMOP 01-2019'!A:J,10,0) -> 1181.25 | H198: =ROUND((G198*$L$12)+G198,2) -> 1453.17 | I198: =TRUNC(F198*H198,2) -> 2906.34
A199: =B199&C199 -> 13.2415.005.0201-A | B199: 13.24 | C199: 15.005.0201-A | D199: =VLOOKUP(C199,'EMOP 01-2019'!A:J,2,0) -> INSTALACAO E ASSENTAMENTO DE AR CONDICIONADO TIPO SPLIT DE 12000 BTU'S,COM 1 CONDENSADOR E 1 EVAPORADOR,(VIDE FORNECIMENTO DO APARELHO NA FAMILIA 18.030)INCLUSIVE ACESSORIOS DE FIXACAO,EXCLUSIVE ALIMENTACAO ELETRICA E INTERLIGACAO AO CONDENSADOR/EVAPORADOR (VIDE ITEM 15.005.0255) | E199: =VLOOKUP(C199,'EMOP 01-2019'!A:J,9,0) -> UN | F199: ='MEMÓRIA DE CÁLCULO'!K1308 -> 2 | G199: =VLOOKUP(C199,'EMOP 01-2019'!A:J,10,0) -> 422.77 | H199: =ROUND((G199*$K$12)+G199,2) -> 544.61 | I199: =TRUNC(F199*H199,2) -> 1089.22
A200: =B200&C200 -> 13.2518.030.0009-A | B200: 13.25 | C200: 18.030.0009-A | D200: =VLOOKUP(C200,'EMOP 01-2019'!A:J,2,0) -> CONDICIONADOR DE AR TIPO SPLIT 48000 BTU'S COMPREENDENDO 1 CONDENSADOR E 1 EVAPORADOR(VIDE INSTALACAO,ASSENTAMENTO E INTERLIGACOES FAMILIA 15.005).FORNECIMENTO | E200: =VLOOKUP(C200,'EMOP 01-2019'!A:J,9,0) -> UN | F200: ='MEMÓRIA DE CÁLCULO'!K1311 -> 2 | G200: =VLOOKUP(C200,'EMOP 01-2019'!A:J,10,0) -> 6200 | H200: =ROUND((G200*$L$12)+G200,2) -> 7627.24 | I200: =TRUNC(F200*H200,2) -> 15254.48
A201: =B201&C201 -> 13.2615.005.0208-A | B201: 13.26 | C201: 15.005.0208-A | D201: =VLOOKUP(C201,'EMOP 01-2019'!A:J,2,0) -> INSTALACAO E ASSENTAMENTO DE AR CONDICIONADO TIPO SPLIT DE 48000 BTU'S,COM 1 CONDENSADOR E 1 EVAPORADOR,(VIDE FORNECIMENTO DO APARELHO NA FAMILIA 18.030)INCLUSIVE ACESSORIOS DE FIXACAO,EXCLUSIVE ALIMENTACAO ELETRICA E INTERLIGACAO AO CONDENSADOR/EVAPORADOR (VIDE ITEM 15.005.0255) | E201: =VLOOKUP(C201,'EMOP 01-2019'!A:J,9,0) -> UN | F201: ='MEMÓRIA DE CÁLCULO'!K1316 -> 2 | G201: =VLOOKUP(C201,'EMOP 01-2019'!A:J,10,0) -> 2201.75 | H201: =ROUND((G201*$K$12)+G201,2) -> 2836.29 | I201: =TRUNC(F201*H201,2) -> 5672.58
A202: =B202&C202 -> 13.2718.030.0010-A | B202: 13.27 | C202: 18.030.0010-A | D202: =VLOOKUP(C202,'EMOP 01-2019'!A:J,2,0) -> CONDICIONADOR DE AR TIPO SPLIT 60000 BTU'S COMPREENDENDO 1 CONDENSADOR E 1 EVAPORADOR(VIDE INSTALACAO,ASSENTAMENTO E INTERLIGACOES FAMILIA 15.005).FORNECIMENTO | E202: =VLOOKUP(C202,'EMOP 01-2019'!A:J,9,0) -> UN | F202: ='MEMÓRIA DE CÁLCULO'!K1319 -> 6 | G202: =VLOOKUP(C202,'EMOP 01-2019'!A:J,10,0) -> 6500 | H202: =ROUND((G202*$L$12)+G202,2) -> 7996.3 | I202: =TRUNC(F202*H202,2) -> 47977.8
A203: =B203&C203 -> 13.2815.005.0209-A | B203: 13.28 | C203: 15.005.0209-A | D203: =VLOOKUP(C203,'EMOP 01-2019'!A:J,2,0) -> INSTALACAO E ASSENTAMENTO DE AR CONDICIONADO TIPO SPLIT DE 60000 BTU'S,COM 1 CONDENSADOR E 1 EVAPORADOR,(VIDE FORNECIMENTO DO APARELHO NA FAMILIA 18.030)INCLUSIVE ACESSORIOS DE FIXACAO,EXCLUSIVE ALIMENTACAO ELETRICA E INTERLIGACAO AO CONDENSADOR/EVAPORADOR (VIDE ITEM 15.005.0255) | E203: =VLOOKUP(C203,'EMOP 01-2019'!A:J,9,0) -> UN | F203: ='MEMÓRIA DE CÁLCULO'!K1324 -> 6 | G203: =VLOOKUP(C203,'EMOP 01-2019'!A:J,10,0) -> 2274.63 | H203: =ROUND((G203*$K$12)+G203,2) -> 2930.18 | I203: =TRUNC(F203*H203,2) -> 17581.08
... 10 more rows

Sheet MEMÓRIA DE CÁLCULO
B5: ='ORÇAMENTO ANALÍTICO'!B4 -> SECRETARIA DE OBRAS
B6: ='ORÇAMENTO ANALÍTICO'!B5 -> REFORMA DO TEATRO JOÃO CAETANO
B7: ='ORÇAMENTO ANALÍTICO'!B6 -> Local: Praça Marechal Floriano Peixoto, bairro Centro, Itaboraí, RJ
B9: MEMÓRIA DE CÁLCULO
B10: ITEM | C10: CÓDIGO | D10: DESCRIÇÃO DO SERVIÇO | J10: UNID. | K10: QUANT.
B11: ='ORÇAMENTO ANALÍTICO'!B14 -> 1 | C11: ='ORÇAMENTO ANALÍTICO'!C14:H14 -> SERVIÇOS DE ESCRITÓRIO, LABORATÓRIO E CAMPO
A12: =B12&C12 -> 1.101.050.0546-A | B12: 1.1 | C12: ='ORÇAMENTO ANALÍTICO'!C15 -> 01.050.0546-A | D12: =VLOOKUP(A12,'ORÇAMENTO ANALÍTICO'!A:I,4,0) -> PROJETO EXECUTIVO ESTRUTURAL PARA PREDIOS CULTURAIS ATE 500M2,CONSIDERANDO O PROJETO BASICO EXISTENTE,APRESENTADO EM AUTOCAD NOS PADROES DA CONTRATANTE,CONSTANDO DE PLANTAS DE FORMA,ARMACAO E DETALHES,DE ACORDO COM A ABNT | J12: =VLOOKUP(A12,'ORÇAMENTO ANALÍTICO'!A:I,5,0) -> M2 | K12: =H14 -> 355
D13: Área total de projeção do teatro | H13: Total
D14: 355 | G14: = | H14: =TRUNC(D14,2) -> 355
A16: =B16&C16 -> 1.201.050.0481-A | B16: 1.2 | C16: ='ORÇAMENTO ANALÍTICO'!C16 -> 01.050.0481-A | D16: =VLOOKUP(A16,'ORÇAMENTO ANALÍTICO'!A:I,4,0) -> PROJETO EXECUTIVO DE INSTALACAO HIDRAULICA,CONSIDERANDO O PROJETO BASICO EXISTENTE,PARA PREDIOS CULTURAIS,APRESENTADO EM AUTOCAD,INCLUSIVE AS LEGALIZACOES PERTINENTES | J16: =VLOOKUP(A16,'ORÇAMENTO ANALÍTICO'!A:I,5,0) -> M2 | K16: =H18 -> 355
D17: Área total de projeção do teatro | H17: Total
D18: 355 | G18: = | H18: =TRUNC(D18,2) -> 355
A20: =B20&C20 -> 1.301.050.0518-A | B20: 1.3 | C20: ='ORÇAMENTO ANALÍTICO'!C17 -> 01.050.0518-A | D20: =VLOOKUP(A20,'ORÇAMENTO ANALÍTICO'!A:I,4,0) -> PROJETO EXECUTIVO DE INSTALACAO ELETRICA,CONSIDERANDO O PROJETO BASICO EXISTENTE,PARA PREDIOS CULTURAIS ATE 3000M2,APRESENTADO EM AUTOCAD,INCLUSIVE AS LEGALIZACOES PERTINENTES | J20: =VLOOKUP(A20,'ORÇAMENTO ANALÍTICO'!A:I,5,0) -> M2 | K20: =H22 -> 355
D21: Área total de projeção do teatro | H21: Total
D22: 355 | G22: = | H22: =TRUNC(D22,2) -> 355
A24: =B24&C24 -> 1.401.050.0455-A | B24: 1.4 | C24: ='ORÇAMENTO ANALÍTICO'!C18 -> 01.050.0455-A | D24: =VLOOKUP(A24,'ORÇAMENTO ANALÍTICO'!A:I,4,0) -> PROJETO EXECUTIVO DE INSTALACAO DE ESGOTO SANITARIO E AGUASPLUVIAIS,CONSIDERANDO O PROJETO BASICO EXISTENTE,PARA PREDIOS CULTURAIS,APRESENTADO EM AUTOCAD,INCLUSIVE AS LEGALIZACOES PERTINENTES | J24: =VLOOKUP(A24,'ORÇAMENTO ANALÍTICO'!A:I,5,0) -> M2 | K24: =H26 -> 355
D25: Área total de projeção do teatro | H25: Total
D26: 355 | G26: = | H26: =TRUNC(D26,2) -> 355
A28: =B28&C28 -> 1.501.050.0530-A | B28: 1.5 | C28: ='ORÇAMENTO ANALÍTICO'!C19 -> 01.050.0530-A | D28: =VLOOKUP(A28,'ORÇAMENTO ANALÍTICO'!A:I,4,0) -> PROJETO EXECUTIVO DE SISTEMA DE AR CONDICIONADO E EXAUSTAO MECANICA,CONSIDERANDO O PROJETO BASICO EXISTENTE,EM AUTOCAD,PARA PREDIOS COM AREA ATE 500M2 | J28: =VLOOKUP(A28,'ORÇAMENTO ANALÍTICO'!A:I,5,0) -> M2 | K28: =H30 -> 355
D29: Área total de projeção do teatro | H29: Total
D30: 355 | G30: = | H30: =TRUNC(D30,2) -> 355
B32: ='ORÇAMENTO ANALÍTICO'!B21 -> 2 | C32: ='ORÇAMENTO ANALÍTICO'!C21:H21 -> CANTEIRO DE OBRAS
A33: =B33&C33 -> 2.174209/1 | B33: 2.1 | C33: ='ORÇAMENTO ANALÍTICO'!C22 -> 74209/1 | D33: =VLOOKUP(A33,'ORÇAMENTO ANALÍTICO'!A:I,4,0) -> PLACA DE OBRA EM CHAPA DE ACO GALVANIZADO | J33: =VLOOKUP(A33,'ORÇAMENTO ANALÍTICO'!A:I,5,0) -> M2 | K33: =I35 -> 2.88
C34: Comprimento | E34: Largura | G34: Quantidade | I34: Total
C35: 2.4 | D35: x | E35: 1.2 | F35: x | G35: 1 | H35: = | I35: =TRUNC((C35*E35)*G35,2) -> 2.88
A37: =B37&C37 -> 2.2AD19.05.0450 | B37: 2.2 | C37: ='ORÇAMENTO ANALÍTICO'!C23 -> AD19.05.0450 | D37: =VLOOKUP(A37,'ORÇAMENTO ANALÍTICO'!A:I,4,0) -> Tapume de vedacao ou protecao, executado com telhas trapezoidais de aco galvanizado (esp.: 0,50mm), inclusive duas demaos de pintura esmalte sintetico, na face externa, considerando a utilizacao das telhas 4 vezes e da moldura em perna de 3"x3", duas vezes.(desonerado) | J37: =VLOOKUP(A37,'ORÇAMENTO ANALÍTICO'!A:I,5,0) -> M2 | K37: =H39 -> 116.6
D38: Perimetro | F38: Altura | H38: Total
D39: 53 | E39: x | F39: 2.2 | G39: = | H39: =TRUNC(D39*F39,2) -> 116.6
A41: =B41&C41 -> 2.341598 | B41: 2.3 | C41: ='ORÇAMENTO ANALÍTICO'!C24 -> 41598 | D41: =VLOOKUP(A41,'ORÇAMENTO ANALÍTICO'!A:I,4,0) -> ENTRADA PROVISORIA DE ENERGIA ELETRICA AEREA TRIFASICA 40A EM POSTE MADEIRA | J41: =VLOOKUP(A41,'ORÇAMENTO ANALÍTICO'!A:I,5,0) -> UN | K41: 1
A43: =B43&C43 -> 2.4AD19.20.0100 | B43: 2.4 | C43: ='ORÇAMENTO ANALÍTICO'!C25 -> AD19.20.0100 | D43: =VLOOKUP(A43,'ORÇAMENTO ANALÍTICO'!A:I,4,0) -> Instalacao e ligacao provisoria de obra de agua e esgoto a rede publica.(desonerado) | J43: =VLOOKUP(A43,'ORÇAMENTO ANALÍTICO'!A:I,5,0) -> UN | K43: 1
A45: =B45&C45 -> 2.510775 | B45: 2.5 | C45: ='ORÇAMENTO ANALÍTICO'!C26 -> 10775 | D45: =VLOOKUP(A45,'ORÇAMENTO ANALÍTICO'!A:I,4,0) -> LOCACAO DE CONTAINER 2,30 X 6,00 M, ALT. 2,50 M, COM 1 SANITARIO, PARA ESCRITORIO, COMPLETO, SEM DIVISORIAS INTERNAS | J45: =VLOOKUP(A45,'ORÇAMENTO ANALÍTICO'!A:I,5,0) -> MES | K45: =H47 -> 6
D46: Quantidade | F46: Mês | H46: Total
D47: 1 | E47: x | F47: 6 | G47: = | H47: =TRUNC(D47*F47,2) -> 6
A49: =B49&C49 -> 2.610778 | B49: 2.6 | C49: ='ORÇAMENTO ANALÍTICO'!C27 -> 10778 | D49: =VLOOKUP(A49,'ORÇAMENTO ANALÍTICO'!A:I,4,0) -> LOCACAO DE CONTAINER 2,30 X 6,00 M, ALT. 2,50 M, PARA SANITARIO, COM 4 BACIAS, 8 CHUVEIROS,1 LAVATORIO E 1 MICTORIO | J49: =VLOOKUP(A49,'ORÇAMENTO ANALÍTICO'!A:I,5,0) -> MES | K49: =H51 -> 6
D50: Quantidade | F50: Mês | H50: Total
D51: 1 | E51: x | F51: 6 | G51: = | H51: =TRUNC(D51*F51,2) -> 6
A53: =B53&C53 -> 2.704.013.0015-A | B53: 2.7 | C53: ='ORÇAMENTO ANALÍTICO'!C28 -> 04.013.0015-A | D53: =VLOOKUP(A53,'ORÇAMENTO ANALÍTICO'!A:I,4,0) -> CARGA E DESCARGA DE CONTAINER,SEGUNDO DESCRICAO DA FAMILIA 02.006 | J53: =VLOOKUP(A53,'ORÇAMENTO ANALÍTICO'!A:I,5,0) -> UN | K53: =D47+D51 -> 2
A55: =B55&C55 -> 2.804.005.0300-A | B55: 2.8 | C55: ='ORÇAMENTO ANALÍTICO'!C29 -> 04.005.0300-A | D55: =VLOOKUP(A55,'ORÇAMENTO ANALÍTICO'!A:I,4,0) -> TRANSPORTE DE CONTAINER,SEGUNDO DESCRICAO DA FAMILIA 02.006,EXCLUSIVE CARGA E DESCARGA(VIDE ITEM 04.013.0015) | J55: =VLOOKUP(A55,'ORÇAMENTO ANALÍTICO'!A:I,5,0) -> UNXKM | K55: =H57 -> 40
D56: Quantidade | F56: Distância | H56: Total
D57: 2 | E57: x | F57: 20 | G57: = | H57: =TRUNC(D57*F57,2) -> 40
B59: ='ORÇAMENTO ANALÍTICO'!B31 -> 3 | C59: ='ORÇAMENTO ANALÍTICO'!C31:H31 -> MOVIMENTO DE TERRA
A60: =B60&C60 -> 3.190084 | B60: 3.1 | C60: ='ORÇAMENTO ANALÍTICO'!C32 ->  | D60: =VLOOKUP(A60,'ORÇAMENTO ANALÍTICO'!A:I,4,0) -> ESCAVAÇÃO MECANIZADA DE VALA COM PROF. MAIOR QUE 1,5 M ATÉ 3,0 M (MÉDIA ENTRE MONTANTE E JUSANTE/UMA COMPOSIÇÃO POR TRECHO), COM ESCAVADEIRA HIDRÁULICA (0,8 M3/111 HP), LARGURA ATÉ 1,5 M, EM SOLO DE 1A CATEGORIA, EM LOCAIS COM ALTO NÍVEL DE INTERFERÊNCIA. AF_01/2015 | J60: =VLOOKUP(A60,'ORÇAMENTO ANALÍTICO'!A:I,5,0) -> M3 | K60: =SUM(I62:I63) -> 23.94
C61: Local | D61: Área | F61: Altura | G61: Quantidade | I61: Total
C62: Fossa (Ø 2,00) + 1m afastamento | D62: =(3*3*3.14)/4 -> 7.065 | E62: x | F62: 2 | G62: 1 | H62: = | I62: =TRUNC(D62*F62*G62,2) -> 14.13
C63: Filtro (Ø 1,50) + 1m afastamento | D63: =(2.5*2.5*3.14)/4 -> 4.90625 | E63: x | F63: 2 | G63: 1 | H63: = | I63: =TRUNC(D63*F63*G63,2) -> 9.81
A65: =B65&C65 -> 3.293358 | B65: 3.2 | C65: ='ORÇAMENTO ANALÍTICO'!C33 ->  | D65: =VLOOKUP(A65,'ORÇAMENTO ANALÍTICO'!A:I,4,0) -> ESCAVAÇÃO MANUAL DE VALA COM PROFUNDIDADE MENOR OU IGUAL A 1,30 M. AF_03/2016 | J65: =VLOOKUP(A65,'ORÇAMENTO ANALÍTICO'!A:I,5,0) -> M3 | K65: =SUM(I67:I71) -> 31.39
C66: Local | D66: Área | F66: Altura | G66: Quantidade | I66: Total
C67: Caixa de Inspeção (Ø 0,60) + 0,5 de afastamento | D67: =(1.1*1.1*3.14)/4 -> 0.94985 | E67: x | F67: 1 | G67: 3 | H67: = | I67: =TRUNC(D67*F67*G67,2) -> 2.84
C68: Caixa de Gordura (Ø 0,40) + 0,50 de afastamento | D68: =(0.9*0.9*3.14)/4 -> 0.63585 | F68: 1 | G68: 1 | H68: = | I68: =TRUNC(D68*F68*G68,2) -> 0.63
C69: Caixa de Passagem (0,30 x 0,30) + 0,3 de afastamento | D69: =0.6*0.6 -> 0.36 | F69: 1 | G69: 2 | H69: = | I69: =TRUNC(D69*F69*G69,2) -> 0.72
C70: Local | D70: Comprimento | E70: Largura | F70: Altura | G70: Quantidade | I70: Total
C71: Tubo de Esgoto | D71: 108.8 | E71: 0.5 | F71: 0.5 | G71: 1 | H71: = | I71: =TRUNC((D71*E71*F71*G71),2) -> 27.2
A73: =B73&C73 -> 3.393382 | B73: 3.3 | C73: ='ORÇAMENTO ANALÍTICO'!C34 ->  | D73: =VLOOKUP(A73,'ORÇAMENTO ANALÍTICO'!A:I,4,0) -> REATERRO MANUAL DE VALAS COM COMPACTAÇÃO MECANIZADA. AF_04/2016 | J73: =VLOOKUP(A73,'ORÇAMENTO ANALÍTICO'!A:I,5,0) -> M3 | K73: =SUM(I75:I80) -> 43.52
D74: Local | E74: Volume escavado | G74: Volume real | I74: Total
D75: Fossa (Ø 2,00) | E75: =I62 -> 14.13 | F75: - | G75: =(3.14*2*2/4)*F62*G62 -> 6.28 | H75: = | I75: =TRUNC(E75-G75,2) -> 7.85
D76: Filtro (Ø 1,50) | E76: =I63 -> 9.81 | F76: - | G76: =(3.14*1.5*1.5/4)*F63*G63 -> 3.5325 | H76: = | I76: =TRUNC(E76-G76,2) -> 6.27
D77: Caixa de Inspeção (Ø 0,60) | E77: =I67 -> 2.84 | F77: - | G77: =(3.14*0.6*0.6/4)*F67*G67 -> 0.8478 | H77: = | I77: =TRUNC(E77-G77,2) -> 1.99
D78: Caixa de Gordura (Ø 0,40) | E78: =I68 -> 0.63 | F78: - | G78: =(3.14*0.4*0.4/4)*F68*G68 -> 0.1256 | H78: = | I78: =TRUNC(E78-G78,2) -> 0.5
D79: Caixa de Passagem (0,30 x 0,30) | E79: =I69 -> 0.72 | F79: - | G79: =(3.14*0.3*0.3/4)*F69*G69 -> 0.1413 | H79: = | I79: =TRUNC(E79-G79,2) -> 0.57
D80: =C71 -> Tubo de Esgoto | E80: =I71 -> 27.2 | F80: - | G80: =(3.14*0.1*0.1/4)*D71 -> 0.85408 | H80: = | I80: =TRUNC(E80-G80,2) -> 26.34
A82: =B82&C82 -> 3.403.009.0015-A | B82: 3.4 | C82: ='ORÇAMENTO ANALÍTICO'!C35 -> 03.009.0015-A | D82: =VLOOKUP(A82,'ORÇAMENTO ANALÍTICO'!A:I,4,0) -> ATERRO COM MATERIAL DE 1ª CATEGORIA,COMPACTADO MANUALMENTE EM CAMADAS DE 20CM DE MATERIAL APILOADO,PROVENIENTE DE JAZIDA DISTANTE ATE 10KM,INCLUSIVE ESCAVACAO,CARGA,TRANSPORTE EM CAMINHAO BASCULANTE,DESCARGA,ESPALHAMENTO E IRRIGACAO MANUAIS | J82: =VLOOKUP(A82,'ORÇAMENTO ANALÍTICO'!A:I,5,0) -> M3 | K82: =SUM(J85:J86,J89:J96) -> 59.5
B83: Subsolo
D84: Local | E84: Comprimento | F84: Altura | G84: Largura | H84: Quantidade | J84: Total
D85: Rampa PATAMAR | E85: 1.2 | F85: 0.25 | G85: 1.75 | H85: 1 | I85: = | J85: =TRUNC(E85*F85*G85*H85,2) -> 0.52
B86: Valor total dividido por 2 | D86: Rampa | E86: 2.05 | F86: 0.25 | G86: 1.75 | H86: 1 | I86: = | J86: =TRUNC(E86*F86*G86*H86,2)/2 -> 0.445
B87: Térreo
D88: Local | E88: Comprimento | F88: Altura | G88: Largura | H88: Quantidade | J88: Total
B89: Valor total dividido por 2 | D89: Rampas nas laterais da pláteia | E89: 9 | F89: 1.13 | G89: 1.2 | H89: 2 | I89: = | J89: =TRUNC(E89*F89*G89*H89,2)/2 -> 12.2
D90: Escalonamento do piso da pláteia | E90: 7.99 | F90: 0.2 | G90: 9.92 | H90: 1 | I90: = | J90: =TRUNC(E90*F90*G90*H90,2) -> 15.85
B91: Valor total dividido por 2 | D91: Rampa na lateral do teatro (1) | E91: 12.2 | F91: 1.1 | G91: 1.9 | H91: 1 | I91: = | J91: =TRUNC(E91*F91*G91*H91,2)/2 -> 12.745
D92: Rampa na lateral do teatro (2) | E92: 5.35 | F92: 1 | G92: 1.9 | H92: 1 | I92: = | J92: =TRUNC(E92*F92*G92*H92,2) -> 10.16
D93: Rampa na lateral do teatro (3) | E93: 2.05 | F93: 1 | G93: 1.9 | H93: 1 | I93: = | J93: =TRUNC(E93*F93*G93*H93,2) -> 3.89
B94: Valor total dividido por 2 | D94: Escada na lateral do teatro (4) | E94: 2.35 | F94: 1 | G94: 1.9 | H94: 1 | I94: = | J94: =TRUNC(E94*F94*G94*H94,2)/2 -> 2.23
B95: Valor total dividido por 2 | D95: Rampa na frente do teatro | E95: 4.8 | F95: 0.25 | G95: 1.5 | H95: 1 | I95: = | J95: =TRUNC(E95*F95*G95*H95,2)/2 -> 0.9
D96: Patamar na frente do teatro | E96: 1.5 | F96: 0.25 | G96: 1.5 | H96: 1 | I96: = | J96: =TRUNC(E96*F96*G96*H96,2) -> 0.56
B100: ='ORÇAMENTO ANALÍTICO'!B37 -> 4 | C100: ='ORÇAMENTO ANALÍTICO'!C37:H37 -> TRANSPORTES
A101: =B101&C101 -> 4.105.001.0171-A | B101: 4.1 | C101: ='ORÇAMENTO ANALÍTICO'!C38 -> 05.001.0171-A | D101: =VLOOKUP(A101,'ORÇAMENTO ANALÍTICO'!A:I,4,0) -> TRANSPORTE HORIZONTAL DE MATERIAL DE 1ªCATEGORIA OU ENTULHO,EM CARRINHOS,A 20,00M DE DISTANCIA,INCLUSIVE CARGA A PA | J101: =VLOOKUP(A101,'ORÇAMENTO ANALÍTICO'!A:I,5,0) -> M3 | K101: =SUM(G103:G110) -> 71.26
D102: Local | E102: Volume | G102: Total
D103: =D75 -> Fossa (Ø 2,00) | E103: =G75 -> 6.28 | F103: = | G103: =TRUNC(E103,2) -> 6.28
D104: =D76 -> Filtro (Ø 1,50) | E104: =G76 -> 3.5325 | F104: = | G104: =TRUNC(E104,2) -> 3.53
D105: =D77 -> Caixa de Inspeção (Ø 0,60) | E105: =G77 -> 0.8478 | F105: = | G105: =TRUNC(E105,2) -> 0.84
D106: =D78 -> Caixa de Gordura (Ø 0,40) | E106: =G78 -> 0.1256 | F106: = | G106: =TRUNC(E106,2) -> 0.12
D107: =D79 -> Caixa de Passagem (0,30 x 0,30) | E107: =G79 -> 0.1413 | F107: = | G107: =TRUNC(E107,2) -> 0.14
D108: =D80 -> Tubo de Esgoto | E108: =G80 -> 0.85408 | F108: = | G108: =TRUNC(E108,2) -> 0.85
D109: Idem ao item 3.4 | E109: =K82 -> 59.5 | F109: = | G109: =TRUNC(E109,2) -> 59.5
A112: =B112&C112 -> 4.272898 | B112: 4.2 | C112: ='ORÇAMENTO ANALÍTICO'!C39 ->  | D112: =VLOOKUP(A112,'ORÇAMENTO ANALÍTICO'!A:I,4,0) -> CARGA E DESCARGA MECANIZADAS DE ENTULHO EM CAMINHAO BASCULANTE 6 M3 | J112: =VLOOKUP(A112,'ORÇAMENTO ANALÍTICO'!A:I,5,0) -> M3 | K112: =SUM(G114:G122) -> 28.29
D113: Local | E113: Volume | G113: Total
D114: =D103 -> Fossa (Ø 2,00) | E114: =E103 -> 6.28 | F114: = | G114: =TRUNC(E114,2) -> 6.28
D115: =D104 -> Filtro (Ø 1,50) | E115: =E104 -> 3.5325 | F115: = | G115: =TRUNC(E115,2) -> 3.53
D116: =D105 -> Caixa de Inspeção (Ø 0,60) | E116: =E105 -> 0.8478 | F116: = | G116: =TRUNC(E116,2) -> 0.84
D117: =D106 -> Caixa de Gordura (Ø 0,40) | E117: =E106 -> 0.1256 | F117: = | G117: =TRUNC(E117,2) -> 0.12
D118: =D107 -> Caixa de Passagem (0,30 x 0,30) | E118: =E107 -> 0.1413 | F118: = | G118: =TRUNC(E118,2) -> 0.14
D119: =D108 -> Tubo de Esgoto | E119: =E108 -> 0.85408 | F119: = | G119: =TRUNC(E119,2) -> 0.85
D120: =D110 -> 0 | E120: =E110 -> 0 | F120: = | G120: =TRUNC(E120,2) -> 0
D121: Idem ao item 5.2 | E121: =K157 -> 7.27 | F121: = | G121: =TRUNC(E121,2) -> 7.27
D122: Idem ao item 5.3 (espessura 10 cm) | E122: =K167*0.1 -> 9.26 | F122: = | G122: =TRUNC(E122,2) -> 9.26
A124: =B124&C124 -> 4.372884 | B124: 4.3 | C124: ='ORÇAMENTO ANALÍTICO'!C40 -> 72884 | D124: =VLOOKUP(A124,'ORÇAMENTO ANALÍTICO'!A:I,4,0) -> TRANSPORTE COMERCIAL COM CAMINHAO CARROCERIA 9 T, RODOVIA PAVIMENTADA | J124: =VLOOKUP(A124,'ORÇAMENTO ANALÍTICO'!A:I,5,0) -> M3XKM | K124: =SUM(I126:I134) -> 566.21
D125: Local | E125: Volume | G125: Distância | I125: Total
D126: =D114 -> Fossa (Ø 2,00) | E126: =E114 -> 6.28 | F126: x | G126: 20 | H126: = | I126: =TRUNC(E126*G126,2) -> 125.6
D127: =D115 -> Filtro (Ø 1,50) | E127: =E115 -> 3.5325 | F127: x | G127: 20 | H127: = | I127: =TRUNC(E127*G127,2) -> 70.65
D128: =D116 -> Caixa de Inspeção (Ø 0,60) | E128: =E116 -> 0.8478 | F128: x | G128: 20 | H128: = | I128: =TRUNC(E128*G128,2) -> 16.95
D129: =D117 -> Caixa de Gordura (Ø 0,40) | E129: =E117 -> 0.1256 | F129: x | G129: 20 | H129: = | I129: =TRUNC(E129*G129,2) -> 2.51
D130: =D118 -> Caixa de Passagem (0,30 x 0,30) | E130: =E118 -> 0.1413 | F130: x | G130: 20 | H130: = | I130: =TRUNC(E130*G130,2) -> 2.82
D131: =D119 -> Tubo de Esgoto | E131: =E119 -> 0.85408 | F131: x | G131: 20 | H131: = | I131: =TRUNC(E131*G131,2) -> 17.08
D132: =D120 -> 0 | E132: =E120 -> 0 | F132: x | G132: 20 | H132: = | I132: =TRUNC(E132*G132,2) -> 0
D133: =D121 -> Idem ao item 5.2 | E133: =E121 -> 7.27 | F133: x | G133: 20 | H133: = | I133: =TRUNC(E133*G133,2) -> 145.4
D134: =D122 -> Idem ao item 5.3 (espessura 10 cm) | E134: =E122 -> 9.26 | F134: x | G134: 20 | H134: = | I134: =TRUNC(E134*G134,2) -> 185.2
B136: ='ORÇAMENTO ANALÍTICO'!B42 -> 5 | C136: ='ORÇAMENTO ANALÍTICO'!C42:H42 -> SERVIÇOS COMPLEMENTARES
A137: =B137&C137 -> 5.197622 | B137: 5.1 | C137: ='ORÇAMENTO ANALÍTICO'!C43 -> 97622 | D137: =VLOOKUP(A137,'ORÇAMENTO ANALÍTICO'!A:I,4,0) -> DEMOLIÇÃO DE ALVENARIA DE BLOCO FURADO, DE FORMA MANUAL, SEM REAPROVEITAMENTO. AF_12/2017 | J137: =VLOOKUP(A137,'ORÇAMENTO ANALÍTICO'!A:I,5,0) -> M3 | K137: =SUM(I140:I155) -> 33.6
B138: Subsolo
C139: Local | D139: Extensão | E139: Altura | F139: Desconto | G139: Espessura | I139: Total
C140: Prisma | D140: 4.35 | E140: 2.8 | F140: =(1.9*1.2)+(0.6*0.8) -> 2.76 | G140: 0.15 | H140: = | I140: =TRUNC(((D140*E140)-F140)*G140,2) -> 1.41
C141: Deposito | D141: 0.8 | E141: 2.1 | F141: 0 | G141: 0.15 | H141: = | I141: =TRUNC(((D141*E141)-F141)*G141,2) -> 0.25
B142: Térreo
C143: Coxia | D143: 1 | E143: 4.75 | F143: 0 | G143: 0.15 | H143: = | I143: =TRUNC(((D143*E143)-F143)*G143,2) -> 0.71
C144: Acesso foyer/pláteia | D144: =1+1 -> 2 | E144: 2.5 | F144: 0 | G144: 0.15 | H144: = | I144: =TRUNC(((D144*E144)-F144)*G144,2) -> 0.75
C145: WC Fem. | D145: 6.42 | E145: 3.35 | F145: =(0.7*2.1)*2 -> 2.94 | G145: 0.15 | H145: = | I145: =TRUNC(((D145*E145)-F145)*G145,2) -> 2.78
C146: WC Masc. | D146: 2.86 | E146: 3.35 | F146: 0 | G146: 0.15 | H146: = | I146: =TRUNC(((D146*E146)-F146)*G146,2) -> 1.43
C147: Cafeteria | D147: =8.95+1.7 -> 10.65 | E147: 3.35 | F147: =(0.7*2.1)+(0.8*2.1) -> 3.15 | G147: 0.15 | H147: = | I147: =TRUNC(((D147*E147)-F147)*G147,2) -> 4.87
B148: 1º Pavimento
C149: Mezanino | D149: =12.34+(2*3) -> 18.34 | E149: 3.6 | F149: =(3.2*1.2)*3 -> 11.52 | G149: 0.15 | H149: = | I149: =TRUNC(((D149*E149)-F149)*G149,2) -> 8.17
C150: Sala de apoio | D150: =0.7+0.6 -> 1.3 | E150: 3.3 | F150: 0 | G150: 0.15 | H150: = | I150: =TRUNC(((D150*E150)-F150)*G150,2) -> 0.64
C151: Sala projeção | D151: 2.6 | E151: 3.3 | F151: 0 | G151: 0.15 | H151: = | I151: =TRUNC(((D151*E151)-F151)*G151,2) -> 1.28
C152: Circulação | D152: =0.8+0.7 -> 1.5 | E152: 2.1 | F152: 0 | G152: 0.15 | H152: = | I152: =TRUNC(((D152*E152)-F152)*G152,2) -> 0.47
C153: Circulação | D153: =2.9+3.2+1.18+3+3+2.35+2.35 -> 17.98 | E153: 3.3 | F153: =(0.7*2.1)*2+(0.6*2.1) -> 4.2 | G153: 0.15 | H153: = | I153: =TRUNC(((D153*E153)-F153)*G153,2) -> 8.27
C154: Administração | D154: 1.2 | E154: 3.3 | F154: 0 | G154: 0.15 | H154: = | I154: =TRUNC(((D154*E154)-F154)*G154,2) -> 0.59
C155: Plataforma elevatória (Subsolo) | D155: 1.8 | E155: 5.5 | F155: 0 | G155: 0.2 | H155: = | I155: =TRUNC(((D155*E155)-F155)*G155,2) -> 1.98
A157: =B157&C157 -> 5.105.001.0002-B | B157: 5.1 | C157: ='ORÇAMENTO ANALÍTICO'!C44 -> 05.001.0002-B | D157: =VLOOKUP(A157,'ORÇAMENTO ANALÍTICO'!A:I,4,0) -> DEMOLICAO MANUAL DE CONCRETO ARMADO COMPREENDENDO PILARES,VIGAS E LAJES,EM ESTRUTURA APRESENTANDO POSICAO ESPECIAL,INCLUSIVE EMPILHAMENTO LATERAL DENTRO DO CANTEIRO DE SERVICO | J157: =VLOOKUP(A157,'ORÇAMENTO ANALÍTICO'!A:I,5,0) -> M3 | K157: =SUM(H160:H165) -> 7.27
B158: Térreo
D159: Local | E159: Área | F159: Largura | H159: Total
D160: Rampa de acesso lateral | E160: =4.35/2 -> 2.175 | F160: 1.6 | G160: = | H160: =TRUNC(E160*F160,2) -> 3.48
D161: Escada do foyer | E161: 0.5 | F161: 2 | G161: = | H161: =TRUNC(E161*F161,2) -> 1
D162: Escada do foyer | E162: 0.5 | F162: 1.2 | G162: = | H162: =TRUNC(E162*F162,2) -> 0.6
D163: Escada do foyer | E163: 0.5 | F163: 1.2 | G163: = | H163: =TRUNC(E163*F163,2) -> 0.6
D164: Local | E164: Área | F164: Altura | H164: Total
D165: Laje do PNE/cafeteria | E165: 10.65 | F165: 0.15 | G165: = | H165: =TRUNC(E165*F165,2) -> 1.59
A167: =B167&C167 -> 5.205.001.0018-A | B167: 5.2 | C167: ='ORÇAMENTO ANALÍTICO'!C45 -> 05.001.0018-A | D167: =VLOOKUP(A167,'ORÇAMENTO ANALÍTICO'!A:I,4,0) -> DEMOLICAO MANUAL DE PISO CIMENTADO E DA RESPECTIVA BASE DE CONCRETO,OU PASSEIO DE CONCRETO,INCLUSIVE EMPILHAMENTO LATERAL DENTRO DO CANTEIRO DE SERVICO | J167: =VLOOKUP(A167,'ORÇAMENTO ANALÍTICO'!A:I,5,0) -> M2 | K167: =SUM(H169:H172) -> 92.6
D168: Local | E168: Área | H168: Total
D169: Passeio em torno do teatro | E169: 86 | G169: = | H169: =TRUNC(E169,2) -> 86
D170: Local | E170: Comprimento | F170: Largura | H170: Total
D171: Plataforma elevatória (Subsolo) | E171: 2 | F171: 1.8 | G171: = | H171: =TRUNC(E171*F171,2) -> 3.6
D172: Plataforma elevatória (Foyer) | E172: 2 | F172: 1.5 | G172: = | H172: =TRUNC(E172*F172,2) -> 3
A174: =B174&C174 -> 5.305.001.0134-A | B174: 5.3 | C174: ='ORÇAMENTO ANALÍTICO'!C46 -> 05.001.0134-A | D174: =VLOOKUP(A174,'ORÇAMENTO ANALÍTICO'!A:I,4,0) -> ARRANCAMENTO DE PORTAS,JANELAS E CAIXILHOS DE AR CONDICIONADO OU OUTROS | J174: =VLOOKUP(A174,'ORÇAMENTO ANALÍTICO'!A:I,5,0) -> UN | K174: =SUM(H177:H185) -> 14
B175: Subsolo
D176: Local | F176: Quantidade | H176: Total
D177: WC | F177: 1 | G177: = | H177: =TRUNC(F177,2) -> 1
D178: Prisma | F178: 2 | G178: = | H178: =TRUNC(F178,2) -> 2
D179: Hall | F179: 1 | G179: = | H179: =TRUNC(F179,2) -> 1
B180: Térreo
D181: Local | F181: Quantidade | H181: Total
D182: Foyer | F182: 5 | G182: = | H182: =TRUNC(F182,2) -> 5
B183: 1º Pavimento
D184: Local | F184: Quantidade | H184: Total
D185: Sacada | F185: 5 | G185: = | H185: =TRUNC(F185,2) -> 5
A187: =B187&C187 -> 5.405.001.0147-A | B187: 5.4 | C187: ='ORÇAMENTO ANALÍTICO'!C47 -> 05.001.0147-A | D187: =VLOOKUP(A187,'ORÇAMENTO ANALÍTICO'!A:I,4,0) -> ARRANCAMENTO DE GRADES,GRADIS,ALAMBRADOS,CERCAS E PORTOES | J187: =VLOOKUP(A187,'ORÇAMENTO ANALÍTICO'!A:I,5,0) -> M2 | K187: =SUM(H189:H191) -> 28.2
D188: Local | E188: Comprimento | F188: Altura | H188: Total
D189: Guarda corpo escada do Foyer | E189: =2+2.5+2.5 -> 7 | F189: 1 | G189: = | H189: =TRUNC(E189*F189,2) -> 7
D190: Guarda corpo sacada | E190: 10.2 | F190: 1 | G190: = | H190: =TRUNC(E190*F190,2) -> 10.2
D191: Guarda corpo rampa de acesso lateral | E191: 11 | F191: 1 | G191: = | H191: =TRUNC(E191*F191,2) -> 11
A193: =B193&C193 -> 5.505.001.0050-A | B193: 5.5 | C193: ='ORÇAMENTO ANALÍTICO'!C48 -> 05.001.0050-A | D193: =VLOOKUP(A193,'ORÇAMENTO ANALÍTICO'!A:I,4,0) -> REMOCAO DE COBERTURA EM TELHAS COLONIAIS,INCLUSIVE MADEIRAMENTO,MEDIDO O CONJUNTO PELA AREA REAL DE COBERTURA | J193: =VLOOKUP(A193,'ORÇAMENTO ANALÍTICO'!A:I,5,0) -> M2 | K193: =H195 -> 122.77
C194: Local | D194: Comprimento | E194: Largura | F194: Reaproveitamento (50%) | H194: Total
C195: Telhado | D195: 27.38 | E195: 12 | F195: 0.37369 | G195: = | H195: =TRUNC(D195*E195*F195,2) -> 122.77 | M195: =205.12+164.28 -> 369.4
A197: =B197&C197 -> 5.605.005.0005-B | B197: 5.6 | C197: ='ORÇAMENTO ANALÍTICO'!C49 -> 05.005.0005-B | D197: =VLOOKUP(A197,'ORÇAMENTO ANALÍTICO'!A:I,4,0) -> ANDAIME DE TABUADO SOBRE CAVALETES,INCLUSIVE ESTES,EM MADEIRA DE 1ª,COM APROVEITAMENTO DA MADEIRA 20 VEZES,INCLUSIVE MOVIMENTACAO | J197: =VLOOKUP(A197,'ORÇAMENTO ANALÍTICO'!A:I,5,0) -> M2 | K197: =SUM(H200:H227) -> 127.96
B198: Subsolo
C199: Local | D199: Área | H199: Total
C200: Deposito | D200: 6.18 | G200: = | H200: =D200 -> 6.18
C201: Camarim reversivel | D201: 3.09 | G201: = | H201: =D201 -> 3.09
C202: Camarim 1 | D202: 3.6 | G202: = | H202: =D202 -> 3.6
C203: Banheiro PNE | D203: 1.45 | G203: = | H203: =D203 -> 1.45
C204: Hall | D204: 20.99 | G204: = | H204: =D204 -> 20.99
C205: Camarim 2 | D205: 4.55 | G205: = | H205: =D205 -> 4.55
C206: Banheiro | D206: 0.57 | G206: = | H206: =D206 -> 0.57
C207: Copa | D207: 0.03 | G207: = | H207: =D207 -> 0.03
B208: Térreo
C209: WC Fem. | D209: 2.46 | G209: = | H209: =D209 -> 2.46
C210: WC Masc. | D210: 2.98 | G210: = | H210: =D210 -> 2.98
C211: Banh. PNE | D211: 1.3 | G211: = | H211: =D211 -> 1.3
C212: Bomboneire | D212: 0.25 | G212: = | H212: =D212 -> 0.25
C213: Circulação | D213: 0.45 | G213: = | H213: =D213 -> 0.45
C214: Foyer | D214: 29.37 | G214: = | H214: =D214 -> 29.37
B215: 1º Pavimento
C216: Mezanino | D216: 27.61 | G216: = | H216: =D216 -> 27.61
C217: Sala de apoio | D217: 1.16 | G217: = | H217: =D217 -> 1.16
C218: Sala projeção | D218: 1.7 | G218: = | H218: =D218 -> 1.7
C219: WC | D219: 0.23 | G219: = | H219: =D219 -> 0.23
C220: WC PNE | D220: 0.39 | G220: = | H220: =D220 -> 0.39
C221: Circulação | D221: 5.56 | G221: = | H221: =D221 -> 5.56
C222: Circulação em frente a ADM | D222: 1.06
C223: ADM | D223: 0.68 | G223: = | H223: =D223 -> 0.68
C224: Varanda | D224: 1.6 | G224: = | H224: =D224 -> 1.6
C225: Varanda | D225: 1.6 | G225: = | H225: =D225 -> 1.6
C226: Sacada | D226: 3.87 | G226: = | H226: =D226 -> 3.87
C227: Escada | D227: 6.29 | G227: = | H227: =D227 -> 6.29
B229: Obs: Foram consideradas as áreas dos ambientes internos, com desconto de 0,50 m para cada lado. Em ambientes de circulação, foi descontado apenas 0,50 m na menor dimensão e 1,0 m na maior dimensão, segundo critério EMOP.
A231: =B231&C231 -> 5.705.006.0001-B | B231: 5.7 | C231: ='ORÇAMENTO ANALÍTICO'!C50 -> 05.006.0001-B | D231: =VLOOKUP(A231,'ORÇAMENTO ANALÍTICO'!A:I,4,0) -> ALUGUEL DE ANDAIME COM ELEMENTOS TUBULARES(FACHADEIRO)SOBRESAPATAS FIXAS,CONSIDERANDO-SE A AREA DA PROJECAO VERTICAL DO ANDAIME E PAGO PELO TEMPO NECESSARIO A SUA UTILIZACAO,EXCLUSIVE TRANSPORTE DOS ELEMENTOS DO ANDAIME ATE A OBRA,PLATAFORMA OU PASSARELA DE PINHO,MONTAGEM E DESMONTAGEM DOS ANDAIMES | J231: =VLOOKUP(A231,'ORÇAMENTO ANALÍTICO'!A:I,5,0) -> M2XMES | K231: =H239 -> 1987.2
C232: Local | D232: Extensão | E232: Altura | F232: Desconto | H232: Total
C233: Fachada Frontal | D233: 12.8 | E233: =9.6-1.8 -> 7.8 | F233: =((1.2*0.7)*3)+((1.6*2.5)*2) -> 10.52 | G233: =
C234: Fachada Lateral | D234: 27.6 | E234: =10.5-1.8 -> 8.7 | F234: =(1.5*0.7)*3 -> 3.15 | G234: =
C235: Fachada Lateral | D235: 27.6 | E235: =10.5-1.5 -> 9 | F235: 0 | G235: = | H235: =TRUNC((D235*E235)-F235,2) -> 248.4
C236: Fachada fundos | D236: 12.8 | E236: =12.5-1.8 -> 10.7 | F236: 0 | G236: =
... 988 more rows

Sheet QCI
J2: QCI - Quadro de Composição do Investimento - OBRA DE REFORMA
G4: Proponente/Tomador | N4: Município/UF | T4: Empreendimento ( nome/apelido) | Y4: Aprovação (data)
A5: 1006253-79/2013 | G5: PREFEITURA MUNICIPAL DE ITABORAÍ | N5: ITABORAÍ / RJ | T5: REFORMA DO TEATRO JOÃO CAETANO
A7: Operação | N7: Programa/Modalidade/Ação
C8: Financiamento | I8: X | J8: Repassse | N8: MINISTÉRIO DA CULTURA
L10: Ocultar | M10: OCULTAR
L11: Limite
A12: Discriminação | N12: =IF(B8<>0,"Financiamento","Repasse") -> 0 | R12: Contrapartida | X12: Total | Y12: Execução | Z12: Contrapartida
A13: Item | B13: Descição | K13: Quant./unid | L13: Superior | M13: Inferior | N13: R$ | O13: VERIFIC USO REP | P13: SOMENTE CP | Q13: % | R13: Próprios (R$) | S13: CONTA PREENCH | T13: (%) | U13: CP Adicional (R$) | V13: (%) | W13: Total % | X13: R$ | Y13: EF ou AD | Z13: OS ou FIN
A14: 1 | B14: ='ORÇAMENTO SINTÉTICO'!B15:D15 -> 0 | N14: 25506.09 | Q14: =N14/X14 -> 0.8394455058 | R14: =X14-N14 -> 4878.36 | T14: =R14/X14 -> 0.1605544942 | W14: =Q14+T14 -> 1 | X14: ='ORÇAMENTO SINTÉTICO'!E15 -> 30384.45
A15: 2 | B15: ='ORÇAMENTO SINTÉTICO'!B16:D16 -> 0 | N15: 10139.48 | Q15: =N15/X15 -> 0.8394450106 | R15: =X15-N15 -> 1939.31 | T15: =R15/X15 -> 0.1605549894 | W15: =Q15+T15 ->  | X15: ='ORÇAMENTO SINTÉTICO'!E16 -> 12078.79
A16: 3 | B16: ='ORÇAMENTO SINTÉTICO'!B17:D17 -> 0 | N16: 12468.07 | Q16: =N16/X16 -> 0.8394452206 | R16: =X16-N16 -> 2384.68 | T16: =R16/X16 -> 0.1605547794 | W16: =Q16+T16 ->  | X16: ='ORÇAMENTO SINTÉTICO'!E17 -> 14852.75
A17: 4 | B17: ='ORÇAMENTO SINTÉTICO'!B18:D18 -> 0 | N17: 2040.45 | Q17: =N17/X17 -> 0.8394460878 | R17: =X17-N17 -> 390.26 | T17: =R17/X17 -> 0.1605539122 | W17: =Q17+T17 ->  | X17: ='ORÇAMENTO SINTÉTICO'!E18 -> 2430.71
A18: 5 | B18: ='ORÇAMENTO SINTÉTICO'!B19:D19 -> 0 | N18: 22276.38 | Q18: =N18/X18 -> 0.8394454238 | R18: =X18-N18 -> 4260.64 | T18: =R18/X18 -> 0.1605545762 | W18: =Q18+T18 ->  | X18: ='ORÇAMENTO SINTÉTICO'!E19 -> 26537.02
A19: 6 | B19: ='ORÇAMENTO SINTÉTICO'!B20:D20 -> 0 | N19: 27649.64 | Q19: =N19/X19 -> 0.8394452728 | R19: =X19-N19 -> 5288.35 | T19: =R19/X19 -> 0.1605547272 | W19: =Q19+T19 ->  | X19: ='ORÇAMENTO SINTÉTICO'!E20 -> 32937.99
A20: 7 | B20: ='ORÇAMENTO SINTÉTICO'!B21:D21 -> 0 | N20: 15063.86 | Q20: =N20/X20 -> 0.8394456175 | R20: =X20-N20 -> 2881.15 | T20: =R20/X20 -> 0.1605543825 | W20: =Q20+T20 ->  | X20: ='ORÇAMENTO SINTÉTICO'!E21 -> 17945.01
A21: 8 | B21: ='ORÇAMENTO SINTÉTICO'!B22:D22 -> 0 | N21: 112874.6 | Q21: =N21/X21 -> 0.83944541 | R21: =X21-N21 -> 21588.7 | T21: =R21/X21 -> 0.16055459 | W21: =Q21+T21 ->  | X21: ='ORÇAMENTO SINTÉTICO'!E22 -> 134463.3
A22: 9 | B22: ='ORÇAMENTO SINTÉTICO'!B23:D23 -> 0 | N22: 68526.45 | Q22: =N22/X22 -> 0.8394454449 | R22: =X22-N22 -> 13106.55 | T22: =R22/X22 -> 0.1605545551 | W22: =Q22+T22 ->  | X22: ='ORÇAMENTO SINTÉTICO'!E23 -> 81633
A23: 10 | B23: ='ORÇAMENTO SINTÉTICO'!B24:D24 -> 0 | N23: 113436.46 | Q23: =N23/X23 -> 0.8394454278 | R23: =X23-N23 -> 21696.16 | T23: =R23/X23 -> 0.1605545722 | W23: =Q23+T23 ->  | X23: ='ORÇAMENTO SINTÉTICO'!E24 -> 135132.62
A24: 11 | B24: ='ORÇAMENTO SINTÉTICO'!B25:D25 -> 0 | N24: 37334.34 | Q24: =N24/X24 -> 0.8394455312 | R24: =X24-N24 -> 7140.66 | T24: =R24/X24 -> 0.1605544688 | W24: =Q24+T24 ->  | X24: ='ORÇAMENTO SINTÉTICO'!E25 -> 44475
A25: 12 | B25: ='ORÇAMENTO SINTÉTICO'!B26:D26 -> 0 | N25: 77026.54 | Q25: =N25/X25 -> 0.839445442 | R25: =X25-N25 -> 14732.3 | T25: =R25/X25 -> 0.160554558 | W25: =Q25+T25 ->  | X25: ='ORÇAMENTO SINTÉTICO'!E26 -> 91758.84
A26: 13 | B26: ='ORÇAMENTO SINTÉTICO'!B27:D27 -> 0 | N26: 337889.85 | Q26: =N26/X26 -> 0.7891763374 | R26: =X26-N26 -> 90265.22 | T26: =R26/X26 -> 0.2108236626 | W26: =Q26+T26 ->  | X26: ='ORÇAMENTO SINTÉTICO'!E27 -> 428155.07 | AA26: =N28+R28 -> 1104141.55
A27: 14 | B27: ='ORÇAMENTO SINTÉTICO'!B28:D28 -> 0 | N27: 43111.4 | Q27: =N27/X27 -> 0.8394454505 | R27: =X27-N27 -> 8245.6 | T27: =R27/X27 -> 0.1605545495 | W27: =Q27+T27 ->  | X27: ='ORÇAMENTO SINTÉTICO'!E28 -> 51357
N28: =SUM(N14:N27) -> 905343.61 | O28: =SUM(O14:O27) -> 0 | P28: =SUM(P14:P27) -> 0 | Q28: =N28/X28 -> 0.8199524871 | R28: =SUM(R14:R27) -> 198797.94 | S28: =SUM(S14:S27) -> 0 | T28: =R28/X28 -> 0.1800475129 | W28: =Q28+T28 -> 1 | X28: =SUM(X14:X27) -> 1104141.55
U30: Forma de execução: AD = Administração Direta pelo Tomador
X31: ou EF se execução e/ou fornecimento a contratar/contrado.
U32: Tipo de contrapartida: FIN = Financeira; OS = em Obras e Serviços.
A33: Local/Data
A38: Nome do Prefeito e da Cidade/UF

Sheet CRONOGRAMA
B3: CRONOGRAMA FÍSICO - FINANCEIRO - OBRA DEREFORMA | O3: ='ORÇAMENTO ANALÍTICO'!I10 -> Io = JANEIRO/2019
B5: Nº do CT
B6: 1006253-79/2013 | D6: PREFEITURA MUNICIPAL DE ITABORAÍ | I6: ITABORAÍ / RJ
I8: Aprovação (data) | K8: Parcela (n.º) | M8: Fim vigência (data) | O8: Mês Cronog
B9: Ministério da Cultura
F12: Valor | G12: Peso | H12: Parcela 1 | J12: Parcela 2 | L12: Parcela 3 | N12: Parcela 4 | P12: Parcela 5 | R12: Parcela 6
B13: Item | C13: Discriminação | F13: R$ | G13: % | H13: SIMPLES | I13: ACUM | J13: =H13 -> 0 | K13: ACUM | L13: SIMPLES | M13: ACUM | N13: =L13 -> 0 | O13: ACUM | P13: SIMPLES | Q13: ACUM | R13: =P13 -> 0 | S13: ACUM
B14: 1 | C14: =QCI!B14 -> 0 | F14: ='ORÇAMENTO SINTÉTICO'!E15 -> 30384.45 | G14: =IF($F$29=0,0,F14/$F$29) -> 0.02751861842 | H14: =F14 -> 30384.45 | I14: =H14 -> 30384.45 | K14: =I14+J14 -> 30384.45 | M14: =K14+L14 -> 30384.45 | O14: =M14+N14 -> 30384.45 | Q14: =O14+P14 -> 30384.45 | S14: =Q14+R14 -> 30384.45 | T14: =F14-S14 -> 0 | X14: =I14 -> 30384.45
B15: 2 | C15: =QCI!B15 -> 0 | F15: ='ORÇAMENTO SINTÉTICO'!E16 -> 12078.79 | G15: =IF($F$29=0,0,F15/$F$29) -> 0.01093953035 | H15: =F15 -> 12078.79 | I15: =H15 -> 12078.79 | K15: =I15+J15 -> 12078.79 | M15: =K15+L15 -> 12078.79 | O15: =M15+N15 -> 12078.79 | Q15: =O15+P15 -> 12078.79 | S15: =Q15+R15 -> 12078.79 | T15: =F15-S15 -> 0 | X15: =I15 -> 12078.79 | Y15: =K15 -> 12078.79 | Z15: =M15 -> 12078.79
B16: 3 | C16: =QCI!B16 -> 0 | F16: ='ORÇAMENTO SINTÉTICO'!E17 -> 14852.75 | G16: =IF($F$29=0,0,F16/$F$29) -> 0.01345185316 | H16: =F16*0.8 -> 11882.2 | I16: =H16 -> 11882.2 | J16: =F16*0.2 -> 2970.55 | K16: =I16+J16 -> 14852.75 | M16: =K16+L16 -> 14852.75 | O16: =M16+N16 -> 14852.75 | Q16: =O16+P16 -> 14852.75 | S16: =Q16+R16 -> 14852.75 | T16: =F16-S16 -> 0 | Y16: =K16 -> 14852.75 | Z16: =M16 -> 14852.75
B17: 4 | C17: =QCI!B17 -> 0 | F17: ='ORÇAMENTO SINTÉTICO'!E18 -> 2430.71 | G17: =IF($F$29=0,0,F17/$F$29) -> 0.002201447813 | H17: =F17*0.8 -> 1944.568 | I17: =H17 -> 1944.568 | J17: =F17*0.2 -> 486.142 | K17: =I17+J17 -> 2430.71 | M17: =K17+L17 -> 2430.71 | O17: =M17+N17 -> 2430.71 | Q17: =O17+P17 -> 2430.71 | S17: =Q17+R17 -> 2430.71 | T17: =F17-S17 -> 0 | Z17: =M17 -> 2430.71 | AA17: =O17 -> 2430.71
B18: 5 | C18: =QCI!B18 -> 0 | F18: ='ORÇAMENTO SINTÉTICO'!E19 -> 26537.02 | G18: =IF($F$29=0,0,F18/$F$29) -> 0.02403407425 | H18: =F18*0.5 -> 13268.51 | I18: =H18 -> 13268.51 | K18: =I18+J18 -> 13268.51 | M18: =K18+L18 -> 13268.51 | O18: =M18+N18 -> 13268.51 | P18: =F18*0.3 -> 7961.106 | Q18: =O18+P18 -> 21229.616 | R18: =F18*0.2 -> 5307.404 | S18: =Q18+R18 -> 26537.02 | T18: =F18-S18 -> 0 | Y18: =K18 -> 13268.51 | Z18: =M18 -> 13268.51 | AA18: =O18 -> 13268.51
B19: 6 | C19: =QCI!B19 -> 0 | F19: ='ORÇAMENTO SINTÉTICO'!E20 -> 32937.99 | G19: =IF($F$29=0,0,F19/$F$29) -> 0.02983131103 | I19: =H19 -> 0 | J19: =F19*0.7 -> 23056.593 | K19: =I19+J19 -> 23056.593 | L19: =F19*0.3 -> 9881.397 | M19: =K19+L19 -> 32937.99 | O19: =M19+N19 -> 32937.99 | Q19: =O19+P19 -> 32937.99 | S19: =Q19+R19 -> 32937.99 | T19: =F19-S19 -> 0 | AA19: =O19 -> 32937.99 | AB19: =Q19 -> 32937.99 | AC19: =S19 -> 32937.99 | AD19: =#ref! -> 
B20: 7 | C20: =QCI!B20 -> 0 | F20: ='ORÇAMENTO SINTÉTICO'!E21 -> 17945.01 | G20: =IF($F$29=0,0,F20/$F$29) -> 0.01625245423 | I20: =H20 -> 0 | K20: =I20+J20 -> 0 | L20: =F20 -> 17945.01 | M20: =K20+L20 -> 17945.01 | O20: =M20+N20 -> 17945.01 | Q20: =O20+P20 -> 17945.01 | S20: =Q20+R20 -> 17945.01 | T20: =F20-S20 -> 0 | AD20: =#ref! -> 
B21: 8 | C21: =QCI!B21 -> 0 | F21: ='ORÇAMENTO SINTÉTICO'!E22 -> 134463.3 | G21: =IF($F$29=0,0,F21/$F$29) -> 0.1217808532 | I21: =H21 -> 0 | K21: =I21+J21 -> 0 | L21: =F21*0.5 -> 67231.65 | M21: =K21+L21 -> 67231.65 | N21: =F21*0.5 -> 67231.65 | O21: =M21+N21 -> 134463.3 | Q21: =O21+P21 -> 134463.3 | S21: =Q21+R21 -> 134463.3 | T21: =F21-S21 -> 0 | X21: =I21 -> 0 | Y21: =K21 -> 0 | Z21: =M21 -> 67231.65 | AA21: =O21 -> 134463.3 | AB21: =Q21 -> 134463.3 | AC21: =S21 -> 134463.3 | AD21: =#ref! -> 
B22: 9 | C22: =QCI!B22 -> 0 | F22: ='ORÇAMENTO SINTÉTICO'!E23 -> 81633 | G22: =IF($F$29=0,0,F22/$F$29) -> 0.07393345536 | I22: =H22 -> 0 | K22: =I22+J22 -> 0 | L22: =F22*0.3 -> 24489.9 | M22: =K22+L22 -> 24489.9 | N22: =F22*0.4 -> 32653.2 | O22: =M22+N22 -> 57143.1 | P22: =F22*0.3 -> 24489.9 | Q22: =O22+P22 -> 81633 | S22: =Q22+R22 -> 81633 | T22: =F22-S22 -> 0
B23: 10 | C23: =QCI!B23 -> 0 | F23: ='ORÇAMENTO SINTÉTICO'!E24 -> 135132.62 | G23: =IF($F$29=0,0,F23/$F$29) -> 0.1223870436 | I23: =H23 -> 0 | J23: =F23*0.3 -> 40539.786 | K23: =I23+J23 -> 40539.786 | L23: =F23*0.2 -> 27026.524 | M23: =K23+L23 -> 67566.31 | O23: =M23+N23 -> 67566.31 | Q23: =O23+P23 -> 67566.31 | R23: =F23*0.5 -> 67566.31 | S23: =Q23+R23 -> 135132.62 | T23: =F23-S23 -> 0
B24: 11 | C24: =QCI!B24 -> 0 | F24: ='ORÇAMENTO SINTÉTICO'!E25 -> 44475 | G24: =IF($F$29=0,0,F24/$F$29) -> 0.04028016154 | I24: =H24 -> 0 | K24: =I24+J24 -> 0 | M24: =K24+L24 -> 0 | N24: =F24*0.6 -> 26685 | O24: =M24+N24 -> 26685 | P24: =F24*0.4 -> 17790 | Q24: =O24+P24 -> 44475 | S24: =Q24+R24 -> 44475 | T24: =F24-S24 -> 0
B25: 12 | C25: =QCI!B25 -> 0 | F25: ='ORÇAMENTO SINTÉTICO'!E26 -> 91758.84 | G25: =IF($F$29=0,0,F25/$F$29) -> 0.08310423605 | I25: =H25 -> 0 | K25: =I25+J25 -> 0 | M25: =K25+L25 -> 0 | N25: =F25*0.5 -> 45879.42 | O25: =M25+N25 -> 45879.42 | P25: =F25*0.4 -> 36703.536 | Q25: =O25+P25 -> 82582.956 | R25: =F25*0.1 -> 9175.884 | S25: =Q25+R25 -> 91758.84 | T25: =F25-S25 -> 0
B26: 13 | C26: =QCI!B26 -> 0 | F26: ='ORÇAMENTO SINTÉTICO'!E27 -> 428155.07 | G26: =IF($F$29=0,0,F26/$F$29) -> 0.387771903 | I26: =H26 -> 0 | K26: =I26+J26 -> 0 | M26: =K26+L26 -> 0 | O26: =M26+N26 -> 0 | P26: =F26*0.3 -> 128446.521 | Q26: =O26+P26 -> 128446.521 | R26: =F26*0.7 -> 299708.549 | S26: =Q26+R26 -> 428155.07 | T26: =F26-S26 -> 0
B27: 14 | C27: =QCI!B27 -> 0 | F27: ='ORÇAMENTO SINTÉTICO'!E28 -> 51357 | G27: =IF($F$29=0,0,F27/$F$29) -> 0.04651305804 | H27: =H43 -> 3393.207859 | I27: =H27 -> 3393.207859 | J27: =J43 -> 3270.986991 | K27: =I27+J27 -> 6664.19485 | L27: =L43 -> 7150.205254 | M27: =K27+L27 -> 13814.4001 | N27: =N43 -> 8412.430786 | O27: =M27+N27 -> 22226.83089 | P27: =P43 -> 10507.21995 | Q27: =O27+P27 -> 32734.05084 | R27: =R43 -> 18622.94916 | S27: =Q27+R27 -> 51357 | T27: =F27-S27 -> 0
C28: Total (%): | H28: =H29/$F$29 -> 0.0660709905 | I28: =H28 -> 0.0660709905 | J28: =J29/$F$29 -> 0.06369116169 | K28: =I28+J28 -> 0.1297621522 | L28: =L29/$F$29 -> 0.1392255243 | M28: =K28+L28 -> 0.2689876765 | N28: =N29/$F$29 -> 0.1638030022 | O28: =M28+N28 -> 0.4327906788 | P28: =P29/$F$29 -> 0.2045917781 | Q28: =O28+P28 -> 0.6373824568 | R28: =R29/$F$29 -> 0.3626175432 | S28: =Q28+R28 -> 1
C29: Total (R$): | F29: =SUM(F14:F27) -> 1104141.55 | G29: =IF(F29=0,0,F29/F29) -> 1 | H29: =SUM(H14:H27) -> 72951.72586 | I29: =H29 -> 72951.72586 | J29: =SUM(J14:J27) -> 70324.05799 | K29: =I29+J29 -> 143275.7839 | L29: =SUM(L14:L27) -> 153724.6863 | M29: =K29+L29 -> 297000.4701 | N29: =SUM(N14:N27) -> 180861.7008 | O29: =M29+N29 -> 477862.1709 | P29: =SUM(P14:P27) -> 225898.2829 | Q29: =O29+P29 -> 703760.4538 | R29: =SUM(R14:R27) -> 400381.0962 | S29: =Q29+R29 -> 1104141.55
L34: Representante Tomador / Agente Promotor
H41: =SUM(H14:H26) -> 69558.518 | J41: =SUM(J14:J26) -> 67053.071 | L41: =SUM(L14:L26) -> 146574.481 | N41: =SUM(N14:N26) -> 172449.27 | P41: =SUM(P14:P26) -> 215391.063 | R41: =SUM(R14:R26) -> 381758.147
F42: =SUM(F14:F26) -> 1052784.55 | H42: =H41/$F$42 -> 0.0660709905 | J42: =J41/$F$42 -> 0.06369116169 | L42: =L41/$F$42 -> 0.1392255243 | N42: =N41/$F$42 -> 0.1638030022 | P42: =P41/$F$42 -> 0.2045917781 | R42: =R41/$F$42 -> 0.3626175432
H43: =H42*$F$27 -> 3393.207859 | J43: =J42*$F$27 -> 3270.986991 | L43: =L42*$F$27 -> 7150.205254 | N43: =N42*$F$27 -> 8412.430786 | P43: =P42*$F$27 -> 10507.21995 | R43: =R42*$F$27 -> 18622.94916

Sheet % B.D.I Serviços
D3: SECRETARIA MUNICIPAL DE OBRAS
A5: PREFEITURA MUNICIPAL DE ITABORAÍ
A7: BDI PARA SERVIÇOS
A9: COMPOSIÇÃO DO B.D.I - COM Desoneração
A11: X . Taxa representativa das DESPESAS INDIRETAS, exceto tributos e despesas financeiras
A12: TIPO | H12: ALÍQUOTA (%)
A13: X.1 - Administração Central | H13: 3
A14: X.2 - Garantia | H14: 0.8
A15: X.3 - Seguro contra Riscos | H15: 0.97
A16: X = | H16: =SUM(H13:H15) -> 4.77
A17: Y . Taxa representativa das DESPESAS FINANCEIRAS
A18: TIPO | H18: ALÍQUOTA (%)
A19: Y.1 - Despesas Financeiras | H19: 0.59
A20: Y = | H20: =SUM(H19:H19) -> 0.59
A21: Z . Taxa representativa do LUCRO
A22: TIPO | H22: ALÍQUOTA (%)
A23: Z.1 - Lucro Presumido | H23: 6.16
A24: Z = | H24: =SUM(H23) -> 6.16
A25: I . Taxa representativa da incidência dos TRIBUTOS ( sobre o FATURAMENTO da empresa )
A26: TIPO | H26: ALÍQUOTA (%)
A27: I.1 - I S S ( Imposto sobre Serviços ) - Municipal | H27: 5
A28: I.2 - COFINS ( Contribuição para o Financiamento da Seguridade Social) - Federal | H28: 3
A29: I.3 - P I S ( Programa de Integração Social ) - Federal | H29: 0.65
A30: I.4 - Contribuição Previdenciária p/ INSS - Federal - Lei 12.844/2013 | H30: 4.5
A31: I = | H31: =SUM(H27:H30) -> 13.15
A33: B D I - Benefício e Despesas Indiretas
A36: B D I = | B36: ( 1 + X ) ( 1 + Y ) ( 1 + Z ) | G36: - 1 | H36: ç Fórmula do BDI
C37: ( 1 - I )
A40: X é a Taxa somatória das DESPESAS INDIRETAS, exceto tributos e despesas financeiras;
A41: Y é a Taxa representativa das DESPESAS FINANCEIRAS;
A42: Z é a Taxa representativa do LUCRO;
A43: I é a Taxa representativa dos IMPOSTOS.
F45: B.D.I è | H45: =(ROUND((1+H16/100)*(1+H20/100)*(1+H24/100)/(1-H31/100),4))-1 -> 0.2882

Sheet % B.D.I Equipamentos
D3: SECRETARIA MUNICIPAL DE OBRAS
A5: PREFEITURA MUNICIPAL DE ITABORAÍ
A7: BDI PARA EQUIPAMENTOS
A9: COMPOSIÇÃO DO B.D.I - COM Desoneração
A11: X . Taxa representativa das DESPESAS INDIRETAS, exceto tributos e despesas financeiras
A12: TIPO | H12: ALÍQUOTA (%)
A13: X.1 - Administração Central | H13: 1.5
A14: X.2 - Garantia | H14: 0.3
A15: X.3 - Seguro contra Riscos | H15: 0.56
A16: X = | H16: =SUM(H13:H15) -> 2.36
A17: Y . Taxa representativa das DESPESAS FINANCEIRAS
A18: TIPO | H18: ALÍQUOTA (%)
A19: Y.1 - Despesas Financeiras | H19: 0.85
A20: Y = | H20: =SUM(H19:H19) -> 0.85
A21: Z . Taxa representativa do LUCRO
A22: TIPO | H22: ALÍQUOTA (%)
A23: Z.1 - Lucro Presumido | H23: 3.5
A24: Z = | H24: =SUM(H23) -> 3.5
A25: I . Taxa representativa da incidência dos TRIBUTOS ( sobre o FATURAMENTO da empresa )
A26: TIPO | H26: ALÍQUOTA (%)
A27: I.1 - I S S ( Imposto sobre Serviços ) - Municipal | H27: 5
A28: I.2 - COFINS ( Contribuição para o Financiamento da Seguridade Social) - Federal | H28: 3
A29: I.3 - P I S ( Programa de Integração Social ) - Federal | H29: 0.65
A30: I.4 - Contribuição Previdenciária p/ INSS - Federal - Lei 12.844/2013 | H30: 4.5
A31: I = | H31: =SUM(H27:H30) -> 13.15
A33: B D I - Benefício e Despesas Indiretas
A36: B D I = | B36: ( 1 + X ) ( 1 + Y ) ( 1 + Z ) | G36: - 1 | H36: ç Fórmula do BDI
C37: ( 1 - I )
A40: X é a Taxa somatória das DESPESAS INDIRETAS, exceto tributos e despesas financeiras;
A41: Y é a Taxa representativa das DESPESAS FINANCEIRAS;
A42: Z é a Taxa representativa do LUCRO;
A43: I é a Taxa representativa dos IMPOSTOS.
F45: B.D.I è | H45: =(ROUND((1+H16/100)*(1+H20/100)*(1+H24/100)/(1-H31/100),4))-1 -> 0.2302

Sheet COTAÇÕES
A4: SECRETARIA DE OBRAS
A5: REFORMA DO TEATRO JOÃO CAETANO
A6: Local: Praça Marechal Floriano Peixoto, bairro Centro, Itaboraí, RJ
A11: COTAÇÕES
A12: ='ORÇAMENTO ANALÍTICO'!D139 -> FITA LED BRANCO QUENTE 5 METROS + FONTE
A13: ITEM | B13: CÓDIGO | C13: CORUJAMIX | D13: LUSTRE AMANDINI | E13: KIT LED
A15: ='ORÇAMENTO ANALÍTICO'!B139 -> 10.32 | B15: ='ORÇAMENTO ANALÍTICO'!C139 -> COTAÇÃO 01 | C15: 21.9 | D15: 22.35 | E15: 24.88
B16: MEDIANA | C16: =MEDIAN(C15:E15) -> 22.35
A17: LUSTRE
A18: ITEM | B18: CÓDIGO | C18: CASA & CONSTRUÇÃO | D18: KITLED | E18: CASA CENTER
A20: ='ORÇAMENTO ANALÍTICO'!B140 -> 10.33 | B20: ='ORÇAMENTO ANALÍTICO'!C140 -> COTAÇÃO 02 | C20: 6999.99 | D20: 4758.9 | E20: 4399.9
B21: MEDIANA | C21: =MEDIAN(C20:E20) -> 4758.9
A22: ELETRODUTO PEAD CORRUGADO 150 MM
A23: ITEM | B23: CÓDIGO | C23: TECHDUTO | D23: DAKRON | E23: SPTUBOS
A25: ='ORÇAMENTO ANALÍTICO'!B153 -> 10.46 | B25: ='ORÇAMENTO ANALÍTICO'!C153 -> COTAÇÃO 03 | C25: 8.46 | D25: =598/50 -> 11.96 | E25: 10.94
B26: MEDIANA | C26: =MEDIAN(C25:E25) -> 10.94
A27: POLTRONAS
A28: ITEM | B28: CÓDIGO | C28: SANTA CLARA | D28: TRINITY | E28: KASTRUP
A30: ='ORÇAMENTO ANALÍTICO'!B206 -> 13.31 | B30: ='ORÇAMENTO ANALÍTICO'!C206 -> COTAÇÃO 04 | C30: 768.95 | D30: 717.95 | E30: 1405
B31: MEDIANA | C31: =MEDIAN(C30:E30) -> 768.95
A32: NOTA: COTAÇÕES EM ANEXO

Sheet PARETO
A1: ITEM | B1: CODIGO | C1: DESCRIÇÃO | D1: PREÇO TOTAL | E1: % | F1: % ACUMULADA
A2: 13.20 | B2: 18.040.0025-A | C2: PLATAFORMA PARA TRANSPORTE VERTICAL,PERCURSO DE 3,17M,CAPACIDADE PARA 230KG,VELOCIDADE DE 6M/MINUTO,COM DUAS PARADAS,GUARDA CORPO LATERAL COM BRACO TIPO BASCULANTE E ACESSO PELO MESMO LADO,COMANDO AUTOMATICO SIMPLES NAS DUAS PARADAS FRANQUEADO,CHAVE NA CA | D2: 129220.88 | E2: =D2/$D$159 -> 0.1094634405 | F2: =E2 ->  | G2: GRUPO A
A3: 6.1 | B3: 11.016.0040-A | C3: ESTRUTURA METALICA EM ACO ESPECIAL,RESISTENTE A CORROSAO(ACO USI-SAC),PARA OBRAS PREDIAIS DE ATE 04 PAVIMENTOS,PILARES,VIGAS PRINCIPAIS E SECUNDARIAS,ESCADAS,PATAMARES E CHAPAS DAS BASES DA FUNDACAO,PINTURA PROTETORA,CONSIDERANDO FORNECIMENTO DE TODOS OS | D3: 120641.76 | E3: =D3/$D$159 -> 0.1021960392 | F3: =F2+E3 -> 
A4: 13.31 | B4: COTAÇÃO 04 | C4: POLTRONA COM ASSENTO RETRÁTIL E ENCOSTO FIXO REVESTIDA EM TECIDO OU COURO ECOLÓGICO | D4: 116254.5 | E4: =D4/$D$159 -> 0.09847957655 | F4: =F3+E4 ->  | G4: GRUPO B
A5: 13.27 | B5: 18.030.0010-A | C5: CONDICIONADOR DE AR TIPO SPLIT 60000 BTU'S COMPREENDENDO 1 CONDENSADOR E 1 EVAPORADOR(VIDE INSTALACAO,ASSENTAMENTO E INTERLIGACOES FAMILIA 15.005).FORNECIMENTO | D5: 47977.8 | E5: =D5/$D$159 -> 0.04064215517 | F5: =F4+E5 -> 
A6: 12.1 | B6: 17.018.0060-A | C6: PREPARO DE SUPERFICIES NOVAS,COM REVESTIMENTO LISO INTERNO OU EXTERNO,INCLUSIVE UMA DEMAO DE SELADOR ACRILICO,DUAS DEMAOS DE MASSA ACRILICA E LIXAMENTOS NECESSARIOS | D6: 40628.94 | E6: =D6/$D$159 -> 0.03441691123 | F6: =F5+E6 -> 
A7: 12.4 | B7: 17.025.0005-B | C7: PINTURA COM TINTA ACRILICA,ANTIFUNGO/BACTERICIDA,PARA AMBIENTES INTERNOS E EXTERNOS PROPENSOS A UMIDADE E VAPORES,EM DUAS DEMAOS,SOBRE SELADOR ACRILICO E DUAS DEMAOS DE MASSA ACRILICA,INCLUSIVE LIMPEZA E LIXAMENTO | D7: 29311.55 | E7: =D7/$D$159 -> 0.02482991224 | F7: =F6+E7 -> 
A8: 9.12 | B8: 14.002.0205-A | C8: GUARDA-CORPO DE FERRO EM LANCES DE 3,00 A 4,00M E 1,00M DE ALTURA,COM 4 MONTANTES DE BARRAS DE 2"X3/4",CHUMBADOS NO CONCRETO,CORRIMAO EM 2 BARRAS SOBREPOSTAS DE 3"X1/2" E 2"X3/8",DUAS TRAVESSAS HORIZONTAIS EM BARRAS DE 1.1/4"X3/8",SOLDADASNOS MONTANTES,UM | D8: 27087.8 | E8: =D8/$D$159 -> 0.02294616616 | F8: =F7+E8 -> 
A9: 13.30 | B9: 15.005.0260-A | C9: TUBULACAO EM COBRE PARA INTERLIGACAO DE SPLIT SYSTEM AO CONDENSADOR/EVAPORADOR,INCLUSIVE ISOLAMENTO TERMICO,ALIMENTACAOELETRICA,CONEXOES E FIXACAO,PARA APARELHOS DE 60000 BTU'S.FORNECIMENTO E INSTALACAO | D9: 25548 | E9: =D9/$D$159 -> 0.02164179642 | F9: =F8+E9 -> 
A10: 8.10 | B10: 87263 | C10: REVESTIMENTO CERÂMICO PARA PISO COM PLACAS TIPO PORCELANATO DE DIMENSÕES 60X60 CM APLICADA EM AMBIENTES DE ÁREA MAIOR QUE 10 M². AF_06/2014 | D10: 25260.62 | E10: =D10/$D$159 -> 0.02139835586 | F10: =F9+E10 -> 
A11: 10.45 | B11: 92998 | C11: CABO DE COBRE FLEXÍVEL ISOLADO, 185 MM², ANTI-CHAMA 0,6/1,0 KV, PARA DISTRIBUIÇÃO - FORNECIMENTO E INSTALAÇÃO. AF_12/2015 | D11: 25208.4 | E11: =D11/$D$159 -> 0.02135412012 | F11: =F10+E11 -> 
A12: 10.44 | B12: 73857/5 | C12: TRANSFORMADOR DISTRIBUICAO 300KVA TRIFASICO 60HZ CLASSE 15KV IMERSO EM ÓLEO MINERAL FORNECIMENTO E INSTALACAO | D12: 22461.7 | E12: =D12/$D$159 -> 0.01902738135 | F12: =F11+E12 -> 
A13: 9.1 | B13: 14.006.0423-A | C13: PORTA DE MADEIRA DE LEI MACICA COM ATE 5 ALMOFADAS,COM 3,5CM DE ESPESSURA,EXCLUSIVE FERRAGENS,MARCO E ALIZAR.FORNECIMENTO E COLOCACAO | D13: 22280.89 | E13: =D13/$D$159 -> 0.01887421659 | F13: =F12+E13 ->  | G13: GRUPO C
A14: 8.1 e 8.3 | B14: 13.001.0026-A | C14: EMBOCO COM ARGAMASSA DE CIMENTO E AREIA,NO TRACO 1:3 COM 2CM DE ESPESSURA,INCLUSIVE CHAPISCO DE CIMENTO E AREIA,NO TRACO 1:3 | D14: 20939.31 | E14: =D14/$D$159 -> 0.01773775967 | F14: =F13+E14 -> 
A15: 1.1 | B15: 01.050.0546-A | C15: PROJETO EXECUTIVO ESTRUTURAL PARA PREDIOS CULTURAIS ATE 500M2,CONSIDERANDO O PROJETO BASICO EXISTENTE,APRESENTADO EM AUTOCAD NOS PADROES DA CONTRATANTE,CONSTANDO DE PLANTAS DE FORMA,ARMACAO E DETALHES,DE ACORDO COM A ABNT | D15: 20611.3 | E15: =D15/$D$159 -> 0.0174599013 | F15: =F14+E15 -> 
A16: 8.8 | B16: 87373 | C16: ARGAMASSA TRAÇO 1:4 (CIMENTO E AREIA MÉDIA) PARA CONTRAPISO, PREPARO MANUAL. AF_06/2014 | D16: 17811.52 | E16: =D16/$D$159 -> 0.01508819828 | F16: =F15+E16 -> 
A17: 8.13 | B17: 98671 | C17: PISO EM GRANITO APLICADO EM AMBIENTES INTERNOS. AF_06/2018 | D17: 17782.12 | E17: =D17/$D$159 -> 0.01506329344 | F17: =F16+E17 -> 
A18: 13.28 | B18: 15.005.0209-A | C18: INSTALACAO E ASSENTAMENTO DE AR CONDICIONADO TIPO SPLIT DE 60000 BTU'S,COM 1 CONDENSADOR E 1 EVAPORADOR,(VIDE FORNECIMENTO DO APARELHO NA FAMILIA 18.030)INCLUSIVE ACESSORIOS DE FIXACAO,EXCLUSIVE ALIMENTACAO ELETRICA E INTERLIGACAO AO CONDENSADOR/EVAPORADO | D18: 17581.08 | E18: =D18/$D$159 -> 0.01489299179 | F18: =F17+E18 -> 
A19: 8.2 | B19: 87274 | C19: REVESTIMENTO CERÂMICO PARA PAREDES INTERNAS COM PLACAS TIPO ESMALTADA EXTRA DE DIMENSÕES 33X45 CM APLICADAS EM AMBIENTES DE ÁREA MENOR QUE 5 M² A MEIA ALTURA DAS PAREDES. AF_06/2014 | D19: 16256.8 | E19: =D19/$D$159 -> 0.01377118976 | F19: =F18+E19 -> 
A20: 6.3 | B20: 11.013.0075-A | C20: CONCRETO ARMADO,FCK=25MPA,INCLUINDO MATERIAIS PARA 1,00M3 DE CONCRETO(IMPORTADO DE USINA)ADENSADO E COLOCADO,14,00M2 DEAREA MOLDADA,FORMAS E ESCORAMENTO CONFORME ITENS 11.004.0022 E 11.004.0035,60KG DE ACO CA-50,INCLUSIVE MAO-DE-OBRA PARACORTE,DOBRAGEM,MO | D20: 15987.55 | E20: =D20/$D$159 -> 0.01354310718 | F20: =F19+E20 -> 
A21: 13.25 | B21: 18.030.0009-A | C21: CONDICIONADOR DE AR TIPO SPLIT 48000 BTU'S COMPREENDENDO 1 CONDENSADOR E 1 EVAPORADOR(VIDE INSTALACAO,ASSENTAMENTO E INTERLIGACOES FAMILIA 15.005).FORNECIMENTO | D21: 15254.48 | E21: =D21/$D$159 -> 0.01292212113 | F21: =F20+E21 -> 
A22: 8.4 | B22: 13.196.0025-A | C22: FORRO REMOVIVEL COMPOSTO GESSO ACARTONADO,TIPO STANDARD,C/ADICAO DE LA MINERAL,A SER APLICADO SIST.DRYWALL,C/BORDA QUADRADA 625X625MM REVEST.VINIL,ESP.6,5;9,5 OU 12,5MM,ESTRUT.EM PERFIS TIPO TRAVESSA "T" ACO GALV.ALUMINIO OU LIGAS ALUMINIO,ESP.MINIMA 0,5M | D22: 14816.58 | E22: =D22/$D$159 -> 0.01255117457 | F22: =F21+E22 -> 
A23: 6.4 | B23: 95969 | C23: (COMPOSIÇÃO REPRESENTATIVA) EXECUÇÃO DE ESCADA EM CONCRETO ARMADO, MOLDADA IN LOCO, FCK = 25 MPA. AF_02/2017 | D23: 14712.09 | E23: =D23/$D$159 -> 0.01246266074 | F23: =F22+E23 -> 
A24: 8.6 | B24: 94992 | C24: EXECUÇÃO DE PASSEIO (CALÇADA) OU PISO DE CONCRETO COM CONCRETO MOLDADO IN LOCO, FEITO EM OBRA, ACABAMENTO CONVENCIONAL, ESPESSURA 6 CM, ARMADO. AF_07/2016 | D24: 14546.87 | E24: =D24/$D$159 -> 0.01232270233 | F24: =F23+E24 -> 
A25: 11.2 | B25: 92542 | C25: TRAMA DE MADEIRA COMPOSTA POR RIPAS, CAIBROS E TERÇAS PARA TELHADOS DE MAIS QUE 2 ÁGUAS PARA TELHA CERÂMICA CAPA-CANAL, INCLUSO TRANSPORTE VERTICAL. AF_12/2015 | D25: 14298.93 | E25: =D25/$D$159 -> 0.01211267152 | F25: =F24+E25 -> 
A26: 10.34 | B26: 15.015.0250-A | C26: INSTALACAO DE PONTO DE TOMADA,EMBUTIDO NA ALVENARIA,EQUIVALENTE A 2 VARAS DE ELETRODUTO DE PVC RIGIDO DE 3/4",18,00M DEFIO 2,5MM2,CAIXAS,CONEXOES E TOMADA DE EMBUTIR,2P+T,10A,PADRAO BRASILEIRO,COM PLACA FOSFORESCENTE,INCLUSIVE ABERTURA E FECHAMENTO DE RAS | D26: 14098.08 | E26: =D26/$D$159 -> 0.01194253081 | F26: =F25+E26 -> 
A27: 12.2 | B27: 88487 | C27: APLICAÇÃO MANUAL DE PINTURA COM TINTA LÁTEX PVA EM PAREDES, DUAS DEMÃOS. AF_06/2014 | D27: 13544.21 | E27: =D27/$D$159 -> 0.01147334568 | F27: =F26+E27 -> 
A28: 11.3 | B28: 92554 | C28: FABRICAÇÃO E INSTALAÇÃO DE TESOURA INTEIRA EM MADEIRA NÃO APARELHADA, VÃO DE 12 M, PARA TELHA CERÂMICA OU DE CONCRETO, INCLUSO IÇAMENTO. AF_12/2015 | D28: 13333.95 | E28: =D28/$D$159 -> 0.01129523373 | F28: =F27+E28 -> 
A29: 13.29 | B29: 15.005.0255-A | C29: TUBULACAO EM COBRE PARA INTERLIGACAO DE SPLIT SYSTEM AO CONDENSADOR/EVAPORADOR,INCLUSIVE ISOLAMENTO TERMICO,ALIMENTACAOELETRICA,CONEXOES E FIXACAO,PARA APARELHOS ATE 48000 BTU'S.FORNECIMENTO E INSTALACAO | D29: 13175.58 | E29: =D29/$D$159 -> 0.01116107797 | F29: =F28+E29 -> 
A30: 10.27 | B30: 15.015.0106-A | C30: INSTALACAO DE UM CONJUNTO DE 8 PONTOS DE LUZ,APARENTE COM CANALETA PERFURADA,SENDO ESTA LIGADA A ELETROCALHA PRINCIPAL(EXCLUSIVE ESTA),EQUIVALENTE A 6,75 VARAS DE CANALETA E 2 VARAS DE ELETRODUTO DE PVC RIGIDO DE 3/4",92,00M DE FIO 2,5MM2,CAIXAS,CONEXOES, | D30: 10530.96 | E30: =D30/$D$159 -> 0.008920811508 | F30: =F29+E30 -> 
A31: 8.7 | B31: 92396 | C31: EXECUÇÃO DE PASSEIO EM PISO INTERTRAVADO, COM BLOCO RETANGULAR COR NATURAL DE 20 X 10 CM, ESPESSURA 6 CM. AF_12/2015 | D31: 9933.44 | E31: =D31/$D$159 -> 0.008414650314 | F31: =F30+E31 -> 
A32: 5.7 | B32: 05.005.0005-B | C32: ANDAIME DE TABUADO SOBRE CAVALETES,INCLUSIVE ESTES,EM MADEIRA DE 1ª,COM APROVEITAMENTO DA MADEIRA 20 VEZES,INCLUSIVE MOVIMENTACAO | D32: 8835.68 | E32: =D32/$D$159 -> 0.007484734139 | F32: =F31+E32 -> 
A33: 9.4 | B33: 90842 | C33: KIT DE PORTA DE MADEIRA PARA PINTURA, SEMI-OCA (LEVE OU MÉDIA), PADRÃO MÉDIO, 70X210CM, ESPESSURA DE 3,5CM, ITENS INCLUSOS: DOBRADIÇAS, MONTAGEM E INSTALAÇÃO DO BATENTE, FECHADURA COM EXECUÇÃO DO FURO - FORNECIMENTO E INSTALAÇÃO. AF_08/2015 | D33: 8828.82 | E33: =D33/$D$159 -> 0.00747892301 | F33: =F32+E33 -> 
A34: 3.4 | B34: 03.009.0015-A | C34: ATERRO COM MATERIAL DE 1ª CATEGORIA,COMPACTADO MANUALMENTE EM CAMADAS DE 20CM DE MATERIAL APILOADO,PROVENIENTE DE JAZIDA DISTANTE ATE 10KM,INCLUSIVE ESCAVACAO,CARGA,TRANSPORTE EM CAMINHAO BASCULANTE,DESCARGA,ESPALHAMENTO E IRRIGACAO MANUAIS | D34: 8641.35 | E34: =D34/$D$159 -> 0.007320116544 | F34: =F33+E34 -> 
A35: 10.30 | B35: 97593 | C35: LUMINÁRIA TIPO SPOT, DE SOBREPOR, COM 1 LÂMPADA DE 15 W - FORNECIMENTO E INSTALAÇÃO. AF_11/2017 | D35: 8442.76 | E35: =D35/$D$159 -> 0.00715189029 | F35: =F34+E35 -> 
A36: 9.5 | B36: 90843 | C36: KIT DE PORTA DE MADEIRA PARA PINTURA, SEMI-OCA (LEVE OU MÉDIA), PADRÃO MÉDIO, 80X210CM, ESPESSURA DE 3,5CM, ITENS INCLUSOS: DOBRADIÇAS, MONTAGEM E INSTALAÇÃO DO BATENTE, FECHADURA COM EXECUÇÃO DO FURO - FORNECIMENTO E INSTALAÇÃO. AF_08/2015 | D36: 8187.52 | E36: =D36/$D$159 -> 0.006935675631 | F36: =F35+E36 -> 
A37: 10.35 | B37: 15.015.0173-A | C37: INSTALACAO DE PONTO DE FORCA ATE 4CV,EQUIVALENTE A 2 VARAS DE ELETRODUTO DE PVC RIGIDO DE 3/4",20,00M DE FIO 4MM2,CAIXAS E CONEXOES | D37: 8090.1 | E37: =D37/$D$159 -> 0.006853150822 | F37: =F36+E37 -> 
A38: 5.8 | B38: 05.006.0001-B | C38: ALUGUEL DE ANDAIME COM ELEMENTOS TUBULARES(FACHADEIRO)SOBRESAPATAS FIXAS,CONSIDERANDO-SE A AREA DA PROJECAO VERTICAL DO ANDAIME E PAGO PELO TEMPO NECESSARIO A SUA UTILIZACAO,EXCLUSIVE TRANSPORTE DOS ELEMENTOS DO ANDAIME ATE A OBRA,PLATAFORMA OU PASSARELA | D38: 7244.71 | E38: =D38/$D$159 -> 0.00613701812 | F38: =F37+E38 -> 
A39: 10.23 | B39: 15.015.0021-A | C39: INSTALACAO DE PONTO DE LUZ,APARENTE,EQUIVALENTE A 2 VARAS DE ELETRODUTO DE PVC RIGIDO DE 3/4",12,00M DE FIO 2,5MM2,CAIXAS,CONEXOES,LUVAS,CURVA E INTERRUPTOR DE SOBREPOR | D39: 6860.53 | E39: =D39/$D$159 -> 0.005811577954 | F39: =F38+E39 -> 
A40: 11.4 | B40: 94198 | C40: TELHAMENTO COM TELHA CERÂMICA DE ENCAIXE, TIPO PORTUGUESA, COM MAIS DE 2 ÁGUAS, INCLUSO TRANSPORTE VERTICAL. AF_06/2016 | D40: 6472.43 | E40: =D40/$D$159 -> 0.005482817144 | F40: =F39+E40 -> 
A41: 7.1 | B41: 87490 | C41: ALVENARIA DE VEDAÇÃO DE BLOCOS CERÂMICOS FURADOS NA VERTICAL DE 9X19X39CM (ESPESSURA 9CM) DE PAREDES COM ÁREA LÍQUIDA MAIOR OU IGUAL A 6M² COM VÃOS E ARGAMASSA DE ASSENTAMENTO COM PREPARO MANUAL. AF_06/2014 | D41: 6247.86 | E41: =D41/$D$159 -> 0.005292583144 | F41: =F40+E41 -> 
A42: 8.11 | B42: 13.331.0051-A | C42: RODAPE COM CERAMICA EM PORCELANATO NATURAL,COM 7,5 A 10CM DE ALTURA,ASSENTES CONFORME ITEM 13.025.0058 | D42: 6247.3 | E42: =D42/$D$159 -> 0.005292108766 | F42: =F41+E42 -> 
A43: 10.33 | B43: COTAÇÃO 02 | C43: LUSTRE DE CRISTAL TRANSPARENTE 28 BRAÇOS. | D43: 5854.4 | E43: =D43/$D$159 -> 0.00495928186 | F43: =F42+E43 -> 
A44: 10.11 | B44: 91795 | C44: (COMPOSIÇÃO REPRESENTATIVA) DO SERVIÇO DE INST. TUBO PVC, SÉRIE N, ESGOTO PREDIAL, 100 MM (INST. RAMAL DESCARGA, RAMAL DE ESG. SANIT., PRUMADA ESG. SANIT., VENTILAÇÃO OU SUB-COLETOR AÉREO), INCL. CONEXÕES E CORTES, FIXAÇÕES, P/ PRÉDIOS. AF_10/2015 | D44: 5756.15 | E44: =D44/$D$159 -> 0.004876053955 | F44: =F43+E44 -> 
A45: 13.26 | B45: 15.005.0208-A | C45: INSTALACAO E ASSENTAMENTO DE AR CONDICIONADO TIPO SPLIT DE 48000 BTU'S,COM 1 CONDENSADOR E 1 EVAPORADOR,(VIDE FORNECIMENTO DO APARELHO NA FAMILIA 18.030)INCLUSIVE ACESSORIOS DE FIXACAO,EXCLUSIVE ALIMENTACAO ELETRICA E INTERLIGACAO AO CONDENSADOR/EVAPORADO | D45: 5672.58 | E45: =D45/$D$159 -> 0.004805261528 | F45: =F44+E45 -> 
A46: 5.6 | B46: 05.001.0050-A | C46: REMOCAO DE COBERTURA EM TELHAS COLONIAIS,INCLUSIVE MADEIRAMENTO,MEDIDO O CONJUNTO PELA AREA REAL DE COBERTURA | D46: 5542.8 | E46: =D46/$D$159 -> 0.004695324455 | F46: =F45+E46 -> 
A47: 7.4 | B47: 73774/1 | C47: DIVISORIA EM MARMORITE ESPESSURA 35MM, CHUMBAMENTO NO PISO E PAREDE COM ARGAMASSA DE CIMENTO E AREIA, POLIMENTO MANUAL, EXCLUSIVE FERRAGENS | D47: 5527.1 | E47: =D47/$D$159 -> 0.004682024933 | F47: =F46+E47 -> 
A48: 13.21 | B48: 18.030.0001-A | C48: CONDICIONADOR DE AR TIPO SPLIT 9000 BTU'S COMPREENDENDO 1 CONDENSADOR E 1 EVAPORADOR(VIDE INSTALACAO,ASSENTAMENTO E INTERLIGACOES FAMILIA 15.005).FORNECIMENTO | D48: 5296 | E48: =D48/$D$159 -> 0.004486259348 | F48: =F47+E48 -> 
A49: 9.2 | B49: 14.007.0025-A | C49: FERRAGENS P/PORTA MADEIRA,DE 2 FOLHAS DE ABRIR,DE ENTRADA PRINCIPAL,CONSTANDO DE FORN.S/COLOC.DE:-FECHADURA CILINDRO,DELATAO,MONOBLOCO,ACABAMENTO CROMADO,;-ENTRADA CIRCULAR,LATAO,ACABAMENTO CROMADO;-ROSETA CIRCULAR,LATAO,ACAB.CROMADO;-MACANETA TIPO ALAVAN | D49: 5288.04 | E49: =D49/$D$159 -> 0.004479516406 | F49: =F48+E49 -> 
A50: 8.9 | B50: 87261 | C50: REVESTIMENTO CERÂMICO PARA PISO COM PLACAS TIPO PORCELANATO DE DIMENSÕES 60X60 CM APLICADA EM AMBIENTES DE ÁREA MENOR QUE 5 M². AF_06/2014 | D50: 5186.58 | E50: =D50/$D$159 -> 0.0043935693 | F50: =F49+E50 -> 
A51: 2.6 | B51: 10778 | C51: LOCACAO DE CONTAINER 2,30 X 6,00 M, ALT. 2,50 M, PARA SANITARIO, COM 4 BACIAS, 8 CHUVEIROS,1 LAVATORIO E 1 MICTORIO | D51: 5143.26 | E51: =D51/$D$159 -> 0.004356872782 | F51: =F50+E51 -> 
A52: 5.12 | B52: 97062 | C52: COLOCAÇÃO DE TELA EM ANDAIME FACHADEIRO. AF_11/2017 | D52: 5085.36 | E52: =D52/$D$159 -> 0.004307825498 | F52: =F51+E52 -> 
A53: 10.1 | B53: 15.002.0580-A | C53: FOSSA SEPTICA CILINDRICA,TIPO CAMARA IMHOFF,DE CONCRETO PRE-MOLDADO,MEDINDO 2000X2000MM.FORNECIMENTO E COLOCACAO | D53: 4699.57 | E53: =D53/$D$159 -> 0.003981021497 | F53: =F52+E53 -> 
A54: 1.3 | B54: 01.050.0518-A | C54: PROJETO EXECUTIVO DE INSTALACAO ELETRICA,CONSIDERANDO O PROJETO BASICO EXISTENTE,PARA PREDIOS CULTURAIS ATE 3000M2,APRESENTADO EM AUTOCAD,INCLUSIVE AS LEGALIZACOES PERTINENTES | D54: 4373.6 | E54: =D54/$D$159 -> 0.003704891217 | F54: =F53+E54 -> 
A55: 7.2 | B55: 96360 | C55: PAREDE COM PLACAS DE GESSO ACARTONADO (DRYWALL), PARA USO INTERNO, COM DUAS FACES SIMPLES E ESTRUTURA METÁLICA COM GUIAS DUPLAS, SEM VÃOS. AF_06/2017_P | D55: 4307.79 | E55: =D55/$D$159 -> 0.003649143346 | F55: =F54+E55 -> 
A56: 2.5 | B56: 10775 | C56: LOCACAO DE CONTAINER 2,30 X 6,00 M, ALT. 2,50 M, COM 1 SANITARIO, PARA ESCRITORIO, COMPLETO, SEM DIVISORIAS INTERNAS | D56: 4114.62 | E56: =D56/$D$159 -> 0.003485508391 | F56: =F55+E56 -> 
A57: 13.1 | B57: 86932 | C57: VASO SANITÁRIO SIFONADO COM CAIXA ACOPLADA LOUÇA BRANCA - PADRÃO MÉDIO, INCLUSO ENGATE FLEXÍVEL EM METAL CROMADO, 1/2 X 40CM - FORNECIMENTO E INSTALAÇÃO. AF_12/2013 | D57: 3765.23 | E57: =D57/$D$159 -> 0.003189538951 | F57: =F56+E57 -> 
A58: 12.5 | B58: 95468 | C58: PINTURA ESMALTE BRILHANTE (2 DEMAOS) SOBRE SUPERFICIE METALICA, INCLUSIVE PROTECAO COM ZARCAO (1 DEMAO) | D58: 3291.26 | E58: =D58/$D$159 -> 0.002788037376 | F58: =F57+E58 -> 
A59: 8.12 | B59: 98689 | C59: SOLEIRA EM GRANITO, LARGURA 15 CM, ESPESSURA 2,0 CM. AF_06/2018 | D59: 3203.22 | E59: =D59/$D$159 -> 0.002713458397 | F59: =F58+E59 -> 
A60: 3.2 | B60: 93358 | C60: ESCAVAÇÃO MANUAL DE VALA COM PROFUNDIDADE MENOR OU IGUAL A 1,30 M. AF_03/2016 | D60: 3082.49 | E60: =D60/$D$159 -> 0.002611187609 | F60: =F59+E60 -> 
A61: 13.6 | B61: 40729 | C61: VALVULA DESCARGA 1.1/2" COM REGISTRO, ACABAMENTO EM METAL CROMADO - FORNECIMENTO E INSTALACAO | D61: 3058.6 | E61: =D61/$D$159 -> 0.00259095031 | F61: =F60+E61 -> 
A62: 13.23 | B62: 18.030.0002-A | C62: CONDICIONADOR DE AR TIPO SPLIT 12000 BTU'S COMPREENDENDO 1 CONDENSADOR E 1 EVAPORADOR(VIDE INSTALACAO,ASSENTAMENTO E INTERLIGACOES FAMILIA 15.005).FORNECIMENTO | D62: 2906.34 | E62: =D62/$D$159 -> 0.002461970354 | F62: =F61+E62 -> 
A63: 6.2 | B63: 74141/2 | C63: LAJE PRE-MOLD BETA 12 P/3,5KN/M2 VAO 4,1M INCL VIGOTAS TIJOLOS ARMADU-RA NEGATIVA CAPEAMENTO 3CM CONCRETO 15MPA ESCORAMENTO MATERIAIS E MAO DE OBRA. | D63: 2839.26 | E63: =D63/$D$159 -> 0.002405146661 | F63: =F62+E63 -> 
A64: 10.17 | B64: 91785 | C64: (COMPOSIÇÃO REPRESENTATIVA) DO SERVIÇO DE INSTALAÇÃO DE TUBOS DE PVC, SOLDÁVEL, ÁGUA FRIA, DN 25 MM (INSTALADO EM RAMAL, SUB-RAMAL, RAMAL DE DISTRIBUIÇÃO OU PRUMADA), INCLUSIVE CONEXÕES, CORTES E FIXAÇÕES, PARA PRÉDIOS. AF_10/2015 | D64: 2802.36 | E64: =D64/$D$159 -> 0.002373888547 | F64: =F63+E64 -> 
A65: 11.7 | B65: 98546 | C65: IMPERMEABILIZAÇÃO DE SUPERFÍCIE COM MANTA ASFÁLTICA, UMA CAMADA, INCLUSIVE APLICAÇÃO DE PRIMER ASFÁLTICO, E=3MM. AF_06/2018 | D65: 2661.6 | E65: =D65/$D$159 -> 0.00225465028 | F65: =F64+E65 -> 
A66: 13.2 | B66: 95472 | C66: VASO SANITARIO SIFONADO CONVENCIONAL PARA PCD SEM FURO FRONTAL COM LOUÇA BRANCA SEM ASSENTO, INCLUSO CONJUNTO DE LIGAÇÃO PARA BACIA SANITÁRIA AJUSTÁVEL - FORNECIMENTO E INSTALAÇÃO. AF_10/2016 | D66: 2590.59 | E66: =D66/$D$159 -> 0.002194497471 | F66: =F65+E66 -> 
A67: 11.8 | B67: 91790 | C67: (COMPOSIÇÃO REPRESENTATIVA) DO SERVIÇO DE INSTALAÇÃO DE TUBOS DE PVC, SÉRIE R, ÁGUA PLUVIAL, DN 100 MM (INSTALADO EM RAMAL DE ENCAMINHAMENTO, OU CONDUTORES VERTICAIS), INCLUSIVE CONEXÕES, CORTES E FIXAÇÕES, PARA PRÉDIOS. AF_10/2015 | D67: 2505.2 | E67: =D67/$D$159 -> 0.002122163316 | F67: =F66+E67 -> 
A68: 10.2 | B68: 15.002.0663-A | C68: FILTRO ANAEROBIO,DE ANEIS DE CONCRETO PRE-MOLDADO,MEDINDO 1500X2000MM.FORNECIMENTO E COLOCACAO | D68: 2432.35 | E68: =D68/$D$159 -> 0.002060451836 | F68: =F67+E68 -> 
A69: 9.13 | B69: 74072/2 | C69: CORRIMAO EM TUBO ACO GALVANIZADO 2 1/2" COM BRACADEIRA | D69: 2409.69 | E69: =D69/$D$159 -> 0.002041256475 | F69: =F68+E69 -> 
A70: 5.2 | B70: 05.001.0002-B | C70: DEMOLICAO MANUAL DE CONCRETO ARMADO COMPREENDENDO PILARES,VIGAS E LAJES,EM ESTRUTURA APRESENTANDO POSICAO ESPECIAL,INCLUSIVE EMPILHAMENTO LATERAL DENTRO DO CANTEIRO DE SERVICO | D70: 2394.02 | E70: =D70/$D$159 -> 0.002027982365 | F70: =F69+E70 -> 
A71: 11.1 | B71: 55960 | C71: IMUNIZACAO DE MADEIRAMENTO PARA COBERTURA UTILIZANDO CUPINICIDA INCOLOR | D71: 2345.91 | E71: =D71/$D$159 -> 0.001987228223 | F71: =F70+E71 -> 
A72: 4.1 | B72: 05.001.0171-A | C72: TRANSPORTE HORIZONTAL DE MATERIAL DE 1ªCATEGORIA OU ENTULHO,EM CARRINHOS,A 20,00M DE DISTANCIA,INCLUSIVE CARGA A PA | D72: 2265.18 | E72: =D72/$D$159 -> 0.001918841569 | F72: =F71+E72 -> 
A73: 1.2 | B73: 01.050.0481-A | C73: PROJETO EXECUTIVO DE INSTALACAO HIDRAULICA,CONSIDERANDO O PROJETO BASICO EXISTENTE,PARA PREDIOS CULTURAIS,APRESENTADO EM AUTOCAD,INCLUSIVE AS LEGALIZACOES PERTINENTES | D73: 2190.35 | E73: =D73/$D$159 -> 0.001855452825 | F73: =F72+E73 -> 
A74: 5.9 | B74: 97064 | C74: MONTAGEM E DESMONTAGEM DE ANDAIME TUBULAR TIPO TORRE (EXCLUSIVE ANDAIME E LIMPEZA). AF_11/2017 | D74: 2146.04 | E74: =D74/$D$159 -> 0.001817917676 | F74: =F73+E74 -> 
A75: 9.9 | B75: 84844 | C75: JANELA DE MADEIRA TIPO GUILHOTINA, DE ABRIR , INCLUSAS GUARNICOES SEM FERRAGENS | D75: 2071.06 | E75: =D75/$D$159 -> 0.001754401867 | F75: =F74+E75 -> 
A76: 10.29 | B76: 18.027.0355-A | C76: LUMINARIA DE EMBUTIR,FIXADA EM LAJE OU FORRO,TIPO CALHA,CHANFRADA OU PRISMATICA,ESMALTADA,COMPLETA,EQUIPADA COM REATOR ELETRONICO DE ALTO FATOR DE POTENCIA(AFP>=0,92)E LAMPADA FLUORESCENTE DE 1X40W.FORNECIMENTO E COLOCACAO | D76: 2024.19 | E76: =D76/$D$159 -> 0.001714698133 | F76: =F75+E76 -> 
A77: 13.9 | B77: 93396 | C77: BANCADA GRANITO CINZA POLIDO 0,50 X 0,60M, INCL. CUBA DE EMBUTIR OVAL LOUÇA BRANCA 35 X 50CM, VÁLVULA METAL CROMADO, SIFÃO FLEXÍVEL PVC, ENGATE 30CM FLEXÍVEL PLÁSTICO E TORNEIRA CROMADA DE MESA, PADRÃO POPULAR - FORNEC. E INSTALAÇÃO. AF_12/2013 | D77: 2023.44 | E77: =D77/$D$159 -> 0.001714062805 | F77: =F76+E77 -> 
A78: 1.5 | B78: 01.050.0530-A | C78: PROJETO EXECUTIVO DE SISTEMA DE AR CONDICIONADO E EXAUSTAO MECANICA,CONSIDERANDO O PROJETO BASICO EXISTENTE,EM AUTOCAD,PARA PREDIOS COM AREA ATE 500M2 | D78: 2002.2 | E78: =D78/$D$159 -> 0.00169607033 | F78: =F77+E78 -> 
A79: 5.10 | B79: 04.020.0122-A | C79: TRANSPORTE DE ANDAIME TUBULAR,CONSIDERANDO-SE A AREA DE PROJECAO VERTICAL DO ANDAIME,EXCLUSIVE CARGA,DESCARGA E TEMPO DE ESPERA DO CAMINHAO(VIDE ITEM 04.021.0010) | D79: 1969.43 | E79: =D79/$D$159 -> 0.001668310753 | F79: =F78+E79 -> 
A80: 13.22 | B80: 15.005.0200-A | C80: INSTALACAO E ASSENTAMENTO DE AR CONDICIONADO TIPO SPLIT DE 9000 BTU'S,COM 1 CONDENSADOR E 1 EVAPORADOR,(VIDE FORNECIMENTO DO APARELHO NA FAMILIA 18.030)INCLUSIVE ACESSORIOS DE FIXACAO,EXCLUSIVE ALIMENTACAO ELETRICA E INTERLIGACAO AO CONDENSADOR/EVAPORADOR | D80: 1957.24 | E80: =D80/$D$159 -> 0.001657984563 | F80: =F79+E80 -> 
A81: 12.6 | B81: 74065/3 | C81: PINTURA ESMALTE BRILHANTE PARA MADEIRA, DUAS DEMAOS, SOBRE FUNDO NIVELADOR BRANCO | D81: 1951.29 | E81: =D81/$D$159 -> 0.001652944298 | F81: =F80+E81 -> 
A82: 10.26 | B82: 15.015.0081-A | C82: INSTALACAO DE UM CONJUNTO DE 5 PONTOS DE LUZ,APARENTE,EQUIVALENTE A 8 VARAS DE ELETRODUTO DE PVC RIGIDO DE 3/4",57,00M DE FIO 2,5MM2,CAIXAS,CONEXOES,LUVAS,CURVA E INTERRUPTOR DE SOBREPOR | D82: 1912.44 | E82: =D82/$D$159 -> 0.001620034333 | F82: =F81+E82 -> 
A83: 7.3 | B83: 87448 | C83: ALVENARIA DE VEDAÇÃO DE BLOCOS VAZADOS DE CONCRETO DE 9X19X39CM (ESPESSURA 9CM) DE PAREDES COM ÁREA LÍQUIDA MENOR QUE 6M² SEM VÃOS E ARGAMASSA DE ASSENTAMENTO COM PREPARO MANUAL. AF_06/2014 | D83: 1862.26 | E83: =D83/$D$159 -> 0.001577526687 | F83: =F82+E83 -> 
A84: 10.9 | B84: 91793 | C84: (COMPOSIÇÃO REPRESENTATIVA) DO SERVIÇO DE INSTALAÇÃO DE TUBO DE PVC, SÉRIE NORMAL, ESGOTO PREDIAL, DN 50 MM (INSTALADO EM RAMAL DE DESCARGA OU RAMAL DE ESGOTO SANITÁRIO), INCLUSIVE CONEXÕES, CORTES E FIXAÇÕES PARA, PRÉDIOS. AF_10/2015 | D84: 1755.57 | E84: =D84/$D$159 -> 0.00148714923 | F84: =F83+E84 -> 
A85: 5.3 | B85: 05.001.0018-A | C85: DEMOLICAO MANUAL DE PISO CIMENTADO E DA RESPECTIVA BASE DE CONCRETO,OU PASSEIO DE CONCRETO,INCLUSIVE EMPILHAMENTO LATERAL DENTRO DO CANTEIRO DE SERVICO | D85: 1661.29 | E85: =D85/$D$159 -> 0.001407284326 | F85: =F84+E85 -> 
A86: 11.5 | B86: 94219 | C86: CUMEEIRA E ESPIGÃO PARA TELHA CERÂMICA EMBOÇADA COM ARGAMASSA TRAÇO 1:2:9 (CIMENTO, CAL E AREIA), PARA TELHADOS COM MAIS DE 2 ÁGUAS, INCLUSO TRANSPORTE VERTICAL. AF_06/2016 | D86: 1657.67 | E86: =D86/$D$159 -> 0.001404217812 | F86: =F85+E86 -> 
A87: 3.3 | B87: 93382 | C87: REATERRO MANUAL DE VALAS COM COMPACTAÇÃO MECANIZADA. AF_04/2016 | D87: 1615.02 | E87: =D87/$D$159 -> 0.001368088854 | F87: =F86+E87 -> 
A88: 12.7 | B88: 6082 | C88: PINTURA EM VERNIZ SINTETICO BRILHANTE EM MADEIRA, TRES DEMAOS | D88: 1586.33 | E88: =D88/$D$159 -> 0.001343785459 | F88: =F87+E88 -> 
A89: 4.3 | B89: 72884 | C89: TRANSPORTE COMERCIAL COM CAMINHAO CARROCERIA 9 T, RODOVIA PAVIMENTADA | D89: 1492.96 | E89: =D89/$D$159 -> 0.001264691419 | F89: =F88+E89 -> 
A90: 10.28 | B90: 18.027.0305-A | C90: LUMINARIA DE SOBREPOR,FIXADA EM LAJE OU FORRO,TIPO CALHA,CHANFRADA OU PRISMATICA,ESMALTADA,COMPLETA,EQUIPADA COM REATORELETRONICO DE ALTO FATOR DE POTENCIA(AFP>=0,92)E LAMPADA FLUORESCENTE DE 1X40W.FORNECIMENTO E COLOCACAO | D90: 1462.8 | E90: =D90/$D$159 -> 0.001239142782 | F90: =F89+E90 -> 
A91: 10.21 | B91: 18.021.0040-A | C91: RESERVATORIO,EM FIBRA DE VIDRO OU POLIETILENO,COM CAPACIDADE EM TORNO DE 1.500L,INCLUSIVE TAMPA DE VEDACAO COM ESCOTILHA E FIXADORES.FORNECIMENTO | D91: 1461.92 | E91: =D91/$D$159 -> 0.001238397331 | F91: =F90+E91 -> 
A92: 12.3 | B92: 88486 | C92: APLICAÇÃO MANUAL DE PINTURA COM TINTA LÁTEX PVA EM TETO, DUAS DEMÃOS. AF_06/2014 | D92: 1445.26 | E92: =D92/$D$159 -> 0.001224284589 | F92: =F91+E92 -> 
A93: 9.11 | B93: 72120 | C93: VIDRO TEMPERADO INCOLOR, ESPESSURA 10MM, FORNECIMENTO E INSTALACAO, INCLUSIVE MASSA PARA VEDACAO | D93: 1412.79 | E93: =D93/$D$159 -> 0.001196779144 | F93: =F92+E93 -> 
A94: 2.1 | B94: 74209/1 | C94: PLACA DE OBRA EM CHAPA DE ACO GALVANIZADO | D94: 1345.68 | E94: =D94/$D$159 -> 0.001139930038 | F94: =F93+E94 -> 
A95: 13.5 | B95: 74234/1 | C95: MICTORIO SIFONADO DE LOUCA BRANCA COM PERTENCES, COM REGISTRO DE PRESSAO 1/2" COM CANOPLA CROMADA ACABAMENTO SIMPLES E CONJUNTO PARA FIXACAO - FORNECIMENTO E INSTALACAO | D95: 1303.12 | E95: =D95/$D$159 -> 0.001103877319 | F95: =F94+E95 -> 
A96: 13.8 | B96: 18.002.0014-A | C96: LAVATORIO DE LOUCA BRANCA,COM COLUNA SUSPENSA,PARA PESSOAS COM NECESSIDADES ESPECIFICAS,COM MEDIDAS EM TORNO DE 45,5X35,5CM,INCLUSIVE SIFAO EM PVC FLEXIVEL,VALVULA DE ESCOAMENTO CROMADA,RABICHO EM PVC E TORNEIRA DE FECHAMENTO AUTOMATICO.FORNECIMENTO | D96: 1237.65 | E96: =D96/$D$159 -> 0.001048417463 | F96: =F95+E96 -> 
A97: 9.8 | B97: 91341 | C97: PORTA EM ALUMÍNIO DE ABRIR TIPO VENEZIANA COM GUARNIÇÃO, FIXAÇÃO COM PARAFUSOS - FORNECIMENTO E INSTALAÇÃO. AF_08/2015 | D97: 1230.55 | E97: =D97/$D$159 -> 0.001042403029 | F97: =F96+E97 -> 
A98: 13.19 | B98: 74194/1 | C98: ESCADA TIPO MARINHEIRO EM TUBO ACO GALVANIZADO 1 1/2" 5 DEGRAUS | D98: 1226.01 | E98: =D98/$D$159 -> 0.00103855718 | F98: =F97+E98 -> 
A99: 1.4 | B99: 01.050.0455-A | C99: PROJETO EXECUTIVO DE INSTALACAO DE ESGOTO SANITARIO E AGUASPLUVIAIS,CONSIDERANDO O PROJETO BASICO EXISTENTE,PARA PREDIOS CULTURAIS,APRESENTADO EM AUTOCAD,INCLUSIVE AS LEGALIZACOES PERTINENTES | D99: 1207 | E99: =D99/$D$159 -> 0.001022453745 | F99: =F98+E99 -> 
A100: 11.9 | B100: 94230 | C100: CALHA DE BEIRAL, SEMICIRCULAR DE PVC, DIAMETRO 125 MM, INCLUINDO CABECEIRAS, EMENDAS, BOCAIS, SUPORTES E VEDAÇÕES, EXCLUINDO CONDUTORES, INCLUSO TRANSPORTE VERTICAL. AF_06/2016 | D100: 1155.72 | E100: =D100/$D$159 -> 0.0009790142851 | F100: =F99+E100 -> 
A101: 9.10 | B101: 85010 | C101: CAIXILHO FIXO, DE ALUMINIO, PARA VIDRO | D101: 1150.71 | E101: =D101/$D$159 -> 0.0009747702973 | F101: =F100+E101 -> 
A102: 13.10 | B102: 18.016.0106-A | C102: BARRA DE APOIO EM ACO INOXIDAVEL AISI 304,TUBO DE 1.1/4",INCLUSIVE FIXACAO COM PARAFUSOS INOXIDAVEIS E BUCHAS PLASTICAS,COM 80CM,PARA PESSOAS COM NECESSIDADES ESPECIFICAS.FORNECIMENTO E COLOCACAO | D102: 1129.24 | E102: =D102/$D$159 -> 0.0009565829884 | F102: =F101+E102 -> 
A103: 10.25 | B103: 15.015.0066-A | C103: INSTALACAO DE UM CONJUNTO DE 4 PONTOS DE LUZ,APARENTE,EQUIVALENTE 7 VARAS DE ELETRODUTO DE PVC RIGIDO DE 3/4",50,00M DEFIO 2,5MM2,CAIXAS,CONEXOES,LUVAS,CURVA E INTERRUPTOR DE SOBREPOR | D103: 1111.62 | E103: =D103/$D$159 -> 0.0009416570273 | F103: =F102+E103 -> 
A104: 13.24 | B104: 15.005.0201-A | C104: INSTALACAO E ASSENTAMENTO DE AR CONDICIONADO TIPO SPLIT DE 12000 BTU'S,COM 1 CONDENSADOR E 1 EVAPORADOR,(VIDE FORNECIMENTO DO APARELHO NA FAMILIA 18.030)INCLUSIVE ACESSORIOS DE FIXACAO,EXCLUSIVE ALIMENTACAO ELETRICA E INTERLIGACAO AO CONDENSADOR/EVAPORADO | D104: 1089.22 | E104: =D104/$D$159 -> 0.0009226819123 | F104: =F103+E104 -> 
A105: 2.8 | B105: 04.005.0300-A | C105: TRANSPORTE DE CONTAINER,SEGUNDO DESCRICAO DA FAMILIA 02.006,EXCLUSIVE CARGA E DESCARGA(VIDE ITEM 04.013.0015) | D105: 1066 | E105: =D105/$D$159 -> 0.0009030121725 | F105: =F104+E105 -> 
A106: 9.3 | B106: 90841 | C106: KIT DE PORTA DE MADEIRA PARA PINTURA, SEMI-OCA (LEVE OU MÉDIA), PADRÃO MÉDIO, 60X210CM, ESPESSURA DE 3,5CM, ITENS INCLUSOS: DOBRADIÇAS, MONTAGEM E INSTALAÇÃO DO BATENTE, FECHADURA COM EXECUÇÃO DO FURO - FORNECIMENTO E INSTALAÇÃO. AF_08/2015 | D106: 917.08 | E106: =D106/$D$159 -> 0.0007768615414 | F106: =F105+E106 -> 
A107: 10.18 | B107: 91786 | C107: (COMPOSIÇÃO REPRESENTATIVA) DO SERVIÇO DE INSTALAÇÃO TUBOS DE PVC, SOLDÁVEL, ÁGUA FRIA, DN 32 MM (INSTALADO EM RAMAL, SUB-RAMAL, RAMAL DE DISTRIBUIÇÃO OU PRUMADA), INCLUSIVE CONEXÕES, CORTES E FIXAÇÕES, PARA PRÉDIOS. AF_10/2015 | D107: 896.73 | E107: =D107/$D$159 -> 0.0007596229882 | F107: =F106+E107 -> 
A108: 10.3 | B108: 74166/1 | C108: CAIXA DE INSPEÇÃO EM CONCRETO PRÉ-MOLDADO DN 60CM COM TAMPA H= 60CM - FORNECIMENTO E INSTALACAO | D108: 831 | E108: =D108/$D$159 -> 0.0007039428849 | F108: =F107+E108 -> 
A109: 6.5 | B109: 93188 | C109: VERGA MOLDADA IN LOCO EM CONCRETO PARA PORTAS COM ATÉ 1,5 M DE VÃO. AF_03/2016 | D109: 798.04 | E109: =D109/$D$159 -> 0.0006760223584 | F109: =F108+E109 -> 
A110: 10.36 | B110: 74131/4 | C110: QUADRO DE DISTRIBUICAO DE ENERGIA DE EMBUTIR, EM CHAPA METALICA, PARA 18 DISJUNTORES TERMOMAGNETICOS MONOPOLARES, COM BARRAMENTO TRIFASICO E NEUTRO, FORNECIMENTO E INSTALACAO | D110: 771.74 | E110: =D110/$D$159 -> 0.0006537435403 | F110: =F109+E110 -> 
A111: 10.24 | B111: 15.015.0041-A | C111: INSTALACAO DE UM CONJUNTO DE 2 PONTOS DE LUZ,APARENTE,EQUIVALENTE A 5 VARAS DE ELETRODUTO DE PVC RIGIDO DE 1/2",33,00M DE FIO 2,5MM2,CAIXAS,CONEXOES,LUVAS,CURVA E INTERRUPTOR DE SOBREPOR | D111: 726.9 | E111: =D111/$D$159 -> 0.000615759426 | F111: =F110+E111 -> 
A112: 10.12 | B112: 15.001.0071-A | C112: ABRIGO PARA HIDROMETRO DE 1",NAS DIMENSOES DE 0,90X0,50X0,60M,EM ALVENARIA DE TIJOLOS FURADOS DE 10X20X20CM,PAREDES DE MEIA VEZ,REVESTIDAS COM ARGAMASSA DE CIMENTO E SAIBRO,NO TRACO 1:6,COM FUNDO DE CONCRETO E TAMPA DE CONCRETO ARMADO,PORTA DE 80X50CM EM | D112: 724.59 | E112: =D112/$D$159 -> 0.0006138026173 | F112: =F111+E112 -> 
A113: 8.5 | B113: 96120 | C113: ACABAMENTOS PARA FORRO (MOLDURA DE GESSO). AF_05/2017 | D113: 706.05 | E113: =D113/$D$159 -> 0.0005980973212 | F113: =F112+E113 -> 
A114: 10.37 | B114: 74131/7 | C114: QUADRO DE DISTRIBUICAO DE ENERGIA DE EMBUTIR, EM CHAPA METALICA, PARA 40 DISJUNTORES TERMOMAGNETICOS MONOPOLARES, COM BARRAMENTO TRIFASICO E NEUTRO, FORNECIMENTO E INSTALACAO | D114: 705.68 | E114: =D114/$D$159 -> 0.0005977838929 | F114: =F113+E114 -> 
A115: 10.32 | B115: COTAÇÃO 01 | C115: FITA LED BRANCO QUENTE 5 METROS + FONTE | D115: 659.76 | E115: =D115/$D$159 -> 0.000558884907 | F115: =F114+E115 -> 
A116: 10.10 | B116: 91794 | C116: (COMPOSIÇÃO REPRESENTATIVA) DO SERVIÇO DE INST. TUBO PVC, SÉRIE N, ESGOTO PREDIAL, DN 75 MM, (INST. EM RAMAL DE DESCARGA, RAMAL DE ESG. SANITÁRIO, PRUMADA DE ESG. SANITÁRIO OU VENTILAÇÃO), INCL. CONEXÕES, CORTES E FIXAÇÕES, P/ PRÉDIOS. AF_10/2015 | D116: 637.48 | E116: =D116/$D$159 -> 0.0005400114444 | F116: =F115+E116 -> 
A117: 13.4 | B117: 18.005.0015-A | C117: ASSENTO SANITARIO DE PLASTICO,TIPO MEDIO LUXO.FORNECIMENTO E COLOCACAO | D117: 570.92 | E117: =D117/$D$159 -> 0.0004836282453 | F117: =F116+E117 -> 
A118: 5.11 | B118: 04.021.0010-A | C118: CARGA E DESCARGA MANUAL DE ANDAIME TUBULAR,INCLUSIVE TEMPO DE ESPERA DO CAMINHAO,CONSIDERANDO-SE A AREA DE PROJECAO VERTICAL | D118: 555.66 | E118: =D118/$D$159 -> 0.0004707014482 | F118: =F117+E118 -> 
A119: 10.39 | B119: 93661 | C119: DISJUNTOR BIPOLAR TIPO DIN, CORRENTE NOMINAL DE 16A - FORNECIMENTO E INSTALAÇÃO. AF_04/2016 | D119: 554.24 | E119: =D119/$D$159 -> 0.0004694985614 | F119: =F118+E119 -> 
A120: 13.7 | B120: 86942 | C120: LAVATÓRIO LOUÇA BRANCA SUSPENSO, 29,5 X 39CM OU EQUIVALENTE, PADRÃO POPULAR, INCLUSO SIFÃO TIPO GARRAFA EM PVC, VÁLVULA E ENGATE FLEXÍVEL 30CM EM PLÁSTICO E TORNEIRA CROMADA DE MESA, PADRÃO POPULAR - FORNECIMENTO E INSTALAÇÃO. AF_12/2013 | D120: 510.54 | E120: =D120/$D$159 -> 0.000432480145 | F120: =F119+E120 -> 
A121: 10.16 | B121: 89987 | C121: REGISTRO DE GAVETA BRUTO, LATÃO, ROSCÁVEL, 3/4", COM ACABAMENTO E CANOPLA CROMADOS. FORNECIDO E INSTALADO EM RAMAL DE ÁGUA. AF_12/2014 | D121: 502.62 | E121: =D121/$D$159 -> 0.0004257710864 | F121: =F120+E121 -> 
A122: 13.16 | B122: 95547 | C122: SABONETEIRA PLASTICA TIPO DISPENSER PARA SABONETE LIQUIDO COM RESERVATORIO 800 A 1500 ML, INCLUSO FIXAÇÃO. AF_10/2016 | D122: 480.48 | E122: =D122/$D$159 -> 0.0004070162182 | F122: =F121+E122 -> 
A123: 10.8 | B123: 91792 | C123: (COMPOSIÇÃO REPRESENTATIVA) DO SERVIÇO DE INSTALAÇÃO DE TUBO DE PVC, SÉRIE NORMAL, ESGOTO PREDIAL, DN 40 MM (INSTALADO EM RAMAL DE DESCARGA OU RAMAL DE ESGOTO SANITÁRIO), INCLUSIVE CONEXÕES, CORTES E FIXAÇÕES, PARA PRÉDIOS. AF_10/2015 | D123: 475.91 | E123: =D123/$D$159 -> 0.0004031449559 | F123: =F122+E123 -> 
A124: 5.5 | B124: 05.001.0147-A | C124: ARRANCAMENTO DE GRADES,GRADIS,ALAMBRADOS,CERCAS E PORTOES | D124: 468.96 | E124: =D124/$D$159 -> 0.0003972575876 | F124: =F123+E124 -> 
A125: 10.13 | B125: 15.001.0079-A | C125: HIDROMETRO COM DIAMETRO DE 1".FORNECIMENTO | D125: 463.95 | E125: =D125/$D$159 -> 0.0003930135998 | F125: =F124+E125 -> 
A126: 11.6 | B126: 94231 | C126: RUFO EM CHAPA DE AÇO GALVANIZADO NÚMERO 24, CORTE DE 25 CM, INCLUSO TRANSPORTE VERTICAL. AF_06/2016 | D126: 455.28 | E126: =D126/$D$159 -> 0.0003856692138 | F126: =F125+E126 -> 
A127: 9.6 | B127: 14.006.0220-A | C127: PORTA DE MADEIRA DE LEI DE CORRER EM COMPENSADO DE 80X210X3CM,PENDURADA EM ROLDANAS,CORRENDO DENTRO DE TRILHO OCO,GUIADAOIR CANALETA EMBUTIDA NO PISO COM MARCO DE 7X3CM,EXCLUSIVE FERRAGENS.FORNECIMENTO E COLOCACAO | D127: 445.79 | E127: =D127/$D$159 -> 0.000377630203 | F127: =F126+E127 -> 
A128: 13.14 | B128: 86934 | C128: BANCADA DE MÁRMORE SINTÉTICO 120 X 60CM, COM CUBA INTEGRADA, INCLUSO SIFÃO TIPO FLEXÍVEL EM PVC, VÁLVULA EM PLÁSTICO CROMADO TIPO AMERICANA E TORNEIRA CROMADA LONGA, DE PAREDE, PADRÃO POPULAR - FORNECIMENTO E INSTALAÇÃO. AF_12/2013 | D128: 439.51 | E128: =D128/$D$159 -> 0.0003723103939 | F128: =F127+E128 -> 
A129: 10.4 | B129: 83446 | C129: CAIXA DE PASSAGEM 30X30X40 COM TAMPA E DRENO BRITA | D129: 435.44 | E129: =D129/$D$159 -> 0.0003688626833 | F129: =F128+E129 -> 
A130: 13.3 | B130: 18.005.0030-A | C130: ASSENTO ESPECIAL PARA VASO SANITARIO PARA PESSOAS COM NECESSIDADES ESPECIFICAS.FORNECIMENTO E COLOCACAO | D130: 434.16 | E130: =D130/$D$159 -> 0.000367778391 | F130: =F129+E130 -> 
A131: 13.17 | B131: 95544 | C131: PAPELEIRA DE PAREDE EM METAL CROMADO SEM TAMPA, INCLUSO FIXAÇÃO. AF_10/2016 | D131: 381.6 | E131: =D131/$D$159 -> 0.0003232546388 | F131: =F130+E131 -> 
A132: 13.18 | B132: 18.005.0013-A | C132: PORTA PAPEL HIGIENICO EM PLASTICO ABS.FORNECIMENTRO E COLOCACAO | D132: 365.6 | E132: =D132/$D$159 -> 0.0003097009852 | F132: =F131+E132 -> 
A133: 10.38 | B133: 74130/4 | C133: DISJUNTOR TERMOMAGNETICO TRIPOLAR PADRAO NEMA (AMERICANO) 10 A 50A 240V, FORNECIMENTO E INSTALACAO | D133: 350.91 | E133: =D133/$D$159 -> 0.000297257037 | F133: =F132+E133 -> 
A134: 13.11 | B134: 18.007.0090-A | C134: CHUVEIRO COM DESVIADOR E DUCHA MANUAL,CROMADO,PARA PESSOAS COM NECESSIDADES ESPECIFICAS.FORNECIMENTO | D134: 340.91 | E134: =D134/$D$159 -> 0.0002887860035 | F134: =F133+E134 -> 
A135: 4.2 | B135: 72898 | C135: CARGA E DESCARGA MECANIZADAS DE ENTULHO EM CAMINHAO BASCULANTE 6 M3 | D135: 338.83 | E135: =D135/$D$159 -> 0.0002870240285 | F135: =F134+E135 -> 
A136: 13.13 | B136: 14.007.0321-A | C136: PUXADOR HORIZONTAL PARA PORTA,TIPO ALCA,PARA PESSOAS COM NECESSIDADES ESPECIFICAS, EM TUBO DE ACO INOXIDAVEL DE 1.1/4",AISI-304,LIGA 18.8,COM 30CM.FORNECIMENTO | D136: 332.64 | E136: =D136/$D$159 -> 0.0002817804588 | F136: =F135+E136 -> 
A137: 5.4 | B137: 05.001.0134-A | C137: ARRANCAMENTO DE PORTAS,JANELAS E CAIXILHOS DE AR CONDICIONADO OU OUTROS | D137: 329.28 | E137: =D137/$D$159 -> 0.0002789341915 | F137: =F136+E137 -> 
A138: 9.7 | B138: 14.007.0090-A | C138: FERRAGENS P/PORTAS DE MADEIRA,DE CORRER,DE 1 FOLHA,CONSTANDO DE FORN.S/COLOC.DE:-FECHADURA C/CHAVE BI-PART.,LATAO, ACABAMENTO CROMADO;-2,00M DE TRILHO EM "U",DE FERRO;-2 ROLDANAS DE FERRO;-2 GUIAS DE LATAO,TAMANHO 3/4",SEM CANTONEIRA;-2,00M CANALETA DE AL | D138: 322.26 | E138: =D138/$D$159 -> 0.000272987526 | F138: =F137+E138 -> 
A139: 10.31 | B139: 97605 | C139: LUMINÁRIA ARANDELA TIPO MEIA-LUA, PARA 1 LÂMPADA LED - FORNECIMENTO E INSTALAÇÃO. AF_11/2017 | D139: 302.07 | E139: =D139/$D$159 -> 0.0002558845093 | F139: =F138+E139 -> 
A140: 13.12 | B140: 18.007.0075-A | C140: CHUVEIRO ELETRICO,EM METAL CROMADO,EM 110/220V,COM BRACO CROMADO DE 1/2" E 1 REGISTRO DE PRESSAO 1416 DE 3/4",COM CANOPLA E VOLANTE EM METAL CROMADO.FORNECIMENTO | D140: 254.17 | E140: =D140/$D$159 -> 0.0002153082588 | F140: =F139+E140 -> 
A141: 3.1 | B141: 90084 | C141: ESCAVAÇÃO MECANIZADA DE VALA COM PROF. MAIOR QUE 1,5 M ATÉ 3,0 M (MÉDIA ENTRE MONTANTE E JUSANTE/UMA COMPOSIÇÃO POR TRECHO), COM ESCAVADEIRA HIDRÁULICA (0,8 M3/111 HP), LARGURA ATÉ 1,5 M, EM SOLO DE 1A CATEGORIA, EM LOCAIS COM ALTO NÍVEL DE INTERFERÊNCIA. | D141: 248.49 | E141: =D141/$D$159 -> 0.0002104967118 | F141: =F140+E141 -> 
A142: 10.15 | B142: 89985 | C142: REGISTRO DE PRESSÃO BRUTO, LATÃO, ROSCÁVEL, 3/4", COM ACABAMENTO E CANOPLA CROMADOS. FORNECIDO E INSTALADO EM RAMAL DE ÁGUA. AF_12/2014 | D142: 239.58 | E142: =D142/$D$159 -> 0.0002029490209 | F142: =F141+E142 -> 
A143: 10.42 | B143: 74130/1 | C143: DISJUNTOR TERMOMAGNETICO MONOPOLAR PADRAO NEMA (AMERICANO) 10 A 30A 240V, FORNECIMENTO E INSTALACAO | D143: 234 | E143: =D143/$D$159 -> 0.0001982221842 | F143: =F142+E143 -> 
A144: 10.14 | B144: 94496 | C144: REGISTRO DE GAVETA BRUTO, LATÃO, ROSCÁVEL, 1 1/4, INSTALADO EM RESERVAÇÃO DE ÁGUA DE EDIFICAÇÃO QUE POSSUA RESERVATÓRIO DE FIBRA/FIBROCIMENTO  FORNECIMENTO E INSTALAÇÃO. AF_06/2016 | D144: 208.94 | E144: =D144/$D$159 -> 0.0001769937742 | F144: =F143+E144 -> 
A145: 10.5 | B145: 15.002.0062-A | C145: CAIXA DE GORDURA SIMPLES CILINDRICA,PRE-FABRICADA EM ANEIS DE CONCRETO,COM DIAMETRO DE 40CM E PROFUNDIDADE TOTAL DE 60CM,INCLUSIVE TAMPA DE CONCRETO.FORNECIMENTO E COLOCACAO | D145: 189.67 | E145: =D145/$D$159 -> 0.0001606700926 | F145: =F144+E145 -> 
A146: 6.6 | B146: 93187 | C146: VERGA MOLDADA IN LOCO EM CONCRETO PARA JANELAS COM MAIS DE 1,5 M DE VÃO. AF_03/2016 | D146: 186.22 | E146: =D146/$D$159 -> 0.0001577475861 | F146: =F145+E146 -> 
A147: 6.7 | B147: 93197 | C147: CONTRAVERGA MOLDADA IN LOCO EM CONCRETO PARA VÃOS DE MAIS DE 1,5 M DE COMPRIMENTO. AF_03/2016 | D147: 175.95 | E147: =D147/$D$159 -> 0.0001490478347 | F147: =F146+E147 -> 
A148: 10.40 | B148: 93663 | C148: DISJUNTOR BIPOLAR TIPO DIN, CORRENTE NOMINAL DE 25A - FORNECIMENTO E INSTALAÇÃO. AF_04/2016 | D148: 143.74 | E148: =D148/$D$159 -> 0.0001217626357 | F148: =F147+E148 -> 
A149: 10.19 | B149: 91787 | C149: (COMPOSIÇÃO REPRESENTATIVA) DO SERVIÇO DE INSTALAÇÃO DE TUBOS DE PVC, SOLDÁVEL, ÁGUA FRIA, DN 40 MM (INSTALADO EM PRUMADA), INCLUSIVE CONEXÕES, CORTES E FIXAÇÕES, PARA PRÉDIOS. AF_10/2015 | D149: 141.85 | E149: =D149/$D$159 -> 0.0001201616104 | F149: =F148+E149 -> 
A150: 2.7 | B150: 04.013.0015-A | C150: CARGA E DESCARGA DE CONTAINER,SEGUNDO DESCRICAO DA FAMILIA 02.006 | D150: 140.1 | E150: =D150/$D$159 -> 0.0001186791795 | F150: =F149+E150 -> 
A151: 13.15 | B151: 88571 | C151: SABONETEIRA DE SOBREPOR (FIXADA NA PAREDE), TIPO CONCHA, EM ACO INOXIDAVEL - FORNECIMENTO E INSTALACAO | D151: 137.46 | E151: =D151/$D$159 -> 0.0001164428267 | F151: =F150+E151 -> 
A152: 10.6 | B152: 89709 | C152: RALO SIFONADO, PVC, DN 100 X 40 MM, JUNTA SOLDÁVEL, FORNECIDO E INSTALADO EM RAMAL DE DESCARGA OU EM RAMAL DE ESGOTO SANITÁRIO. AF_12/2014 | D152: 109.76 | E152: =D152/$D$159 -> 9.297806384e-05 | F152: =F151+E152 -> 
A153: 10.41 | B153: 93664 | C153: DISJUNTOR BIPOLAR TIPO DIN, CORRENTE NOMINAL DE 32A - FORNECIMENTO E INSTALAÇÃO. AF_04/2016 | D153: 74.97 | E153: =D153/$D$159 -> 6.350733824e-05 | F153: =F152+E153 -> 
A154: 10.20 | B154: 83879 | C154: LIGACAO DA REDE 75MM AO RAMAL PREDIAL 1/2" | D154: 69.19 | E154: =D154/$D$159 -> 5.861108087e-05 | F154: =F153+E154 -> 
A155: 10.46 | B155: COTAÇÃO 03 | C155: ELETRODUTO PEAD CORRUGADO 6" (150MM) | D155: 67.3 | E155: =D155/$D$159 -> 5.701005554e-05 | F155: =F154+E155 -> 
A156: 10.22 | B156: 94797 | C156: TORNEIRA DE BOIA, ROSCÁVEL, 1, FORNECIDA E INSTALADA EM RESERVAÇÃO DE ÁGUA. AF_06/2016 | D156: 58.99 | E156: =D156/$D$159 -> 4.997062669e-05 | F156: =F155+E156 -> 
A157: 10.43 | B157: 74130/2 | C157: DISJUNTOR TERMOMAGNETICO MONOPOLAR PADRAO NEMA (AMERICANO) 35 A 50A 240V, FORNECIMENTO E INSTALACAO | D157: 55.1 | E157: =D157/$D$159 -> 4.667539465e-05 | F157: =F156+E157 -> 
A158: 10.7 | B158: 89710 | C158: RALO SECO, PVC, DN 100 X 40 MM, JUNTA SOLDÁVEL, FORNECIDO E INSTALADO EM RAMAL DE DESCARGA OU EM RAMAL DE ESGOTO SANITÁRIO. AF_12/2014 | D158: 13.44 | E158: =D158/$D$159 -> 1.138506904e-05 | F158: =F157+E158 -> 
A159: Total Geral: | D159: =SUM(D2:D158) -> 1180493.5 | E159: =SUM(E2:E158) -> 1
A161: 14.1 | B161: ADM | C161: ADMINISTRAÇÃO LOCAL: | D161: ='ORÇAMENTO ANALÍTICO'!I210 -> 51357

Sheet TABELA DINAMICA
A1: ITEM | B1: CODIGO | C1: DESCRIÇÃO | D1: PREÇO UNIT | E1: PREÇO TOTAL
A2: 13.20 | B2: 18.040.0025-A | C2: PLATAFORMA PARA TRANSPORTE VERTICAL,PERCURSO DE 3,17M,CAPACIDADE PARA 230KG,VELOCIDADE DE 6M/MINUTO,COM DUAS PARADAS,GUARDA CORPO LATERAL COM BRACO TIPO BASCULANTE E ACESSO PELO MESMO LADO,COMANDO AUTOMATICO SIMPLES NAS DUAS PARADAS FRANQUEADO,CHAVE NA CABINE,MOTOR ELETRICO DE 2CV A 1720RPM,60HZ,TRIFASICO (220/380V).FORNECIMENTO,MONTAGEM E INSTALACAO | D2: 64610.44 | E2: 129220.88 | M2: Dados
A3: 6.1 | B3: 11.016.0040-A | C3: ESTRUTURA METALICA EM ACO ESPECIAL,RESISTENTE A CORROSAO(ACO USI-SAC),PARA OBRAS PREDIAIS DE ATE 04 PAVIMENTOS,PILARES,VIGAS PRINCIPAIS E SECUNDARIAS,ESCADAS,PATAMARES E CHAPAS DAS BASES DA FUNDACAO,PINTURA PROTETORA,CONSIDERANDO FORNECIMENTO DE TODOS OS MATERIAIS E MONTAGEM,EXCLUSIVE A LAJE DE CONCRETO | D3: 611.03 | E3: 120641.76 | J3: DESCRIÇÃO | K3: CODIGO | L3: ITEM | M3: Soma - PREÇO UNIT | N3: Soma - PREÇO TOTAL
A4: 13.31 | B4: COTAÇÃO 04 | C4: POLTRONA COM ASSENTO RETRÁTIL E ENCOSTO FIXO REVESTIDA EM TECIDO OU COURO ECOLÓGICO | D4: 775.03 | E4: 116254.5 | J4: PLATAFORMA PARA TRANSPORTE VERTICAL,PERCURSO DE 3,17M,CAPACIDADE PARA 230KG,VELOCIDADE DE 6M/MINUTO,COM DUAS PARADAS,GUARDA CORPO LATERAL COM BRACO TIPO BASCULANTE E ACESSO PELO MESMO LADO,COMANDO AUTOMATICO SIMPLES NAS DUAS PARADAS FRANQUEADO,CHAVE NA CABINE,MOTOR ELETRICO DE 2CV A 1720RPM,60HZ,TRIFASICO (220/380V).FORNECIMENTO,MONTAGEM E INSTALACAO | K4: 18.040.0025-A | L4: 13.20 | M4: 64610.44 | N4: 129220.88
A5: 13.27 | B5: 18.030.0010-A | C5: CONDICIONADOR DE AR TIPO SPLIT 60000 BTU'S COMPREENDENDO 1 CONDENSADOR E 1 EVAPORADOR(VIDE INSTALACAO,ASSENTAMENTO E INTERLIGACOES FAMILIA 15.005).FORNECIMENTO | D5: 7996.3 | E5: 47977.8 | K5: 18.040.0025-A Resultado | M5: 64610.44 | N5: 129220.88
A6: 12.1 | B6: 17.018.0060-A | C6: PREPARO DE SUPERFICIES NOVAS,COM REVESTIMENTO LISO INTERNO OU EXTERNO,INCLUSIVE UMA DEMAO DE SELADOR ACRILICO,DUAS DEMAOS DE MASSA ACRILICA E LIXAMENTOS NECESSARIOS | D6: 33.11 | E6: 40628.94 | J6: PLATAFORMA PARA TRANSPORTE VERTICAL,PERCURSO DE 3,17M,CAPACIDADE PARA 230KG,VELOCIDADE DE 6M/MINUTO,COM DUAS PARADAS,GUARDA CORPO LATERAL COM BRACO TIPO BASCULANTE E ACESSO PELO MESMO LADO,COMANDO AUTOMATICO SIMPLES NAS DUAS PARADAS FRANQUEADO,CHAVE NA CABINE,MOTOR ELETRICO DE 2CV A 1720RPM,60HZ,TRIFASICO (220/380V).FORNECIMENTO,MONTAGEM E INSTALACAO Resultado | M6: 64610.44 | N6: 129220.88
A7: 12.4 | B7: 17.025.0005-B | C7: PINTURA COM TINTA ACRILICA,ANTIFUNGO/BACTERICIDA,PARA AMBIENTES INTERNOS E EXTERNOS PROPENSOS A UMIDADE E VAPORES,EM DUAS DEMAOS,SOBRE SELADOR ACRILICO E DUAS DEMAOS DE MASSA ACRILICA,INCLUSIVE LIMPEZA E LIXAMENTO | D7: 38.61 | E7: 29311.55 | J7: TRANSFORMADOR DISTRIBUICAO 300KVA TRIFASICO 60HZ CLASSE 15KV IMERSO EM ÓLEO MINERAL FORNECIMENTO E INSTALACAO | K7: 73857/5 | L7: 10.44 | M7: 22461.7 | N7: 22461.7
A8: 9.12 | B8: 14.002.0205-A | C8: GUARDA-CORPO DE FERRO EM LANCES DE 3,00 A 4,00M E 1,00M DE ALTURA,COM 4 MONTANTES DE BARRAS DE 2"X3/4",CHUMBADOS NO CONCRETO,CORRIMAO EM 2 BARRAS SOBREPOSTAS DE 3"X1/2" E 2"X3/8",DUAS TRAVESSAS HORIZONTAIS EM BARRAS DE 1.1/4"X3/8",SOLDADASNOS MONTANTES,UMA DISTANTE 0,34M DO PISO E A OUTRA A 0,33M DESTA E DO CORRIMAO.FORNECIMENTO E COLOCACAO | D8: 769.54 | E8: 27087.8 | K8: 73857/5 Resultado | M8: 22461.7 | N8: 22461.7
A9: 13.30 | B9: 15.005.0260-A | C9: TUBULACAO EM COBRE PARA INTERLIGACAO DE SPLIT SYSTEM AO CONDENSADOR/EVAPORADOR,INCLUSIVE ISOLAMENTO TERMICO,ALIMENTACAOELETRICA,CONEXOES E FIXACAO,PARA APARELHOS DE 60000 BTU'S.FORNECIMENTO E INSTALACAO | D9: 212.9 | E9: 25548 | J9: TRANSFORMADOR DISTRIBUICAO 300KVA TRIFASICO 60HZ CLASSE 15KV IMERSO EM ÓLEO MINERAL FORNECIMENTO E INSTALACAO Resultado | M9: 22461.7 | N9: 22461.7
A10: 8.10 | B10: 87263 | C10: REVESTIMENTO CERÂMICO PARA PISO COM PLACAS TIPO PORCELANATO DE DIMENSÕES 60X60 CM APLICADA EM AMBIENTES DE ÁREA MAIOR QUE 10 M². AF_06/2014 | D10: 112.11 | E10: 25260.62 | J10: CONDICIONADOR DE AR TIPO SPLIT 60000 BTU'S COMPREENDENDO 1 CONDENSADOR E 1 EVAPORADOR(VIDE INSTALACAO,ASSENTAMENTO E INTERLIGACOES FAMILIA 15.005).FORNECIMENTO | K10: 18.030.0010-A | L10: 13.27 | M10: 7996.3 | N10: 47977.8
A11: 10.45 | B11: 92998 | C11: CABO DE COBRE FLEXÍVEL ISOLADO, 185 MM², ANTI-CHAMA 0,6/1,0 KV, PARA DISTRIBUIÇÃO - FORNECIMENTO E INSTALAÇÃO. AF_12/2015 | D11: 150.05 | E11: 25208.4 | K11: 18.030.0010-A Resultado | M11: 7996.3 | N11: 47977.8
A12: 10.44 | B12: 73857/5 | C12: TRANSFORMADOR DISTRIBUICAO 300KVA TRIFASICO 60HZ CLASSE 15KV IMERSO EM ÓLEO MINERAL FORNECIMENTO E INSTALACAO | D12: 22461.7 | E12: 22461.7 | J12: CONDICIONADOR DE AR TIPO SPLIT 60000 BTU'S COMPREENDENDO 1 CONDENSADOR E 1 EVAPORADOR(VIDE INSTALACAO,ASSENTAMENTO E INTERLIGACOES FAMILIA 15.005).FORNECIMENTO Resultado | M12: 7996.3 | N12: 47977.8
A13: 9.1 | B13: 14.006.0423-A | C13: PORTA DE MADEIRA DE LEI MACICA COM ATE 5 ALMOFADAS,COM 3,5CM DE ESPESSURA,EXCLUSIVE FERRAGENS,MARCO E ALIZAR.FORNECIMENTO E COLOCACAO | D13: 761.74 | E13: 22280.89 | J13: CONDICIONADOR DE AR TIPO SPLIT 48000 BTU'S COMPREENDENDO 1 CONDENSADOR E 1 EVAPORADOR(VIDE INSTALACAO,ASSENTAMENTO E INTERLIGACOES FAMILIA 15.005).FORNECIMENTO | K13: 18.030.0009-A | L13: 13.25 | M13: 7627.24 | N13: 15254.48
A14: 1.1 | B14: 01.050.0546-A | C14: PROJETO EXECUTIVO ESTRUTURAL PARA PREDIOS CULTURAIS ATE 500M2,CONSIDERANDO O PROJETO BASICO EXISTENTE,APRESENTADO EM AUTOCAD NOS PADROES DA CONTRATANTE,CONSTANDO DE PLANTAS DE FORMA,ARMACAO E DETALHES,DE ACORDO COM A ABNT | D14: 58.06 | E14: 20611.3 | K14: 18.030.0009-A Resultado | M14: 7627.24 | N14: 15254.48
A15: 8.1 | B15: 13.001.0026-A | C15: EMBOCO COM ARGAMASSA DE CIMENTO E AREIA,NO TRACO 1:3 COM 2CM DE ESPESSURA,INCLUSIVE CHAPISCO DE CIMENTO E AREIA,NO TRACO 1:3 | D15: 29.77 | E15: 18067.11 | J15: CONDICIONADOR DE AR TIPO SPLIT 48000 BTU'S COMPREENDENDO 1 CONDENSADOR E 1 EVAPORADOR(VIDE INSTALACAO,ASSENTAMENTO E INTERLIGACOES FAMILIA 15.005).FORNECIMENTO Resultado | M15: 7627.24 | N15: 15254.48
A16: 8.8 | B16: 87373 | C16: ARGAMASSA TRAÇO 1:4 (CIMENTO E AREIA MÉDIA) PARA CONTRAPISO, PREPARO MANUAL. AF_06/2014 | D16: 621.26 | E16: 17811.52 | J16: LUSTRE DE CRISTAL TRANSPARENTE 28 BRAÇOS. | K16: COTAÇÃO 02 | L16: 10.33 | M16: 5854.4 | N16: 5854.4
A17: 8.13 | B17: 98671 | C17: PISO EM GRANITO APLICADO EM AMBIENTES INTERNOS. AF_06/2018 | D17: 444.22 | E17: 17782.12 | K17: COTAÇÃO 02 Resultado | M17: 5854.4 | N17: 5854.4
A18: 13.28 | B18: 15.005.0209-A | C18: INSTALACAO E ASSENTAMENTO DE AR CONDICIONADO TIPO SPLIT DE 60000 BTU'S,COM 1 CONDENSADOR E 1 EVAPORADOR,(VIDE FORNECIMENTO DO APARELHO NA FAMILIA 18.030)INCLUSIVE ACESSORIOS DE FIXACAO,EXCLUSIVE ALIMENTACAO ELETRICA E INTERLIGACAO AO CONDENSADOR/EVAPORADOR (VIDE ITEM 15.005.0255) | D18: 2930.18 | E18: 17581.08 | J18: LUSTRE DE CRISTAL TRANSPARENTE 28 BRAÇOS. Resultado | M18: 5854.4 | N18: 5854.4
A19: 8.2 | B19: 87274 | C19: REVESTIMENTO CERÂMICO PARA PAREDES INTERNAS COM PLACAS TIPO ESMALTADA EXTRA DE DIMENSÕES 33X45 CM APLICADAS EM AMBIENTES DE ÁREA MENOR QUE 5 M² A MEIA ALTURA DAS PAREDES. AF_06/2014 | D19: 81.5 | E19: 16256.8 | J19: FOSSA SEPTICA CILINDRICA,TIPO CAMARA IMHOFF,DE CONCRETO PRE-MOLDADO,MEDINDO 2000X2000MM.FORNECIMENTO E COLOCACAO | K19: 15.002.0580-A | L19: 10.1 | M19: 4699.57 | N19: 4699.57
A20: 6.3 | B20: 11.013.0075-A | C20: CONCRETO ARMADO,FCK=25MPA,INCLUINDO MATERIAIS PARA 1,00M3 DE CONCRETO(IMPORTADO DE USINA)ADENSADO E COLOCADO,14,00M2 DEAREA MOLDADA,FORMAS E ESCORAMENTO CONFORME ITENS 11.004.0022 E 11.004.0035,60KG DE ACO CA-50,INCLUSIVE MAO-DE-OBRA PARACORTE,DOBRAGEM,MONTAGEM E COLOCACAO NAS FORMAS | D20: 2290.48 | E20: 15987.55 | K20: 15.002.0580-A Resultado | M20: 4699.57 | N20: 4699.57
A21: 13.25 | B21: 18.030.0009-A | C21: CONDICIONADOR DE AR TIPO SPLIT 48000 BTU'S COMPREENDENDO 1 CONDENSADOR E 1 EVAPORADOR(VIDE INSTALACAO,ASSENTAMENTO E INTERLIGACOES FAMILIA 15.005).FORNECIMENTO | D21: 7627.24 | E21: 15254.48 | J21: FOSSA SEPTICA CILINDRICA,TIPO CAMARA IMHOFF,DE CONCRETO PRE-MOLDADO,MEDINDO 2000X2000MM.FORNECIMENTO E COLOCACAO Resultado | M21: 4699.57 | N21: 4699.57
A22: 8.4 | B22: 13.196.0025-A | C22: FORRO REMOVIVEL COMPOSTO GESSO ACARTONADO,TIPO STANDARD,C/ADICAO DE LA MINERAL,A SER APLICADO SIST.DRYWALL,C/BORDA QUADRADA 625X625MM REVEST.VINIL,ESP.6,5;9,5 OU 12,5MM,ESTRUT.EM PERFIS TIPO TRAVESSA "T" ACO GALV.ALUMINIO OU LIGAS ALUMINIO,ESP.MINIMA 0,5M,C/PINTURA ELETROSTATICA OU CONVENCIONAL,SUSPENSA POR MEIO PENDURAIS,FIX.EM ESTRUT.SUPERIOR.FORN.E COLOC. | D22: 92.39 | E22: 14816.58 | J22: INSTALACAO E ASSENTAMENTO DE AR CONDICIONADO TIPO SPLIT DE 60000 BTU'S,COM 1 CONDENSADOR E 1 EVAPORADOR,(VIDE FORNECIMENTO DO APARELHO NA FAMILIA 18.030)INCLUSIVE ACESSORIOS DE FIXACAO,EXCLUSIVE ALIMENTACAO ELETRICA E INTERLIGACAO AO CONDENSADOR/EVAPORADOR (VIDE ITEM 15.005.0255) | K22: 15.005.0209-A | L22: 13.28 | M22: 2930.18 | N22: 17581.08
A23: 6.4 | B23: 95969 | C23: (COMPOSIÇÃO REPRESENTATIVA) EXECUÇÃO DE ESCADA EM CONCRETO ARMADO, MOLDADA IN LOCO, FCK = 25 MPA. AF_02/2017 | D23: 2709.41 | E23: 14712.09 | K23: 15.005.0209-A Resultado | M23: 2930.18 | N23: 17581.08
A24: 8.6 | B24: 94992 | C24: EXECUÇÃO DE PASSEIO (CALÇADA) OU PISO DE CONCRETO COM CONCRETO MOLDADO IN LOCO, FEITO EM OBRA, ACABAMENTO CONVENCIONAL, ESPESSURA 6 CM, ARMADO. AF_07/2016 | D24: 73.67 | E24: 14546.87 | J24: INSTALACAO E ASSENTAMENTO DE AR CONDICIONADO TIPO SPLIT DE 60000 BTU'S,COM 1 CONDENSADOR E 1 EVAPORADOR,(VIDE FORNECIMENTO DO APARELHO NA FAMILIA 18.030)INCLUSIVE ACESSORIOS DE FIXACAO,EXCLUSIVE ALIMENTACAO ELETRICA E INTERLIGACAO AO CONDENSADOR/EVAPORADOR (VIDE ITEM 15.005.0255) Resultado | M24: 2930.18 | N24: 17581.08
A25: 11.2 | B25: 92542 | C25: TRAMA DE MADEIRA COMPOSTA POR RIPAS, CAIBROS E TERÇAS PARA TELHADOS DE MAIS QUE 2 ÁGUAS PARA TELHA CERÂMICA CAPA-CANAL, INCLUSO TRANSPORTE VERTICAL. AF_12/2015 | D25: 87.04 | E25: 14298.93 | J25: INSTALACAO E ASSENTAMENTO DE AR CONDICIONADO TIPO SPLIT DE 48000 BTU'S,COM 1 CONDENSADOR E 1 EVAPORADOR,(VIDE FORNECIMENTO DO APARELHO NA FAMILIA 18.030)INCLUSIVE ACESSORIOS DE FIXACAO,EXCLUSIVE ALIMENTACAO ELETRICA E INTERLIGACAO AO CONDENSADOR/EVAPORADOR (VIDE ITEM 15.005.0255) | K25: 15.005.0208-A | L25: 13.26 | M25: 2836.29 | N25: 5672.58
A26: 10.34 | B26: 15.015.0250-A | C26: INSTALACAO DE PONTO DE TOMADA,EMBUTIDO NA ALVENARIA,EQUIVALENTE A 2 VARAS DE ELETRODUTO DE PVC RIGIDO DE 3/4",18,00M DEFIO 2,5MM2,CAIXAS,CONEXOES E TOMADA DE EMBUTIR,2P+T,10A,PADRAO BRASILEIRO,COM PLACA FOSFORESCENTE,INCLUSIVE ABERTURA E FECHAMENTO DE RASGO EM ALVENARIA | D26: 293.71 | E26: 14098.08 | K26: 15.005.0208-A Resultado | M26: 2836.29 | N26: 5672.58
A27: 12.2 | B27: 88487 | C27: APLICAÇÃO MANUAL DE PINTURA COM TINTA LÁTEX PVA EM PAREDES, DUAS DEMÃOS. AF_06/2014 | D27: 12.08 | E27: 13544.21 | J27: INSTALACAO E ASSENTAMENTO DE AR CONDICIONADO TIPO SPLIT DE 48000 BTU'S,COM 1 CONDENSADOR E 1 EVAPORADOR,(VIDE FORNECIMENTO DO APARELHO NA FAMILIA 18.030)INCLUSIVE ACESSORIOS DE FIXACAO,EXCLUSIVE ALIMENTACAO ELETRICA E INTERLIGACAO AO CONDENSADOR/EVAPORADOR (VIDE ITEM 15.005.0255) Resultado | M27: 2836.29 | N27: 5672.58
A28: 11.3 | B28: 92554 | C28: FABRICAÇÃO E INSTALAÇÃO DE TESOURA INTEIRA EM MADEIRA NÃO APARELHADA, VÃO DE 12 M, PARA TELHA CERÂMICA OU DE CONCRETO, INCLUSO IÇAMENTO. AF_12/2015 | D28: 2666.79 | E28: 13333.95 | J28: (COMPOSIÇÃO REPRESENTATIVA) EXECUÇÃO DE ESCADA EM CONCRETO ARMADO, MOLDADA IN LOCO, FCK = 25 MPA. AF_02/2017 | K28: 95969 | L28: 6.4 | M28: 2709.41 | N28: 14712.09
A29: 13.29 | B29: 15.005.0255-A | C29: TUBULACAO EM COBRE PARA INTERLIGACAO DE SPLIT SYSTEM AO CONDENSADOR/EVAPORADOR,INCLUSIVE ISOLAMENTO TERMICO,ALIMENTACAOELETRICA,CONEXOES E FIXACAO,PARA APARELHOS ATE 48000 BTU'S.FORNECIMENTO E INSTALACAO | D29: 174.05 | E29: 13175.58 | K29: 95969 Resultado | M29: 2709.41 | N29: 14712.09
A30: 10.27 | B30: 15.015.0106-A | C30: INSTALACAO DE UM CONJUNTO DE 8 PONTOS DE LUZ,APARENTE COM CANALETA PERFURADA,SENDO ESTA LIGADA A ELETROCALHA PRINCIPAL(EXCLUSIVE ESTA),EQUIVALENTE A 6,75 VARAS DE CANALETA E 2 VARAS DE ELETRODUTO DE PVC RIGIDO DE 3/4",92,00M DE FIO 2,5MM2,CAIXAS,CONEXOES,LUVAS,CURVA E INTERRUPTOR DE SOBREPOR | D30: 1316.37 | E30: 10530.96 | J30: (COMPOSIÇÃO REPRESENTATIVA) EXECUÇÃO DE ESCADA EM CONCRETO ARMADO, MOLDADA IN LOCO, FCK = 25 MPA. AF_02/2017 Resultado | M30: 2709.41 | N30: 14712.09
A31: 8.7 | B31: 92396 | C31: EXECUÇÃO DE PASSEIO EM PISO INTERTRAVADO, COM BLOCO RETANGULAR COR NATURAL DE 20 X 10 CM, ESPESSURA 6 CM. AF_12/2015 | D31: 73.04 | E31: 9933.44 | J31: FABRICAÇÃO E INSTALAÇÃO DE TESOURA INTEIRA EM MADEIRA NÃO APARELHADA, VÃO DE 12 M, PARA TELHA CERÂMICA OU DE CONCRETO, INCLUSO IÇAMENTO. AF_12/2015 | K31: 92554 | L31: 11.3 | M31: 2666.79 | N31: 13333.95
A32: 5.7 | B32: 05.005.0005-B | C32: ANDAIME DE TABUADO SOBRE CAVALETES,INCLUSIVE ESTES,EM MADEIRA DE 1ª,COM APROVEITAMENTO DA MADEIRA 20 VEZES,INCLUSIVE MOVIMENTACAO | D32: 11.5 | E32: 8835.68 | K32: 92554 Resultado | M32: 2666.79 | N32: 13333.95
A33: 9.4 | B33: 90842 | C33: KIT DE PORTA DE MADEIRA PARA PINTURA, SEMI-OCA (LEVE OU MÉDIA), PADRÃO MÉDIO, 70X210CM, ESPESSURA DE 3,5CM, ITENS INCLUSOS: DOBRADIÇAS, MONTAGEM E INSTALAÇÃO DO BATENTE, FECHADURA COM EXECUÇÃO DO FURO - FORNECIMENTO E INSTALAÇÃO. AF_08/2015 | D33: 980.98 | E33: 8828.82 | J33: FABRICAÇÃO E INSTALAÇÃO DE TESOURA INTEIRA EM MADEIRA NÃO APARELHADA, VÃO DE 12 M, PARA TELHA CERÂMICA OU DE CONCRETO, INCLUSO IÇAMENTO. AF_12/2015 Resultado | M33: 2666.79 | N33: 13333.95
A34: 3.4 | B34: 03.009.0015-A | C34: ATERRO COM MATERIAL DE 1ª CATEGORIA,COMPACTADO MANUALMENTE EM CAMADAS DE 20CM DE MATERIAL APILOADO,PROVENIENTE DE JAZIDA DISTANTE ATE 10KM,INCLUSIVE ESCAVACAO,CARGA,TRANSPORTE EM CAMINHAO BASCULANTE,DESCARGA,ESPALHAMENTO E IRRIGACAO MANUAIS | D34: 166.5 | E34: 8641.35 | J34: FILTRO ANAEROBIO,DE ANEIS DE CONCRETO PRE-MOLDADO,MEDINDO 1500X2000MM.FORNECIMENTO E COLOCACAO | K34: 15.002.0663-A | L34: 10.2 | M34: 2432.35 | N34: 2432.35
A35: 10.30 | B35: 97593 | C35: LUMINÁRIA TIPO SPOT, DE SOBREPOR, COM 1 LÂMPADA DE 15 W - FORNECIMENTO E INSTALAÇÃO. AF_11/2017 | D35: 101.72 | E35: 8442.76 | K35: 15.002.0663-A Resultado | M35: 2432.35 | N35: 2432.35
A36: 9.5 | B36: 90843 | C36: KIT DE PORTA DE MADEIRA PARA PINTURA, SEMI-OCA (LEVE OU MÉDIA), PADRÃO MÉDIO, 80X210CM, ESPESSURA DE 3,5CM, ITENS INCLUSOS: DOBRADIÇAS, MONTAGEM E INSTALAÇÃO DO BATENTE, FECHADURA COM EXECUÇÃO DO FURO - FORNECIMENTO E INSTALAÇÃO. AF_08/2015 | D36: 1023.44 | E36: 8187.52 | J36: FILTRO ANAEROBIO,DE ANEIS DE CONCRETO PRE-MOLDADO,MEDINDO 1500X2000MM.FORNECIMENTO E COLOCACAO Resultado | M36: 2432.35 | N36: 2432.35
A37: 10.35 | B37: 15.015.0173-A | C37: INSTALACAO DE PONTO DE FORCA ATE 4CV,EQUIVALENTE A 2 VARAS DE ELETRODUTO DE PVC RIGIDO DE 3/4",20,00M DE FIO 4MM2,CAIXAS E CONEXOES | D37: 449.45 | E37: 8090.1 | J37: CONCRETO ARMADO,FCK=25MPA,INCLUINDO MATERIAIS PARA 1,00M3 DE CONCRETO(IMPORTADO DE USINA)ADENSADO E COLOCADO,14,00M2 DEAREA MOLDADA,FORMAS E ESCORAMENTO CONFORME ITENS 11.004.0022 E 11.004.0035,60KG DE ACO CA-50,INCLUSIVE MAO-DE-OBRA PARACORTE,DOBRAGEM,MONTAGEM E COLOCACAO NAS FORMAS | K37: 11.013.0075-A | L37: 6.3 | M37: 2290.48 | N37: 15987.55
A38: 5.8 | B38: 05.006.0001-B | C38: ALUGUEL DE ANDAIME COM ELEMENTOS TUBULARES(FACHADEIRO)SOBRESAPATAS FIXAS,CONSIDERANDO-SE A AREA DA PROJECAO VERTICAL DO ANDAIME E PAGO PELO TEMPO NECESSARIO A SUA UTILIZACAO,EXCLUSIVE TRANSPORTE DOS ELEMENTOS DO ANDAIME ATE A OBRA,PLATAFORMA OU PASSARELA DE PINHO,MONTAGEM E DESMONTAGEM DOS ANDAIMES | D38: 5.15 | E38: 7244.71 | K38: 11.013.0075-A Resultado | M38: 2290.48 | N38: 15987.55
A39: 10.23 | B39: 15.015.0021-A | C39: INSTALACAO DE PONTO DE LUZ,APARENTE,EQUIVALENTE A 2 VARAS DE ELETRODUTO DE PVC RIGIDO DE 3/4",12,00M DE FIO 2,5MM2,CAIXAS,CONEXOES,LUVAS,CURVA E INTERRUPTOR DE SOBREPOR | D39: 236.57 | E39: 6860.53 | J39: CONCRETO ARMADO,FCK=25MPA,INCLUINDO MATERIAIS PARA 1,00M3 DE CONCRETO(IMPORTADO DE USINA)ADENSADO E COLOCADO,14,00M2 DEAREA MOLDADA,FORMAS E ESCORAMENTO CONFORME ITENS 11.004.0022 E 11.004.0035,60KG DE ACO CA-50,INCLUSIVE MAO-DE-OBRA PARACORTE,DOBRAGEM,MONTAGEM E COLOCACAO NAS FORMAS Resultado | M39: 2290.48 | N39: 15987.55
A40: 2.6 | B40: 10778 | C40: LOCACAO DE CONTAINER 2,30 X 6,00 M, ALT. 2,50 M, PARA SANITARIO, COM 4 BACIAS, 8 CHUVEIROS,1 LAVATORIO E 1 MICTORIO | D40: 857.21 | E40: 5143.26 | J40: CONDICIONADOR DE AR TIPO SPLIT 12000 BTU'S COMPREENDENDO 1 CONDENSADOR E 1 EVAPORADOR(VIDE INSTALACAO,ASSENTAMENTO E INTERLIGACOES FAMILIA 15.005).FORNECIMENTO | K40: 18.030.0002-A | L40: 13.23 | M40: 1453.17 | N40: 2906.34
A41: 11.4 | B41: 94198 | C41: TELHAMENTO COM TELHA CERÂMICA DE ENCAIXE, TIPO PORTUGUESA, COM MAIS DE 2 ÁGUAS, INCLUSO TRANSPORTE VERTICAL. AF_06/2016 | D41: 65.67 | E41: 6472.43 | K41: 18.030.0002-A Resultado | M41: 1453.17 | N41: 2906.34
A42: 7.1 | B42: 87490 | C42: ALVENARIA DE VEDAÇÃO DE BLOCOS CERÂMICOS FURADOS NA VERTICAL DE 9X19X39CM (ESPESSURA 9CM) DE PAREDES COM ÁREA LÍQUIDA MAIOR OU IGUAL A 6M² COM VÃOS E ARGAMASSA DE ASSENTAMENTO COM PREPARO MANUAL. AF_06/2014 | D42: 50.5 | E42: 6247.86 | J42: CONDICIONADOR DE AR TIPO SPLIT 12000 BTU'S COMPREENDENDO 1 CONDENSADOR E 1 EVAPORADOR(VIDE INSTALACAO,ASSENTAMENTO E INTERLIGACOES FAMILIA 15.005).FORNECIMENTO Resultado | M42: 1453.17 | N42: 2906.34
A43: 8.11 | B43: 13.331.0051-A | C43: RODAPE COM CERAMICA EM PORCELANATO NATURAL,COM 7,5 A 10CM DE ALTURA,ASSENTES CONFORME ITEM 13.025.0058 | D43: 37.89 | E43: 6247.3 | J43: CONDICIONADOR DE AR TIPO SPLIT 9000 BTU'S COMPREENDENDO 1 CONDENSADOR E 1 EVAPORADOR(VIDE INSTALACAO,ASSENTAMENTO E INTERLIGACOES FAMILIA 15.005).FORNECIMENTO | K43: 18.030.0001-A | L43: 13.21 | M43: 1324 | N43: 5296
A44: 10.33 | B44: COTAÇÃO 02 | C44: LUSTRE DE CRISTAL TRANSPARENTE 28 BRAÇOS. | D44: 5854.4 | E44: 5854.4 | K44: 18.030.0001-A Resultado | M44: 1324 | N44: 5296
A45: 10.11 | B45: 91795 | C45: (COMPOSIÇÃO REPRESENTATIVA) DO SERVIÇO DE INST. TUBO PVC, SÉRIE N, ESGOTO PREDIAL, 100 MM (INST. RAMAL DESCARGA, RAMAL DE ESG. SANIT., PRUMADA ESG. SANIT., VENTILAÇÃO OU SUB-COLETOR AÉREO), INCL. CONEXÕES E CORTES, FIXAÇÕES, P/ PRÉDIOS. AF_10/2015 | D45: 67.01 | E45: 5756.15 | J45: CONDICIONADOR DE AR TIPO SPLIT 9000 BTU'S COMPREENDENDO 1 CONDENSADOR E 1 EVAPORADOR(VIDE INSTALACAO,ASSENTAMENTO E INTERLIGACOES FAMILIA 15.005).FORNECIMENTO Resultado | M45: 1324 | N45: 5296
A46: 13.26 | B46: 15.005.0208-A | C46: INSTALACAO E ASSENTAMENTO DE AR CONDICIONADO TIPO SPLIT DE 48000 BTU'S,COM 1 CONDENSADOR E 1 EVAPORADOR,(VIDE FORNECIMENTO DO APARELHO NA FAMILIA 18.030)INCLUSIVE ACESSORIOS DE FIXACAO,EXCLUSIVE ALIMENTACAO ELETRICA E INTERLIGACAO AO CONDENSADOR/EVAPORADOR (VIDE ITEM 15.005.0255) | D46: 2836.29 | E46: 5672.58 | J46: INSTALACAO DE UM CONJUNTO DE 8 PONTOS DE LUZ,APARENTE COM CANALETA PERFURADA,SENDO ESTA LIGADA A ELETROCALHA PRINCIPAL(EXCLUSIVE ESTA),EQUIVALENTE A 6,75 VARAS DE CANALETA E 2 VARAS DE ELETRODUTO DE PVC RIGIDO DE 3/4",92,00M DE FIO 2,5MM2,CAIXAS,CONEXOES,LUVAS,CURVA E INTERRUPTOR DE SOBREPOR | K46: 15.015.0106-A | L46: 10.27 | M46: 1316.37 | N46: 10530.96
A47: 5.6 | B47: 05.001.0050-A | C47: REMOCAO DE COBERTURA EM TELHAS COLONIAIS,INCLUSIVE MADEIRAMENTO,MEDIDO O CONJUNTO PELA AREA REAL DE COBERTURA | D47: 33.74 | E47: 5542.8 | K47: 15.015.0106-A Resultado | M47: 1316.37 | N47: 10530.96
A48: 7.4 | B48: 73774/1 | C48: DIVISORIA EM MARMORITE ESPESSURA 35MM, CHUMBAMENTO NO PISO E PAREDE COM ARGAMASSA DE CIMENTO E AREIA, POLIMENTO MANUAL, EXCLUSIVE FERRAGENS | D48: 402.85 | E48: 5527.1 | J48: INSTALACAO DE UM CONJUNTO DE 8 PONTOS DE LUZ,APARENTE COM CANALETA PERFURADA,SENDO ESTA LIGADA A ELETROCALHA PRINCIPAL(EXCLUSIVE ESTA),EQUIVALENTE A 6,75 VARAS DE CANALETA E 2 VARAS DE ELETRODUTO DE PVC RIGIDO DE 3/4",92,00M DE FIO 2,5MM2,CAIXAS,CONEXOES,LUVAS,CURVA E INTERRUPTOR DE SOBREPOR Resultado | M48: 1316.37 | N48: 10530.96
A49: 2.5 | B49: 10775 | C49: LOCACAO DE CONTAINER 2,30 X 6,00 M, ALT. 2,50 M, COM 1 SANITARIO, PARA ESCRITORIO, COMPLETO, SEM DIVISORIAS INTERNAS | D49: 685.77 | E49: 4114.62 | J49: KIT DE PORTA DE MADEIRA PARA PINTURA, SEMI-OCA (LEVE OU MÉDIA), PADRÃO MÉDIO, 80X210CM, ESPESSURA DE 3,5CM, ITENS INCLUSOS: DOBRADIÇAS, MONTAGEM E INSTALAÇÃO DO BATENTE, FECHADURA COM EXECUÇÃO DO FURO - FORNECIMENTO E INSTALAÇÃO. AF_08/2015 | K49: 90843 | L49: 9.5 | M49: 1023.44 | N49: 8187.52
A50: 13.21 | B50: 18.030.0001-A | C50: CONDICIONADOR DE AR TIPO SPLIT 9000 BTU'S COMPREENDENDO 1 CONDENSADOR E 1 EVAPORADOR(VIDE INSTALACAO,ASSENTAMENTO E INTERLIGACOES FAMILIA 15.005).FORNECIMENTO | D50: 1324 | E50: 5296 | K50: 90843 Resultado | M50: 1023.44 | N50: 8187.52
A51: 9.2 | B51: 14.007.0025-A | C51: FERRAGENS P/PORTA MADEIRA,DE 2 FOLHAS DE ABRIR,DE ENTRADA PRINCIPAL,CONSTANDO DE FORN.S/COLOC.DE:-FECHADURA CILINDRO,DELATAO,MONOBLOCO,ACABAMENTO CROMADO,;-ENTRADA CIRCULAR,LATAO,ACABAMENTO CROMADO;-ROSETA CIRCULAR,LATAO,ACAB.CROMADO;-MACANETA TIPO ALAVANCA,LATAO,ACABAMENTO CROMADO;-6 DOBRADICAS 3"X3" LATAO CROMADO,C/PINOS,BOLAS E ANEIS DE LATAO E 2 FECHOS | D51: 587.56 | E51: 5288.04 | J51: KIT DE PORTA DE MADEIRA PARA PINTURA, SEMI-OCA (LEVE OU MÉDIA), PADRÃO MÉDIO, 80X210CM, ESPESSURA DE 3,5CM, ITENS INCLUSOS: DOBRADIÇAS, MONTAGEM E INSTALAÇÃO DO BATENTE, FECHADURA COM EXECUÇÃO DO FURO - FORNECIMENTO E INSTALAÇÃO. AF_08/2015 Resultado | M51: 1023.44 | N51: 8187.52
A52: 8.9 | B52: 87261 | C52: REVESTIMENTO CERÂMICO PARA PISO COM PLACAS TIPO PORCELANATO DE DIMENSÕES 60X60 CM APLICADA EM AMBIENTES DE ÁREA MENOR QUE 5 M². AF_06/2014 | D52: 140.14 | E52: 5186.58 | J52: KIT DE PORTA DE MADEIRA PARA PINTURA, SEMI-OCA (LEVE OU MÉDIA), PADRÃO MÉDIO, 70X210CM, ESPESSURA DE 3,5CM, ITENS INCLUSOS: DOBRADIÇAS, MONTAGEM E INSTALAÇÃO DO BATENTE, FECHADURA COM EXECUÇÃO DO FURO - FORNECIMENTO E INSTALAÇÃO. AF_08/2015 | K52: 90842 | L52: 9.4 | M52: 980.98 | N52: 8828.82
A53: 5.12 | B53: 97062 | C53: COLOCAÇÃO DE TELA EM ANDAIME FACHADEIRO. AF_11/2017 | D53: 7.23 | E53: 5085.36 | K53: 90842 Resultado | M53: 980.98 | N53: 8828.82
A54: 10.1 | B54: 15.002.0580-A | C54: FOSSA SEPTICA CILINDRICA,TIPO CAMARA IMHOFF,DE CONCRETO PRE-MOLDADO,MEDINDO 2000X2000MM.FORNECIMENTO E COLOCACAO | D54: 4699.57 | E54: 4699.57 | J54: KIT DE PORTA DE MADEIRA PARA PINTURA, SEMI-OCA (LEVE OU MÉDIA), PADRÃO MÉDIO, 70X210CM, ESPESSURA DE 3,5CM, ITENS INCLUSOS: DOBRADIÇAS, MONTAGEM E INSTALAÇÃO DO BATENTE, FECHADURA COM EXECUÇÃO DO FURO - FORNECIMENTO E INSTALAÇÃO. AF_08/2015 Resultado | M54: 980.98 | N54: 8828.82
A55: 1.3 | B55: 01.050.0518-A | C55: PROJETO EXECUTIVO DE INSTALACAO ELETRICA,CONSIDERANDO O PROJETO BASICO EXISTENTE,PARA PREDIOS CULTURAIS ATE 3000M2,APRESENTADO EM AUTOCAD,INCLUSIVE AS LEGALIZACOES PERTINENTES | D55: 12.32 | E55: 4373.6 | J55: KIT DE PORTA DE MADEIRA PARA PINTURA, SEMI-OCA (LEVE OU MÉDIA), PADRÃO MÉDIO, 60X210CM, ESPESSURA DE 3,5CM, ITENS INCLUSOS: DOBRADIÇAS, MONTAGEM E INSTALAÇÃO DO BATENTE, FECHADURA COM EXECUÇÃO DO FURO - FORNECIMENTO E INSTALAÇÃO. AF_08/2015 | K55: 90841 | L55: 9.3 | M55: 917.08 | N55: 917.08
A56: 7.2 | B56: 96360 | C56: PAREDE COM PLACAS DE GESSO ACARTONADO (DRYWALL), PARA USO INTERNO, COM DUAS FACES SIMPLES E ESTRUTURA METÁLICA COM GUIAS DUPLAS, SEM VÃOS. AF_06/2017_P | D56: 135.21 | E56: 4307.79 | K56: 90841 Resultado | M56: 917.08 | N56: 917.08
A57: 13.1 | B57: 86932 | C57: VASO SANITÁRIO SIFONADO COM CAIXA ACOPLADA LOUÇA BRANCA - PADRÃO MÉDIO, INCLUSO ENGATE FLEXÍVEL EM METAL CROMADO, 1/2 X 40CM - FORNECIMENTO E INSTALAÇÃO. AF_12/2013 | D57: 537.89 | E57: 3765.23 | J57: KIT DE PORTA DE MADEIRA PARA PINTURA, SEMI-OCA (LEVE OU MÉDIA), PADRÃO MÉDIO, 60X210CM, ESPESSURA DE 3,5CM, ITENS INCLUSOS: DOBRADIÇAS, MONTAGEM E INSTALAÇÃO DO BATENTE, FECHADURA COM EXECUÇÃO DO FURO - FORNECIMENTO E INSTALAÇÃO. AF_08/2015 Resultado | M57: 917.08 | N57: 917.08
A58: 12.5 | B58: 95468 | C58: PINTURA ESMALTE BRILHANTE (2 DEMAOS) SOBRE SUPERFICIE METALICA, INCLUSIVE PROTECAO COM ZARCAO (1 DEMAO) | D58: 55.13 | E58: 3291.26 | J58: VASO SANITARIO SIFONADO CONVENCIONAL PARA PCD SEM FURO FRONTAL COM LOUÇA BRANCA SEM ASSENTO, INCLUSO CONJUNTO DE LIGAÇÃO PARA BACIA SANITÁRIA AJUSTÁVEL - FORNECIMENTO E INSTALAÇÃO. AF_10/2016 | K58: 95472 | L58: 13.2 | M58: 863.53 | N58: 2590.59
A59: 8.12 | B59: 98689 | C59: SOLEIRA EM GRANITO, LARGURA 15 CM, ESPESSURA 2,0 CM. AF_06/2018 | D59: 115.64 | E59: 3203.22 | K59: 95472 Resultado | M59: 863.53 | N59: 2590.59
A60: 3.2 | B60: 93358 | C60: ESCAVAÇÃO MANUAL DE VALA COM PROFUNDIDADE MENOR OU IGUAL A 1,30 M. AF_03/2016 | D60: 98.2 | E60: 3082.49 | J60: VASO SANITARIO SIFONADO CONVENCIONAL PARA PCD SEM FURO FRONTAL COM LOUÇA BRANCA SEM ASSENTO, INCLUSO CONJUNTO DE LIGAÇÃO PARA BACIA SANITÁRIA AJUSTÁVEL - FORNECIMENTO E INSTALAÇÃO. AF_10/2016 Resultado | M60: 863.53 | N60: 2590.59
A61: 13.6 | B61: 40729 | C61: VALVULA DESCARGA 1.1/2" COM REGISTRO, ACABAMENTO EM METAL CROMADO - FORNECIMENTO E INSTALACAO | D61: 305.86 | E61: 3058.6 | J61: LOCACAO DE CONTAINER 2,30 X 6,00 M, ALT. 2,50 M, PARA SANITARIO, COM 4 BACIAS, 8 CHUVEIROS,1 LAVATORIO E 1 MICTORIO | K61: 10778 | L61: 2.6 | M61: 857.21 | N61: 5143.26
A62: 13.23 | B62: 18.030.0002-A | C62: CONDICIONADOR DE AR TIPO SPLIT 12000 BTU'S COMPREENDENDO 1 CONDENSADOR E 1 EVAPORADOR(VIDE INSTALACAO,ASSENTAMENTO E INTERLIGACOES FAMILIA 15.005).FORNECIMENTO | D62: 1453.17 | E62: 2906.34 | K62: 10778 Resultado | M62: 857.21 | N62: 5143.26
A63: 8.3 | B63: 13.001.0026-A | C63: EMBOCO COM ARGAMASSA DE CIMENTO E AREIA,NO TRACO 1:3 COM 2CM DE ESPESSURA,INCLUSIVE CHAPISCO DE CIMENTO E AREIA,NO TRACO 1:3 | D63: 29.77 | E63: 2872.2 | J63: LOCACAO DE CONTAINER 2,30 X 6,00 M, ALT. 2,50 M, PARA SANITARIO, COM 4 BACIAS, 8 CHUVEIROS,1 LAVATORIO E 1 MICTORIO Resultado | M63: 857.21 | N63: 5143.26
A64: 6.2 | B64: 74141/2 | C64: LAJE PRE-MOLD BETA 12 P/3,5KN/M2 VAO 4,1M INCL VIGOTAS TIJOLOS ARMADU-RA NEGATIVA CAPEAMENTO 3CM CONCRETO 15MPA ESCORAMENTO MATERIAIS E MAO DE OBRA. | D64: 106.22 | E64: 2839.26 | J64: POLTRONA COM ASSENTO RETRÁTIL E ENCOSTO FIXO REVESTIDA EM TECIDO OU COURO ECOLÓGICO | K64: COTAÇÃO 04 | L64: 13.31 | M64: 775.03 | N64: 116254.5
A65: 10.17 | B65: 91785 | C65: (COMPOSIÇÃO REPRESENTATIVA) DO SERVIÇO DE INSTALAÇÃO DE TUBOS DE PVC, SOLDÁVEL, ÁGUA FRIA, DN 25 MM (INSTALADO EM RAMAL, SUB-RAMAL, RAMAL DE DISTRIBUIÇÃO OU PRUMADA), INCLUSIVE CONEXÕES, CORTES E FIXAÇÕES, PARA PRÉDIOS. AF_10/2015 | D65: 46.32 | E65: 2802.36 | K65: COTAÇÃO 04 Resultado | M65: 775.03 | N65: 116254.5
A66: 11.7 | B66: 98546 | C66: IMPERMEABILIZAÇÃO DE SUPERFÍCIE COM MANTA ASFÁLTICA, UMA CAMADA, INCLUSIVE APLICAÇÃO DE PRIMER ASFÁLTICO, E=3MM. AF_06/2018 | D66: 96.54 | E66: 2661.6 | J66: POLTRONA COM ASSENTO RETRÁTIL E ENCOSTO FIXO REVESTIDA EM TECIDO OU COURO ECOLÓGICO Resultado | M66: 775.03 | N66: 116254.5
A67: 13.2 | B67: 95472 | C67: VASO SANITARIO SIFONADO CONVENCIONAL PARA PCD SEM FURO FRONTAL COM LOUÇA BRANCA SEM ASSENTO, INCLUSO CONJUNTO DE LIGAÇÃO PARA BACIA SANITÁRIA AJUSTÁVEL - FORNECIMENTO E INSTALAÇÃO. AF_10/2016 | D67: 863.53 | E67: 2590.59 | J67: GUARDA-CORPO DE FERRO EM LANCES DE 3,00 A 4,00M E 1,00M DE ALTURA,COM 4 MONTANTES DE BARRAS DE 2"X3/4",CHUMBADOS NO CONCRETO,CORRIMAO EM 2 BARRAS SOBREPOSTAS DE 3"X1/2" E 2"X3/8",DUAS TRAVESSAS HORIZONTAIS EM BARRAS DE 1.1/4"X3/8",SOLDADASNOS MONTANTES,UMA DISTANTE 0,34M DO PISO E A OUTRA A 0,33M DESTA E DO CORRIMAO.FORNECIMENTO E COLOCACAO | K67: 14.002.0205-A | L67: 9.12 | M67: 769.54 | N67: 27087.8
A68: 11.8 | B68: 91790 | C68: (COMPOSIÇÃO REPRESENTATIVA) DO SERVIÇO DE INSTALAÇÃO DE TUBOS DE PVC, SÉRIE R, ÁGUA PLUVIAL, DN 100 MM (INSTALADO EM RAMAL DE ENCAMINHAMENTO, OU CONDUTORES VERTICAIS), INCLUSIVE CONEXÕES, CORTES E FIXAÇÕES, PARA PRÉDIOS. AF_10/2015 | D68: 62.63 | E68: 2505.2 | K68: 14.002.0205-A Resultado | M68: 769.54 | N68: 27087.8
A69: 10.2 | B69: 15.002.0663-A | C69: FILTRO ANAEROBIO,DE ANEIS DE CONCRETO PRE-MOLDADO,MEDINDO 1500X2000MM.FORNECIMENTO E COLOCACAO | D69: 2432.35 | E69: 2432.35 | J69: GUARDA-CORPO DE FERRO EM LANCES DE 3,00 A 4,00M E 1,00M DE ALTURA,COM 4 MONTANTES DE BARRAS DE 2"X3/4",CHUMBADOS NO CONCRETO,CORRIMAO EM 2 BARRAS SOBREPOSTAS DE 3"X1/2" E 2"X3/8",DUAS TRAVESSAS HORIZONTAIS EM BARRAS DE 1.1/4"X3/8",SOLDADASNOS MONTANTES,UMA DISTANTE 0,34M DO PISO E A OUTRA A 0,33M DESTA E DO CORRIMAO.FORNECIMENTO E COLOCACAO Resultado | M69: 769.54 | N69: 27087.8
A70: 9.13 | B70: 74072/2 | C70: CORRIMAO EM TUBO ACO GALVANIZADO 2 1/2" COM BRACADEIRA | D70: 175.89 | E70: 2409.69 | J70: PORTA DE MADEIRA DE LEI MACICA COM ATE 5 ALMOFADAS,COM 3,5CM DE ESPESSURA,EXCLUSIVE FERRAGENS,MARCO E ALIZAR.FORNECIMENTO E COLOCACAO | K70: 14.006.0423-A | L70: 9.1 | M70: 761.74 | N70: 22280.89
A71: 5.2 | B71: 05.001.0002-B | C71: DEMOLICAO MANUAL DE CONCRETO ARMADO COMPREENDENDO PILARES,VIGAS E LAJES,EM ESTRUTURA APRESENTANDO POSICAO ESPECIAL,INCLUSIVE EMPILHAMENTO LATERAL DENTRO DO CANTEIRO DE SERVICO | D71: 314.59 | E71: 2394.02 | K71: 14.006.0423-A Resultado | M71: 761.74 | N71: 22280.89
A72: 11.1 | B72: 55960 | C72: IMUNIZACAO DE MADEIRAMENTO PARA COBERTURA UTILIZANDO CUPINICIDA INCOLOR | D72: 7.14 | E72: 2345.91 | J72: PORTA DE MADEIRA DE LEI MACICA COM ATE 5 ALMOFADAS,COM 3,5CM DE ESPESSURA,EXCLUSIVE FERRAGENS,MARCO E ALIZAR.FORNECIMENTO E COLOCACAO Resultado | M72: 761.74 | N72: 22280.89
A73: 4.1 | B73: 05.001.0171-A | C73: TRANSPORTE HORIZONTAL DE MATERIAL DE 1ªCATEGORIA OU ENTULHO,EM CARRINHOS,A 20,00M DE DISTANCIA,INCLUSIVE CARGA A PA | D73: 23.29 | E73: 2265.18 | J73: RESERVATORIO,EM FIBRA DE VIDRO OU POLIETILENO,COM CAPACIDADE EM TORNO DE 1.500L,INCLUSIVE TAMPA DE VEDACAO COM ESCOTILHA E FIXADORES.FORNECIMENTO | K73: 18.021.0040-A | L73: 10.21 | M73: 730.96 | N73: 1461.92
A74: 1.2 | B74: 01.050.0481-A | C74: PROJETO EXECUTIVO DE INSTALACAO HIDRAULICA,CONSIDERANDO O PROJETO BASICO EXISTENTE,PARA PREDIOS CULTURAIS,APRESENTADO EM AUTOCAD,INCLUSIVE AS LEGALIZACOES PERTINENTES | D74: 6.17 | E74: 2190.35 | K74: 18.021.0040-A Resultado | M74: 730.96 | N74: 1461.92
A75: 5.9 | B75: 97064 | C75: MONTAGEM E DESMONTAGEM DE ANDAIME TUBULAR TIPO TORRE (EXCLUSIVE ANDAIME E LIMPEZA). AF_11/2017 | D75: 26.56 | E75: 2146.04 | J75: RESERVATORIO,EM FIBRA DE VIDRO OU POLIETILENO,COM CAPACIDADE EM TORNO DE 1.500L,INCLUSIVE TAMPA DE VEDACAO COM ESCOTILHA E FIXADORES.FORNECIMENTO Resultado | M75: 730.96 | N75: 1461.92
A76: 9.9 | B76: 84844 | C76: JANELA DE MADEIRA TIPO GUILHOTINA, DE ABRIR , INCLUSAS GUARNICOES SEM FERRAGENS | D76: 539.34 | E76: 2071.06 | J76: ABRIGO PARA HIDROMETRO DE 1",NAS DIMENSOES DE 0,90X0,50X0,60M,EM ALVENARIA DE TIJOLOS FURADOS DE 10X20X20CM,PAREDES DE MEIA VEZ,REVESTIDAS COM ARGAMASSA DE CIMENTO E SAIBRO,NO TRACO 1:6,COM FUNDO DE CONCRETO E TAMPA DE CONCRETO ARMADO,PORTA DE 80X50CM EM CHAPA DE ACO Nº16 E CADEADO DE 30MM,CONFORMEPROJETO Nº2089/EMOP | K76: 15.001.0071-A | L76: 10.12 | M76: 724.59 | N76: 724.59
A77: 10.29 | B77: 18.027.0355-A | C77: LUMINARIA DE EMBUTIR,FIXADA EM LAJE OU FORRO,TIPO CALHA,CHANFRADA OU PRISMATICA,ESMALTADA,COMPLETA,EQUIPADA COM REATOR ELETRONICO DE ALTO FATOR DE POTENCIA(AFP>=0,92)E LAMPADA FLUORESCENTE DE 1X40W.FORNECIMENTO E COLOCACAO | D77: 119.07 | E77: 2024.19 | K77: 15.001.0071-A Resultado | M77: 724.59 | N77: 724.59
A78: 13.9 | B78: 93396 | C78: BANCADA GRANITO CINZA POLIDO 0,50 X 0,60M, INCL. CUBA DE EMBUTIR OVAL LOUÇA BRANCA 35 X 50CM, VÁLVULA METAL CROMADO, SIFÃO FLEXÍVEL PVC, ENGATE 30CM FLEXÍVEL PLÁSTICO E TORNEIRA CROMADA DE MESA, PADRÃO POPULAR - FORNEC. E INSTALAÇÃO. AF_12/2013 | D78: 674.48 | E78: 2023.44 | J78: ABRIGO PARA HIDROMETRO DE 1",NAS DIMENSOES DE 0,90X0,50X0,60M,EM ALVENARIA DE TIJOLOS FURADOS DE 10X20X20CM,PAREDES DE MEIA VEZ,REVESTIDAS COM ARGAMASSA DE CIMENTO E SAIBRO,NO TRACO 1:6,COM FUNDO DE CONCRETO E TAMPA DE CONCRETO ARMADO,PORTA DE 80X50CM EM CHAPA DE ACO Nº16 E CADEADO DE 30MM,CONFORMEPROJETO Nº2089/EMOP Resultado | M78: 724.59 | N78: 724.59
A79: 1.5 | B79: 01.050.0530-A | C79: PROJETO EXECUTIVO DE SISTEMA DE AR CONDICIONADO E EXAUSTAO MECANICA,CONSIDERANDO O PROJETO BASICO EXISTENTE,EM AUTOCAD,PARA PREDIOS COM AREA ATE 500M2 | D79: 5.64 | E79: 2002.2 | J79: QUADRO DE DISTRIBUICAO DE ENERGIA DE EMBUTIR, EM CHAPA METALICA, PARA 40 DISJUNTORES TERMOMAGNETICOS MONOPOLARES, COM BARRAMENTO TRIFASICO E NEUTRO, FORNECIMENTO E INSTALACAO | K79: 74131/7 | L79: 10.37 | M79: 705.68 | N79: 705.68
A80: 5.10 | B80: 04.020.0122-A | C80: TRANSPORTE DE ANDAIME TUBULAR,CONSIDERANDO-SE A AREA DE PROJECAO VERTICAL DO ANDAIME,EXCLUSIVE CARGA,DESCARGA E TEMPO DE ESPERA DO CAMINHAO(VIDE ITEM 04.021.0010) | D80: 0.14 | E80: 1969.43 | K80: 74131/7 Resultado | M80: 705.68 | N80: 705.68
A81: 13.22 | B81: 15.005.0200-A | C81: INSTALACAO E ASSENTAMENTO DE AR CONDICIONADO TIPO SPLIT DE 9000 BTU'S,COM 1 CONDENSADOR E 1 EVAPORADOR,(VIDE FORNECIMENTO DO APARELHO NA FAMILIA 18.030)INCLUSIVE ACESSORIOS DE FIXACAO,EXCLUSIVE ALIMENTACAO ELETRICA E INTERLIGACAO AO CONDENSADOR/EVAPORADOR(VIDE ITEM 15.005.0255) | D81: 489.31 | E81: 1957.24 | J81: QUADRO DE DISTRIBUICAO DE ENERGIA DE EMBUTIR, EM CHAPA METALICA, PARA 40 DISJUNTORES TERMOMAGNETICOS MONOPOLARES, COM BARRAMENTO TRIFASICO E NEUTRO, FORNECIMENTO E INSTALACAO Resultado | M81: 705.68 | N81: 705.68
A82: 12.6 | B82: 74065/3 | C82: PINTURA ESMALTE BRILHANTE PARA MADEIRA, DUAS DEMAOS, SOBRE FUNDO NIVELADOR BRANCO | D82: 32.95 | E82: 1951.29 | J82: LOCACAO DE CONTAINER 2,30 X 6,00 M, ALT. 2,50 M, COM 1 SANITARIO, PARA ESCRITORIO, COMPLETO, SEM DIVISORIAS INTERNAS | K82: 10775 | L82: 2.5 | M82: 685.77 | N82: 4114.62
A83: 10.26 | B83: 15.015.0081-A | C83: INSTALACAO DE UM CONJUNTO DE 5 PONTOS DE LUZ,APARENTE,EQUIVALENTE A 8 VARAS DE ELETRODUTO DE PVC RIGIDO DE 3/4",57,00M DE FIO 2,5MM2,CAIXAS,CONEXOES,LUVAS,CURVA E INTERRUPTOR DE SOBREPOR | D83: 637.48 | E83: 1912.44 | K83: 10775 Resultado | M83: 685.77 | N83: 4114.62
A84: 7.3 | B84: 87448 | C84: ALVENARIA DE VEDAÇÃO DE BLOCOS VAZADOS DE CONCRETO DE 9X19X39CM (ESPESSURA 9CM) DE PAREDES COM ÁREA LÍQUIDA MENOR QUE 6M² SEM VÃOS E ARGAMASSA DE ASSENTAMENTO COM PREPARO MANUAL. AF_06/2014 | D84: 64.55 | E84: 1862.26 | J84: LOCACAO DE CONTAINER 2,30 X 6,00 M, ALT. 2,50 M, COM 1 SANITARIO, PARA ESCRITORIO, COMPLETO, SEM DIVISORIAS INTERNAS Resultado | M84: 685.77 | N84: 4114.62
A85: 10.9 | B85: 91793 | C85: (COMPOSIÇÃO REPRESENTATIVA) DO SERVIÇO DE INSTALAÇÃO DE TUBO DE PVC, SÉRIE NORMAL, ESGOTO PREDIAL, DN 50 MM (INSTALADO EM RAMAL DE DESCARGA OU RAMAL DE ESGOTO SANITÁRIO), INCLUSIVE CONEXÕES, CORTES E FIXAÇÕES PARA, PRÉDIOS. AF_10/2015 | D85: 89.57 | E85: 1755.57 | J85: BANCADA GRANITO CINZA POLIDO 0,50 X 0,60M, INCL. CUBA DE EMBUTIR OVAL LOUÇA BRANCA 35 X 50CM, VÁLVULA METAL CROMADO, SIFÃO FLEXÍVEL PVC, ENGATE 30CM FLEXÍVEL PLÁSTICO E TORNEIRA CROMADA DE MESA, PADRÃO POPULAR - FORNEC. E INSTALAÇÃO. AF_12/2013 | K85: 93396 | L85: 13.9 | M85: 674.48 | N85: 2023.44
A86: 5.3 | B86: 05.001.0018-A | C86: DEMOLICAO MANUAL DE PISO CIMENTADO E DA RESPECTIVA BASE DE CONCRETO,OU PASSEIO DE CONCRETO,INCLUSIVE EMPILHAMENTO LATERAL DENTRO DO CANTEIRO DE SERVICO | D86: 11.65 | E86: 1661.29 | K86: 93396 Resultado | M86: 674.48 | N86: 2023.44
A87: 11.5 | B87: 94219 | C87: CUMEEIRA E ESPIGÃO PARA TELHA CERÂMICA EMBOÇADA COM ARGAMASSA TRAÇO 1:2:9 (CIMENTO, CAL E AREIA), PARA TELHADOS COM MAIS DE 2 ÁGUAS, INCLUSO TRANSPORTE VERTICAL. AF_06/2016 | D87: 43.27 | E87: 1657.67 | J87: BANCADA GRANITO CINZA POLIDO 0,50 X 0,60M, INCL. CUBA DE EMBUTIR OVAL LOUÇA BRANCA 35 X 50CM, VÁLVULA METAL CROMADO, SIFÃO FLEXÍVEL PVC, ENGATE 30CM FLEXÍVEL PLÁSTICO E TORNEIRA CROMADA DE MESA, PADRÃO POPULAR - FORNEC. E INSTALAÇÃO. AF_12/2013 Resultado | M87: 674.48 | N87: 2023.44
A88: 3.3 | B88: 93382 | C88: REATERRO MANUAL DE VALAS COM COMPACTAÇÃO MECANIZADA. AF_04/2016 | D88: 37.11 | E88: 1615.02 | J88: MICTORIO SIFONADO DE LOUCA BRANCA COM PERTENCES, COM REGISTRO DE PRESSAO 1/2" COM CANOPLA CROMADA ACABAMENTO SIMPLES E CONJUNTO PARA FIXACAO - FORNECIMENTO E INSTALACAO | K88: 74234/1 | L88: 13.5 | M88: 651.56 | N88: 1303.12
A89: 12.7 | B89: 6082 | C89: PINTURA EM VERNIZ SINTETICO BRILHANTE EM MADEIRA, TRES DEMAOS | D89: 23.97 | E89: 1586.33 | K89: 74234/1 Resultado | M89: 651.56 | N89: 1303.12
A90: 4.3 | B90: 72884 | C90: TRANSPORTE COMERCIAL COM CAMINHAO CARROCERIA 9 T, RODOVIA PAVIMENTADA | D90: 1.11 | E90: 1492.96 | J90: MICTORIO SIFONADO DE LOUCA BRANCA COM PERTENCES, COM REGISTRO DE PRESSAO 1/2" COM CANOPLA CROMADA ACABAMENTO SIMPLES E CONJUNTO PARA FIXACAO - FORNECIMENTO E INSTALACAO Resultado | M90: 651.56 | N90: 1303.12
A91: 10.28 | B91: 18.027.0305-A | C91: LUMINARIA DE SOBREPOR,FIXADA EM LAJE OU FORRO,TIPO CALHA,CHANFRADA OU PRISMATICA,ESMALTADA,COMPLETA,EQUIPADA COM REATORELETRONICO DE ALTO FATOR DE POTENCIA(AFP>=0,92)E LAMPADA FLUORESCENTE DE 1X40W.FORNECIMENTO E COLOCACAO | D91: 121.9 | E91: 1462.8 | J91: INSTALACAO DE UM CONJUNTO DE 5 PONTOS DE LUZ,APARENTE,EQUIVALENTE A 8 VARAS DE ELETRODUTO DE PVC RIGIDO DE 3/4",57,00M DE FIO 2,5MM2,CAIXAS,CONEXOES,LUVAS,CURVA E INTERRUPTOR DE SOBREPOR | K91: 15.015.0081-A | L91: 10.26 | M91: 637.48 | N91: 1912.44
A92: 10.21 | B92: 18.021.0040-A | C92: RESERVATORIO,EM FIBRA DE VIDRO OU POLIETILENO,COM CAPACIDADE EM TORNO DE 1.500L,INCLUSIVE TAMPA DE VEDACAO COM ESCOTILHA E FIXADORES.FORNECIMENTO | D92: 730.96 | E92: 1461.92 | K92: 15.015.0081-A Resultado | M92: 637.48 | N92: 1912.44
A93: 12.3 | B93: 88486 | C93: APLICAÇÃO MANUAL DE PINTURA COM TINTA LÁTEX PVA EM TETO, DUAS DEMÃOS. AF_06/2014 | D93: 13.65 | E93: 1445.26 | J93: INSTALACAO DE UM CONJUNTO DE 5 PONTOS DE LUZ,APARENTE,EQUIVALENTE A 8 VARAS DE ELETRODUTO DE PVC RIGIDO DE 3/4",57,00M DE FIO 2,5MM2,CAIXAS,CONEXOES,LUVAS,CURVA E INTERRUPTOR DE SOBREPOR Resultado | M93: 637.48 | N93: 1912.44
A94: 9.11 | B94: 72120 | C94: VIDRO TEMPERADO INCOLOR, ESPESSURA 10MM, FORNECIMENTO E INSTALACAO, INCLUSIVE MASSA PARA VEDACAO | D94: 452.82 | E94: 1412.79 | J94: ARGAMASSA TRAÇO 1:4 (CIMENTO E AREIA MÉDIA) PARA CONTRAPISO, PREPARO MANUAL. AF_06/2014 | K94: 87373 | L94: 8.8 | M94: 621.26 | N94: 17811.52
A95: 2.1 | B95: 74209/1 | C95: PLACA DE OBRA EM CHAPA DE ACO GALVANIZADO | D95: 560.7 | E95: 1345.68 | K95: 87373 Resultado | M95: 621.26 | N95: 17811.52
A96: 13.5 | B96: 74234/1 | C96: MICTORIO SIFONADO DE LOUCA BRANCA COM PERTENCES, COM REGISTRO DE PRESSAO 1/2" COM CANOPLA CROMADA ACABAMENTO SIMPLES E CONJUNTO PARA FIXACAO - FORNECIMENTO E INSTALACAO | D96: 651.56 | E96: 1303.12 | J96: ARGAMASSA TRAÇO 1:4 (CIMENTO E AREIA MÉDIA) PARA CONTRAPISO, PREPARO MANUAL. AF_06/2014 Resultado | M96: 621.26 | N96: 17811.52
A97: 13.8 | B97: 18.002.0014-A | C97: LAVATORIO DE LOUCA BRANCA,COM COLUNA SUSPENSA,PARA PESSOAS COM NECESSIDADES ESPECIFICAS,COM MEDIDAS EM TORNO DE 45,5X35,5CM,INCLUSIVE SIFAO EM PVC FLEXIVEL,VALVULA DE ESCOAMENTO CROMADA,RABICHO EM PVC E TORNEIRA DE FECHAMENTO AUTOMATICO.FORNECIMENTO | D97: 412.55 | E97: 1237.65 | J97: ESTRUTURA METALICA EM ACO ESPECIAL,RESISTENTE A CORROSAO(ACO USI-SAC),PARA OBRAS PREDIAIS DE ATE 04 PAVIMENTOS,PILARES,VIGAS PRINCIPAIS E SECUNDARIAS,ESCADAS,PATAMARES E CHAPAS DAS BASES DA FUNDACAO,PINTURA PROTETORA,CONSIDERANDO FORNECIMENTO DE TODOS OS MATERIAIS E MONTAGEM,EXCLUSIVE A LAJE DE CONCRETO | K97: 11.016.0040-A | L97: 6.1 | M97: 611.03 | N97: 120641.76
A98: 9.8 | B98: 91341 | C98: PORTA EM ALUMÍNIO DE ABRIR TIPO VENEZIANA COM GUARNIÇÃO, FIXAÇÃO COM PARAFUSOS - FORNECIMENTO E INSTALAÇÃO. AF_08/2015 | D98: 525.88 | E98: 1230.55 | K98: 11.016.0040-A Resultado | M98: 611.03 | N98: 120641.76
A99: 13.19 | B99: 74194/1 | C99: ESCADA TIPO MARINHEIRO EM TUBO ACO GALVANIZADO 1 1/2" 5 DEGRAUS | D99: 371.52 | E99: 1226.01 | J99: ESTRUTURA METALICA EM ACO ESPECIAL,RESISTENTE A CORROSAO(ACO USI-SAC),PARA OBRAS PREDIAIS DE ATE 04 PAVIMENTOS,PILARES,VIGAS PRINCIPAIS E SECUNDARIAS,ESCADAS,PATAMARES E CHAPAS DAS BASES DA FUNDACAO,PINTURA PROTETORA,CONSIDERANDO FORNECIMENTO DE TODOS OS MATERIAIS E MONTAGEM,EXCLUSIVE A LAJE DE CONCRETO Resultado | M99: 611.03 | N99: 120641.76
A100: 1.4 | B100: 01.050.0455-A | C100: PROJETO EXECUTIVO DE INSTALACAO DE ESGOTO SANITARIO E AGUASPLUVIAIS,CONSIDERANDO O PROJETO BASICO EXISTENTE,PARA PREDIOS CULTURAIS,APRESENTADO EM AUTOCAD,INCLUSIVE AS LEGALIZACOES PERTINENTES | D100: 3.4 | E100: 1207 | J100: FERRAGENS P/PORTA MADEIRA,DE 2 FOLHAS DE ABRIR,DE ENTRADA PRINCIPAL,CONSTANDO DE FORN.S/COLOC.DE:-FECHADURA CILINDRO,DELATAO,MONOBLOCO,ACABAMENTO CROMADO,;-ENTRADA CIRCULAR,LATAO,ACABAMENTO CROMADO;-ROSETA CIRCULAR,LATAO,ACAB.CROMADO;-MACANETA TIPO ALAVANCA,LATAO,ACABAMENTO CROMADO;-6 DOBRADICAS 3"X3" LATAO CROMADO,C/PINOS,BOLAS E ANEIS DE LATAO E 2 FECHOS | K100: 14.007.0025-A | L100: 9.2 | M100: 587.56 | N100: 5288.04
A101: 11.9 | B101: 94230 | C101: CALHA DE BEIRAL, SEMICIRCULAR DE PVC, DIAMETRO 125 MM, INCLUINDO CABECEIRAS, EMENDAS, BOCAIS, SUPORTES E VEDAÇÕES, EXCLUINDO CONDUTORES, INCLUSO TRANSPORTE VERTICAL. AF_06/2016 | D101: 96.31 | E101: 1155.72 | K101: 14.007.0025-A Resultado | M101: 587.56 | N101: 5288.04
A102: 9.10 | B102: 85010 | C102: CAIXILHO FIXO, DE ALUMINIO, PARA VIDRO | D102: 368.82 | E102: 1150.71 | J102: FERRAGENS P/PORTA MADEIRA,DE 2 FOLHAS DE ABRIR,DE ENTRADA PRINCIPAL,CONSTANDO DE FORN.S/COLOC.DE:-FECHADURA CILINDRO,DELATAO,MONOBLOCO,ACABAMENTO CROMADO,;-ENTRADA CIRCULAR,LATAO,ACABAMENTO CROMADO;-ROSETA CIRCULAR,LATAO,ACAB.CROMADO;-MACANETA TIPO ALAVANCA,LATAO,ACABAMENTO CROMADO;-6 DOBRADICAS 3"X3" LATAO CROMADO,C/PINOS,BOLAS E ANEIS DE LATAO E 2 FECHOS Resultado | M102: 587.56 | N102: 5288.04
A103: 13.10 | B103: 18.016.0106-A | C103: BARRA DE APOIO EM ACO INOXIDAVEL AISI 304,TUBO DE 1.1/4",INCLUSIVE FIXACAO COM PARAFUSOS INOXIDAVEIS E BUCHAS PLASTICAS,COM 80CM,PARA PESSOAS COM NECESSIDADES ESPECIFICAS.FORNECIMENTO E COLOCACAO | D103: 161.32 | E103: 1129.24 | J103: PLACA DE OBRA EM CHAPA DE ACO GALVANIZADO | K103: 74209/1 | L103: 2.1 | M103: 560.7 | N103: 1345.68
A104: 10.25 | B104: 15.015.0066-A | C104: INSTALACAO DE UM CONJUNTO DE 4 PONTOS DE LUZ,APARENTE,EQUIVALENTE 7 VARAS DE ELETRODUTO DE PVC RIGIDO DE 3/4",50,00M DEFIO 2,5MM2,CAIXAS,CONEXOES,LUVAS,CURVA E INTERRUPTOR DE SOBREPOR | D104: 555.81 | E104: 1111.62 | K104: 74209/1 Resultado | M104: 560.7 | N104: 1345.68
A105: 13.24 | B105: 15.005.0201-A | C105: INSTALACAO E ASSENTAMENTO DE AR CONDICIONADO TIPO SPLIT DE 12000 BTU'S,COM 1 CONDENSADOR E 1 EVAPORADOR,(VIDE FORNECIMENTO DO APARELHO NA FAMILIA 18.030)INCLUSIVE ACESSORIOS DE FIXACAO,EXCLUSIVE ALIMENTACAO ELETRICA E INTERLIGACAO AO CONDENSADOR/EVAPORADOR (VIDE ITEM 15.005.0255) | D105: 544.61 | E105: 1089.22 | J105: PLACA DE OBRA EM CHAPA DE ACO GALVANIZADO Resultado | M105: 560.7 | N105: 1345.68
A106: 2.8 | B106: 04.005.0300-A | C106: TRANSPORTE DE CONTAINER,SEGUNDO DESCRICAO DA FAMILIA 02.006,EXCLUSIVE CARGA E DESCARGA(VIDE ITEM 04.013.0015) | D106: 26.65 | E106: 1066 | J106: INSTALACAO DE UM CONJUNTO DE 4 PONTOS DE LUZ,APARENTE,EQUIVALENTE 7 VARAS DE ELETRODUTO DE PVC RIGIDO DE 3/4",50,00M DEFIO 2,5MM2,CAIXAS,CONEXOES,LUVAS,CURVA E INTERRUPTOR DE SOBREPOR | K106: 15.015.0066-A | L106: 10.25 | M106: 555.81 | N106: 1111.62
A107: 9.3 | B107: 90841 | C107: KIT DE PORTA DE MADEIRA PARA PINTURA, SEMI-OCA (LEVE OU MÉDIA), PADRÃO MÉDIO, 60X210CM, ESPESSURA DE 3,5CM, ITENS INCLUSOS: DOBRADIÇAS, MONTAGEM E INSTALAÇÃO DO BATENTE, FECHADURA COM EXECUÇÃO DO FURO - FORNECIMENTO E INSTALAÇÃO. AF_08/2015 | D107: 917.08 | E107: 917.08 | K107: 15.015.0066-A Resultado | M107: 555.81 | N107: 1111.62
A108: 10.18 | B108: 91786 | C108: (COMPOSIÇÃO REPRESENTATIVA) DO SERVIÇO DE INSTALAÇÃO TUBOS DE PVC, SOLDÁVEL, ÁGUA FRIA, DN 32 MM (INSTALADO EM RAMAL, SUB-RAMAL, RAMAL DE DISTRIBUIÇÃO OU PRUMADA), INCLUSIVE CONEXÕES, CORTES E FIXAÇÕES, PARA PRÉDIOS. AF_10/2015 | D108: 27.01 | E108: 896.73 | J108: INSTALACAO DE UM CONJUNTO DE 4 PONTOS DE LUZ,APARENTE,EQUIVALENTE 7 VARAS DE ELETRODUTO DE PVC RIGIDO DE 3/4",50,00M DEFIO 2,5MM2,CAIXAS,CONEXOES,LUVAS,CURVA E INTERRUPTOR DE SOBREPOR Resultado | M108: 555.81 | N108: 1111.62
A109: 10.3 | B109: 74166/1 | C109: CAIXA DE INSPEÇÃO EM CONCRETO PRÉ-MOLDADO DN 60CM COM TAMPA H= 60CM - FORNECIMENTO E INSTALACAO | D109: 277 | E109: 831 | J109: INSTALACAO E ASSENTAMENTO DE AR CONDICIONADO TIPO SPLIT DE 12000 BTU'S,COM 1 CONDENSADOR E 1 EVAPORADOR,(VIDE FORNECIMENTO DO APARELHO NA FAMILIA 18.030)INCLUSIVE ACESSORIOS DE FIXACAO,EXCLUSIVE ALIMENTACAO ELETRICA E INTERLIGACAO AO CONDENSADOR/EVAPORADOR (VIDE ITEM 15.005.0255) | K109: 15.005.0201-A | L109: 13.24 | M109: 544.61 | N109: 1089.22
A110: 6.5 | B110: 93188 | C110: VERGA MOLDADA IN LOCO EM CONCRETO PARA PORTAS COM ATÉ 1,5 M DE VÃO. AF_03/2016 | D110: 56.2 | E110: 798.04 | K110: 15.005.0201-A Resultado | M110: 544.61 | N110: 1089.22
A111: 10.36 | B111: 74131/4 | C111: QUADRO DE DISTRIBUICAO DE ENERGIA DE EMBUTIR, EM CHAPA METALICA, PARA 18 DISJUNTORES TERMOMAGNETICOS MONOPOLARES, COM BARRAMENTO TRIFASICO E NEUTRO, FORNECIMENTO E INSTALACAO | D111: 385.87 | E111: 771.74 | J111: INSTALACAO E ASSENTAMENTO DE AR CONDICIONADO TIPO SPLIT DE 12000 BTU'S,COM 1 CONDENSADOR E 1 EVAPORADOR,(VIDE FORNECIMENTO DO APARELHO NA FAMILIA 18.030)INCLUSIVE ACESSORIOS DE FIXACAO,EXCLUSIVE ALIMENTACAO ELETRICA E INTERLIGACAO AO CONDENSADOR/EVAPORADOR (VIDE ITEM 15.005.0255) Resultado | M111: 544.61 | N111: 1089.22
A112: 10.24 | B112: 15.015.0041-A | C112: INSTALACAO DE UM CONJUNTO DE 2 PONTOS DE LUZ,APARENTE,EQUIVALENTE A 5 VARAS DE ELETRODUTO DE PVC RIGIDO DE 1/2",33,00M DE FIO 2,5MM2,CAIXAS,CONEXOES,LUVAS,CURVA E INTERRUPTOR DE SOBREPOR | D112: 363.45 | E112: 726.9 | J112: JANELA DE MADEIRA TIPO GUILHOTINA, DE ABRIR , INCLUSAS GUARNICOES SEM FERRAGENS | K112: 84844 | L112: 9.9 | M112: 539.34 | N112: 2071.06
A113: 10.12 | B113: 15.001.0071-A | C113: ABRIGO PARA HIDROMETRO DE 1",NAS DIMENSOES DE 0,90X0,50X0,60M,EM ALVENARIA DE TIJOLOS FURADOS DE 10X20X20CM,PAREDES DE MEIA VEZ,REVESTIDAS COM ARGAMASSA DE CIMENTO E SAIBRO,NO TRACO 1:6,COM FUNDO DE CONCRETO E TAMPA DE CONCRETO ARMADO,PORTA DE 80X50CM EM CHAPA DE ACO Nº16 E CADEADO DE 30MM,CONFORMEPROJETO Nº2089/EMOP | D113: 724.59 | E113: 724.59 | K113: 84844 Resultado | M113: 539.34 | N113: 2071.06
A114: 8.5 | B114: 96120 | C114: ACABAMENTOS PARA FORRO (MOLDURA DE GESSO). AF_05/2017 | D114: 3.76 | E114: 706.05 | J114: JANELA DE MADEIRA TIPO GUILHOTINA, DE ABRIR , INCLUSAS GUARNICOES SEM FERRAGENS Resultado | M114: 539.34 | N114: 2071.06
A115: 10.37 | B115: 74131/7 | C115: QUADRO DE DISTRIBUICAO DE ENERGIA DE EMBUTIR, EM CHAPA METALICA, PARA 40 DISJUNTORES TERMOMAGNETICOS MONOPOLARES, COM BARRAMENTO TRIFASICO E NEUTRO, FORNECIMENTO E INSTALACAO | D115: 705.68 | E115: 705.68 | J115: VASO SANITÁRIO SIFONADO COM CAIXA ACOPLADA LOUÇA BRANCA - PADRÃO MÉDIO, INCLUSO ENGATE FLEXÍVEL EM METAL CROMADO, 1/2 X 40CM - FORNECIMENTO E INSTALAÇÃO. AF_12/2013 | K115: 86932 | L115: 13.1 | M115: 537.89 | N115: 3765.23
A116: 10.32 | B116: COTAÇÃO 01 | C116: FITA LED BRANCO QUENTE 5 METROS + FONTE | D116: 27.49 | E116: 659.76 | K116: 86932 Resultado | M116: 537.89 | N116: 3765.23
A117: 10.10 | B117: 91794 | C117: (COMPOSIÇÃO REPRESENTATIVA) DO SERVIÇO DE INST. TUBO PVC, SÉRIE N, ESGOTO PREDIAL, DN 75 MM, (INST. EM RAMAL DE DESCARGA, RAMAL DE ESG. SANITÁRIO, PRUMADA DE ESG. SANITÁRIO OU VENTILAÇÃO), INCL. CONEXÕES, CORTES E FIXAÇÕES, P/ PRÉDIOS. AF_10/2015 | D117: 38.99 | E117: 637.48 | J117: VASO SANITÁRIO SIFONADO COM CAIXA ACOPLADA LOUÇA BRANCA - PADRÃO MÉDIO, INCLUSO ENGATE FLEXÍVEL EM METAL CROMADO, 1/2 X 40CM - FORNECIMENTO E INSTALAÇÃO. AF_12/2013 Resultado | M117: 537.89 | N117: 3765.23
A118: 13.4 | B118: 18.005.0015-A | C118: ASSENTO SANITARIO DE PLASTICO,TIPO MEDIO LUXO.FORNECIMENTO E COLOCACAO | D118: 81.56 | E118: 570.92 | J118: PORTA EM ALUMÍNIO DE ABRIR TIPO VENEZIANA COM GUARNIÇÃO, FIXAÇÃO COM PARAFUSOS - FORNECIMENTO E INSTALAÇÃO. AF_08/2015 | K118: 91341 | L118: 9.8 | M118: 525.88 | N118: 1230.55
A119: 5.11 | B119: 04.021.0010-A | C119: CARGA E DESCARGA MANUAL DE ANDAIME TUBULAR,INCLUSIVE TEMPO DE ESPERA DO CAMINHAO,CONSIDERANDO-SE A AREA DE PROJECAO VERTICAL | D119: 0.79 | E119: 555.66 | K119: 91341 Resultado | M119: 525.88 | N119: 1230.55
A120: 10.39 | B120: 93661 | C120: DISJUNTOR BIPOLAR TIPO DIN, CORRENTE NOMINAL DE 16A - FORNECIMENTO E INSTALAÇÃO. AF_04/2016 | D120: 69.28 | E120: 554.24 | J120: PORTA EM ALUMÍNIO DE ABRIR TIPO VENEZIANA COM GUARNIÇÃO, FIXAÇÃO COM PARAFUSOS - FORNECIMENTO E INSTALAÇÃO. AF_08/2015 Resultado | M120: 525.88 | N120: 1230.55
A121: 13.7 | B121: 86942 | C121: LAVATÓRIO LOUÇA BRANCA SUSPENSO, 29,5 X 39CM OU EQUIVALENTE, PADRÃO POPULAR, INCLUSO SIFÃO TIPO GARRAFA EM PVC, VÁLVULA E ENGATE FLEXÍVEL 30CM EM PLÁSTICO E TORNEIRA CROMADA DE MESA, PADRÃO POPULAR - FORNECIMENTO E INSTALAÇÃO. AF_12/2013 | D121: 255.27 | E121: 510.54 | J121: INSTALACAO E ASSENTAMENTO DE AR CONDICIONADO TIPO SPLIT DE 9000 BTU'S,COM 1 CONDENSADOR E 1 EVAPORADOR,(VIDE FORNECIMENTO DO APARELHO NA FAMILIA 18.030)INCLUSIVE ACESSORIOS DE FIXACAO,EXCLUSIVE ALIMENTACAO ELETRICA E INTERLIGACAO AO CONDENSADOR/EVAPORADOR(VIDE ITEM 15.005.0255) | K121: 15.005.0200-A | L121: 13.22 | M121: 489.31 | N121: 1957.24
A122: 10.16 | B122: 89987 | C122: REGISTRO DE GAVETA BRUTO, LATÃO, ROSCÁVEL, 3/4", COM ACABAMENTO E CANOPLA CROMADOS. FORNECIDO E INSTALADO EM RAMAL DE ÁGUA. AF_12/2014 | D122: 83.77 | E122: 502.62 | K122: 15.005.0200-A Resultado | M122: 489.31 | N122: 1957.24
A123: 13.16 | B123: 95547 | C123: SABONETEIRA PLASTICA TIPO DISPENSER PARA SABONETE LIQUIDO COM RESERVATORIO 800 A 1500 ML, INCLUSO FIXAÇÃO. AF_10/2016 | D123: 60.06 | E123: 480.48 | J123: INSTALACAO E ASSENTAMENTO DE AR CONDICIONADO TIPO SPLIT DE 9000 BTU'S,COM 1 CONDENSADOR E 1 EVAPORADOR,(VIDE FORNECIMENTO DO APARELHO NA FAMILIA 18.030)INCLUSIVE ACESSORIOS DE FIXACAO,EXCLUSIVE ALIMENTACAO ELETRICA E INTERLIGACAO AO CONDENSADOR/EVAPORADOR(VIDE ITEM 15.005.0255) Resultado | M123: 489.31 | N123: 1957.24
A124: 10.8 | B124: 91792 | C124: (COMPOSIÇÃO REPRESENTATIVA) DO SERVIÇO DE INSTALAÇÃO DE TUBO DE PVC, SÉRIE NORMAL, ESGOTO PREDIAL, DN 40 MM (INSTALADO EM RAMAL DE DESCARGA OU RAMAL DE ESGOTO SANITÁRIO), INCLUSIVE CONEXÕES, CORTES E FIXAÇÕES, PARA PRÉDIOS. AF_10/2015 | D124: 62.62 | E124: 475.91 | J124: HIDROMETRO COM DIAMETRO DE 1".FORNECIMENTO | K124: 15.001.0079-A | L124: 10.13 | M124: 463.95 | N124: 463.95
A125: 5.5 | B125: 05.001.0147-A | C125: ARRANCAMENTO DE GRADES,GRADIS,ALAMBRADOS,CERCAS E PORTOES | D125: 16.63 | E125: 468.96 | K125: 15.001.0079-A Resultado | M125: 463.95 | N125: 463.95
A126: 10.13 | B126: 15.001.0079-A | C126: HIDROMETRO COM DIAMETRO DE 1".FORNECIMENTO | D126: 463.95 | E126: 463.95 | J126: HIDROMETRO COM DIAMETRO DE 1".FORNECIMENTO Resultado | M126: 463.95 | N126: 463.95
A127: 11.6 | B127: 94231 | C127: RUFO EM CHAPA DE AÇO GALVANIZADO NÚMERO 24, CORTE DE 25 CM, INCLUSO TRANSPORTE VERTICAL. AF_06/2016 | D127: 37.94 | E127: 455.28 | J127: VIDRO TEMPERADO INCOLOR, ESPESSURA 10MM, FORNECIMENTO E INSTALACAO, INCLUSIVE MASSA PARA VEDACAO | K127: 72120 | L127: 9.11 | M127: 452.82 | N127: 1412.79
A128: 9.6 | B128: 14.006.0220-A | C128: PORTA DE MADEIRA DE LEI DE CORRER EM COMPENSADO DE 80X210X3CM,PENDURADA EM ROLDANAS,CORRENDO DENTRO DE TRILHO OCO,GUIADAOIR CANALETA EMBUTIDA NO PISO COM MARCO DE 7X3CM,EXCLUSIVE FERRAGENS.FORNECIMENTO E COLOCACAO | D128: 445.79 | E128: 445.79 | K128: 72120 Resultado | M128: 452.82 | N128: 1412.79
A129: 13.14 | B129: 86934 | C129: BANCADA DE MÁRMORE SINTÉTICO 120 X 60CM, COM CUBA INTEGRADA, INCLUSO SIFÃO TIPO FLEXÍVEL EM PVC, VÁLVULA EM PLÁSTICO CROMADO TIPO AMERICANA E TORNEIRA CROMADA LONGA, DE PAREDE, PADRÃO POPULAR - FORNECIMENTO E INSTALAÇÃO. AF_12/2013 | D129: 439.51 | E129: 439.51 | J129: VIDRO TEMPERADO INCOLOR, ESPESSURA 10MM, FORNECIMENTO E INSTALACAO, INCLUSIVE MASSA PARA VEDACAO Resultado | M129: 452.82 | N129: 1412.79
A130: 10.4 | B130: 83446 | C130: CAIXA DE PASSAGEM 30X30X40 COM TAMPA E DRENO BRITA | D130: 217.72 | E130: 435.44 | J130: INSTALACAO DE PONTO DE FORCA ATE 4CV,EQUIVALENTE A 2 VARAS DE ELETRODUTO DE PVC RIGIDO DE 3/4",20,00M DE FIO 4MM2,CAIXAS E CONEXOES | K130: 15.015.0173-A | L130: 10.35 | M130: 449.45 | N130: 8090.1
A131: 13.3 | B131: 18.005.0030-A | C131: ASSENTO ESPECIAL PARA VASO SANITARIO PARA PESSOAS COM NECESSIDADES ESPECIFICAS.FORNECIMENTO E COLOCACAO | D131: 144.72 | E131: 434.16 | K131: 15.015.0173-A Resultado | M131: 449.45 | N131: 8090.1
A132: 13.17 | B132: 95544 | C132: PAPELEIRA DE PAREDE EM METAL CROMADO SEM TAMPA, INCLUSO FIXAÇÃO. AF_10/2016 | D132: 47.7 | E132: 381.6 | J132: INSTALACAO DE PONTO DE FORCA ATE 4CV,EQUIVALENTE A 2 VARAS DE ELETRODUTO DE PVC RIGIDO DE 3/4",20,00M DE FIO 4MM2,CAIXAS E CONEXOES Resultado | M132: 449.45 | N132: 8090.1
A133: 13.18 | B133: 18.005.0013-A | C133: PORTA PAPEL HIGIENICO EM PLASTICO ABS.FORNECIMENTRO E COLOCACAO | D133: 36.56 | E133: 365.6 | J133: PORTA DE MADEIRA DE LEI DE CORRER EM COMPENSADO DE 80X210X3CM,PENDURADA EM ROLDANAS,CORRENDO DENTRO DE TRILHO OCO,GUIADAOIR CANALETA EMBUTIDA NO PISO COM MARCO DE 7X3CM,EXCLUSIVE FERRAGENS.FORNECIMENTO E COLOCACAO | K133: 14.006.0220-A | L133: 9.6 | M133: 445.79 | N133: 445.79
A134: 10.38 | B134: 74130/4 | C134: DISJUNTOR TERMOMAGNETICO TRIPOLAR PADRAO NEMA (AMERICANO) 10 A 50A 240V, FORNECIMENTO E INSTALACAO | D134: 116.97 | E134: 350.91 | K134: 14.006.0220-A Resultado | M134: 445.79 | N134: 445.79
A135: 13.11 | B135: 18.007.0090-A | C135: CHUVEIRO COM DESVIADOR E DUCHA MANUAL,CROMADO,PARA PESSOAS COM NECESSIDADES ESPECIFICAS.FORNECIMENTO | D135: 340.91 | E135: 340.91 | J135: PORTA DE MADEIRA DE LEI DE CORRER EM COMPENSADO DE 80X210X3CM,PENDURADA EM ROLDANAS,CORRENDO DENTRO DE TRILHO OCO,GUIADAOIR CANALETA EMBUTIDA NO PISO COM MARCO DE 7X3CM,EXCLUSIVE FERRAGENS.FORNECIMENTO E COLOCACAO Resultado | M135: 445.79 | N135: 445.79
A136: 4.2 | B136: 72898 | C136: CARGA E DESCARGA MECANIZADAS DE ENTULHO EM CAMINHAO BASCULANTE 6 M3 | D136: 5.04 | E136: 338.83 | J136: PISO EM GRANITO APLICADO EM AMBIENTES INTERNOS. AF_06/2018 | K136: 98671 | L136: 8.13 | M136: 444.22 | N136: 17782.12
A137: 13.13 | B137: 14.007.0321-A | C137: PUXADOR HORIZONTAL PARA PORTA,TIPO ALCA,PARA PESSOAS COM NECESSIDADES ESPECIFICAS, EM TUBO DE ACO INOXIDAVEL DE 1.1/4",AISI-304,LIGA 18.8,COM 30CM.FORNECIMENTO | D137: 110.88 | E137: 332.64 | K137: 98671 Resultado | M137: 444.22 | N137: 17782.12
A138: 5.4 | B138: 05.001.0134-A | C138: ARRANCAMENTO DE PORTAS,JANELAS E CAIXILHOS DE AR CONDICIONADO OU OUTROS | D138: 23.52 | E138: 329.28 | J138: PISO EM GRANITO APLICADO EM AMBIENTES INTERNOS. AF_06/2018 Resultado | M138: 444.22 | N138: 17782.12
A139: 9.7 | B139: 14.007.0090-A | C139: FERRAGENS P/PORTAS DE MADEIRA,DE CORRER,DE 1 FOLHA,CONSTANDO DE FORN.S/COLOC.DE:-FECHADURA C/CHAVE BI-PART.,LATAO, ACABAMENTO CROMADO;-2,00M DE TRILHO EM "U",DE FERRO;-2 ROLDANAS DE FERRO;-2 GUIAS DE LATAO,TAMANHO 3/4",SEM CANTONEIRA;-2,00M CANALETA DE ALUMINIO,TAMANHO 2,00MX3/4",2 CONCHAS COM FUROPARA CHAVE, LATAO CROMADO | D139: 322.26 | E139: 322.26 | J139: BANCADA DE MÁRMORE SINTÉTICO 120 X 60CM, COM CUBA INTEGRADA, INCLUSO SIFÃO TIPO FLEXÍVEL EM PVC, VÁLVULA EM PLÁSTICO CROMADO TIPO AMERICANA E TORNEIRA CROMADA LONGA, DE PAREDE, PADRÃO POPULAR - FORNECIMENTO E INSTALAÇÃO. AF_12/2013 | K139: 86934 | L139: 13.14 | M139: 439.51 | N139: 439.51
A140: 10.31 | B140: 97605 | C140: LUMINÁRIA ARANDELA TIPO MEIA-LUA, PARA 1 LÂMPADA LED - FORNECIMENTO E INSTALAÇÃO. AF_11/2017 | D140: 100.69 | E140: 302.07 | K140: 86934 Resultado | M140: 439.51 | N140: 439.51
A141: 13.12 | B141: 18.007.0075-A | C141: CHUVEIRO ELETRICO,EM METAL CROMADO,EM 110/220V,COM BRACO CROMADO DE 1/2" E 1 REGISTRO DE PRESSAO 1416 DE 3/4",COM CANOPLA E VOLANTE EM METAL CROMADO.FORNECIMENTO | D141: 254.17 | E141: 254.17 | J141: BANCADA DE MÁRMORE SINTÉTICO 120 X 60CM, COM CUBA INTEGRADA, INCLUSO SIFÃO TIPO FLEXÍVEL EM PVC, VÁLVULA EM PLÁSTICO CROMADO TIPO AMERICANA E TORNEIRA CROMADA LONGA, DE PAREDE, PADRÃO POPULAR - FORNECIMENTO E INSTALAÇÃO. AF_12/2013 Resultado | M141: 439.51 | N141: 439.51
A142: 3.1 | B142: 90084 | C142: ESCAVAÇÃO MECANIZADA DE VALA COM PROF. MAIOR QUE 1,5 M ATÉ 3,0 M (MÉDIA ENTRE MONTANTE E JUSANTE/UMA COMPOSIÇÃO POR TRECHO), COM ESCAVADEIRA HIDRÁULICA (0,8 M3/111 HP), LARGURA ATÉ 1,5 M, EM SOLO DE 1A CATEGORIA, EM LOCAIS COM ALTO NÍVEL DE INTERFERÊNCIA. AF_01/2015 | D142: 10.38 | E142: 248.49 | J142: LAVATORIO DE LOUCA BRANCA,COM COLUNA SUSPENSA,PARA PESSOAS COM NECESSIDADES ESPECIFICAS,COM MEDIDAS EM TORNO DE 45,5X35,5CM,INCLUSIVE SIFAO EM PVC FLEXIVEL,VALVULA DE ESCOAMENTO CROMADA,RABICHO EM PVC E TORNEIRA DE FECHAMENTO AUTOMATICO.FORNECIMENTO | K142: 18.002.0014-A | L142: 13.8 | M142: 412.55 | N142: 1237.65
A143: 10.15 | B143: 89985 | C143: REGISTRO DE PRESSÃO BRUTO, LATÃO, ROSCÁVEL, 3/4", COM ACABAMENTO E CANOPLA CROMADOS. FORNECIDO E INSTALADO EM RAMAL DE ÁGUA. AF_12/2014 | D143: 79.86 | E143: 239.58 | K143: 18.002.0014-A Resultado | M143: 412.55 | N143: 1237.65
A144: 10.42 | B144: 74130/1 | C144: DISJUNTOR TERMOMAGNETICO MONOPOLAR PADRAO NEMA (AMERICANO) 10 A 30A 240V, FORNECIMENTO E INSTALACAO | D144: 18 | E144: 234 | J144: LAVATORIO DE LOUCA BRANCA,COM COLUNA SUSPENSA,PARA PESSOAS COM NECESSIDADES ESPECIFICAS,COM MEDIDAS EM TORNO DE 45,5X35,5CM,INCLUSIVE SIFAO EM PVC FLEXIVEL,VALVULA DE ESCOAMENTO CROMADA,RABICHO EM PVC E TORNEIRA DE FECHAMENTO AUTOMATICO.FORNECIMENTO Resultado | M144: 412.55 | N144: 1237.65
A145: 10.14 | B145: 94496 | C145: REGISTRO DE GAVETA BRUTO, LATÃO, ROSCÁVEL, 1 1/4, INSTALADO EM RESERVAÇÃO DE ÁGUA DE EDIFICAÇÃO QUE POSSUA RESERVATÓRIO DE FIBRA/FIBROCIMENTO  FORNECIMENTO E INSTALAÇÃO. AF_06/2016 | D145: 104.47 | E145: 208.94 | J145: DIVISORIA EM MARMORITE ESPESSURA 35MM, CHUMBAMENTO NO PISO E PAREDE COM ARGAMASSA DE CIMENTO E AREIA, POLIMENTO MANUAL, EXCLUSIVE FERRAGENS | K145: 73774/1 | L145: 7.4 | M145: 402.85 | N145: 5527.1
A146: 10.5 | B146: 15.002.0062-A | C146: CAIXA DE GORDURA SIMPLES CILINDRICA,PRE-FABRICADA EM ANEIS DE CONCRETO,COM DIAMETRO DE 40CM E PROFUNDIDADE TOTAL DE 60CM,INCLUSIVE TAMPA DE CONCRETO.FORNECIMENTO E COLOCACAO | D146: 189.67 | E146: 189.67 | K146: 73774/1 Resultado | M146: 402.85 | N146: 5527.1
A147: 6.6 | B147: 93187 | C147: VERGA MOLDADA IN LOCO EM CONCRETO PARA JANELAS COM MAIS DE 1,5 M DE VÃO. AF_03/2016 | D147: 66.51 | E147: 186.22 | J147: DIVISORIA EM MARMORITE ESPESSURA 35MM, CHUMBAMENTO NO PISO E PAREDE COM ARGAMASSA DE CIMENTO E AREIA, POLIMENTO MANUAL, EXCLUSIVE FERRAGENS Resultado | M147: 402.85 | N147: 5527.1
A148: 6.7 | B148: 93197 | C148: CONTRAVERGA MOLDADA IN LOCO EM CONCRETO PARA VÃOS DE MAIS DE 1,5 M DE COMPRIMENTO. AF_03/2016 | D148: 62.84 | E148: 175.95 | J148: QUADRO DE DISTRIBUICAO DE ENERGIA DE EMBUTIR, EM CHAPA METALICA, PARA 18 DISJUNTORES TERMOMAGNETICOS MONOPOLARES, COM BARRAMENTO TRIFASICO E NEUTRO, FORNECIMENTO E INSTALACAO | K148: 74131/4 | L148: 10.36 | M148: 385.87 | N148: 771.74
A149: 10.40 | B149: 93663 | C149: DISJUNTOR BIPOLAR TIPO DIN, CORRENTE NOMINAL DE 25A - FORNECIMENTO E INSTALAÇÃO. AF_04/2016 | D149: 71.87 | E149: 143.74 | K149: 74131/4 Resultado | M149: 385.87 | N149: 771.74
A150: 10.19 | B150: 91787 | C150: (COMPOSIÇÃO REPRESENTATIVA) DO SERVIÇO DE INSTALAÇÃO DE TUBOS DE PVC, SOLDÁVEL, ÁGUA FRIA, DN 40 MM (INSTALADO EM PRUMADA), INCLUSIVE CONEXÕES, CORTES E FIXAÇÕES, PARA PRÉDIOS. AF_10/2015 | D150: 26.27 | E150: 141.85 | J150: QUADRO DE DISTRIBUICAO DE ENERGIA DE EMBUTIR, EM CHAPA METALICA, PARA 18 DISJUNTORES TERMOMAGNETICOS MONOPOLARES, COM BARRAMENTO TRIFASICO E NEUTRO, FORNECIMENTO E INSTALACAO Resultado | M150: 385.87 | N150: 771.74
A151: 2.7 | B151: 04.013.0015-A | C151: CARGA E DESCARGA DE CONTAINER,SEGUNDO DESCRICAO DA FAMILIA 02.006 | D151: 70.05 | E151: 140.1 | J151: ESCADA TIPO MARINHEIRO EM TUBO ACO GALVANIZADO 1 1/2" 5 DEGRAUS | K151: 74194/1 | L151: 13.19 | M151: 371.52 | N151: 1226.01
A152: 13.15 | B152: 88571 | C152: SABONETEIRA DE SOBREPOR (FIXADA NA PAREDE), TIPO CONCHA, EM ACO INOXIDAVEL - FORNECIMENTO E INSTALACAO | D152: 68.73 | E152: 137.46 | K152: 74194/1 Resultado | M152: 371.52 | N152: 1226.01
A153: 10.6 | B153: 89709 | C153: RALO SIFONADO, PVC, DN 100 X 40 MM, JUNTA SOLDÁVEL, FORNECIDO E INSTALADO EM RAMAL DE DESCARGA OU EM RAMAL DE ESGOTO SANITÁRIO. AF_12/2014 | D153: 13.72 | E153: 109.76 | J153: ESCADA TIPO MARINHEIRO EM TUBO ACO GALVANIZADO 1 1/2" 5 DEGRAUS Resultado | M153: 371.52 | N153: 1226.01
A154: 10.41 | B154: 93664 | C154: DISJUNTOR BIPOLAR TIPO DIN, CORRENTE NOMINAL DE 32A - FORNECIMENTO E INSTALAÇÃO. AF_04/2016 | D154: 74.97 | E154: 74.97 | J154: CAIXILHO FIXO, DE ALUMINIO, PARA VIDRO | K154: 85010 | L154: 9.10 | M154: 368.82 | N154: 1150.71
A155: 10.20 | B155: 83879 | C155: LIGACAO DA REDE 75MM AO RAMAL PREDIAL 1/2" | D155: 69.19 | E155: 69.19 | K155: 85010 Resultado | M155: 368.82 | N155: 1150.71
A156: 10.46 | B156: COTAÇÃO 03 | C156: ELETRODUTO PEAD CORRUGADO 6" (150MM) | D156: 13.46 | E156: 67.3 | J156: CAIXILHO FIXO, DE ALUMINIO, PARA VIDRO Resultado | M156: 368.82 | N156: 1150.71
A157: 10.22 | B157: 94797 | C157: TORNEIRA DE BOIA, ROSCÁVEL, 1, FORNECIDA E INSTALADA EM RESERVAÇÃO DE ÁGUA. AF_06/2016 | D157: 58.99 | E157: 58.99 | J157: INSTALACAO DE UM CONJUNTO DE 2 PONTOS DE LUZ,APARENTE,EQUIVALENTE A 5 VARAS DE ELETRODUTO DE PVC RIGIDO DE 1/2",33,00M DE FIO 2,5MM2,CAIXAS,CONEXOES,LUVAS,CURVA E INTERRUPTOR DE SOBREPOR | K157: 15.015.0041-A | L157: 10.24 | M157: 363.45 | N157: 726.9
A158: 10.43 | B158: 74130/2 | C158: DISJUNTOR TERMOMAGNETICO MONOPOLAR PADRAO NEMA (AMERICANO) 35 A 50A 240V, FORNECIMENTO E INSTALACAO | D158: 27.55 | E158: 55.1 | K158: 15.015.0041-A Resultado | M158: 363.45 | N158: 726.9
A159: 10.7 | B159: 89710 | C159: RALO SECO, PVC, DN 100 X 40 MM, JUNTA SOLDÁVEL, FORNECIDO E INSTALADO EM RAMAL DE DESCARGA OU EM RAMAL DE ESGOTO SANITÁRIO. AF_12/2014 | D159: 13.44 | E159: 13.44 | J159: INSTALACAO DE UM CONJUNTO DE 2 PONTOS DE LUZ,APARENTE,EQUIVALENTE A 5 VARAS DE ELETRODUTO DE PVC RIGIDO DE 1/2",33,00M DE FIO 2,5MM2,CAIXAS,CONEXOES,LUVAS,CURVA E INTERRUPTOR DE SOBREPOR Resultado | M159: 363.45 | N159: 726.9
J160: CHUVEIRO COM DESVIADOR E DUCHA MANUAL,CROMADO,PARA PESSOAS COM NECESSIDADES ESPECIFICAS.FORNECIMENTO | K160: 18.007.0090-A | L160: 13.11 | M160: 340.91 | N160: 340.91
K161: 18.007.0090-A Resultado | M161: 340.91 | N161: 340.91
J162: CHUVEIRO COM DESVIADOR E DUCHA MANUAL,CROMADO,PARA PESSOAS COM NECESSIDADES ESPECIFICAS.FORNECIMENTO Resultado | M162: 340.91 | N162: 340.91
J163: FERRAGENS P/PORTAS DE MADEIRA,DE CORRER,DE 1 FOLHA,CONSTANDO DE FORN.S/COLOC.DE:-FECHADURA C/CHAVE BI-PART.,LATAO, ACABAMENTO CROMADO;-2,00M DE TRILHO EM "U",DE FERRO;-2 ROLDANAS DE FERRO;-2 GUIAS DE LATAO,TAMANHO 3/4",SEM CANTONEIRA;-2,00M CANALETA DE ALUMINIO,TAMANHO 2,00MX3/4",2 CONCHAS COM FUROPARA CHAVE, LATAO CROMADO | K163: 14.007.0090-A | L163: 9.7 | M163: 322.26 | N163: 322.26
K164: 14.007.0090-A Resultado | M164: 322.26 | N164: 322.26
J165: FERRAGENS P/PORTAS DE MADEIRA,DE CORRER,DE 1 FOLHA,CONSTANDO DE FORN.S/COLOC.DE:-FECHADURA C/CHAVE BI-PART.,LATAO, ACABAMENTO CROMADO;-2,00M DE TRILHO EM "U",DE FERRO;-2 ROLDANAS DE FERRO;-2 GUIAS DE LATAO,TAMANHO 3/4",SEM CANTONEIRA;-2,00M CANALETA DE ALUMINIO,TAMANHO 2,00MX3/4",2 CONCHAS COM FUROPARA CHAVE, LATAO CROMADO Resultado | M165: 322.26 | N165: 322.26
J166: DEMOLICAO MANUAL DE CONCRETO ARMADO COMPREENDENDO PILARES,VIGAS E LAJES,EM ESTRUTURA APRESENTANDO POSICAO ESPECIAL,INCLUSIVE EMPILHAMENTO LATERAL DENTRO DO CANTEIRO DE SERVICO | K166: 05.001.0002-B | L166: 5.2 | M166: 314.59 | N166: 2394.02
K167: 05.001.0002-B Resultado | M167: 314.59 | N167: 2394.02
J168: DEMOLICAO MANUAL DE CONCRETO ARMADO COMPREENDENDO PILARES,VIGAS E LAJES,EM ESTRUTURA APRESENTANDO POSICAO ESPECIAL,INCLUSIVE EMPILHAMENTO LATERAL DENTRO DO CANTEIRO DE SERVICO Resultado | M168: 314.59 | N168: 2394.02
J169: VALVULA DESCARGA 1.1/2" COM REGISTRO, ACABAMENTO EM METAL CROMADO - FORNECIMENTO E INSTALACAO | K169: 40729 | L169: 13.6 | M169: 305.86 | N169: 3058.6
K170: 40729 Resultado | M170: 305.86 | N170: 3058.6
J171: VALVULA DESCARGA 1.1/2" COM REGISTRO, ACABAMENTO EM METAL CROMADO - FORNECIMENTO E INSTALACAO Resultado | M171: 305.86 | N171: 3058.6
J172: INSTALACAO DE PONTO DE TOMADA,EMBUTIDO NA ALVENARIA,EQUIVALENTE A 2 VARAS DE ELETRODUTO DE PVC RIGIDO DE 3/4",18,00M DEFIO 2,5MM2,CAIXAS,CONEXOES E TOMADA DE EMBUTIR,2P+T,10A,PADRAO BRASILEIRO,COM PLACA FOSFORESCENTE,INCLUSIVE ABERTURA E FECHAMENTO DE RASGO EM ALVENARIA | K172: 15.015.0250-A | L172: 10.34 | M172: 293.71 | N172: 14098.08
K173: 15.015.0250-A Resultado | M173: 293.71 | N173: 14098.08
J174: INSTALACAO DE PONTO DE TOMADA,EMBUTIDO NA ALVENARIA,EQUIVALENTE A 2 VARAS DE ELETRODUTO DE PVC RIGIDO DE 3/4",18,00M DEFIO 2,5MM2,CAIXAS,CONEXOES E TOMADA DE EMBUTIR,2P+T,10A,PADRAO BRASILEIRO,COM PLACA FOSFORESCENTE,INCLUSIVE ABERTURA E FECHAMENTO DE RASGO EM ALVENARIA Resultado | M174: 293.71 | N174: 14098.08
J175: CAIXA DE INSPEÇÃO EM CONCRETO PRÉ-MOLDADO DN 60CM COM TAMPA H= 60CM - FORNECIMENTO E INSTALACAO | K175: 74166/1 | L175: 10.3 | M175: 277 | N175: 831
K176: 74166/1 Resultado | M176: 277 | N176: 831
J177: CAIXA DE INSPEÇÃO EM CONCRETO PRÉ-MOLDADO DN 60CM COM TAMPA H= 60CM - FORNECIMENTO E INSTALACAO Resultado | M177: 277 | N177: 831
J178: LAVATÓRIO LOUÇA BRANCA SUSPENSO, 29,5 X 39CM OU EQUIVALENTE, PADRÃO POPULAR, INCLUSO SIFÃO TIPO GARRAFA EM PVC, VÁLVULA E ENGATE FLEXÍVEL 30CM EM PLÁSTICO E TORNEIRA CROMADA DE MESA, PADRÃO POPULAR - FORNECIMENTO E INSTALAÇÃO. AF_12/2013 | K178: 86942 | L178: 13.7 | M178: 255.27 | N178: 510.54
K179: 86942 Resultado | M179: 255.27 | N179: 510.54
J180: LAVATÓRIO LOUÇA BRANCA SUSPENSO, 29,5 X 39CM OU EQUIVALENTE, PADRÃO POPULAR, INCLUSO SIFÃO TIPO GARRAFA EM PVC, VÁLVULA E ENGATE FLEXÍVEL 30CM EM PLÁSTICO E TORNEIRA CROMADA DE MESA, PADRÃO POPULAR - FORNECIMENTO E INSTALAÇÃO. AF_12/2013 Resultado | M180: 255.27 | N180: 510.54
J181: CHUVEIRO ELETRICO,EM METAL CROMADO,EM 110/220V,COM BRACO CROMADO DE 1/2" E 1 REGISTRO DE PRESSAO 1416 DE 3/4",COM CANOPLA E VOLANTE EM METAL CROMADO.FORNECIMENTO | K181: 18.007.0075-A | L181: 13.12 | M181: 254.17 | N181: 254.17
K182: 18.007.0075-A Resultado | M182: 254.17 | N182: 254.17
J183: CHUVEIRO ELETRICO,EM METAL CROMADO,EM 110/220V,COM BRACO CROMADO DE 1/2" E 1 REGISTRO DE PRESSAO 1416 DE 3/4",COM CANOPLA E VOLANTE EM METAL CROMADO.FORNECIMENTO Resultado | M183: 254.17 | N183: 254.17
J184: INSTALACAO DE PONTO DE LUZ,APARENTE,EQUIVALENTE A 2 VARAS DE ELETRODUTO DE PVC RIGIDO DE 3/4",12,00M DE FIO 2,5MM2,CAIXAS,CONEXOES,LUVAS,CURVA E INTERRUPTOR DE SOBREPOR | K184: 15.015.0021-A | L184: 10.23 | M184: 236.57 | N184: 6860.53
K185: 15.015.0021-A Resultado | M185: 236.57 | N185: 6860.53
J186: INSTALACAO DE PONTO DE LUZ,APARENTE,EQUIVALENTE A 2 VARAS DE ELETRODUTO DE PVC RIGIDO DE 3/4",12,00M DE FIO 2,5MM2,CAIXAS,CONEXOES,LUVAS,CURVA E INTERRUPTOR DE SOBREPOR Resultado | M186: 236.57 | N186: 6860.53
J187: CAIXA DE PASSAGEM 30X30X40 COM TAMPA E DRENO BRITA | K187: 83446 | L187: 10.4 | M187: 217.72 | N187: 435.44
K188: 83446 Resultado | M188: 217.72 | N188: 435.44
J189: CAIXA DE PASSAGEM 30X30X40 COM TAMPA E DRENO BRITA Resultado | M189: 217.72 | N189: 435.44
J190: TUBULACAO EM COBRE PARA INTERLIGACAO DE SPLIT SYSTEM AO CONDENSADOR/EVAPORADOR,INCLUSIVE ISOLAMENTO TERMICO,ALIMENTACAOELETRICA,CONEXOES E FIXACAO,PARA APARELHOS DE 60000 BTU'S.FORNECIMENTO E INSTALACAO | K190: 15.005.0260-A | L190: 13.30 | M190: 212.9 | N190: 25548
K191: 15.005.0260-A Resultado | M191: 212.9 | N191: 25548
J192: TUBULACAO EM COBRE PARA INTERLIGACAO DE SPLIT SYSTEM AO CONDENSADOR/EVAPORADOR,INCLUSIVE ISOLAMENTO TERMICO,ALIMENTACAOELETRICA,CONEXOES E FIXACAO,PARA APARELHOS DE 60000 BTU'S.FORNECIMENTO E INSTALACAO Resultado | M192: 212.9 | N192: 25548
J193: CAIXA DE GORDURA SIMPLES CILINDRICA,PRE-FABRICADA EM ANEIS DE CONCRETO,COM DIAMETRO DE 40CM E PROFUNDIDADE TOTAL DE 60CM,INCLUSIVE TAMPA DE CONCRETO.FORNECIMENTO E COLOCACAO | K193: 15.002.0062-A | L193: 10.5 | M193: 189.67 | N193: 189.67
K194: 15.002.0062-A Resultado | M194: 189.67 | N194: 189.67
J195: CAIXA DE GORDURA SIMPLES CILINDRICA,PRE-FABRICADA EM ANEIS DE CONCRETO,COM DIAMETRO DE 40CM E PROFUNDIDADE TOTAL DE 60CM,INCLUSIVE TAMPA DE CONCRETO.FORNECIMENTO E COLOCACAO Resultado | M195: 189.67 | N195: 189.67
J196: CORRIMAO EM TUBO ACO GALVANIZADO 2 1/2" COM BRACADEIRA | K196: 74072/2 | L196: 9.13 | M196: 175.89 | N196: 2409.69
K197: 74072/2 Resultado | M197: 175.89 | N197: 2409.69
J198: CORRIMAO EM TUBO ACO GALVANIZADO 2 1/2" COM BRACADEIRA Resultado | M198: 175.89 | N198: 2409.69
J199: TUBULACAO EM COBRE PARA INTERLIGACAO DE SPLIT SYSTEM AO CONDENSADOR/EVAPORADOR,INCLUSIVE ISOLAMENTO TERMICO,ALIMENTACAOELETRICA,CONEXOES E FIXACAO,PARA APARELHOS ATE 48000 BTU'S.FORNECIMENTO E INSTALACAO | K199: 15.005.0255-A | L199: 13.29 | M199: 174.05 | N199: 13175.58
K200: 15.005.0255-A Resultado | M200: 174.05 | N200: 13175.58
... 276 more rows

Sheet SINAPI 01-2019
A1: PCI.817.01 - CUSTO DE COMPOSIÇÕES - SINTÉTICO DATA DE EMISSÃO: 14/02/2019 23:33:51 DATA DE RT: 13/02/2019
A2: ENCARGOS SOCIAIS DESONERADOS: 87,18%(HORA) 49,39%(MÊS)
A3: ABRANGÊNCIA : NACIONAL LOCALIDADE : RIO DE JANEIRO DATA DE PREÇO : 01/2019 REFERÊNCIA COLETA : MEDIANO
A5: CODIGO DA COMPOSICAO | B5: DESCRICAO DA COMPOSICAO | C5: UNIDADE | D5: CUSTO TOTAL
A7: 97141 | B7: ASSENTAMENTO DE TUBO DE FERRO FUNDIDO PARA REDE DE ÁGUA, DN 80 MM, JUNTA ELÁSTICA, INSTALADO EM LOCAL COM NÍVEL ALTO DE INTERFERÊNCIAS (NÃO INCLUI FORNECIMENTO). AF_11/2017 | C7: M | D7: 6.9
A8: 97142 | B8: ASSENTAMENTO DE TUBO DE FERRO FUNDIDO PARA REDE DE ÁGUA, DN 100 MM, JUNTA ELÁSTICA, INSTALADO EM LOCAL COM NÍVEL ALTO DE INTERFERÊNCIAS (NÃO INCLUI FORNECIMENTO). AF_11/2017 | C8: M | D8: 7.72
A9: 97143 | B9: ASSENTAMENTO DE TUBO DE FERRO FUNDIDO PARA REDE DE ÁGUA, DN 150 MM, JUNTA ELÁSTICA, INSTALADO EM LOCAL COM NÍVEL ALTO DE INTERFERÊNCIAS (NÃO INCLUI FORNECIMENTO). AF_11/2017 | C9: M | D9: 9.79
A10: 97144 | B10: ASSENTAMENTO DE TUBO DE FERRO FUNDIDO PARA REDE DE ÁGUA, DN 200 MM, JUNTA ELÁSTICA, INSTALADO EM LOCAL COM NÍVEL ALTO DE INTERFERÊNCIAS (NÃO INCLUI FORNECIMENTO). AF_11/2017 | C10: M | D10: 11.83
A11: 97145 | B11: ASSENTAMENTO DE TUBO DE FERRO FUNDIDO PARA REDE DE ÁGUA, DN 250 MM, JUNTA ELÁSTICA, INSTALADO EM LOCAL COM NÍVEL ALTO DE INTERFERÊNCIAS (NÃO INCLUI FORNECIMENTO). AF_11/2017 | C11: M | D11: 13.91
A12: 97146 | B12: ASSENTAMENTO DE TUBO DE FERRO FUNDIDO PARA REDE DE ÁGUA, DN 300 MM, JUNTA ELÁSTICA, INSTALADO EM LOCAL COM NÍVEL ALTO DE INTERFERÊNCIAS (NÃO INCLUI FORNECIMENTO). AF_11/2017 | C12: M | D12: 15.98
A13: 97147 | B13: ASSENTAMENTO DE TUBO DE FERRO FUNDIDO PARA REDE DE ÁGUA, DN 350 MM, JUNTA ELÁSTICA, INSTALADO EM LOCAL COM NÍVEL ALTO DE INTERFERÊNCIAS (NÃO INCLUI FORNECIMENTO). AF_11/2017 | C13: M | D13: 18.06
A14: 97148 | B14: ASSENTAMENTO DE TUBO DE FERRO FUNDIDO PARA REDE DE ÁGUA, DN 400 MM, JUNTA ELÁSTICA, INSTALADO EM LOCAL COM NÍVEL ALTO DE INTERFERÊNCIAS (NÃO INCLUI FORNECIMENTO). AF_11/2017 | C14: M | D14: 20.13
A15: 97149 | B15: ASSENTAMENTO DE TUBO DE FERRO FUNDIDO PARA REDE DE ÁGUA, DN 450 MM, JUNTA ELÁSTICA, INSTALADO EM LOCAL COM NÍVEL ALTO DE INTERFERÊNCIAS (NÃO INCLUI FORNECIMENTO). AF_11/2017 | C15: M | D15: 22.22
A16: 97150 | B16: ASSENTAMENTO DE TUBO DE FERRO FUNDIDO PARA REDE DE ÁGUA, DN 500 MM, JUNTA ELÁSTICA, INSTALADO EM LOCAL COM NÍVEL ALTO DE INTERFERÊNCIAS (NÃO INCLUI FORNECIMENTO). AF_11/2017 | C16: M | D16: 26.71
A17: 97151 | B17: ASSENTAMENTO DE TUBO DE FERRO FUNDIDO PARA REDE DE ÁGUA, DN 600 MM, JUNTA ELÁSTICA, INSTALADO EM LOCAL COM NÍVEL ALTO DE INTERFERÊNCIAS (NÃO INCLUI FORNECIMENTO). AF_11/2017 | C17: M | D17: 31.22
A18: 97152 | B18: ASSENTAMENTO DE TUBO DE FERRO FUNDIDO PARA REDE DE ÁGUA, DN 700 MM, JUNTA ELÁSTICA, INSTALADO EM LOCAL COM NÍVEL ALTO DE INTERFERÊNCIAS (NÃO INCLUI FORNECIMENTO). AF_11/2017 | C18: M | D18: 35.59
A19: 97153 | B19: ASSENTAMENTO DE TUBO DE FERRO FUNDIDO PARA REDE DE ÁGUA, DN 800 MM, JUNTA ELÁSTICA, INSTALADO EM LOCAL COM NÍVEL ALTO DE INTERFERÊNCIAS (NÃO INCLUI FORNECIMENTO). AF_11/2017 | C19: M | D19: 40.05
A20: 97154 | B20: ASSENTAMENTO DE TUBO DE FERRO FUNDIDO PARA REDE DE ÁGUA, DN 900 MM, JUNTA ELÁSTICA, INSTALADO EM LOCAL COM NÍVEL ALTO DE INTERFERÊNCIAS (NÃO INCLUI FORNECIMENTO). AF_11/2017 | C20: M | D20: 44.53
A21: 97155 | B21: ASSENTAMENTO DE TUBO DE FERRO FUNDIDO PARA REDE DE ÁGUA, DN 1000 MM, JUNTA ELÁSTICA, INSTALADO EM LOCAL COM NÍVEL ALTO DE INTERFERÊNCIAS (NÃO INCLUI FORNECIMENTO). AF_11/2017 | C21: M | D21: 49.01
A22: 97156 | B22: ASSENTAMENTO DE TUBO DE FERRO FUNDIDO PARA REDE DE ÁGUA, DN 1200 MM, JUNTA ELÁSTICA, INSTALADO EM LOCAL COM NÍVEL ALTO DE INTERFERÊNCIAS (NÃO INCLUI FORNECIMENTO). AF_11/2017 | C22: M | D22: 58.22
A23: 97157 | B23: ASSENTAMENTO DE TUBO DE FERRO FUNDIDO PARA REDE DE ÁGUA, DN 80 MM, JUNTA ELÁSTICA, INSTALADO EM LOCAL COM NÍVEL BAIXO DE INTERFERÊNCIAS (NÃO INCLUI FORNECIMENTO). AF_11/2017 | C23: M | D23: 4.18
A24: 97158 | B24: ASSENTAMENTO DE TUBO DE FERRO FUNDIDO PARA REDE DE ÁGUA, DN 100 MM, JUNTA ELÁSTICA, INSTALADO EM LOCAL COM NÍVEL BAIXO DE INTERFERÊNCIAS (NÃO INCLUI FORNECIMENTO). AF_11/2017 | C24: M | D24: 4.68
A25: 97159 | B25: ASSENTAMENTO DE TUBO DE FERRO FUNDIDO PARA REDE DE ÁGUA, DN 150 MM, JUNTA ELÁSTICA, INSTALADO EM LOCAL COM NÍVEL BAIXO DE INTERFERÊNCIAS (NÃO INCLUI FORNECIMENTO). AF_11/2017 | C25: M | D25: 5.94
A26: 97160 | B26: ASSENTAMENTO DE TUBO DE FERRO FUNDIDO PARA REDE DE ÁGUA, DN 200 MM, JUNTA ELÁSTICA, INSTALADO EM LOCAL COM NÍVEL BAIXO DE INTERFERÊNCIAS (NÃO INCLUI FORNECIMENTO). AF_11/2017 | C26: M | D26: 7.18
A27: 97161 | B27: ASSENTAMENTO DE TUBO DE FERRO FUNDIDO PARA REDE DE ÁGUA, DN 250 MM, JUNTA ELÁSTICA, INSTALADO EM LOCAL COM NÍVEL BAIXO DE INTERFERÊNCIAS (NÃO INCLUI FORNECIMENTO). AF_11/2017 | C27: M | D27: 8.46
A28: 97162 | B28: ASSENTAMENTO DE TUBO DE FERRO FUNDIDO PARA REDE DE ÁGUA, DN 300 MM, JUNTA ELÁSTICA, INSTALADO EM LOCAL COM NÍVEL BAIXO DE INTERFERÊNCIAS (NÃO INCLUI FORNECIMENTO). AF_11/2017 | C28: M | D28: 9.71
A29: 97163 | B29: ASSENTAMENTO DE TUBO DE FERRO FUNDIDO PARA REDE DE ÁGUA, DN 350 MM, JUNTA ELÁSTICA, INSTALADO EM LOCAL COM NÍVEL BAIXO DE INTERFERÊNCIAS (NÃO INCLUI FORNECIMENTO). AF_11/2017 | C29: M | D29: 10.99
A30: 97164 | B30: ASSENTAMENTO DE TUBO DE FERRO FUNDIDO PARA REDE DE ÁGUA, DN 400 MM, JUNTA ELÁSTICA, INSTALADO EM LOCAL COM NÍVEL BAIXO DE INTERFERÊNCIAS (NÃO INCLUI FORNECIMENTO). AF_11/2017 | C30: M | D30: 12.26
A31: 97165 | B31: ASSENTAMENTO DE TUBO DE FERRO FUNDIDO PARA REDE DE ÁGUA, DN 450 MM, JUNTA ELÁSTICA, INSTALADO EM LOCAL COM NÍVEL BAIXO DE INTERFERÊNCIAS (NÃO INCLUI FORNECIMENTO). AF_11/2017 | C31: M | D31: 13.55
A32: 97166 | B32: ASSENTAMENTO DE TUBO DE FERRO FUNDIDO PARA REDE DE ÁGUA, DN 500 MM, JUNTA ELÁSTICA, INSTALADO EM LOCAL COM NÍVEL BAIXO DE INTERFERÊNCIAS (NÃO INCLUI FORNECIMENTO). AF_11/2017 | C32: M | D32: 16.3
A33: 97167 | B33: ASSENTAMENTO DE TUBO DE FERRO FUNDIDO PARA REDE DE ÁGUA, DN 600 MM, JUNTA ELÁSTICA, INSTALADO EM LOCAL COM NÍVEL BAIXO DE INTERFERÊNCIAS (NÃO INCLUI FORNECIMENTO). AF_11/2017 | C33: M | D33: 19.07
A34: 97168 | B34: ASSENTAMENTO DE TUBO DE FERRO FUNDIDO PARA REDE DE ÁGUA, DN 700 MM, JUNTA ELÁSTICA, INSTALADO EM LOCAL COM NÍVEL BAIXO DE INTERFERÊNCIAS (NÃO INCLUI FORNECIMENTO). AF_11/2017 | C34: M | D34: 21.68
A35: 97169 | B35: ASSENTAMENTO DE TUBO DE FERRO FUNDIDO PARA REDE DE ÁGUA, DN 800 MM, JUNTA ELÁSTICA, INSTALADO EM LOCAL COM NÍVEL BAIXO DE INTERFERÊNCIAS (NÃO INCLUI FORNECIMENTO). AF_11/2017 | C35: M | D35: 24.41
A36: 97170 | B36: ASSENTAMENTO DE TUBO DE FERRO FUNDIDO PARA REDE DE ÁGUA, DN 900 MM, JUNTA ELÁSTICA, INSTALADO EM LOCAL COM NÍVEL BAIXO DE INTERFERÊNCIAS (NÃO INCLUI FORNECIMENTO). AF_11/2017 | C36: M | D36: 27.14
A37: 97171 | B37: ASSENTAMENTO DE TUBO DE FERRO FUNDIDO PARA REDE DE ÁGUA, DN 1000 MM, JUNTA ELÁSTICA, INSTALADO EM LOCAL COM NÍVEL BAIXO DE INTERFERÊNCIAS (NÃO INCLUI FORNECIMENTO). AF_11/2017 | C37: M | D37: 29.89
A38: 97172 | B38: ASSENTAMENTO DE TUBO DE FERRO FUNDIDO PARA REDE DE ÁGUA, DN 1200 MM, JUNTA ELÁSTICA, INSTALADO EM LOCAL COM NÍVEL BAIXO DE INTERFERÊNCIAS (NÃO INCLUI FORNECIMENTO). AF_11/2017 | C38: M | D38: 35.61
A39: 97173 | B39: ASSENTAMENTO DE TUBO DE AÇO CARBONO PARA REDE DE ÁGUA, DN 600 MM (24), JUNTA SOLDADA, INSTALADO EM LOCAL COM NÍVEL ALTO DE INTERFERÊNCIAS (NÃO INCLUI FORNECIMENTO). AF_11/2017 | C39: M | D39: 29.83
A40: 97174 | B40: ASSENTAMENTO DE TUBO DE AÇO CARBONO PARA REDE DE ÁGUA, DN 700 MM (28), JUNTA SOLDADA, INSTALADO EM LOCAL COM NÍVEL ALTO DE INTERFERÊNCIAS (NÃO INCLUI FORNECIMENTO). AF_11/2017 | C40: M | D40: 34.48
A41: 97175 | B41: ASSENTAMENTO DE TUBO DE AÇO CARBONO PARA REDE DE ÁGUA, DN 800 MM (32), JUNTA SOLDADA, INSTALADO EM LOCAL COM NÍVEL ALTO DE INTERFERÊNCIAS (NÃO INCLUI FORNECIMENTO). AF_11/2017 | C41: M | D41: 39.14
A42: 97176 | B42: ASSENTAMENTO DE TUBO DE AÇO CARBONO PARA REDE DE ÁGUA, DN 900 MM (36), JUNTA SOLDADA, INSTALADO EM LOCAL COM NÍVEL ALTO DE INTERFERÊNCIAS (NÃO INCLUI FORNECIMENTO). AF_11/2017 | C42: M | D42: 43.78
A43: 97177 | B43: ASSENTAMENTO DE TUBO DE AÇO CARBONO PARA REDE DE ÁGUA, DN 1000 MM (40) OU DN 1100 MM (44), JUNTA SOLDADA, INSTALADO EM LOCAL COM NÍVEL ALTO DE INTERFERÊNCIAS (NÃO INCLUI FORNECIMENTO). AF_11/2017 | C43: M | D43: 53.09
A44: 97178 | B44: ASSENTAMENTO DE TUBO DE AÇO CARBONO PARA REDE DE ÁGUA, DN 1200 MM (48) OU DN 1300 MM (52), JUNTA SOLDADA, INSTALADO EM LOCAL COM NÍVEL ALTO DE INTERFERÊNCIAS (NÃO INCLUI FORNECIMENTO). AF_11/2017 | C44: M | D44: 62.39
A45: 97179 | B45: ASSENTAMENTO DE TUBO DE AÇO CARBONO PARA REDE DE ÁGUA, DN 1400 MM (56'') OU DN 1500 MM (60), JUNTA SOLDADA, INSTALADO EM LOCAL COM NÍVEL ALTO DE INTERFERÊNCIAS (NÃO INCLUI FORNECIMENTO). AF_11/2017 | C45: M | D45: 71.69
A46: 97180 | B46: ASSENTAMENTO DE TUBO DE AÇO CARBONO PARA REDE DE ÁGUA, DN 1600 MM (64) OU DN 1700 MM (68), JUNTA SOLDADA, INSTALADO EM LOCAL COM NÍVEL ALTO DE INTERFERÊNCIAS (NÃO INCLUI FORNECIMENTO). AF_11/2017 | C46: M | D46: 81
A47: 97181 | B47: ASSENTAMENTO DE TUBO DE AÇO CARBONO PARA REDE DE ÁGUA, DN 1800 MM (72) OU DN 1900 MM (76), JUNTA SOLDADA, INSTALADO EM LOCAL COM NÍVEL ALTO DE INTERFERÊNCIAS (NÃO INCLUI FORNECIMENTO). AF_11/2017 | C47: M | D47: 93.1
A48: 97182 | B48: ASSENTAMENTO DE TUBO DE AÇO CARBONO PARA REDE DE ÁGUA, DN 2000 MM (80) OU DN 2100 MM (84), JUNTA SOLDADA, INSTALADO EM LOCAL COM NÍVEL ALTO DE INTERFERÊNCIAS (NÃO INCLUI FORNECIMENTO). AF_11/2017 | C48: M | D48: 102.71
A49: 97183 | B49: ASSENTAMENTO DE TUBO DE AÇO CARBONO PARA REDE DE ÁGUA, DN 600 MM (24), JUNTA SOLDADA, INSTALADO EM LOCAL COM NÍVEL BAIXO DE INTERFERÊNCIAS (NÃO INCLUI FORNECIMENTO). AF_11/2017 | C49: M | D49: 24.71
A50: 97184 | B50: ASSENTAMENTO DE TUBO DE AÇO CARBONO PARA REDE DE ÁGUA, DN 700 MM (28), JUNTA SOLDADA, INSTALADO EM LOCAL COM NÍVEL BAIXO DE INTERFERÊNCIAS (NÃO INCLUI FORNECIMENTO). AF_11/2017 | C50: M | D50: 28.62
A51: 97185 | B51: ASSENTAMENTO DE TUBO DE AÇO CARBONO PARA REDE DE ÁGUA, DN 800 MM (32), JUNTA SOLDADA, INSTALADO EM LOCAL COM NÍVEL BAIXO DE INTERFERÊNCIAS (NÃO INCLUI FORNECIMENTO). AF_11/2017 | C51: M | D51: 32.55
A52: 97186 | B52: ASSENTAMENTO DE TUBO DE AÇO CARBONO PARA REDE DE ÁGUA, DN 900 MM (36), JUNTA SOLDADA, INSTALADO EM LOCAL COM NÍVEL BAIXO DE INTERFERÊNCIAS (NÃO INCLUI FORNECIMENTO). AF_11/2017 | C52: M | D52: 36.47
A53: 97187 | B53: ASSENTAMENTO DE TUBO DE AÇO CARBONO PARA REDE DE ÁGUA, DN 1000 MM (40 ) OU DN 1100 MM (44 ), JUNTA SOLDADA, INSTALADO EM LOCAL COM NÍVEL BAIXO DE INTERFERÊNCIAS (NÃO INCLUI FORNECIMENTO). AF_11/2017 | C53: M | D53: 44.33
A54: 97188 | B54: ASSENTAMENTO DE TUBO DE AÇO CARBONO PARA REDE DE ÁGUA, DN 1200 MM (48) OU DN 1300 MM (52), JUNTA SOLDADA, INSTALADO EM LOCAL COM NÍVEL BAIXO DE INTERFERÊNCIAS (NÃO INCLUI FORNECIMENTO). AF_11/2017 | C54: M | D54: 52.17
A55: 97189 | B55: ASSENTAMENTO DE TUBO DE AÇO CARBONO PARA REDE DE ÁGUA, DN 1400 MM (56'') OU DN 1500 MM (60), JUNTA SOLDADA, INSTALADO EM LOCAL COM NÍVEL BAIXO DE INTERFERÊNCIAS (NÃO INCLUI FORNECIMENTO). AF_11/2017 | C55: M | D55: 60.01
A56: 97190 | B56: ASSENTAMENTO DE TUBO DE AÇO CARBONO PARA REDE DE ÁGUA, DN 1600 MM (64) OU DN 1700 MM (68), JUNTA SOLDADA, INSTALADO EM LOCAL COM NÍVEL BAIXO DE INTERFERÊNCIAS (NÃO INCLUI FORNECIMENTO). AF_11/2017 | C56: M | D56: 67.86
A57: 97191 | B57: ASSENTAMENTO DE TUBO DE AÇO CARBONO PARA REDE DE ÁGUA, DN 1800 MM (72) OU DN 1900 MM (76), JUNTA SOLDADA, INSTALADO EM LOCAL COM NÍVEL BAIXO DE INTERFERÊNCIAS (NÃO INCLUI FORNECIMENTO). AF_11/2017 | C57: M | D57: 77.9
A58: 97192 | B58: ASSENTAMENTO DE TUBO DE AÇO CARBONO PARA REDE DE ÁGUA, DN 2000 MM (80) OU DN 2100 MM (84), JUNTA SOLDADA, INSTALADO EM LOCAL COM NÍVEL BAIXO DE INTERFERÊNCIAS (NÃO INCLUI FORNECIMENTO). AF_11/2017 | C58: M | D58: 86
A59: 90694 | B59: TUBO DE PVC PARA REDE COLETORA DE ESGOTO DE PAREDE MACIÇA, DN 100 MM, JUNTA ELÁSTICA, INSTALADO EM LOCAL COM NÍVEL BAIXO DE INTERFERÊNCIAS - FORNECIMENTO E ASSENTAMENTO. AF_06/2015 | C59: M | D59: 22.17
A60: 90695 | B60: TUBO DE PVC PARA REDE COLETORA DE ESGOTO DE PAREDE MACIÇA, DN 150 MM, JUNTA ELÁSTICA, INSTALADO EM LOCAL COM NÍVEL BAIXO DE INTERFERÊNCIAS - FORNECIMENTO E ASSENTAMENTO. AF_06/2015 | C60: M | D60: 45.27
A61: 90696 | B61: TUBO DE PVC PARA REDE COLETORA DE ESGOTO DE PAREDE MACIÇA, DN 200 MM, JUNTA ELÁSTICA, INSTALADO EM LOCAL COM NÍVEL BAIXO DE INTERFERÊNCIAS - FORNECIMENTO E ASSENTAMENTO. AF_06/2015 | C61: M | D61: 66.91
A62: 90697 | B62: TUBO DE PVC PARA REDE COLETORA DE ESGOTO DE PAREDE MACIÇA, DN 250 MM, JUNTA ELÁSTICA, INSTALADO EM LOCAL COM NÍVEL BAIXO DE INTERFERÊNCIAS - FORNECIMENTO E ASSENTAMENTO. AF_06/2015 | C62: M | D62: 111.9
A63: 90698 | B63: TUBO DE PVC PARA REDE COLETORA DE ESGOTO DE PAREDE MACIÇA, DN 300 MM, JUNTA ELÁSTICA, INSTALADO EM LOCAL COM NÍVEL BAIXO DE INTERFERÊNCIAS - FORNECIMENTO E ASSENTAMENTO. AF_06/2015 | C63: M | D63: 178.56
A64: 90699 | B64: TUBO DE PVC PARA REDE COLETORA DE ESGOTO DE PAREDE MACIÇA, DN 350 MM, JUNTA ELÁSTICA, INSTALADO EM LOCAL COM NÍVEL BAIXO DE INTERFERÊNCIAS - FORNECIMENTO E ASSENTAMENTO. AF_06/2015 | C64: M | D64: 220.53
A65: 90700 | B65: TUBO DE PVC PARA REDE COLETORA DE ESGOTO DE PAREDE MACIÇA, DN 400 MM, JUNTA ELÁSTICA, INSTALADO EM LOCAL COM NÍVEL BAIXO DE INTERFERÊNCIAS - FORNECIMENTO E ASSENTAMENTO. AF_06/2015 | C65: M | D65: 290.18
A66: 90701 | B66: TUBO DE PVC CORRUGADO DE DUPLA PAREDE PARA REDE COLETORA DE ESGOTO, DN 150 MM, JUNTA ELÁSTICA, INSTALADO EM LOCAL COM NÍVEL BAIXO DE INTERFERÊNCIAS - FORNECIMENTO E ASSENTAMENTO. AF_06/2015 | C66: M | D66: 39.71
A67: 90702 | B67: TUBO DE PVC CORRUGADO DE DUPLA PAREDE PARA REDE COLETORA DE ESGOTO, DN 200 MM, JUNTA ELÁSTICA, INSTALADO EM LOCAL COM NÍVEL BAIXO DE INTERFERÊNCIAS - FORNECIMENTO E ASSENTAMENTO. AF_06/2015 | C67: M | D67: 61.25
A68: 90703 | B68: TUBO DE PVC CORRUGADO DE DUPLA PAREDE PARA REDE COLETORA DE ESGOTO, DN 250 MM, JUNTA ELÁSTICA, INSTALADO EM LOCAL COM NÍVEL BAIXO DE INTERFERÊNCIAS - FORNECIMENTO E ASSENTAMENTO. AF_06/2015 | C68: M | D68: 98.08
A69: 90704 | B69: TUBO DE PVC CORRUGADO DE DUPLA PAREDE PARA REDE COLETORA DE ESGOTO, DN 300 MM, JUNTA ELÁSTICA, INSTALADO EM LOCAL COM NÍVEL BAIXO DE INTERFERÊNCIAS - FORNECIMENTO E ASSENTAMENTO. AF_06/2015 | C69: M | D69: 134.3
A70: 90705 | B70: TUBO DE PVC CORRUGADO DE DUPLA PAREDE PARA REDE COLETORA DE ESGOTO, DN 350 MM, JUNTA ELÁSTICA, INSTALADO EM LOCAL COM NÍVEL BAIXO DE INTERFERÊNCIAS - FORNECIMENTO E ASSENTAMENTO. AF_06/2015 | C70: M | D70: 187.41
A71: 90706 | B71: TUBO DE PVC CORRUGADO DE DUPLA PAREDE PARA REDE COLETORA DE ESGOTO, DN 400 MM, JUNTA ELÁSTICA, INSTALADO EM LOCAL COM NÍVEL BAIXO DE INTERFERÊNCIAS - FORNECIMENTO E ASSENTAMENTO. AF_06/2015 | C71: M | D71: 225.29
A72: 90708 | B72: TUBO DE PEAD CORRUGADO DE DUPLA PAREDE PARA REDE COLETORA DE ESGOTO, DN 600 MM, JUNTA ELÁSTICA INTEGRADA, INSTALADO EM LOCAL COM NÍVEL BAIXO DE INTERFERÊNCIAS - FORNECIMENTO E ASSENTAMENTO. AF_06/2015 | C72: M | D72: 604.54
A73: 90709 | B73: TUBO DE PVC PARA REDE COLETORA DE ESGOTO DE PAREDE MACIÇA, DN 100 MM, JUNTA ELÁSTICA, INSTALADO EM LOCAL COM NÍVEL ALTO DE INTERFERÊNCIAS - FORNECIMENTO E ASSENTAMENTO. AF_06/2015 | C73: M | D73: 24.22
A74: 90710 | B74: TUBO DE PVC PARA REDE COLETORA DE ESGOTO DE PAREDE MACIÇA, DN 150 MM, JUNTA ELÁSTICA, INSTALADO EM LOCAL COM NÍVEL ALTO DE INTERFERÊNCIAS - FORNECIMENTO E ASSENTAMENTO. AF_06/2015 | C74: M | D74: 47.33
A75: 90711 | B75: TUBO DE PVC PARA REDE COLETORA DE ESGOTO DE PAREDE MACIÇA, DN 200 MM, JUNTA ELÁSTICA, INSTALADO EM LOCAL COM NÍVEL ALTO DE INTERFERÊNCIAS - FORNECIMENTO E ASSENTAMENTO. AF_06/2015 | C75: M | D75: 68.95
A76: 90712 | B76: TUBO DE PVC PARA REDE COLETORA DE ESGOTO DE PAREDE MACIÇA, DN 250 MM, JUNTA ELÁSTICA, INSTALADO EM LOCAL COM NÍVEL ALTO DE INTERFERÊNCIAS - FORNECIMENTO E ASSENTAMENTO. AF_06/2015 | C76: M | D76: 113.95
A77: 90713 | B77: TUBO DE PVC PARA REDE COLETORA DE ESGOTO DE PAREDE MACIÇA, DN 300 MM, JUNTA ELÁSTICA, INSTALADO EM LOCAL COM NÍVEL ALTO DE INTERFERÊNCIAS - FORNECIMENTO E ASSENTAMENTO. AF_06/2015 | C77: M | D77: 180.6
A78: 90714 | B78: TUBO DE PVC PARA REDE COLETORA DE ESGOTO DE PAREDE MACIÇA, DN 350 MM, JUNTA ELÁSTICA, INSTALADO EM LOCAL COM NÍVEL ALTO DE INTERFERÊNCIAS - FORNECIMENTO E ASSENTAMENTO. AF_06/2015 | C78: M | D78: 222.57
A79: 90715 | B79: TUBO DE PVC PARA REDE COLETORA DE ESGOTO DE PAREDE MACIÇA, DN 400 MM, JUNTA ELÁSTICA, INSTALADO EM LOCAL COM NÍVEL ALTO DE INTERFERÊNCIAS - FORNECIMENTO E ASSENTAMENTO. AF_06/2015 | C79: M | D79: 294.15
A80: 90716 | B80: TUBO DE PVC CORRUGADO DE DUPLA PAREDE PARA REDE COLETORA DE ESGOTO, DN 150 MM, JUNTA ELÁSTICA, INSTALADO EM LOCAL COM NÍVEL ALTO DE INTERFERÊNCIAS - FORNECIMENTO E ASSENTAMENTO. AF_06/2015 | C80: M | D80: 41.76
A81: 90717 | B81: TUBO DE PVC CORRUGADO DE DUPLA PAREDE PARA REDE COLETORA DE ESGOTO, DN 200 MM, JUNTA ELÁSTICA, INSTALADO EM LOCAL COM NÍVEL ALTO DE INTERFERÊNCIAS - FORNECIMENTO E ASSENTAMENTO. AF_06/2015 | C81: M | D81: 63.29
A82: 90718 | B82: TUBO DE PVC CORRUGADO DE DUPLA PAREDE PARA REDE COLETORA DE ESGOTO, DN 250 MM, JUNTA ELÁSTICA, INSTALADO EM LOCAL COM NÍVEL ALTO DE INTERFERÊNCIAS - FORNECIMENTO E ASSENTAMENTO. AF_06/2015 | C82: M | D82: 100.13
A83: 90719 | B83: TUBO DE PVC CORRUGADO DE DUPLA PAREDE PARA REDE COLETORA DE ESGOTO, DN 300 MM, JUNTA ELÁSTICA, INSTALADO EM LOCAL COM NÍVEL ALTO DE INTERFERÊNCIAS - FORNECIMENTO E ASSENTAMENTO. AF_06/2015 | C83: M | D83: 136.34
A84: 90720 | B84: TUBO DE PVC CORRUGADO DE DUPLA PAREDE PARA REDE COLETORA DE ESGOTO, DN 350 MM, JUNTA ELÁSTICA, INSTALADO EM LOCAL COM NÍVEL ALTO DE INTERFERÊNCIAS - FORNECIMENTO E ASSENTAMENTO. AF_06/2015 | C84: M | D84: 189.45
A85: 90721 | B85: TUBO DE PVC CORRUGADO DE DUPLA PAREDE PARA REDE COLETORA DE ESGOTO, DN 400 MM, EM JUNTA ELÁSTICA, INSTALADO EM LOCAL COM NÍVEL ALTO DE INTERFERÊNCIAS - FORNECIMENTO E ASSENTAMENTO. AF_06/2015 | C85: M | D85: 229.26
A86: 90723 | B86: TUBO DE PEAD CORRUGADO DE DUPLA PAREDE PARA REDE COLETORA DE ESGOTO, DN 600 MM, JUNTA ELÁSTICA INTEGRADA, INSTALADO EM LOCAL COM NÍVEL ALTO DE INTERFERÊNCIAS - FORNECIMENTO E ASSENTAMENTO. AF_06/2015 | C86: M | D86: 606.96
A87: 90724 | B87: JUNTA ARGAMASSADA ENTRE TUBO DN 100 MM E O POÇO DE VISITA/ CAIXA DE CONCRETO OU ALVENARIA EM REDES DE ESGOTO. AF_06/2015 | C87: UN | D87: 23.47
A88: 90725 | B88: JUNTA ARGAMASSADA ENTRE TUBO DN 150 MM E O POÇO DE VISITA/ CAIXA DE CONCRETO OU ALVENARIA EM REDES DE ESGOTO. AF_06/2015 | C88: UN | D88: 28.93
A89: 90726 | B89: JUNTA ARGAMASSADA ENTRE TUBO DN 200 MM E O POÇO/ CAIXA DE CONCRETO OU ALVENARIA EM REDES DE ESGOTO. AF_06/2015 | C89: UN | D89: 34.38
A90: 90727 | B90: JUNTA ARGAMASSADA ENTRE TUBO DN 250 MM E O POÇO DE VISITA/ CAIXA DE CONCRETO OU ALVENARIA EM REDES DE ESGOTO. AF_06/2015 | C90: UN | D90: 39.83
A91: 90728 | B91: JUNTA ARGAMASSADA ENTRE TUBO DN 300 MM E O POÇO DE VISITA/ CAIXA DE CONCRETO OU ALVENARIA EM REDES DE ESGOTO. AF_06/2015 | C91: UN | D91: 45.29
A92: 90729 | B92: JUNTA ARGAMASSADA ENTRE TUBO DN 350 MM E O POÇO DE VISITA/ CAIXA DE CONCRETO OU ALVENARIA EM REDES DE ESGOTO. AF_06/2015 | C92: UN | D92: 50.75
A93: 90730 | B93: JUNTA ARGAMASSADA ENTRE TUBO DN 400 MM E O POÇO DE VISITA/ CAIXA DE CONCRETO OU ALVENARIA EM REDES DE ESGOTO. AF_06/2015 | C93: UN | D93: 56.25
A94: 90731 | B94: JUNTA ARGAMASSADA ENTRE TUBO DN 450 MM E O POÇO DE VISITA/ CAIXA DE CONCRETO OU ALVENARIA EM REDES DE ESGOTO. AF_06/2015 | C94: UN | D94: 61.7
A95: 90732 | B95: JUNTA ARGAMASSADA ENTRE TUBO DN 600 MM E O POÇO DE VISITA/ CAIXA DE CONCRETO OU ALVENARIA EM REDES DE ESGOTO. AF_06/2015 | C95: UN | D95: 78.08
A96: 90733 | B96: ASSENTAMENTO DE TUBO DE PVC PARA REDE COLETORA DE ESGOTO DE PAREDE MACIÇA, DN 100 MM, JUNTA ELÁSTICA, INSTALADO EM LOCAL COM NÍVEL BAIXO DE INTERFERÊNCIAS (NÃO INCLUI FORNECIMENTO). AF_06/2015 | C96: M | D96: 2.58
A97: 90734 | B97: ASSENTAMENTO DE TUBO DE PVC PARA REDE COLETORA DE ESGOTO DE PAREDE MACIÇA, DN 150 MM, JUNTA ELÁSTICA, INSTALADO EM LOCAL COM NÍVEL BAIXO DE INTERFERÊNCIAS (NÃO INCLUI FORNECIMENTO). AF_06/2015 | C97: M | D97: 3.14
A98: 90735 | B98: ASSENTAMENTO DE TUBO DE PVC PARA REDE COLETORA DE ESGOTO DE PAREDE MACIÇA, DN 200 MM, JUNTA ELÁSTICA, INSTALADO EM LOCAL COM NÍVEL BAIXO DE INTERFERÊNCIAS (NÃO INCLUI FORNECIMENTO). AF_06/2015 | C98: M | D98: 3.74
A99: 90736 | B99: ASSENTAMENTO DE TUBO DE PVC PARA REDE COLETORA DE ESGOTO DE PAREDE MACIÇA, DN 250 MM, JUNTA ELÁSTICA, INSTALADO EM LOCAL COM NÍVEL BAIXO DE INTERFERÊNCIAS (NÃO INCLUI FORNECIMENTO). AF_06/2015 | C99: M | D99: 4.31
A100: 90737 | B100: ASSENTAMENTO DE TUBO DE PVC PARA REDE COLETORA DE ESGOTO DE PAREDE MACIÇA, DN 300 MM, JUNTA ELÁSTICA, INSTALADO EM LOCAL COM NÍVEL BAIXO DE INTERFERÊNCIAS (NÃO INCLUI FORNECIMENTO). AF_06/2015 | C100: M | D100: 4.89
A101: 90738 | B101: ASSENTAMENTO DE TUBO DE PVC PARA REDE COLETORA DE ESGOTO DE PAREDE MACIÇA, DN 350 MM, JUNTA ELÁSTICA, INSTALADO EM LOCAL COM NÍVEL BAIXO DE INTERFERÊNCIAS (NÃO INCLUI FORNECIMENTO). AF_06/2015 | C101: M | D101: 5.47
A102: 90739 | B102: ASSENTAMENTO DE TUBO DE PVC PARA REDE COLETORA DE ESGOTO DE PAREDE MACIÇA, DN 400 MM, JUNTA ELÁSTICA, INSTALADO EM LOCAL COM NÍVEL BAIXO DE INTERFERÊNCIAS (NÃO INCLUI FORNECIMENTO). AF_06/2015 | C102: M | D102: 11.69
A103: 90740 | B103: ASSENTAMENTO DE TUBO DE PVC CORRUGADO DE DUPLA PAREDE PARA REDE COLETORA DE ESGOTO, DN 150 MM, JUNTA ELÁSTICA, INSTALADO EM LOCAL COM NÍVEL BAIXO DE INTERFERÊNCIAS (NÃO INCLUI FORNECIMENTO). AF_06/2015 | C103: M | D103: 5.76
A104: 90741 | B104: ASSENTAMENTO DE TUBO DE PVC CORRUGADO DE DUPLA PAREDE PARA REDE COLETORA DE ESGOTO, DN 200 MM, JUNTA ELÁSTICA, INSTALADO EM LOCAL COM NÍVEL BAIXO DE INTERFERÊNCIAS (NÃO INCLUI FORNECIMENTO). AF_06/2015 | C104: M | D104: 6.34
A105: 90742 | B105: ASSENTAMENTO DE TUBO DE PVC CORRUGADO DE DUPLA PAREDE PARA REDE COLETORA DE ESGOTO, DN 250 MM, JUNTA ELÁSTICA, INSTALADO EM LOCAL COM NÍVEL BAIXO DE INTERFERÊNCIAS (NÃO INCLUI FORNECIMENTO). AF_06/2015 | C105: M | D105: 6.91
A106: 90743 | B106: ASSENTAMENTO DE TUBO DE PVC CORRUGADO DE DUPLA PAREDE PARA REDE COLETORA DE ESGOTO, DN 300 MM, JUNTA ELÁSTICA, INSTALADO EM LOCAL COM NÍVEL BAIXO DE INTERFERÊNCIAS (NÃO INCLUI FORNECIMENTO). AF_06/2015 | C106: M | D106: 7.49
A107: 90744 | B107: ASSENTAMENTO DE TUBO DE PVC CORRUGADO DE DUPLA PAREDE PARA REDE COLETORA DE ESGOTO, DN 350 MM, JUNTA ELÁSTICA, INSTALADO EM LOCAL COM NÍVEL BAIXO DE INTERFERÊNCIAS (NÃO INCLUI FORNECIMENTO). AF_06/2015 | C107: M | D107: 8.07
A108: 90745 | B108: ASSENTAMENTO DE TUBO DE PVC CORRUGADO DE DUPLA PAREDE PARA REDE COLETORA DE ESGOTO, DN 400 MM, JUNTA ELÁSTICA, INSTALADO EM LOCAL COM NÍVEL BAIXO DE INTERFERÊNCIAS (NÃO INCLUI FORNECIMENTO). AF_06/2015 | C108: M | D108: 16.72
A109: 90746 | B109: ASSENTAMENTO DE TUBO DE PEAD CORRUGADO DE DUPLA PAREDE PARA REDE COLETORA DE ESGOTO, DN 450 MM, JUNTA ELÁSTICA INTEGRADA, INSTALADO EM LOCAL COM NÍVEL BAIXO DE INTERFERÊNCIAS (NÃO INCLUI FORNECIMENTO). AF_06/2015 | C109: M | D109: 3.5
A110: 90747 | B110: ASSENTAMENTO DE TUBO DE PEAD CORRUGADO DE DUPLA PAREDE PARA REDE COLETORA DE ESGOTO, DN 600 MM, JUNTA ELÁSTICA INTEGRADA, INSTALADO EM LOCAL COM NÍVEL BAIXO DE INTERFERÊNCIAS (NÃO INCLUI FORNECIMENTO). AF_06/2015 | C110: M | D110: 12.69
A111: 90748 | B111: ASSENTAMENTO DE TUBO DE PVC PARA REDE COLETORA DE ESGOTO DE PAREDE MACIÇA, DN 100 MM, JUNTA ELÁSTICA, INSTALADO EM LOCAL COM NÍVEL ALTO DE INTERFERÊNCIAS (NÃO INCLUI FORNECIMENTO). AF_06/2015 | C111: M | D111: 4.63
A112: 90749 | B112: ASSENTAMENTO DE TUBO DE PVC PARA REDE COLETORA DE ESGOTO DE PAREDE MACIÇA, DN 150 MM, JUNTA ELÁSTICA, INSTALADO EM LOCAL COM NÍVEL ALTO DE INTERFERÊNCIAS (NÃO INCLUI FORNECIMENTO). AF_06/2015 | C112: M | D112: 5.2
A113: 90750 | B113: ASSENTAMENTO DE TUBO DE PVC PARA REDE COLETORA DE ESGOTO DE PAREDE MACIÇA, DN 200 MM, JUNTA ELÁSTICA, INSTALADO EM LOCAL COM NÍVEL ALTO DE INTERFERÊNCIAS (NÃO INCLUI FORNECIMENTO). AF_06/2015 | C113: M | D113: 5.78
A114: 90751 | B114: ASSENTAMENTO DE TUBO DE PVC PARA REDE COLETORA DE ESGOTO DE PAREDE MACIÇA, DN 250 MM, JUNTA ELÁSTICA, INSTALADO EM LOCAL COM NÍVEL ALTO DE INTERFERÊNCIAS (NÃO INCLUI FORNECIMENTO). AF_06/2015 | C114: M | D114: 6.36
A115: 90752 | B115: ASSENTAMENTO DE TUBO DE PVC PARA REDE COLETORA DE ESGOTO DE PAREDE MACIÇA, DN 300 MM, JUNTA ELÁSTICA, INSTALADO EM LOCAL COM NÍVEL ALTO DE INTERFERÊNCIAS (NÃO INCLUI FORNECIMENTO). AF_06/2015 | C115: M | D115: 6.93
A116: 90753 | B116: ASSENTAMENTO DE TUBO DE PVC PARA REDE COLETORA DE ESGOTO DE PAREDE MACIÇA, DN 350 MM, JUNTA ELÁSTICA, INSTALADO EM LOCAL COM NÍVEL ALTO DE INTERFERÊNCIAS (NÃO INCLUI FORNECIMENTO). AF_06/2015 | C116: M | D116: 7.51
A117: 90754 | B117: ASSENTAMENTO DE TUBO DE PVC PARA REDE COLETORA DE ESGOTO DE PAREDE MACIÇA, DN 400 MM, JUNTA ELÁSTICA, INSTALADO EM LOCAL COM NÍVEL ALTO DE INTERFERÊNCIAS (NÃO INCLUI FORNECIMENTO). AF_06/2015 | C117: M | D117: 15.66
A118: 90755 | B118: ASSENTAMENTO DE TUBO DE PVC CORRUGADO DE DUPLA PAREDE PARA REDE COLETORA DE ESGOTO, DN 150 MM, JUNTA ELÁSTICA, INSTALADO EM LOCAL COM NÍVEL ALTO DE INTERFERÊNCIAS (NÃO INCLUI FORNECIMENTO). AF_06/2015 | C118: M | D118: 7.81
A119: 90756 | B119: ASSENTAMENTO DE TUBO DE PVC CORRUGADO DE DUPLA PAREDE PARA REDE COLETORA DE ESGOTO, DN 200 MM, JUNTA ELÁSTICA, INSTALADO EM LOCAL COM NÍVEL ALTO DE INTERFERÊNCIAS (NÃO INCLUI FORNECIMENTO). AF_06/2015 | C119: M | D119: 8.38
A120: 90757 | B120: ASSENTAMENTO DE TUBO DE PVC CORRUGADO DE DUPLA PAREDE PARA REDE COLETORA DE ESGOTO, DN 250 MM, JUNTA ELÁSTICA, INSTALADO EM LOCAL COM NÍVEL ALTO DE INTERFERÊNCIAS (NÃO INCLUI FORNECIMENTO). AF_06/2015 | C120: M | D120: 8.96
A121: 90758 | B121: ASSENTAMENTO DE TUBO DE PVC CORRUGADO DE DUPLA PAREDE PARA REDE COLETORA DE ESGOTO, DN 300 MM, JUNTA ELÁSTICA, INSTALADO EM LOCAL COM NÍVEL ALTO DE INTERFERÊNCIAS (NÃO INCLUI FORNECIMENTO). AF_06/2015 | C121: M | D121: 9.53
A122: 90759 | B122: ASSENTAMENTO DE TUBO DE PVC CORRUGADO DE DUPLA PAREDE PARA REDE COLETORA DE ESGOTO, DN 350 MM, JUNTA ELÁSTICA, INSTALADO EM LOCAL COM NÍVEL ALTO DE INTERFERÊNCIAS (NÃO INCLUI FORNECIMENTO). AF_06/2015 | C122: M | D122: 10.11
A123: 90760 | B123: ASSENTAMENTO DE TUBO DE PVC CORRUGADO DE DUPLA PAREDE PARA REDE COLETORA DE ESGOTO, DN 400 MM, EM JUNTA ELÁSTICA, INSTALADO EM LOCAL COM NÍVEL ALTO DE INTERFERÊNCIAS (NÃO INCLUI FORNECIMENTO). AF_06/2015 | C123: M | D123: 20.69
A124: 90761 | B124: ASSENTAMENTO DE TUBO DE PEAD CORRUGADO DE DUPLA PAREDE PARA REDE COLETORA DE ESGOTO, DN 450 MM, JUNTA ELÁSTICA INTEGRADA, INSTALADO EM LOCAL COM NÍVEL ALTO DE INTERFERÊNCIAS (NÃO INCLUI FORNECIMENTO). AF_06/2015 | C124: M | D124: 4.29
A125: 90762 | B125: ASSENTAMENTO DE TUBO DE PEAD CORRUGADO DE DUPLA PAREDE PARA REDE COLETORA DE ESGOTO, DN 600 MM, JUNTA ELÁSTICA INTEGRADA, INSTALADO EM LOCAL COM NÍVEL ALTO DE INTERFERÊNCIAS (NÃO INCLUI FORNECIMENTO). AF_06/2015 | C125: M | D125: 15.11
A126: 94869 | B126: TUBO DE PEAD CORRUGADO DE DUPLA PAREDE PARA REDE COLETORA DE ESGOTO, DN 250 MM, JUNTA ELÁSTICA INTEGRADA, INSTALADO EM LOCAL COM NÍVEL BAIXO DE INTERFERÊNCIAS - FORNECIMENTO E ASSENTAMENTO. AF_06/2016 | C126: M | D126: 122.61
A127: 94870 | B127: ASSENTAMENTO DE TUBO DE PEAD CORRUGADO DE DUPLA PAREDE PARA REDE COLETORA DE ESGOTO, DN 250 MM, JUNTA ELÁSTICA INTEGRADA, INSTALADO EM LOCAL COM NÍVEL BAIXO DE INTERFERÊNCIAS (NÃO INCLUI FORNECIMENTO). AF_06/2016 | C127: M | D127: 0.85
A128: 94871 | B128: TUBO DE PEAD CORRUGADO DE DUPLA PAREDE PARA REDE COLETORA DE ESGOTO, DN 300 MM, JUNTA ELÁSTICA INTEGRADA, INSTALADO EM LOCAL COM NÍVEL BAIXO DE INTERFERÊNCIAS - FORNECIMENTO E ASSENTAMENTO. AF_06/2016 | C128: M | D128: 145.45
A129: 94872 | B129: ASSENTAMENTO DE TUBO DE PEAD CORRUGADO DE DUPLA PAREDE PARA REDE COLETORA DE ESGOTO, DN 300 MM, JUNTA ELÁSTICA INTEGRADA, INSTALADO EM LOCAL COM NÍVEL BAIXO DE INTERFERÊNCIAS (NÃO INCLUI FORNECIMENTO). AF_06/2016 | C129: M | D129: 1.5
A130: 94875 | B130: TUBO DE PEAD CORRUGADO DE DUPLA PAREDE PARA REDE COLETORA DE ESGOTO, DN 750 MM, JUNTA ELÁSTICA INTEGRADA, INSTALADO EM LOCAL COM NÍVEL BAIXO DE INTERFERÊNCIAS - FORNECIMENTO E ASSENTAMENTO. AF_06/2016 | C130: M | D130: 854.53
A131: 94876 | B131: ASSENTAMENTO DE TUBO DE PEAD CORRUGADO DE DUPLA PAREDE PARA REDE COLETORA DE ESGOTO, DN 750 MM, JUNTA ELÁSTICA INTEGRADA, INSTALADO EM LOCAL COM NÍVEL BAIXO DE INTERFERÊNCIAS (NÃO INCLUI FORNECIMENTO). AF_06/2016 | C131: M | D131: 19.22
A132: 94878 | B132: ASSENTAMENTO DE TUBO DE PEAD CORRUGADO DE DUPLA PAREDE PARA REDE COLETORA DE ESGOTO, DN 900 MM, JUNTA ELÁSTICA INTEGRADA, INSTALADO EM LOCAL COM NÍVEL BAIXO DE INTERFERÊNCIAS (NÃO INCLUI FORNECIMENTO). AF_06/2016 | C132: M | D132: 22.57
A133: 94879 | B133: TUBO DE PEAD CORRUGADO DE DUPLA PAREDE PARA REDE COLETORA DE ESGOTO, DN 1000 MM, JUNTA ELÁSTICA INTEGRADA, INSTALADO EM LOCAL COM NÍVEL BAIXO DE INTERFERÊNCIAS - FORNECIMENTO E ASSENTAMENTO. AF_06/2016 | C133: M | D133: 1139.01
A134: 94880 | B134: ASSENTAMENTO DE TUBO DE PEAD CORRUGADO DE DUPLA PAREDE PARA REDE COLETORA DE ESGOTO, DN 1000 MM, JUNTA ELÁSTICA INTEGRADA, INSTALADO EM LOCAL COM NÍVEL BAIXO DE INTERFERÊNCIAS (NÃO INCLUI FORNECIMENTO). AF_06/2016 | C134: M | D134: 27.63
A135: 94881 | B135: TUBO DE PEAD CORRUGADO DE DUPLA PAREDE PARA REDE COLETORA DE ESGOTO, DN 1200 MM, JUNTA ELÁSTICA INTEGRADA, INSTALADO EM LOCAL COM NÍVEL BAIXO DE INTERFERÊNCIAS - FORNECIMENTO E ASSENTAMENTO. AF_06/2016 | C135: M | D135: 1775.2
A136: 94882 | B136: ASSENTAMENTO DE TUBO DE PEAD CORRUGADO DE DUPLA PAREDE PARA REDE COLETORA DE ESGOTO, DN 1200 MM, JUNTA ELÁSTICA INTEGRADA, INSTALADO EM LOCAL COM NÍVEL BAIXO DE INTERFERÊNCIAS (NÃO INCLUI FORNECIMENTO). AF_06/2016 | C136: M | D136: 32.77
A137: 94884 | B137: ASSENTAMENTO DE TUBO DE PEAD CORRUGADO DE DUPLA PAREDE PARA REDE COLETORA DE ESGOTO, DN 1500 MM, JUNTA ELÁSTICA INTEGRADA, INSTALADO EM LOCAL COM NÍVEL BAIXO DE INTERFERÊNCIAS (NÃO INCLUI FORNECIMENTO). AF_06/2016 | C137: M | D137: 43.21
A138: 94885 | B138: TUBO DE PEAD CORRUGADO DE DUPLA PAREDE PARA REDE COLETORA DE ESGOTO, DN 250 MM, JUNTA ELÁSTICA INTEGRADA, INSTALADO EM LOCAL COM NÍVEL ALTO DE INTERFERÊNCIAS - FORNECIMENTO E ASSENTAMENTO. AF_06/2016 | C138: M | D138: 122.86
A139: 94886 | B139: ASSENTAMENTO DE TUBO DE PEAD CORRUGADO DE DUPLA PAREDE PARA REDE COLETORA DE ESGOTO, DN 250 MM, JUNTA ELÁSTICA INTEGRADA, INSTALADO EM LOCAL COM NÍVEL ALTO DE INTERFERÊNCIAS (NÃO INCLUI FORNECIMENTO). AF_06/2016 | C139: M | D139: 1.1
A140: 94887 | B140: TUBO DE PEAD CORRUGADO DE DUPLA PAREDE PARA REDE COLETORA DE ESGOTO, DN 300 MM, JUNTA ELÁSTICA INTEGRADA, INSTALADO EM LOCAL COM NÍVEL ALTO DE INTERFERÊNCIAS - FORNECIMENTO E ASSENTAMENTO. AF_06/2016 | C140: M | D140: 145.86
A141: 94888 | B141: ASSENTAMENTO DE TUBO DE PEAD CORRUGADO DE DUPLA PAREDE PARA REDE COLETORA DE ESGOTO, DN 300 MM, JUNTA ELÁSTICA INTEGRADA, INSTALADO EM LOCAL COM NÍVEL ALTO DE INTERFERÊNCIAS (NÃO INCLUI FORNECIMENTO). AF_06/2016 | C141: M | D141: 1.91
A142: 94891 | B142: TUBO DE PEAD CORRUGADO DE DUPLA PAREDE PARA REDE COLETORA DE ESGOTO, DN 750 MM, JUNTA ELÁSTICA INTEGRADA, INSTALADO EM LOCAL COM NÍVEL ALTO DE INTERFERÊNCIAS - FORNECIMENTO E ASSENTAMENTO. AF_06/2016 | C142: M | D142: 857.63
A143: 94892 | B143: ASSENTAMENTO DE TUBO DE PEAD CORRUGADO DE DUPLA PAREDE PARA REDE COLETORA DE ESGOTO, DN 750 MM, JUNTA ELÁSTICA INTEGRADA, INSTALADO EM LOCAL COM NÍVEL ALTO DE INTERFERÊNCIAS (NÃO INCLUI FORNECIMENTO). AF_06/2016 | C143: M | D143: 22.32
A144: 94894 | B144: ASSENTAMENTO DE TUBO DE PEAD CORRUGADO DE DUPLA PAREDE PARA REDE COLETORA DE ESGOTO, DN 900 MM, JUNTA ELÁSTICA INTEGRADA, INSTALADO EM LOCAL COM NÍVEL ALTO DE INTERFERÊNCIAS (NÃO INCLUI FORNECIMENTO). AF_06/2016 | C144: M | D144: 25.92
A145: 94895 | B145: TUBO DE PEAD CORRUGADO DE DUPLA PAREDE PARA REDE COLETORA DE ESGOTO, DN 1000 MM, JUNTA ELÁSTICA INTEGRADA, INSTALADO EM LOCAL COM NÍVEL ALTO DE INTERFERÊNCIAS - FORNECIMENTO E ASSENTAMENTO. AF_06/2016 | C145: M | D145: 1142.7
A146: 94896 | B146: ASSENTAMENTO DE TUBO DE PEAD CORRUGADO DE DUPLA PAREDE PARA REDE COLETORA DE ESGOTO, DN 1000 MM, JUNTA ELÁSTICA INTEGRADA, INSTALADO EM LOCAL COM NÍVEL ALTO DE INTERFERÊNCIAS (NÃO INCLUI FORNECIMENTO). AF_06/2016 | C146: M | D146: 31.32
A147: 94897 | B147: TUBO DE PEAD CORRUGADO DE DUPLA PAREDE PARA REDE COLETORA DE ESGOTO, DN 1200 MM, JUNTA ELÁSTICA INTEGRADA, INSTALADO EM LOCAL COM NÍVEL ALTO DE INTERFERÊNCIAS - FORNECIMENTO E ASSENTAMENTO. AF_06/2016 | C147: M | D147: 1779.16
A148: 94898 | B148: ASSENTAMENTO DE TUBO DE PEAD CORRUGADO DE DUPLA PAREDE PARA REDE COLETORA DE ESGOTO, DN 1200 MM, JUNTA ELÁSTICA INTEGRADA, INSTALADO EM LOCAL COM NÍVEL ALTO DE INTERFERÊNCIAS (NÃO INCLUI FORNECIMENTO). AF_06/2016 | C148: M | D148: 36.73
A149: 94900 | B149: ASSENTAMENTO DE TUBO DE PEAD CORRUGADO DE DUPLA PAREDE PARA REDE COLETORA DE ESGOTO, DN 1500 MM, JUNTA ELÁSTICA INTEGRADA, INSTALADO EM LOCAL COM NÍVEL ALTO DE INTERFERÊNCIAS (NÃO INCLUI FORNECIMENTO). AF_06/2016 | C149: M | D149: 47.54
A150: 97121 | B150: ASSENTAMENTO DE TUBO DE PVC PBA PARA REDE DE ÁGUA, DN 50 MM, JUNTA ELÁSTICA INTEGRADA, INSTALADO EM LOCAL COM NÍVEL ALTO DE INTERFERÊNCIAS (NÃO INCLUI FORNECIMENTO). AF_11/2017 | C150: M | D150: 1.89
A151: 97122 | B151: ASSENTAMENTO DE TUBO DE PVC PBA PARA REDE DE ÁGUA, DN 75 MM, JUNTA ELÁSTICA INTEGRADA, INSTALADO EM LOCAL COM NÍVEL ALTO DE INTERFERÊNCIAS (NÃO INCLUI FORNECIMENTO). AF_11/2017 | C151: M | D151: 2.62
A152: 97123 | B152: ASSENTAMENTO DE TUBO DE PVC PBA PARA REDE DE ÁGUA, DN 100 MM, JUNTA ELÁSTICA INTEGRADA, INSTALADO EM LOCAL COM NÍVEL ALTO DE INTERFERÊNCIAS (NÃO INCLUI FORNECIMENTO). AF_11/2017 | C152: M | D152: 3.33
A153: 97124 | B153: ASSENTAMENTO DE TUBO DE PVC PBA PARA REDE DE ÁGUA, DN 50 MM, JUNTA ELÁSTICA INTEGRADA, INSTALADO EM LOCAL COM NÍVEL BAIXO DE INTERFERÊNCIAS (NÃO INCLUI FORNECIMENTO). AF_11/2017 | C153: M | D153: 0.81
A154: 97125 | B154: ASSENTAMENTO DE TUBO DE PVC PBA PARA REDE DE ÁGUA, DN 75 MM, JUNTA ELÁSTICA INTEGRADA, INSTALADO EM LOCAL COM NÍVEL BAIXO DE INTERFERÊNCIAS (NÃO INCLUI FORNECIMENTO). AF_11/2017 | C154: M | D154: 1.14
A155: 97126 | B155: ASSENTAMENTO DE TUBO DE PVC PBA PARA REDE DE ÁGUA, DN 100 MM, JUNTA ELÁSTICA INTEGRADA, INSTALADO EM LOCAL COM NÍVEL BAIXO DE INTERFERÊNCIAS (NÃO INCLUI FORNECIMENTO). AF_11/2017 | C155: M | D155: 1.46
A156: 92833 | B156: TUBO DE CONCRETO PARA REDES COLETORAS DE ESGOTO SANITÁRIO, DIÂMETRO DE 300 MM, JUNTA ELÁSTICA, INSTALADO EM LOCAL COM BAIXO NÍVEL DE INTERFERÊNCIAS - FORNECIMENTO E ASSENTAMENTO. AF_12/2015 | C156: M | D156: 112.96
A157: 92834 | B157: ASSENTAMENTO DE TUBO DE CONCRETO PARA REDES COLETORAS DE ESGOTO SANITÁRIO, DIÂMETRO DE 300 MM, JUNTA ELÁSTICA, INSTALADO EM LOCAL COM BAIXO NÍVEL DE INTERFERÊNCIAS (NÃO INCLUI FORNECIMENTO). AF_12/2015 | C157: M | D157: 7.08
A158: 92835 | B158: TUBO DE CONCRETO PARA REDES COLETORAS DE ESGOTO SANITÁRIO, DIÂMETRO DE 400 MM, JUNTA ELÁSTICA, INSTALADO EM LOCAL COM BAIXO NÍVEL DE INTERFERÊNCIAS - FORNECIMENTO E ASSENTAMENTO. AF_12/2015 | C158: M | D158: 148.51
A159: 92836 | B159: ASSENTAMENTO DE TUBO DE CONCRETO PARA REDES COLETORAS DE ESGOTO SANITÁRIO, DIÂMETRO DE 400 MM, JUNTA ELÁSTICA, INSTALADO EM LOCAL COM BAIXO NÍVEL DE INTERFERÊNCIAS (NÃO INCLUI FORNECIMENTO). AF_12/2015 | C159: M | D159: 9.03
A160: 92837 | B160: TUBO DE CONCRETO PARA REDES COLETORAS DE ESGOTO SANITÁRIO, DIÂMETRO DE 500 MM, JUNTA ELÁSTICA, INSTALADO EM LOCAL COM BAIXO NÍVEL DE INTERFERÊNCIAS - FORNECIMENTO E ASSENTAMENTO. AF_12/2015 | C160: M | D160: 187.08
A161: 92838 | B161: ASSENTAMENTO DE TUBO DE CONCRETO PARA REDES COLETORAS DE ESGOTO SANITÁRIO, DIÂMETRO DE 500 MM, JUNTA ELÁSTICA, INSTALADO EM LOCAL COM BAIXO NÍVEL DE INTERFERÊNCIAS (NÃO INCLUI FORNECIMENTO). AF_12/2015 | C161: M | D161: 10.86
A162: 92839 | B162: TUBO DE CONCRETO PARA REDES COLETORAS DE ESGOTO SANITÁRIO, DIÂMETRO DE 600 MM, JUNTA ELÁSTICA, INSTALADO EM LOCAL COM BAIXO NÍVEL DE INTERFERÊNCIAS - FORNECIMENTO E ASSENTAMENTO. AF_12/2015 | C162: M | D162: 245.15
A163: 92840 | B163: ASSENTAMENTO DE TUBO DE CONCRETO PARA REDES COLETORAS DE ESGOTO SANITÁRIO, DIÂMETRO DE 600 MM, JUNTA ELÁSTICA, INSTALADO EM LOCAL COM BAIXO NÍVEL DE INTERFERÊNCIAS (NÃO INCLUI FORNECIMENTO). AF_12/2015 | C163: M | D163: 12.84
A164: 92841 | B164: TUBO DE CONCRETO PARA REDES COLETORAS DE ESGOTO SANITÁRIO, DIÂMETRO DE 700 MM, JUNTA ELÁSTICA, INSTALADO EM LOCAL COM BAIXO NÍVEL DE INTERFERÊNCIAS - FORNECIMENTO E ASSENTAMENTO. AF_12/2015 | C164: M | D164: 277.63
A165: 92842 | B165: ASSENTAMENTO DE TUBO DE CONCRETO PARA REDES COLETORAS DE ESGOTO SANITÁRIO, DIÂMETRO DE 700 MM, JUNTA ELÁSTICA, INSTALADO EM LOCAL COM BAIXO NÍVEL DE INTERFERÊNCIAS (NÃO INCLUI FORNECIMENTO). AF_12/2015 | C165: M | D165: 14.7
A166: 92844 | B166: ASSENTAMENTO DE TUBO DE CONCRETO PARA REDES COLETORAS DE ESGOTO SANITÁRIO, DIÂMETRO DE 800 MM, JUNTA ELÁSTICA, INSTALADO EM LOCAL COM BAIXO NÍVEL DE INTERFERÊNCIAS (NÃO INCLUI FORNECIMENTO). AF_12/2015 | C166: M | D166: 16.67
A167: 92846 | B167: ASSENTAMENTO DE TUBO DE CONCRETO PARA REDES COLETORAS DE ESGOTO SANITÁRIO, DIÂMETRO DE 900 MM, JUNTA ELÁSTICA, INSTALADO EM LOCAL COM BAIXO NÍVEL DE INTERFERÊNCIAS (NÃO INCLUI FORNECIMENTO). AF_12/2015 | C167: M | D167: 18.51
A168: 92847 | B168: TUBO DE CONCRETO PARA REDES COLETORAS DE ESGOTO SANITÁRIO, DIÂMETRO DE 1000 MM, JUNTA ELÁSTICA, INSTALADO EM LOCAL COM BAIXO NÍVEL DE INTERFERÊNCIAS - FORNECIMENTO E ASSENTAMENTO. AF_12/2015 | C168: M | D168: 483.02
A169: 92848 | B169: ASSENTAMENTO DE TUBO DE CONCRETO PARA REDES COLETORAS DE ESGOTO SANITÁRIO, DIÂMETRO DE 1000 MM, JUNTA ELÁSTICA, INSTALADO EM LOCAL COM BAIXO NÍVEL DE INTERFERÊNCIAS (NÃO INCLUI FORNECIMENTO). AF_12/2015 | C169: M | D169: 20.53
A170: 92849 | B170: TUBO DE CONCRETO PARA REDES COLETORAS DE ESGOTO SANITÁRIO, DIÂMETRO DE 300 MM, JUNTA ELÁSTICA, INSTALADO EM LOCAL COM ALTO NÍVEL DE INTERFERÊNCIAS - FORNECIMENTO E ASSENTAMENTO. AF_12/2015 | C170: M | D170: 119.17
A171: 92850 | B171: ASSENTAMENTO DE TUBO DE CONCRETO PARA REDES COLETORAS DE ESGOTO SANITÁRIO, DIÂMETRO DE 300 MM, JUNTA ELÁSTICA, INSTALADO EM LOCAL COM ALTO NÍVEL DE INTERFERÊNCIAS (NÃO INCLUI FORNECIMENTO). AF_12/2015 | C171: M | D171: 13.39
A172: 92851 | B172: TUBO DE CONCRETO PARA REDES COLETORAS DE ESGOTO SANITÁRIO, DIÂMETRO DE 400 MM, JUNTA ELÁSTICA, INSTALADO EM LOCAL COM ALTO NÍVEL DE INTERFERÊNCIAS - FORNECIMENTO E ASSENTAMENTO. AF_12/2015 | C172: M | D172: 156.27
A173: 92852 | B173: ASSENTAMENTO DE TUBO DE CONCRETO PARA REDES COLETORAS DE ESGOTO SANITÁRIO, DIÂMETRO DE 400 MM, JUNTA ELÁSTICA, INSTALADO EM LOCAL COM ALTO NÍVEL DE INTERFERÊNCIAS (NÃO INCLUI FORNECIMENTO). AF_12/2015 | C173: M | D173: 16.92
A174: 92853 | B174: TUBO DE CONCRETO PARA REDES COLETORAS DE ESGOTO SANITÁRIO, DIÂMETRO DE 500 MM, JUNTA ELÁSTICA, INSTALADO EM LOCAL COM ALTO NÍVEL DE INTERFERÊNCIAS - FORNECIMENTO E ASSENTAMENTO. AF_12/2015 | C174: M | D174: 196.66
A175: 92854 | B175: ASSENTAMENTO DE TUBO DE CONCRETO PARA REDES COLETORAS DE ESGOTO SANITÁRIO, DIÂMETRO DE 500 MM, JUNTA ELÁSTICA, INSTALADO EM LOCAL COM ALTO NÍVEL DE INTERFERÊNCIAS (NÃO INCLUI FORNECIMENTO). AF_12/2015 | C175: M | D175: 20.6
A176: 92855 | B176: TUBO DE CONCRETO PARA REDES COLETORAS DE ESGOTO SANITÁRIO, DIÂMETRO DE 600 MM, JUNTA ELÁSTICA, INSTALADO EM LOCAL COM ALTO NÍVEL DE INTERFERÊNCIAS - FORNECIMENTO E ASSENTAMENTO. AF_12/2015 | C176: M | D176: 256.39
A177: 92856 | B177: ASSENTAMENTO DE TUBO DE CONCRETO PARA REDES COLETORAS DE ESGOTO SANITÁRIO, DIÂMETRO DE 600 MM, JUNTA ELÁSTICA, INSTALADO EM LOCAL COM ALTO NÍVEL DE INTERFERÊNCIAS (NÃO INCLUI FORNECIMENTO). AF_12/2015 | C177: M | D177: 24.29
A178: 92857 | B178: TUBO DE CONCRETO PARA REDES COLETORAS DE ESGOTO SANITÁRIO, DIÂMETRO DE 700 MM, JUNTA ELÁSTICA, INSTALADO EM LOCAL COM ALTO NÍVEL DE INTERFERÊNCIAS - FORNECIMENTO E ASSENTAMENTO. AF_12/2015 | C178: M | D178: 290.51
A179: 92858 | B179: ASSENTAMENTO DE TUBO DE CONCRETO PARA REDES COLETORAS DE ESGOTO SANITÁRIO, DIÂMETRO DE 700 MM, JUNTA ELÁSTICA, INSTALADO EM LOCAL COM ALTO NÍVEL DE INTERFERÊNCIAS (NÃO INCLUI FORNECIMENTO). AF_12/2015 | C179: M | D179: 27.8
A180: 92860 | B180: ASSENTAMENTO DE TUBO DE CONCRETO PARA REDES COLETORAS DE ESGOTO SANITÁRIO, DIÂMETRO DE 800 MM, JUNTA ELÁSTICA, INSTALADO EM LOCAL COM ALTO NÍVEL DE INTERFERÊNCIAS (NÃO INCLUI FORNECIMENTO). AF_12/2015 | C180: M | D180: 31.55
A181: 92862 | B181: ASSENTAMENTO DE TUBO DE CONCRETO PARA REDES COLETORAS DE ESGOTO SANITÁRIO, DIÂMETRO DE 900 MM, JUNTA ELÁSTICA, INSTALADO EM LOCAL COM ALTO NÍVEL DE INTERFERÊNCIAS (NÃO INCLUI FORNECIMENTO). AF_12/2015 | C181: M | D181: 35.22
A182: 92863 | B182: TUBO DE CONCRETO PARA REDES COLETORAS DE ESGOTO SANITÁRIO, DIÂMETRO DE 1000 MM, JUNTA ELÁSTICA, INSTALADO EM LOCAL COM ALTO NÍVEL DE INTERFERÊNCIAS - FORNECIMENTO E ASSENTAMENTO. AF_12/2015 | C182: M | D182: 501.07
A183: 92864 | B183: ASSENTAMENTO DE TUBO DE CONCRETO PARA REDES COLETORAS DE ESGOTO SANITÁRIO, DIÂMETRO DE 1000 MM, JUNTA ELÁSTICA, INSTALADO EM LOCAL COM ALTO NÍVEL DE INTERFERÊNCIAS (NÃO INCLUI FORNECIMENTO). AF_12/2015 | C183: M | D183: 38.88
A184: 92210 | B184: TUBO DE CONCRETO PARA REDES COLETORAS DE ÁGUAS PLUVIAIS, DIÂMETRO DE 400 MM, JUNTA RÍGIDA, INSTALADO EM LOCAL COM BAIXO NÍVEL DE INTERFERÊNCIAS - FORNECIMENTO E ASSENTAMENTO. AF_12/2015 | C184: M | D184: 99.7
A185: 92211 | B185: TUBO DE CONCRETO PARA REDES COLETORAS DE ÁGUAS PLUVIAIS, DIÂMETRO DE 500 MM, JUNTA RÍGIDA, INSTALADO EM LOCAL COM BAIXO NÍVEL DE INTERFERÊNCIAS - FORNECIMENTO E ASSENTAMENTO. AF_12/2015 | C185: M | D185: 127.41
A186: 92212 | B186: TUBO DE CONCRETO PARA REDES COLETORAS DE ÁGUAS PLUVIAIS, DIÂMETRO DE 600 MM, JUNTA RÍGIDA, INSTALADO EM LOCAL COM BAIXO NÍVEL DE INTERFERÊNCIAS - FORNECIMENTO E ASSENTAMENTO. AF_12/2015 | C186: M | D186: 161.9
A187: 92213 | B187: TUBO DE CONCRETO PARA REDES COLETORAS DE ÁGUAS PLUVIAIS, DIÂMETRO DE 700 MM, JUNTA RÍGIDA, INSTALADO EM LOCAL COM BAIXO NÍVEL DE INTERFERÊNCIAS - FORNECIMENTO E ASSENTAMENTO. AF_12/2015 | C187: M | D187: 212.69
A188: 92214 | B188: TUBO DE CONCRETO PARA REDES COLETORAS DE ÁGUAS PLUVIAIS, DIÂMETRO DE 800 MM, JUNTA RÍGIDA, INSTALADO EM LOCAL COM BAIXO NÍVEL DE INTERFERÊNCIAS - FORNECIMENTO E ASSENTAMENTO. AF_12/2015 | C188: M | D188: 242.61
A189: 92215 | B189: TUBO DE CONCRETO PARA REDES COLETORAS DE ÁGUAS PLUVIAIS, DIÂMETRO DE 900 MM, JUNTA RÍGIDA, INSTALADO EM LOCAL COM BAIXO NÍVEL DE INTERFERÊNCIAS - FORNECIMENTO E ASSENTAMENTO. AF_12/2015 | C189: M | D189: 292.06
A190: 92216 | B190: TUBO DE CONCRETO PARA REDES COLETORAS DE ÁGUAS PLUVIAIS, DIÂMETRO DE 1000 MM, JUNTA RÍGIDA, INSTALADO EM LOCAL COM BAIXO NÍVEL DE INTERFERÊNCIAS - FORNECIMENTO E ASSENTAMENTO. AF_12/2015 | C190: M | D190: 327.09
A191: 92219 | B191: TUBO DE CONCRETO PARA REDES COLETORAS DE ÁGUAS PLUVIAIS, DIÂMETRO DE 400 MM, JUNTA RÍGIDA, INSTALADO EM LOCAL COM ALTO NÍVEL DE INTERFERÊNCIAS - FORNECIMENTO E ASSENTAMENTO. AF_12/2015 | C191: M | D191: 107.59
A192: 92220 | B192: TUBO DE CONCRETO PARA REDES COLETORAS DE ÁGUAS PLUVIAIS, DIÂMETRO DE 500 MM, JUNTA RÍGIDA, INSTALADO EM LOCAL COM ALTO NÍVEL DE INTERFERÊNCIAS - FORNECIMENTO E ASSENTAMENTO. AF_12/2015 | C192: M | D192: 137.16
A193: 92221 | B193: TUBO DE CONCRETO PARA REDES COLETORAS DE ÁGUAS PLUVIAIS, DIÂMETRO DE 600 MM, JUNTA RÍGIDA, INSTALADO EM LOCAL COM ALTO NÍVEL DE INTERFERÊNCIAS - FORNECIMENTO E ASSENTAMENTO. AF_12/2015 | C193: M | D193: 173.32
A194: 92222 | B194: TUBO DE CONCRETO PARA REDES COLETORAS DE ÁGUAS PLUVIAIS, DIÂMETRO DE 700 MM, JUNTA RÍGIDA, INSTALADO EM LOCAL COM ALTO NÍVEL DE INTERFERÊNCIAS - FORNECIMENTO E ASSENTAMENTO. AF_12/2015 | C194: M | D194: 225.96
A195: 92223 | B195: TUBO DE CONCRETO PARA REDES COLETORAS DE ÁGUAS PLUVIAIS, DIÂMETRO DE 800 MM, JUNTA RÍGIDA, INSTALADO EM LOCAL COM ALTO NÍVEL DE INTERFERÊNCIAS - FORNECIMENTO E ASSENTAMENTO. AF_12/2015 | C195: M | D195: 257.48
A196: 92224 | B196: TUBO DE CONCRETO PARA REDES COLETORAS DE ÁGUAS PLUVIAIS, DIÂMETRO DE 900 MM, JUNTA RÍGIDA, INSTALADO EM LOCAL COM ALTO NÍVEL DE INTERFERÊNCIAS - FORNECIMENTO E ASSENTAMENTO. AF_12/2015 | C196: M | D196: 308.57
A197: 92226 | B197: TUBO DE CONCRETO PARA REDES COLETORAS DE ÁGUAS PLUVIAIS, DIÂMETRO DE 1000 MM, JUNTA RÍGIDA, INSTALADO EM LOCAL COM ALTO NÍVEL DE INTERFERÊNCIAS - FORNECIMENTO E ASSENTAMENTO. AF_12/2015 | C197: M | D197: 345.53
A198: 92808 | B198: ASSENTAMENTO DE TUBO DE CONCRETO PARA REDES COLETORAS DE ÁGUAS PLUVIAIS, DIÂMETRO DE 300 MM, JUNTA RÍGIDA, INSTALADO EM LOCAL COM BAIXO NÍVEL DE INTERFERÊNCIAS (NÃO INCLUI FORNECIMENTO). AF_12/2015 | C198: M | D198: 31.83
A199: 92809 | B199: ASSENTAMENTO DE TUBO DE CONCRETO PARA REDES COLETORAS DE ÁGUAS PLUVIAIS, DIÂMETRO DE 400 MM, JUNTA RÍGIDA, INSTALADO EM LOCAL COM BAIXO NÍVEL DE INTERFERÊNCIAS (NÃO INCLUI FORNECIMENTO). AF_12/2015 | C199: M | D199: 40.75
A200: 92810 | B200: ASSENTAMENTO DE TUBO DE CONCRETO PARA REDES COLETORAS DE ÁGUAS PLUVIAIS, DIÂMETRO DE 500 MM, JUNTA RÍGIDA, INSTALADO EM LOCAL COM BAIXO NÍVEL DE INTERFERÊNCIAS (NÃO INCLUI FORNECIMENTO). AF_12/2015 | C200: M | D200: 49.56
A201: 92811 | B201: ASSENTAMENTO DE TUBO DE CONCRETO PARA REDES COLETORAS DE ÁGUAS PLUVIAIS, DIÂMETRO DE 600 MM, JUNTA RÍGIDA, INSTALADO EM LOCAL COM BAIXO NÍVEL DE INTERFERÊNCIAS (NÃO INCLUI FORNECIMENTO). AF_12/2015 | C201: M | D201: 58.9
A202: 92812 | B202: ASSENTAMENTO DE TUBO DE CONCRETO PARA REDES COLETORAS DE ÁGUAS PLUVIAIS, DIÂMETRO DE 700 MM, JUNTA RÍGIDA, INSTALADO EM LOCAL COM BAIXO NÍVEL DE INTERFERÊNCIAS (NÃO INCLUI FORNECIMENTO). AF_12/2015 | C202: M | D202: 68.12
... 6186 more rows

Sheet EMOP 01-2019
A1: DATA DE PREÇO 01/2019
A2: CODIGO | B2: DESCRIÇÃO | C2: DESCR1 | D2: DESCR2 | E2: DESCR3 | F2: DESCR4 | G2: DESCR5 | H2: DESCR6 | I2: UNID | J2: PREÇO
A3: 01.001.0001-0 | B3: =C3&D3&E3&F3&G3&H3 -> 0 | C3: LIMITE DE PLASTICIDADE | I3: UN | J3: 139.11
A4: 01.001.0001-A | B4: =C4&D4&E4&F4&G4&H4 -> LIMITE DE PLASTICIDADE | C4: LIMITE DE PLASTICIDADE | I4: UN | J4: 127.03
A5: 01.001.0002-0 | B5: =C5&D5&E5&F5&G5&H5 -> LIMITE DE LIQUIDEZ | C5: LIMITE DE LIQUIDEZ | I5: UN | J5: 139.11
A6: 01.001.0002-A | B6: =C6&D6&E6&F6&G6&H6 -> LIMITE DE LIQUIDEZ | C6: LIMITE DE LIQUIDEZ | I6: UN | J6: 127.03
A7: 01.001.0003-0 | B7: =C7&D7&E7&F7&G7&H7 -> LIMITE DE CONTRACAO | C7: LIMITE DE CONTRACAO | I7: UN | J7: 81.21
A8: 01.001.0003-A | B8: =C8&D8&E8&F8&G8&H8 -> LIMITE DE CONTRACAO | C8: LIMITE DE CONTRACAO | I8: UN | J8: 74.16
A9: 01.001.0004-0 | B9: =C9&D9&E9&F9&G9&H9 -> ANALISE GRANULOMETRICA SEM SEDIMENTACAO (PENEIRAMENTO) | C9: ANALISE GRANULOMETRICA SEM SEDIMENTACAO (PENEIRAMENTO) | I9: UN | J9: 156.88
A10: 01.001.0004-A | B10: =C10&D10&E10&F10&G10&H10 -> ANALISE GRANULOMETRICA SEM SEDIMENTACAO (PENEIRAMENTO) | C10: ANALISE GRANULOMETRICA SEM SEDIMENTACAO (PENEIRAMENTO) | I10: UN | J10: 143.26
A11: 01.001.0005-0 | B11: =C11&D11&E11&F11&G11&H11 -> ANALISE GRANULOMETRICA COM SEDIMENTACAO | C11: ANALISE GRANULOMETRICA COM SEDIMENTACAO | I11: UN | J11: 364.17
A12: 01.001.0005-A | B12: =C12&D12&E12&F12&G12&H12 -> ANALISE GRANULOMETRICA COM SEDIMENTACAO | C12: ANALISE GRANULOMETRICA COM SEDIMENTACAO | I12: UN | J12: 332.54
A13: 01.001.0006-0 | B13: =C13&D13&E13&F13&G13&H13 -> MASSA ESPECIFICA REAL | C13: MASSA ESPECIFICA REAL | I13: UN | J13: 192.11
A14: 01.001.0006-A | B14: =C14&D14&E14&F14&G14&H14 -> MASSA ESPECIFICA REAL | C14: MASSA ESPECIFICA REAL | I14: UN | J14: 175.43
A15: 01.001.0007-0 | B15: =C15&D15&E15&F15&G15&H15 -> MASSA ESPECIFICA APARENTE "IN SITU" | C15: MASSA ESPECIFICA APARENTE "IN SITU" | I15: UN | J15: 77.34
A16: 01.001.0007-A | B16: =C16&D16&E16&F16&G16&H16 -> MASSA ESPECIFICA APARENTE "IN SITU" | C16: MASSA ESPECIFICA APARENTE "IN SITU" | I16: UN | J16: 70.62
A17: 01.001.0008-0 | B17: =C17&D17&E17&F17&G17&H17 -> UMIDADE NATURAL EM ESTUFA | C17: UMIDADE NATURAL EM ESTUFA | I17: UN | J17: 72.35
A18: 01.001.0008-A | B18: =C18&D18&E18&F18&G18&H18 -> UMIDADE NATURAL EM ESTUFA | C18: UMIDADE NATURAL EM ESTUFA | I18: UN | J18: 66.07
A19: 01.001.0009-0 | B19: =C19&D19&E19&F19&G19&H19 -> EQUIVALENTE DE AREIA | C19: EQUIVALENTE DE AREIA | I19: UN | J19: 172.15
A20: 01.001.0009-A | B20: =C20&D20&E20&F20&G20&H20 -> EQUIVALENTE DE AREIA | C20: EQUIVALENTE DE AREIA | I20: UN | J20: 157.2
A21: 01.001.0010-0 | B21: =C21&D21&E21&F21&G21&H21 -> UMIDADE PELO METODO EXPEDITO "SPEEDY" | C21: UMIDADE PELO METODO EXPEDITO "SPEEDY" | I21: UN | J21: 48.64
A22: 01.001.0010-A | B22: =C22&D22&E22&F22&G22&H22 -> UMIDADE PELO METODO EXPEDITO "SPEEDY" | C22: UMIDADE PELO METODO EXPEDITO "SPEEDY" | I22: UN | J22: 44.42
A23: 01.001.0011-0 | B23: =C23&D23&E23&F23&G23&H23 -> COMPACTACAO: ENERGIA PROCTOR NORMAL | C23: COMPACTACAO: ENERGIA PROCTOR NORMAL | I23: UN | J23: 303.56
A24: 01.001.0011-A | B24: =C24&D24&E24&F24&G24&H24 -> COMPACTACAO: ENERGIA PROCTOR NORMAL | C24: COMPACTACAO: ENERGIA PROCTOR NORMAL | I24: UN | J24: 277.19
A25: 01.001.0012-0 | B25: =C25&D25&E25&F25&G25&H25 -> COMPACTACAO: ENERGIA AASHO INTERMEDIARIA | C25: COMPACTACAO: ENERGIA AASHO INTERMEDIARIA | I25: UN | J25: 364.17
A26: 01.001.0012-A | B26: =C26&D26&E26&F26&G26&H26 -> COMPACTACAO: ENERGIA AASHO INTERMEDIARIA | C26: COMPACTACAO: ENERGIA AASHO INTERMEDIARIA | I26: UN | J26: 332.54
A27: 01.001.0013-0 | B27: =C27&D27&E27&F27&G27&H27 -> COMPACTACAO: ENERGIA AASHO MODIFICADA | C27: COMPACTACAO: ENERGIA AASHO MODIFICADA | I27: UN | J27: 586.1
A28: 01.001.0013-A | B28: =C28&D28&E28&F28&G28&H28 -> COMPACTACAO: ENERGIA AASHO MODIFICADA | C28: COMPACTACAO: ENERGIA AASHO MODIFICADA | I28: UN | J28: 535.2
A29: 01.001.0014-0 | B29: =C29&D29&E29&F29&G29&H29 -> INDICE SUPORTE CALIFORNIA,POR 1 PONTO,COMPACTACAO COM ENERGIA PROCTOR NORMAL | C29: INDICE SUPORTE CALIFORNIA,POR 1 PONTO,COMPACTACAO COM ENERGI | D29: A PROCTOR NORMAL | I29: UN | J29: 669.03
A30: 01.001.0014-A | B30: =C30&D30&E30&F30&G30&H30 -> INDICE SUPORTE CALIFORNIA,POR 1 PONTO,COMPACTACAO COM ENERGIA PROCTOR NORMAL | C30: INDICE SUPORTE CALIFORNIA,POR 1 PONTO,COMPACTACAO COM ENERGI | D30: A PROCTOR NORMAL | I30: UN | J30: 610.93
A31: 01.001.0015-0 | B31: =C31&D31&E31&F31&G31&H31 -> INDICE SUPORTE CALIFORNIA,POR 1 PONTO,COMPACTACAO COM ENERGIA AASHO INTERMEDIARIA | C31: INDICE SUPORTE CALIFORNIA,POR 1 PONTO,COMPACTACAO COM ENERGI | D31: A AASHO INTERMEDIARIA | I31: UN | J31: 876.37
A32: 01.001.0015-A | B32: =C32&D32&E32&F32&G32&H32 -> INDICE SUPORTE CALIFORNIA,POR 1 PONTO,COMPACTACAO COM ENERGIA AASHO INTERMEDIARIA | C32: INDICE SUPORTE CALIFORNIA,POR 1 PONTO,COMPACTACAO COM ENERGI | D32: A AASHO INTERMEDIARIA | I32: UN | J32: 800.26
A33: 01.001.0016-0 | B33: =C33&D33&E33&F33&G33&H33 -> INDICE SUPORTE CALIFORNIA,POR 1 PONTO,COMPACTACAO COM ENERGIA AASHO MODIFICADA | C33: INDICE SUPORTE CALIFORNIA,POR 1 PONTO,COMPACTACAO COM ENERGI | D33: A AASHO MODIFICADA | I33: UN | J33: 876.37
A34: 01.001.0016-A | B34: =C34&D34&E34&F34&G34&H34 -> INDICE SUPORTE CALIFORNIA,POR 1 PONTO,COMPACTACAO COM ENERGIA AASHO MODIFICADA | C34: INDICE SUPORTE CALIFORNIA,POR 1 PONTO,COMPACTACAO COM ENERGI | D34: A AASHO MODIFICADA | I34: UN | J34: 800.26
A35: 01.001.0017-0 | B35: =C35&D35&E35&F35&G35&H35 -> INDICE SUPORTE CALIFORNIA,POR 3 PONTOS,COMPACTACAO COM ENERGIA PROCTOR NORMAL | C35: INDICE SUPORTE CALIFORNIA,POR 3 PONTOS,COMPACTACAO COM ENERG | D35: IA PROCTOR NORMAL | I35: UN | J35: 1402.37
A36: 01.001.0017-A | B36: =C36&D36&E36&F36&G36&H36 -> INDICE SUPORTE CALIFORNIA,POR 3 PONTOS,COMPACTACAO COM ENERGIA PROCTOR NORMAL | C36: INDICE SUPORTE CALIFORNIA,POR 3 PONTOS,COMPACTACAO COM ENERG | D36: IA PROCTOR NORMAL | I36: UN | J36: 1280.58
A37: 01.001.0018-0 | B37: =C37&D37&E37&F37&G37&H37 -> INDICE SUPORTE CALIFORNIA,POR 3 PONTOS,COMPACTACAO COM ENERGIA AASHO INTERMEDIARIA | C37: INDICE SUPORTE CALIFORNIA,POR 3 PONTOS,COMPACTACAO COM ENERG | D37: IA AASHO INTERMEDIARIA | I37: UN | J37: 1519.35
A38: 01.001.0018-A | B38: =C38&D38&E38&F38&G38&H38 -> INDICE SUPORTE CALIFORNIA,POR 3 PONTOS,COMPACTACAO COM ENERGIA AASHO INTERMEDIARIA | C38: INDICE SUPORTE CALIFORNIA,POR 3 PONTOS,COMPACTACAO COM ENERG | D38: IA AASHO INTERMEDIARIA | I38: UN | J38: 1387.4
A39: 01.001.0019-0 | B39: =C39&D39&E39&F39&G39&H39 -> INDICE SUPORTE CALIFORNIA,POR 3 PONTOS,COMPACTACAO COM ENERGIA AASHO MODIFICADA | C39: INDICE SUPORTE CALIFORNIA,POR 3 PONTOS,COMPACTACAO COM ENERG | D39: IA AASHO MODIFICADA | I39: UN | J39: 1636.35
A40: 01.001.0019-A | B40: =C40&D40&E40&F40&G40&H40 -> INDICE SUPORTE CALIFORNIA,POR 3 PONTOS,COMPACTACAO COM ENERGIA AASHO MODIFICADA | C40: INDICE SUPORTE CALIFORNIA,POR 3 PONTOS,COMPACTACAO COM ENERG | D40: IA AASHO MODIFICADA | I40: UN | J40: 1494.23
A41: 01.001.0020-0 | B41: =C41&D41&E41&F41&G41&H41 -> INDICE SUPORTE CALIFORNIA,POR 5 PONTOS,COMPACTACAO COM ENERGIA PROCTOR NORMAL | C41: INDICE SUPORTE CALIFORNIA,POR 5 PONTOS,COMPACTACAO COM ENERG | D41: IA PROCTOR NORMAL | I41: UN | J41: 2221.31
A42: 01.001.0020-A | B42: =C42&D42&E42&F42&G42&H42 -> INDICE SUPORTE CALIFORNIA,POR 5 PONTOS,COMPACTACAO COM ENERGIA PROCTOR NORMAL | C42: INDICE SUPORTE CALIFORNIA,POR 5 PONTOS,COMPACTACAO COM ENERG | D42: IA PROCTOR NORMAL | I42: UN | J42: 2028.39
A43: 01.001.0021-0 | B43: =C43&D43&E43&F43&G43&H43 -> INDICE SUPORTE CALIFORNIA,POR 5 PONTOS,COMPACTACAO COM ENERGIA AASHO INTERMEDIARIA | C43: INDICE SUPORTE CALIFORNIA,POR 5 PONTOS,COMPACTACAO COM ENERG | D43: IA AASHO INTERMEDIARIA | I43: UN | J43: 2453.77
A44: 01.001.0021-A | B44: =C44&D44&E44&F44&G44&H44 -> INDICE SUPORTE CALIFORNIA,POR 5 PONTOS,COMPACTACAO COM ENERGIA AASHO INTERMEDIARIA | C44: INDICE SUPORTE CALIFORNIA,POR 5 PONTOS,COMPACTACAO COM ENERG | D44: IA AASHO INTERMEDIARIA | I44: UN | J44: 2240.67
A45: 01.001.0022-0 | B45: =C45&D45&E45&F45&G45&H45 -> INDICE SUPORTE CALIFORNIA,POR 5 PONTOS,COMPACTACAO COM ENERGIA AASHO MODIFICADA | C45: INDICE SUPORTE CALIFORNIA,POR 5 PONTOS,COMPACTACAO COM ENERG | D45: IA AASHO MODIFICADA | I45: UN | J45: 2570.76
A46: 01.001.0022-A | B46: =C46&D46&E46&F46&G46&H46 -> INDICE SUPORTE CALIFORNIA,POR 5 PONTOS,COMPACTACAO COM ENERGIA AASHO MODIFICADA | C46: INDICE SUPORTE CALIFORNIA,POR 5 PONTOS,COMPACTACAO COM ENERG | D46: IA AASHO MODIFICADA | I46: UN | J46: 2347.5
A47: 01.001.0023-0 | B47: =C47&D47&E47&F47&G47&H47 -> PERMEABILIDADE EM AMOSTRA NATURAL | C47: PERMEABILIDADE EM AMOSTRA NATURAL | I47: UN | J47: 846.16
A48: 01.001.0023-A | B48: =C48&D48&E48&F48&G48&H48 -> PERMEABILIDADE EM AMOSTRA NATURAL | C48: PERMEABILIDADE EM AMOSTRA NATURAL | I48: UN | J48: 772.68
A49: 01.001.0024-0 | B49: =C49&D49&E49&F49&G49&H49 -> PERMEABILIDADE EM AMOSTRA MOLDADA ARGILOSA | C49: PERMEABILIDADE EM AMOSTRA MOLDADA ARGILOSA | I49: UN | J49: 846.16
A50: 01.001.0024-A | B50: =C50&D50&E50&F50&G50&H50 -> PERMEABILIDADE EM AMOSTRA MOLDADA ARGILOSA | C50: PERMEABILIDADE EM AMOSTRA MOLDADA ARGILOSA | I50: UN | J50: 772.68
A51: 01.001.0025-0 | B51: =C51&D51&E51&F51&G51&H51 -> PERMEABILIDADE EM AMOSTRA DE AREIA | C51: PERMEABILIDADE EM AMOSTRA DE AREIA | I51: UN | J51: 819.01
A52: 01.001.0025-A | B52: =C52&D52&E52&F52&G52&H52 -> PERMEABILIDADE EM AMOSTRA DE AREIA | C52: PERMEABILIDADE EM AMOSTRA DE AREIA | I52: UN | J52: 747.88
A53: 01.001.0026-0 | B53: =C53&D53&E53&F53&G53&H53 -> COMPRESSAO SIMPLES EM AMOSTRA NATURAL,POR CORPO DE PROVA | C53: COMPRESSAO SIMPLES EM AMOSTRA NATURAL,POR CORPO DE PROVA | I53: UN | J53: 546.01
A54: 01.001.0026-A | B54: =C54&D54&E54&F54&G54&H54 -> COMPRESSAO SIMPLES EM AMOSTRA NATURAL,POR CORPO DE PROVA | C54: COMPRESSAO SIMPLES EM AMOSTRA NATURAL,POR CORPO DE PROVA | I54: UN | J54: 498.59
A55: 01.001.0027-0 | B55: =C55&D55&E55&F55&G55&H55 -> COMPRESSAO SIMPLES EM AMOSTRA MOLDADA,POR CORPO DE PROVA | C55: COMPRESSAO SIMPLES EM AMOSTRA MOLDADA,POR CORPO DE PROVA | I55: UN | J55: 546.01
A56: 01.001.0027-A | B56: =C56&D56&E56&F56&G56&H56 -> COMPRESSAO SIMPLES EM AMOSTRA MOLDADA,POR CORPO DE PROVA | C56: COMPRESSAO SIMPLES EM AMOSTRA MOLDADA,POR CORPO DE PROVA | I56: UN | J56: 498.59
A57: 01.001.0028-0 | B57: =C57&D57&E57&F57&G57&H57 -> ADENSAMENTO EM AMOSTRA NATURAL | C57: ADENSAMENTO EM AMOSTRA NATURAL | I57: UN | J57: 1722.67
A58: 01.001.0028-A | B58: =C58&D58&E58&F58&G58&H58 -> ADENSAMENTO EM AMOSTRA NATURAL | C58: ADENSAMENTO EM AMOSTRA NATURAL | I58: UN | J58: 1573.06
A59: 01.001.0029-0 | B59: =C59&D59&E59&F59&G59&H59 -> ADENSAMENTO EM AMOSTRA MOLDADA | C59: ADENSAMENTO EM AMOSTRA MOLDADA | I59: UN | J59: 1722.67
A60: 01.001.0029-A | B60: =C60&D60&E60&F60&G60&H60 -> ADENSAMENTO EM AMOSTRA MOLDADA | C60: ADENSAMENTO EM AMOSTRA MOLDADA | I60: UN | J60: 1573.06
A61: 01.001.0030-0 | B61: =C61&D61&E61&F61&G61&H61 -> ADENSAMENTO:PAR DE ENSAIOS PARA DETERMINACAO DO FATOR DE CORRECAO DE COEFICIENTE DE RECALQUE | C61: ADENSAMENTO:PAR DE ENSAIOS PARA DETERMINACAO DO FATOR DE COR | D61: RECAO DE COEFICIENTE DE RECALQUE | I61: UN | J61: 1995.67
A62: 01.001.0030-A | B62: =C62&D62&E62&F62&G62&H62 -> ADENSAMENTO:PAR DE ENSAIOS PARA DETERMINACAO DO FATOR DE CORRECAO DE COEFICIENTE DE RECALQUE | C62: ADENSAMENTO:PAR DE ENSAIOS PARA DETERMINACAO DO FATOR DE COR | D62: RECAO DE COEFICIENTE DE RECALQUE | I62: UN | J62: 1822.35
A63: 01.001.0031-0 | B63: =C63&D63&E63&F63&G63&H63 -> CISALHAMENTO LENTO,POR CORPO DE PROVA | C63: CISALHAMENTO LENTO,POR CORPO DE PROVA | I63: UN | J63: 1574.71
A64: 01.001.0031-A | B64: =C64&D64&E64&F64&G64&H64 -> CISALHAMENTO LENTO,POR CORPO DE PROVA | C64: CISALHAMENTO LENTO,POR CORPO DE PROVA | I64: UN | J64: 1437.95
A65: 01.001.0032-0 | B65: =C65&D65&E65&F65&G65&H65 -> CISALHAMENTO RAPIDO,POR CORPO DE PROVA | C65: CISALHAMENTO RAPIDO,POR CORPO DE PROVA | I65: UN | J65: 1574.71
A66: 01.001.0032-A | B66: =C66&D66&E66&F66&G66&H66 -> CISALHAMENTO RAPIDO,POR CORPO DE PROVA | C66: CISALHAMENTO RAPIDO,POR CORPO DE PROVA | I66: UN | J66: 1437.95
A67: 01.001.0033-0 | B67: =C67&D67&E67&F67&G67&H67 -> TRIAXIAL DRENADO,EM AMOSTRA NATURAL,POR CORPO DE PROVA | C67: TRIAXIAL DRENADO,EM AMOSTRA NATURAL,POR CORPO DE PROVA | I67: UN | J67: 5079.12
A68: 01.001.0033-A | B68: =C68&D68&E68&F68&G68&H68 -> TRIAXIAL DRENADO,EM AMOSTRA NATURAL,POR CORPO DE PROVA | C68: TRIAXIAL DRENADO,EM AMOSTRA NATURAL,POR CORPO DE PROVA | I68: UN | J68: 4638.01
A69: 01.001.0034-0 | B69: =C69&D69&E69&F69&G69&H69 -> TRIAXIAL DRENADO,EM AMOSTRA MOLDADA,POR CORPO DE PROVA | C69: TRIAXIAL DRENADO,EM AMOSTRA MOLDADA,POR CORPO DE PROVA | I69: UN | J69: 5462.2
A70: 01.001.0034-A | B70: =C70&D70&E70&F70&G70&H70 -> TRIAXIAL DRENADO,EM AMOSTRA MOLDADA,POR CORPO DE PROVA | C70: TRIAXIAL DRENADO,EM AMOSTRA MOLDADA,POR CORPO DE PROVA | I70: UN | J70: 4987.82
A71: 01.001.0035-0 | B71: =C71&D71&E71&F71&G71&H71 -> TRIAXIAL NAO DRENADO,EM AMOSTRA NATURAL,POR CORPO DE PROVA | C71: TRIAXIAL NAO DRENADO,EM AMOSTRA NATURAL,POR CORPO DE PROVA | I71: UN | J71: 1905.49
A72: 01.001.0035-A | B72: =C72&D72&E72&F72&G72&H72 -> TRIAXIAL NAO DRENADO,EM AMOSTRA NATURAL,POR CORPO DE PROVA | C72: TRIAXIAL NAO DRENADO,EM AMOSTRA NATURAL,POR CORPO DE PROVA | I72: UN | J72: 1740
A73: 01.001.0036-0 | B73: =C73&D73&E73&F73&G73&H73 -> TRIAXIAL NAO DRENADO,EM AMOSTRA MOLDADA,POR CORPO DE PROVA | C73: TRIAXIAL NAO DRENADO,EM AMOSTRA MOLDADA,POR CORPO DE PROVA | I73: UN | J73: 2159.78
A74: 01.001.0036-A | B74: =C74&D74&E74&F74&G74&H74 -> TRIAXIAL NAO DRENADO,EM AMOSTRA MOLDADA,POR CORPO DE PROVA | C74: TRIAXIAL NAO DRENADO,EM AMOSTRA MOLDADA,POR CORPO DE PROVA | I74: UN | J74: 1972.21
A75: 01.001.0037-0 | B75: =C75&D75&E75&F75&G75&H75 -> TRIAXIAL NAO DRENADO,PRE-ADENSADO,EM AMOSTRA NATURAL,POR CORPO DE PROVA | C75: TRIAXIAL NAO DRENADO,PRE-ADENSADO,EM AMOSTRA NATURAL,POR COR | D75: PO DE PROVA | I75: UN | J75: 2793.84
A76: 01.001.0037-A | B76: =C76&D76&E76&F76&G76&H76 -> TRIAXIAL NAO DRENADO,PRE-ADENSADO,EM AMOSTRA NATURAL,POR CORPO DE PROVA | C76: TRIAXIAL NAO DRENADO,PRE-ADENSADO,EM AMOSTRA NATURAL,POR COR | D76: PO DE PROVA | I76: UN | J76: 2551.21
A77: 01.001.0038-0 | B77: =C77&D77&E77&F77&G77&H77 -> TRIAXIAL NAO DRENADO,PRE-ADENSADO,EM AMOSTRA MOLDADA,POR CORPO DE PROVA | C77: TRIAXIAL NAO DRENADO,PRE-ADENSADO,EM AMOSTRA MOLDADA,POR COR | D77: PO DE PROVA | I77: UN | J77: 2972.17
A78: 01.001.0038-A | B78: =C78&D78&E78&F78&G78&H78 -> TRIAXIAL NAO DRENADO,PRE-ADENSADO,EM AMOSTRA MOLDADA,POR CORPO DE PROVA | C78: TRIAXIAL NAO DRENADO,PRE-ADENSADO,EM AMOSTRA MOLDADA,POR COR | D78: PO DE PROVA | I78: UN | J78: 2714.04
A79: 01.001.0039-0 | B79: =C79&D79&E79&F79&G79&H79 -> DURABILIDADE POR MOLHAGEM E SECAGEM,EM SOLO-CIMENTO,POR ENSAIO | C79: DURABILIDADE POR MOLHAGEM E SECAGEM,EM SOLO-CIMENTO,POR ENSA | D79: IO | I79: UN | J79: 1069.97
A80: 01.001.0039-A | B80: =C80&D80&E80&F80&G80&H80 -> DURABILIDADE POR MOLHAGEM E SECAGEM,EM SOLO-CIMENTO,POR ENSAIO | C80: DURABILIDADE POR MOLHAGEM E SECAGEM,EM SOLO-CIMENTO,POR ENSA | D80: IO | I80: UN | J80: 977.05
A81: 01.001.0040-0 | B81: =C81&D81&E81&F81&G81&H81 -> SONDAGEM MANUAL,COM TRADO CAVADEIRA,POR METRO LINEAR OU FRACAO | C81: SONDAGEM MANUAL,COM TRADO CAVADEIRA,POR METRO LINEAR OU FRAC | D81: AO | I81: M | J81: 148.76
A82: 01.001.0040-A | B82: =C82&D82&E82&F82&G82&H82 -> SONDAGEM MANUAL,COM TRADO CAVADEIRA,POR METRO LINEAR OU FRACAO | C82: SONDAGEM MANUAL,COM TRADO CAVADEIRA,POR METRO LINEAR OU FRAC | D82: AO | I82: M | J82: 134.87
A83: 01.001.0042-0 | B83: =C83&D83&E83&F83&G83&H83 -> SONDAGEM MANUAL,COM PA E PICARETA,POR METRO LINEAR OU FRACAO | C83: SONDAGEM MANUAL,COM PA E PICARETA,POR METRO LINEAR OU FRACAO | I83: M | J83: 154.72
A84: 01.001.0042-A | B84: =C84&D84&E84&F84&G84&H84 -> SONDAGEM MANUAL,COM PA E PICARETA,POR METRO LINEAR OU FRACAO | C84: SONDAGEM MANUAL,COM PA E PICARETA,POR METRO LINEAR OU FRACAO | I84: M | J84: 140.04
A85: 01.001.0043-0 | B85: =C85&D85&E85&F85&G85&H85 -> SONDAGEM DE RECONHECIMENTO A TRADO MANUAL DE 4".PARA TRADO DE 6",ACRESCENTAR 50% AO VALOR DESTE ITEM | C85: SONDAGEM DE RECONHECIMENTO A TRADO MANUAL DE 4".PARA TRADO D | D85: E 6",ACRESCENTAR 50% AO VALOR DESTE ITEM | I85: M | J85: 76.01
A86: 01.001.0043-A | B86: =C86&D86&E86&F86&G86&H86 -> SONDAGEM DE RECONHECIMENTO A TRADO MANUAL DE 4".PARA TRADO DE 6",ACRESCENTAR 50% AO VALOR DESTE ITEM | C86: SONDAGEM DE RECONHECIMENTO A TRADO MANUAL DE 4".PARA TRADO D | D86: E 6",ACRESCENTAR 50% AO VALOR DESTE ITEM | I86: M | J86: 65.87
A87: 01.001.0044-0 | B87: =C87&D87&E87&F87&G87&H87 -> SONDAGEM EXPEDITA,DE SIMPLES RECONHECIMENTO A PERCUSSAO,EXCLUSIVAMENTE POR LAVAGEM,DIAMETRO DE 2",INCLUSIVE DESLOCAMENTO E INSTALACAO | C87: SONDAGEM EXPEDITA,DE SIMPLES RECONHECIMENTO A PERCUSSAO,EXCL | D87: USIVAMENTE POR LAVAGEM,DIAMETRO DE 2",INCLUSIVE DESLOCAMENTO | E87: E INSTALACAO | I87: M | J87: 60.28
A88: 01.001.0044-A | B88: =C88&D88&E88&F88&G88&H88 -> SONDAGEM EXPEDITA,DE SIMPLES RECONHECIMENTO A PERCUSSAO,EXCLUSIVAMENTE POR LAVAGEM,DIAMETRO DE 2",INCLUSIVE DESLOCAMENTO E INSTALACAO | C88: SONDAGEM EXPEDITA,DE SIMPLES RECONHECIMENTO A PERCUSSAO,EXCL | D88: USIVAMENTE POR LAVAGEM,DIAMETRO DE 2",INCLUSIVE DESLOCAMENTO | E88: E INSTALACAO | I88: M | J88: 52.24
A89: 01.001.0046-0 | B89: =C89&D89&E89&F89&G89&H89 -> FRACIONAMENTO QUIMICO (METODO ROSTLER) | C89: FRACIONAMENTO QUIMICO (METODO ROSTLER) | I89: UN | J89: 155.22
A90: 01.001.0046-A | B90: =C90&D90&E90&F90&G90&H90 -> FRACIONAMENTO QUIMICO (METODO ROSTLER) | C90: FRACIONAMENTO QUIMICO (METODO ROSTLER) | I90: UN | J90: 141.74
A91: 01.001.0047-0 | B91: =C91&D91&E91&F91&G91&H91 -> ENSAIO DE PALHETA("VANE TEST")REALIZADO NO CAMPO,EXCLUSIVE PERFURACAO | C91: ENSAIO DE PALHETA("VANE TEST")REALIZADO NO CAMPO,EXCLUSIVE P | D91: ERFURACAO | I91: UN | J91: 147.1
A92: 01.001.0047-A | B92: =C92&D92&E92&F92&G92&H92 -> ENSAIO DE PALHETA("VANE TEST")REALIZADO NO CAMPO,EXCLUSIVE PERFURACAO | C92: ENSAIO DE PALHETA("VANE TEST")REALIZADO NO CAMPO,EXCLUSIVE P | D92: ERFURACAO | I92: UN | J92: 127.47
A93: 01.001.0048-0 | B93: =C93&D93&E93&F93&G93&H93 -> ENSAIO DE PALHETA("VANE TEST"),REALIZADO EM LABORATORIO | C93: ENSAIO DE PALHETA("VANE TEST"),REALIZADO EM LABORATORIO | I93: UN | J93: 99.04
A94: 01.001.0048-A | B94: =C94&D94&E94&F94&G94&H94 -> ENSAIO DE PALHETA("VANE TEST"),REALIZADO EM LABORATORIO | C94: ENSAIO DE PALHETA("VANE TEST"),REALIZADO EM LABORATORIO | I94: UN | J94: 85.82
A95: 01.001.0049-0 | B95: =C95&D95&E95&F95&G95&H95 -> CLASSIFICACAO MACROSCOPICA DE AMOSTRAS DE SONDAGEM ROTATIVA | C95: CLASSIFICACAO MACROSCOPICA DE AMOSTRAS DE SONDAGEM ROTATIVA | I95: M | J95: 272.4
A96: 01.001.0049-A | B96: =C96&D96&E96&F96&G96&H96 -> CLASSIFICACAO MACROSCOPICA DE AMOSTRAS DE SONDAGEM ROTATIVA | C96: CLASSIFICACAO MACROSCOPICA DE AMOSTRAS DE SONDAGEM ROTATIVA | I96: M | J96: 248.74
A97: 01.001.0050-0 | B97: =C97&D97&E97&F97&G97&H97 -> CLASSIFICACAO MACROSCOPICA DE AMOSTRAS DE SONDAGEM ROTATIVA,COM LAMINA DE ROCHA | C97: CLASSIFICACAO MACROSCOPICA DE AMOSTRAS DE SONDAGEM ROTATIVA, | D97: COM LAMINA DE ROCHA | I97: M | J97: 2539.56
A98: 01.001.0050-A | B98: =C98&D98&E98&F98&G98&H98 -> CLASSIFICACAO MACROSCOPICA DE AMOSTRAS DE SONDAGEM ROTATIVA,COM LAMINA DE ROCHA | C98: CLASSIFICACAO MACROSCOPICA DE AMOSTRAS DE SONDAGEM ROTATIVA, | D98: COM LAMINA DE ROCHA | I98: M | J98: 2319
A99: 01.001.0051-0 | B99: =C99&D99&E99&F99&G99&H99 -> BRITAGEM EM LABORATORIO,DE BLOCOS DE ROCHA,MATACOES OU TESTEMUNHOS DE SONDAGEM ROTATIVA,POR AMOSTRA REPRESENTATIVA | C99: BRITAGEM EM LABORATORIO,DE BLOCOS DE ROCHA,MATACOES OU TESTE | D99: MUNHOS DE SONDAGEM ROTATIVA,POR AMOSTRA REPRESENTATIVA | I99: UN | J99: 254.27
A100: 01.001.0051-A | B100: =C100&D100&E100&F100&G100&H100 -> BRITAGEM EM LABORATORIO,DE BLOCOS DE ROCHA,MATACOES OU TESTEMUNHOS DE SONDAGEM ROTATIVA,POR AMOSTRA REPRESENTATIVA | C100: BRITAGEM EM LABORATORIO,DE BLOCOS DE ROCHA,MATACOES OU TESTE | D100: MUNHOS DE SONDAGEM ROTATIVA,POR AMOSTRA REPRESENTATIVA | I100: UN | J100: 232.19
A101: 01.001.0052-0 | B101: =C101&D101&E101&F101&G101&H101 -> MINI-CBR E EXPANSAO DE SOLO COMPACTADO EM EQUIPAMENTO MINIATURA | C101: MINI-CBR E EXPANSAO DE SOLO COMPACTADO EM EQUIPAMENTO MINIAT | D101: URA | I101: UN | J101: 83.99
A102: 01.001.0052-A | B102: =C102&D102&E102&F102&G102&H102 -> MINI-CBR E EXPANSAO DE SOLO COMPACTADO EM EQUIPAMENTO MINIATURA | C102: MINI-CBR E EXPANSAO DE SOLO COMPACTADO EM EQUIPAMENTO MINIAT | D102: URA | I102: UN | J102: 76.69
A103: 01.001.0053-0 | B103: =C103&D103&E103&F103&G103&H103 -> MINI-MCV - SOLO COMPACTADO EM EQUIPAMENTO MINIATURA | C103: MINI-MCV - SOLO COMPACTADO EM EQUIPAMENTO MINIATURA | I103: UN | J103: 83.99
A104: 01.001.0053-A | B104: =C104&D104&E104&F104&G104&H104 -> MINI-MCV - SOLO COMPACTADO EM EQUIPAMENTO MINIATURA | C104: MINI-MCV - SOLO COMPACTADO EM EQUIPAMENTO MINIATURA | I104: UN | J104: 76.69
A105: 01.001.0054-0 | B105: =C105&D105&E105&F105&G105&H105 -> DETERMINACAO DA PERDA DE MASSA POR IMERSAO DE SOLOS COMPACTADOS EM EQUIPAMENTO MINIATURA | C105: DETERMINACAO DA PERDA DE MASSA POR IMERSAO DE SOLOS COMPACTA | D105: DOS EM EQUIPAMENTO MINIATURA | I105: UN | J105: 83.99
A106: 01.001.0054-A | B106: =C106&D106&E106&F106&G106&H106 -> DETERMINACAO DA PERDA DE MASSA POR IMERSAO DE SOLOS COMPACTADOS EM EQUIPAMENTO MINIATURA | C106: DETERMINACAO DA PERDA DE MASSA POR IMERSAO DE SOLOS COMPACTA | D106: DOS EM EQUIPAMENTO MINIATURA | I106: UN | J106: 76.69
A107: 01.001.0055-0 | B107: =C107&D107&E107&F107&G107&H107 -> EXTRACAO DE AMOSTRA INDEFORMADA EM BLOCOS DE 30X30X30CM,INCLUSIVE EMBALAGEM DE MADEIRA,EXCLUSIVE TRANSPORTE | C107: EXTRACAO DE AMOSTRA INDEFORMADA EM BLOCOS DE 30X30X30CM,INCL | D107: USIVE EMBALAGEM DE MADEIRA,EXCLUSIVE TRANSPORTE | I107: UN | J107: 658.06
A108: 01.001.0055-A | B108: =C108&D108&E108&F108&G108&H108 -> EXTRACAO DE AMOSTRA INDEFORMADA EM BLOCOS DE 30X30X30CM,INCLUSIVE EMBALAGEM DE MADEIRA,EXCLUSIVE TRANSPORTE | C108: EXTRACAO DE AMOSTRA INDEFORMADA EM BLOCOS DE 30X30X30CM,INCL | D108: USIVE EMBALAGEM DE MADEIRA,EXCLUSIVE TRANSPORTE | I108: UN | J108: 600.91
